Workbook

Sheet ANNEX
A8: 2013 EBA
A9: Transparency Exercise Sample
B11: EBA Bankcode | C11: Bankname | D11: Country
B12: AT001 | C12: Erste Group Bank (EGB) | D12: =LEFT(B12,2) -> AT
B13: AT002 | C13: Raiffeisen Zentralbank Österreich (RZB) | D13: =LEFT(B13,2) -> AT
B14: BE005 | C14: KBC BANK | D14: BE
B15: CY007 | C15: BANK OF CYPRUS PUBLIC CO LTD | D15: =LEFT(B15,2) -> CY
B16: DE017 | C16: DEUTSCHE BANK AG | D16: DE
B17: DE018 | C17: COMMERZBANK AG | D17: DE
B18: DE019 | C18: Landesbank Baden-Württemberg | D18: DE
B19: DE020 | C19: DZ BANK AG Dt. Zentral-Genossenschaftsbank | D19: DE
B20: DE021 | C20: Bayerische Landesbank | D20: DE
B21: DE022 | C21: Norddeutsche Landesbank -GZ | D21: DE
B22: DE023 | C22: Hypo Real Estate Holding AG | D22: DE
B23: DE025 | C23: HSH Nordbank AG, Hamburg | D23: DE
B24: DE026 | C24: Landesbank Hessen-Thüringen GZ, Frankfurt | D24: DE
B25: DE027 | C25: Landesbank Berlin AG | D25: DE
B26: DE028 | C26: DekaBank Deutsche Girozentrale, Frankfurt | D26: DE
B27: DE029 | C27: WGZ BANK AG Westdt. Geno. Zentralbk, Ddf | D27: DE
B28: DK008 | C28: DANSKE BANK | D28: DK
B29: DK009 | C29: Jyske Bank | D29: DK
B30: DK010 | C30: Sydbank | D30: DK
B31: DK011 | C31: Nykredit | D31: DK
B32: ES059 | C32: BANCO SANTANDER S.A. | D32: ES
B33: ES060 | C33: BANCO BILBAO VIZCAYA ARGENTARIA S.A. (BBVA) | D33: ES
B34: ES062 | C34: CAJA DE AHORROS Y PENSIONES DE BARCELONA | D34: ES
B35: ES064 | C35: BANCO POPULAR ESPAÑOL, S.A. | D35: ES
B36: FI012 | C36: OP-Pohjola Group | D36: FI
B37: FR013 | C37: BNP PARIBAS | D37: FR
B38: FR014 | C38: CREDIT AGRICOLE | D38: FR
B39: FR015 | C39: BPCE | D39: FR
B40: FR016 | C40: SOCIETE GENERALE | D40: FR
B41: GB088 | C41: ROYAL BANK OF SCOTLAND GROUP plc | D41: GB
B42: GB089 | C42: HSBC HOLDINGS plc | D42: GB
B43: GB090 | C43: BARCLAYS plc | D43: GB
B44: GB091 | C44: LLOYDS BANKING GROUP plc | D44: GB
B45: GR030 | C45: EFG EUROBANK ERGASIAS S.A. | D45: =LEFT(B45,2) -> GR
B46: GR031 | C46: NATIONAL BANK OF GREECE | D46: GR
B47: GR032 | C47: ALPHA BANK | D47: GR
B48: GR033 | C48: PIRAEUS BANK GROUP | D48: GR
B49: HU036 | C49: OTP BANK NYRT. | D49: =LEFT(B49,2) -> HU
B50: IE037 | C50: ALLIED IRISH BANKS PLC | D50: IE
B51: IE038 | C51: BANK OF IRELAND | D51: IE
B52: IE039 | C52: PERMANENT TSB | D52: IE
B53: IT040 | C53: INTESA SANPAOLO S.p.A | D53: IT
B54: IT041 | C54: UNICREDIT S.p.A | D54: IT
B55: IT042 | C55: BANCA MONTE DEI PASCHI DI SIENA S.p.A | D55: IT
B56: IT043 | C56: BANCO POPOLARE - S.C. | D56: IT
B57: IT044 | C57: UNIONE DI BANCHE ITALIANE SCPA (UBI BANCA) | D57: IT
B58: LU045 | C58: BANQUE ET CAISSE D'EPARGNE DE L'ETAT | D58: LU
B59: MT046 | C59: BANK OF VALLETTA (BOV) | D59: MT
B60: NL047 | C60: ING BANK NV | D60: NL
B61: NL048 | C61: RABOBANK NEDERLAND | D61: NL
B62: NL049 | C62: ABN AMRO BANK NV | D62: NL
B63: NL050 | C63: SNS BANK NV | D63: NL
B64: NO051 | C64: DNB Bank ASA | D64: NO
B65: PL052 | C65: POWSZECHNA KASA OSZCZEDNOSCI BANK POLSKI S.A. (PKO BANK POLSKI) | D65: PL
B66: PT053 | C66: CAIXA GERAL DE DEPÓSITOS SA | D66: PT
B67: PT054 | C67: BANCO COMERCIAL PORTUGUES SA (BCP OR MILLENNIUM BCP) | D67: PT
B68: PT055 | C68: ESPÍRITO SANTO FINANCIAL GROUP SA (ESFG) | D68: PT
B69: PT056 | C69: Banco BPI, SA | D69: PT
B70: SE084 | C70: Nordea Bank AB (publ) | D70: SE
B71: SE085 | C71: Skandinaviska Enskilda Banken AB (publ) (SEB) | D71: SE
B72: SE086 | C72: Svenska Handelsbanken AB (publ) | D72: SE
B73: SE087 | C73: Swedbank AB (publ) | D73: SE
B74: SI057 | C74: NOVA LJUBLJANSKA BANKA D.D. (NLB d.d.) | D74: SI
B75: SI058 | C75: NOVA KREDITNA BANKA MARIBOR D.D. (NKBM d.d.) | D75: SI

Sheet Menu
G2: 1. Individual Bank Reports
B5: =VLOOKUP(H15,Sheet1!D4:E25,2,FALSE) -> 64
G6: Bank
G7: Template
E8: 2013 EBA
E9: Transparency Exercise
G11: 2. Aggregated Data Reports1 | X11: Bankcode | Y11: BankName
X12: =IF(H15="[TO] TOTAL","",IF(H15="[AT] Austria","AT001",IF(H15="[BE] Belgium","BE005",IF(H15="[CY] Cyprus","CY007",IF(H15="[DE] Germany","DE017",IF(H15="[DK] Denmark","DK008",IF(H15="[ES] Spain","ES059",IF(H15="[FI] Finland","FI012",IF(H15="[FR] France","FR013",IF(H15="[GB] United Kingdom","GB088",IF(H15="[GR] Greece","GR030", IF(H15="[HU] Hungary","HU036",IF(H15="[IE] Ireland","IE037",IF(H15="[IT] Italy","IT040",IF(H15="[LU] Luxemburg","LU045",IF(H15="[MT] Malta","MT046",IF(H15="[NL] Netherlands","NL047",IF(H15="[NO] Norway","NO051",IF(H15="[PL] Poland","PL052",IF(H15="[PT] Portugal","PT053",IF(H15="[SE] Sweden","SE084",IF(H15="[SI] Slovenia","SI057")))))))))))))))))))))) ->  | Y12: =IF(H15="[TO] TOTAL","",IF(H15="[AT] Austria","Erste Group Bank (EGB)",IF(H15="[BE] Belgium","KBC BANK",IF(H15="[CY] Cyprus","BANK OF CYPRUS PUBLIC CO LTD",IF(H15="[DE] Germany","DEUTSCHE BANK AG",IF(H15="[DK] Denmark","DANSKE BANK",IF(H15="[ES] Spain","BANCO SANTANDER S.A.",IF(H15="[FI] Finland","OP-Pohjola Group",IF(H15="[FR] France","BNP PARIBAS",IF(H15="[GB] United Kingdom","ROYAL BANK OF SCOTLAND GROUP plc",IF(H15="[GR] Greece","EUROBANK ERGASIAS S.A.",IF(H15="[HU] Hungary","OTP BANK NYRT.",IF(H15="[IE] Ireland","ALLIED IRISH BANKS PLC",IF(H15="[IT] Italy","INTESA SANPAOLO S.p.A",IF(H15="[LU] Luxemburg","BANQUE ET CAISSE D'EPARGNE DE L'ETAT",IF(H15="[MT] Malta","BANK OF VALLETTA (BOV)",IF(H15="[NL] Netherlands","ING BANK NV",IF(H15="[NO] Norway","DNB Bank ASA",IF(H15="[PL] Poland","POWSZECHNA KASA OSZCZEDNOSCI BANK POLSKI S.A. (PKO BANK POLSKI)",IF(H15="[PT] Portugal","CAIXA GERAL DE DEPÓSITOS SA",IF(H15="[SE] Sweden","Nordea Bank AB (publ)",IF(H15="[SI] Slovenia","NOVA LJUBLJANSKA BANKA D.D. (NLB d.d.)")))))))))))))))))))))) -> 
X13: =IF(H15="[TO] TOTAL","",IF(H15="[AT] Austria","AT002",IF(H15="[BE] Belgium","",IF(H15="[CY] Cyprus","",IF(H15="[DE] Germany","DE018",IF(H15="[DK] Denmark","DK009",IF(H15="[ES] Spain","ES060",IF(H15="[FI] Finland","",IF(H15="[FR] France","FR014",IF(H15="[GB] United Kingdom","GB089", IF(H15="[GR] Greece","GR031", IF(H15="[HU] Hungary","",IF(H15="[IE] Ireland","IE038",IF(H15="[IT] Italy","IT041",IF(H15="[LU] Luxemburg","",IF(H15="[MT] Malta","",IF(H15="[NL] Netherlands","NL048",IF(H15="[NO] Norway","",IF(H15="[PL] Poland","",IF(H15="[PT] Portugal","PT054",IF(H15="[SE] Sweden","SE085",IF(H15="[SI] Slovenia","SI058")))))))))))))))))))))) ->  | Y13: =IF(H15="[TO] TOTAL","",IF(H15="[AT] Austria","Raiffeisen Zentralbank Österreich (RZB)",IF(H15="[BE] Belgium","",IF(H15="[CY] Cyprus","",IF(H15="[DE] Germany","COMMERZBANK AG",IF(H15="[DK] Denmark","Jyske Bank",IF(H15="[ES] Spain","BANCO BILBAO VIZCAYA ARGENTARIA S.A. (BBVA)",IF(H15="[FI] Finland","",IF(H15="[FR] France","CREDIT AGRICOLE",IF(H15="[GB] United Kingdom","HSBC HOLDINGS plc",IF(H15="[GR] Greece","NATIONAL BANK OF GREECE",IF(H15="[HU] Hungary","",IF(H15="[IE] Ireland","BANK OF IRELAND",IF(H15="[IT] Italy","UNICREDIT S.p.A",IF(H15="[LU] Luxemburg","",IF(H15="[MT] Malta","",IF(H15="[NL] Netherlands","RABOBANK NEDERLAND",IF(H15="[NO] Norway","",IF(H15="[PL] Poland","",IF(H15="[PT] Portugal","BANCO COMERCIAL PORTUGUES SA (BCP OR MILLENNIUM BCP)",IF(H15="[SE] Sweden","Skandinaviska Enskilda Banken AB (publ) (SEB)",IF(H15="[SI] Slovenia","NOVA KREDITNA BANKA MARIBOR D.D. (NKBM d.d.)")))))))))))))))))))))) -> 
X14: =IF(H15="[TO] TOTAL","",IF(H15="[AT] Austria","",IF(H15="[BE] Belgium","",IF(H15="[CY] Cyprus","",IF(H15="[DE] Germany","DE019",IF(H15="[DK] Denmark","DK010",IF(H15="[ES] Spain","ES062",IF(H15="[FI] Finland","",IF(H15="[FR] France","FR015",IF(H15="[GB] United Kingdom","GB090",IF(H15="[GR] Greece","GR032", IF(H15="[HU] Hungary","",IF(H15="[IE] Ireland","IE039",IF(H15="[IT] Italy","IT042",IF(H15="[LU] Luxemburg","",IF(H15="[MT] Malta","",IF(H15="[NL] Netherlands","NL049",IF(H15="[NO] Norway","",IF(H15="[PL] Poland","",IF(H15="[PT] Portugal","PT055",IF(H15="[SE] Sweden","SE086",IF(H15="[SI] Slovenia","")))))))))))))))))))))) ->  | Y14: =IF(H15="[TO] TOTAL","",IF(H15="[AT] Austria","",IF(H15="[BE] Belgium","",IF(H15="[CY] Cyprus","",IF(H15="[DE] Germany","Landesbank Baden-Württemberg",IF(H15="[DK] Denmark","Sydbank",IF(H15="[ES] Spain","CAJA DE AHORROS Y PENSIONES DE BARCELONA",IF(H15="[FI] Finland","",IF(H15="[FR] France","BPCE",IF(H15="[GB] United Kingdom","BARCLAYS plc",IF(H15="[GR] Greece","ALPHA BANK , S.A", IF(H15="[HU] Hungary","",IF(H15="[IE] Ireland","PERMANENT TSB",IF(H15="[IT] Italy","BANCA MONTE DEI PASCHI DI SIENA S.p.A",IF(H15="[LU] Luxemburg","",IF(H15="[MT] Malta","",IF(H15="[NL] Netherlands","ABN AMRO BANK NV",IF(H15="[NO] Norway","",IF(H15="[PL] Poland","",IF(H15="[PT] Portugal","ESPÍRITO SANTO FINANCIAL GROUP SA (ESFG)",IF(H15="[SE] Sweden","Svenska Handelsbanken AB (publ)",IF(H15="[SI] Slovenia","")))))))))))))))))))))) -> 
G15: Country | H15: [TO] TOTAL | X15: =IF(H15="[TO] TOTAL","",IF(H15="[AT] Austria","",IF(H15="[BE] Belgium","",IF(H15="[CY] Cyprus","",IF(H15="[DE] Germany","DE020",IF(H15="[DK] Denmark","DK011",IF(H15="[ES] Spain","ES064",IF(H15="[FI] Finland","",IF(H15="[FR] France","FR016",IF(H15="[GB] United Kingdom","GB091",IF(H15="[GR] Greece","GR033", IF(H15="[HU] Hungary","",IF(H15="[IE] Ireland","",IF(H15="[IT] Italy","IT043",IF(H15="[LU] Luxemburg","",IF(H15="[MT] Malta","",IF(H15="[NL] Netherlands","NL050",IF(H15="[NO] Norway","",IF(H15="[PL] Poland","",IF(H15="[PT] Portugal","PT056",IF(H15="[SE] Sweden","SE087",IF(H15="[SI] Slovenia","")))))))))))))))))))))) ->  | Y15: =IF(H15="[TO] TOTAL","",IF(H15="[AT] Austria","",IF(H15="[BE] Belgium","",IF(H15="[CY] Cyprus","",IF(H15="[DE] Germany","DZ BANK AG Dt. Zentral-Genossenschaftsbank",IF(H15="[DK] Denmark","Nykredit",IF(H15="[ES] Spain","BANCO POPULAR ESPAÑOL, S.A.",IF(H15="[FI] Finland","",IF(H15="[FR] France","SOCIETE GENERALE",IF(H15="[GB] United Kingdom","LLOYDS BANKING GROUP plc",IF(H15="[GR] Greece","PIRAEUS BANK GROUP",IF(H15="[HU] Hungary","",IF(H15="[IE] Ireland","",IF(H15="[IT] Italy","BANCO POPOLARE - S.C.",IF(H15="[LU] Luxemburg","",IF(H15="[MT] Malta","",IF(H15="[NL] Netherlands","SNS BANK NV",IF(H15="[NO] Norway","",IF(H15="[PL] Poland","",IF(H15="[PT] Portugal","Banco BPI, SA",IF(H15="[SE] Sweden","Swedbank AB (publ)",IF(H15="[SI] Slovenia","")))))))))))))))))))))) -> 
B16: =LEFT(H16,1) ->  | G16: Template | X16: =IF(H15="[TO] TOTAL","",IF(H15="[AT] Austria","",IF(H15="[BE] Belgium","",IF(H15="[CY] Cyprus","",IF(H15="[DE] Germany","DE021",IF(H15="[DK] Denmark","",IF(H15="[ES] Spain","",IF(H15="[FI] Finland","",IF(H15="[FR] France","",IF(H15="[GB] United Kingdom","",IF(H15="[GR] Greece","",IF(H15="[HU] Hungary","",IF(H15="[IE] Ireland","",IF(H15="[IT] Italy","IT044",IF(H15="[LU] Luxemburg","",IF(H15="[MT] Malta","",IF(H15="[NL] Netherlands","",IF(H15="[NO] Norway","",IF(H15="[PL] Poland","",IF(H15="[PT] Portugal","",IF(H15="[SE] Sweden","",IF(H15="[SI] Slovenia","")))))))))))))))))))))) ->  | Y16: =IF(H15="[TO] TOTAL","",IF(H15="[AT] Austria","",IF(H15="[BE] Belgium","",IF(H15="[CY] Cyprus","",IF(H15="[DE] Germany","Bayerische Landesbank",IF(H15="[DK] Denmark","",IF(H15="[ES] Spain","",IF(H15="[FI] Finland","",IF(H15="[FR] France","",IF(H15="[GB] United Kingdom","",IF(H15="[GR] Greece","",IF(H15="[HU] Hungary","",IF(H15="[IE] Ireland","",IF(H15="[IT] Italy","UNIONE DI BANCHE ITALIANE SCPA (UBI BANCA)",IF(H15="[LU] Luxemburg","",IF(H15="[MT] Malta","",IF(H15="[NL] Netherlands","",IF(H15="[NO] Norway","",IF(H15="[PL] Poland","",IF(H15="[PT] Portugal","",IF(H15="[SE] Sweden","",IF(H15="[SI] Slovenia","")))))))))))))))))))))) -> 
B17: =IF(AND(B16<>"2",B16<>"4"),1,"") -> 1 | G17: Reference Period | X17: =IF(H15="[TO] TOTAL","",IF(H15="[AT] Austria","",IF(H15="[BE] Belgium","",IF(H15="[CY] Cyprus","",IF(H15="[DE] Germany","DE022",IF(H15="[DK] Denmark","",IF(H15="[ES] Spain","",IF(H15="[FI] Finland","",IF(H15="[FR] France","",IF(H15="[GB] United Kingdom","",IF(H15="[GR] Greece","",IF(H15="[HU] Hungary","",IF(H15="[IE] Ireland","",IF(H15="[IT] Italy","",IF(H15="[LU] Luxemburg","",IF(H15="[MT] Malta","",IF(H15="[NL] Netherlands","",IF(H15="[NO] Norway","",IF(H15="[PL] Poland","",IF(H15="[PT] Portugal","",IF(H15="[SE] Sweden","",IF(H15="[SI] Slovenia","")))))))))))))))))))))) ->  | Y17: =IF(H15="[TO] TOTAL","",IF(H15="[AT] Austria","",IF(H15="[BE] Belgium","",IF(H15="[CY] Cyprus","",IF(H15="[DE] Germany","Norddeutsche Landesbank -GZ",IF(H15="[DK] Denmark","",IF(H15="[ES] Spain","",IF(H15="[FI] Finland","",IF(H15="[FR] France","",IF(H15="[GB] United Kingdom","",IF(H15="[GR] Greece","",IF(H15="[HU] Hungary","",IF(H15="[IE] Ireland","",IF(H15="[IT] Italy","",IF(H15="[LU] Luxemburg","",IF(H15="[MT] Malta","",IF(H15="[NL] Netherlands","",IF(H15="[NO] Norway","",IF(H15="[PL] Poland","",IF(H15="[PT] Portugal","",IF(H15="[SE] Sweden","",IF(H15="[SI] Slovenia","")))))))))))))))))))))) -> 
G18: Regulatory Approach | X18: =IF(H15="[TO] TOTAL","",IF(H15="[AT] Austria","",IF(H15="[BE] Belgium","",IF(H15="[CY] Cyprus","",IF(H15="[DE] Germany","DE023",IF(H15="[DK] Denmark","",IF(H15="[ES] Spain","",IF(H15="[FI] Finland","",IF(H15="[FR] France","",IF(H15="[GB] United Kingdom","",IF(H15="[GR] Greece","",IF(H15="[HU] Hungary","",IF(H15="[IE] Ireland","",IF(H15="[IT] Italy","",IF(H15="[LU] Luxemburg","",IF(H15="[MT] Malta","",IF(H15="[NL] Netherlands","",IF(H15="[NO] Norway","",IF(H15="[PL] Poland","",IF(H15="[PT] Portugal","",IF(H15="[SE] Sweden","",IF(H15="[SI] Slovenia","")))))))))))))))))))))) ->  | Y18: =IF(H15="[TO] TOTAL","",IF(H15="[AT] Austria","",IF(H15="[BE] Belgium","",IF(H15="[CY] Cyprus","",IF(H15="[DE] Germany","Hypo Real Estate Holding AG",IF(H15="[DK] Denmark","",IF(H15="[ES] Spain","",IF(H15="[FI] Finland","",IF(H15="[FR] France","",IF(H15="[GB] United Kingdom","",IF(H15="[GR] Greece","",IF(H15="[HU] Hungary","",IF(H15="[IE] Ireland","",IF(H15="[IT] Italy","",IF(H15="[LU] Luxemburg","",IF(H15="[MT] Malta","",IF(H15="[NL] Netherlands","",IF(H15="[NO] Norway","",IF(H15="[PL] Poland","",IF(H15="[PT] Portugal","",IF(H15="[SE] Sweden","",IF(H15="[SI] Slovenia","")))))))))))))))))))))) -> 
X19: =IF(H15="[TO] TOTAL","",IF(H15="[AT] Austria","",IF(H15="[BE] Belgium","",IF(H15="[CY] Cyprus","",IF(H15="[DE] Germany","DE025",IF(H15="[DK] Denmark","",IF(H15="[ES] Spain","",IF(H15="[FI] Finland","",IF(H15="[FR] France","",IF(H15="[GB] United Kingdom","",IF(H15="[GR] Greece","",IF(H15="[HU] Hungary","",IF(H15="[IE] Ireland","",IF(H15="[IT] Italy","",IF(H15="[LU] Luxemburg","",IF(H15="[MT] Malta","",IF(H15="[NL] Netherlands","",IF(H15="[NO] Norway","",IF(H15="[PL] Poland","",IF(H15="[PT] Portugal","",IF(H15="[SE] Sweden","",IF(H15="[SI] Slovenia","")))))))))))))))))))))) ->  | Y19: =IF(H15="[TO] TOTAL","",IF(H15="[AT] Austria","",IF(H15="[BE] Belgium","",IF(H15="[CY] Cyprus","",IF(H15="[DE] Germany","HSH Nordbank AG, Hamburg",IF(H15="[DK] Denmark","",IF(H15="[ES] Spain","",IF(H15="[FI] Finland","",IF(H15="[FR] France","",IF(H15="[GB] United Kingdom","",IF(H15="[GR] Greece","",IF(H15="[HU] Hungary","",IF(H15="[IE] Ireland","",IF(H15="[IT] Italy","",IF(H15="[LU] Luxemburg","",IF(H15="[MT] Malta","",IF(H15="[NL] Netherlands","",IF(H15="[NO] Norway","",IF(H15="[PL] Poland","",IF(H15="[PT] Portugal","",IF(H15="[SE] Sweden","",IF(H15="[SI] Slovenia","")))))))))))))))))))))) -> 
G20: Participating Banks: | H20: =B5 -> 64 | X20: =IF(H15="[TO] TOTAL","",IF(H15="[AT] Austria","",IF(H15="[BE] Belgium","",IF(H15="[CY] Cyprus","",IF(H15="[DE] Germany","DE026",IF(H15="[DK] Denmark","",IF(H15="[ES] Spain","",IF(H15="[FI] Finland","",IF(H15="[FR] France","",IF(H15="[GB] United Kingdom","",IF(H15="[GR] Greece","",IF(H15="[HU] Hungary","",IF(H15="[IE] Ireland","",IF(H15="[IT] Italy","",IF(H15="[LU] Luxemburg","",IF(H15="[MT] Malta","",IF(H15="[NL] Netherlands","",IF(H15="[NO] Norway","",IF(H15="[PL] Poland","",IF(H15="[PT] Portugal","",IF(H15="[SE] Sweden","",IF(H15="[SI] Slovenia","")))))))))))))))))))))) ->  | Y20: =IF(H15="[TO] TOTAL","",IF(H15="[AT] Austria","",IF(H15="[BE] Belgium","",IF(H15="[CY] Cyprus","",IF(H15="[DE] Germany","Landesbank Hessen-Thüringen GZ, Frankfurt",IF(H15="[DK] Denmark","",IF(H15="[ES] Spain","",IF(H15="[FI] Finland","",IF(H15="[FR] France","",IF(H15="[GB] United Kingdom","",IF(H15="[GR] Greece","",IF(H15="[HU] Hungary","",IF(H15="[IE] Ireland","",IF(H15="[IT] Italy","",IF(H15="[LU] Luxemburg","",IF(H15="[MT] Malta","",IF(H15="[NL] Netherlands","",IF(H15="[NO] Norway","",IF(H15="[PL] Poland","",IF(H15="[PT] Portugal","",IF(H15="[SE] Sweden","",IF(H15="[SI] Slovenia","")))))))))))))))))))))) -> 
X21: =IF(H15="[TO] TOTAL","",IF(H15="[AT] Austria","",IF(H15="[BE] Belgium","",IF(H15="[CY] Cyprus","",IF(H15="[DE] Germany","DE027",IF(H15="[DK] Denmark","",IF(H15="[ES] Spain","",IF(H15="[FI] Finland","",IF(H15="[FR] France","",IF(H15="[GB] United Kingdom","",IF(H15="[GR] Greece","",IF(H15="[HU] Hungary","",IF(H15="[IE] Ireland","",IF(H15="[IT] Italy","",IF(H15="[LU] Luxemburg","",IF(H15="[MT] Malta","",IF(H15="[NL] Netherlands","",IF(H15="[NO] Norway","",IF(H15="[PL] Poland","",IF(H15="[PT] Portugal","",IF(H15="[SE] Sweden","",IF(H15="[SI] Slovenia","")))))))))))))))))))))) ->  | Y21: =IF(H15="[TO] TOTAL","",IF(H15="[AT] Austria","",IF(H15="[BE] Belgium","",IF(H15="[CY] Cyprus","",IF(H15="[DE] Germany","Landesbank Berlin AG",IF(H15="[DK] Denmark","",IF(H15="[ES] Spain","",IF(H15="[FI] Finland","",IF(H15="[FR] France","",IF(H15="[GB] United Kingdom","",IF(H15="[GR] Greece","",IF(H15="[HU] Hungary","",IF(H15="[IE] Ireland","",IF(H15="[IT] Italy","",IF(H15="[LU] Luxemburg","",IF(H15="[MT] Malta","",IF(H15="[NL] Netherlands","",IF(H15="[NO] Norway","",IF(H15="[PL] Poland","",IF(H15="[PT] Portugal","",IF(H15="[SE] Sweden","",IF(H15="[SI] Slovenia","")))))))))))))))))))))) -> 
X22: =IF(H15="[TO] TOTAL","",IF(H15="[AT] Austria","",IF(H15="[BE] Belgium","",IF(H15="[CY] Cyprus","",IF(H15="[DE] Germany","DE028",IF(H15="[DK] Denmark","",IF(H15="[ES] Spain","",IF(H15="[FI] Finland","",IF(H15="[FR] France","",IF(H15="[GB] United Kingdom","",IF(H15="[GR] Greece","",IF(H15="[HU] Hungary","",IF(H15="[IE] Ireland","",IF(H15="[IT] Italy","",IF(H15="[LU] Luxemburg","",IF(H15="[MT] Malta","",IF(H15="[NL] Netherlands","",IF(H15="[NO] Norway","",IF(H15="[PL] Poland","",IF(H15="[PT] Portugal","",IF(H15="[SE] Sweden","",IF(H15="[SI] Slovenia","")))))))))))))))))))))) ->  | Y22: =IF(H15="[TO] TOTAL","",IF(H15="[AT] Austria","",IF(H15="[BE] Belgium","",IF(H15="[CY] Cyprus","",IF(H15="[DE] Germany","DekaBank Deutsche Girozentrale, Frankfurt",IF(H15="[DK] Denmark","",IF(H15="[ES] Spain","",IF(H15="[FI] Finland","",IF(H15="[FR] France","",IF(H15="[GB] United Kingdom","",IF(H15="[GR] Greece","",IF(H15="[HU] Hungary","",IF(H15="[IE] Ireland","",IF(H15="[IT] Italy","",IF(H15="[LU] Luxemburg","",IF(H15="[MT] Malta","",IF(H15="[NL] Netherlands","",IF(H15="[NO] Norway","",IF(H15="[PL] Poland","",IF(H15="[PT] Portugal","",IF(H15="[SE] Sweden","",IF(H15="[SI] Slovenia","")))))))))))))))))))))) -> 
B23: =IF(H30<>"",1,IF(H32<>"",1,0)) -> 0 | G23: 1) Country aggregates refer only to those resident banks participating in the study. | X23: =IF(H15="[TO] TOTAL","",IF(H15="[AT] Austria","",IF(H15="[BE] Belgium","",IF(H15="[CY] Cyprus","",IF(H15="[DE] Germany","DE029",IF(H15="[DK] Denmark","",IF(H15="[ES] Spain","",IF(H15="[FI] Finland","",IF(H15="[FR] France","",IF(H15="[GB] United Kingdom","",IF(H15="[GR] Greece","",IF(H15="[HU] Hungary","",IF(H15="[IE] Ireland","",IF(H15="[IT] Italy","",IF(H15="[LU] Luxemburg","",IF(H15="[MT] Malta","",IF(H15="[NL] Netherlands","",IF(H15="[NO] Norway","",IF(H15="[PL] Poland","",IF(H15="[PT] Portugal","",IF(H15="[SE] Sweden","",IF(H15="[SI] Slovenia","")))))))))))))))))))))) ->  | Y23: =IF(H15="[TO] TOTAL","",IF(H15="[AT] Austria","",IF(H15="[BE] Belgium","",IF(H15="[CY] Cyprus","",IF(H15="[DE] Germany","WGZ BANK AG Westdt. Geno. Zentralbk, Ddf",IF(H15="[DK] Denmark","",IF(H15="[ES] Spain","",IF(H15="[FI] Finland","",IF(H15="[FR] France","",IF(H15="[GB] United Kingdom","",IF(H15="[GR] Greece","",IF(H15="[HU] Hungary","",IF(H15="[IE] Ireland","",IF(H15="[IT] Italy","",IF(H15="[LU] Luxemburg","",IF(H15="[MT] Malta","",IF(H15="[NL] Netherlands","",IF(H15="[NO] Norway","",IF(H15="[PL] Poland","",IF(H15="[PT] Portugal","",IF(H15="[SE] Sweden","",IF(H15="[SI] Slovenia","")))))))))))))))))))))) -> 
B25: =IF(H32<>"",1,IF(H34<>"",1,0)) -> 0 | G25: 3. User Defined Reports | U25: EXAMPLE OF OUTPUT TABLE
B26: =IF(H31<>"",1,IF(H32<>"",1,IF(H35<>"",1,0))) -> 0
B27: =LEFT(H28,1) ->  | U27: Variables across COLUMNS
B28: =CONCATENATE("Ref. Period: ",TEXT(H29,"dd/mm/yyyy")) -> Ref. Period: 00/01/1900 | E28: TEMPLATES: | G28: Template | V28: Variables across ROWS
E29: 2. Credit Risk | G29: Reference Period | O29: 1 | P29: 2 | Q29: 3 | R29: 4 | S29: 5 | T29: 6 | Y29: =IF(B27="2",B33, "") -> 
B30: =IF(OR(B27="2", B27="4"),1,"") ->  | G30: Unit | O30: 1 | P30: 2 | Q30: 3 | R30: 4 | S30: 5 | T30: 6 | Y30: =IF(B27="2", B32, IF(B27="5",B34,"")) -> 
B31: =CONCATENATE("Counterpart country: ", H31) -> Counterpart country: | G31: Counterpart Country | P31: 2 | Y31: =IF(B27="2", B31,IF(B27="4",B32,IF(B27="5",B35,""))) -> 
B32: =CONCATENATE("Approach: ",H32) -> Approach: | G32: Regulatory Approach | P32: 2 | R32: 4 | Y32: =IF(H29<>"",B28,"") -> 
B33: =CONCATENATE("Status: ",H33) -> Status: | G33: Status | P33: 2 | X33: Banks | Y33: =IF(H30<>"",CONCATENATE("Unit: ",H30), "") -> 
G34: Amount | S34: 5 | Y34: =IF(H36<>"",CONCATENATE("Credit Risk Value: ",H36), "") -> 
B35: =IF(H30="EUR (millions)","1","0") -> 0 | S35: 5 | Y35: =H28 -> 00:00:00
G43: 3. Data Maps
G51: 4. View Raw Data
G57: 4. Delete user defined reports
E63: DISCLAIMER
E64: This tool is provided for analytical purposes only and does not substitute the original disclosures made by the participating banks and re-published by
E65: the EBA which are considered to be the only official results.
E66: The underlying data are also provided in separate CSV files.
E67: Cut-off date for the data: 16 December 2013 – 10.00 a.m. CET, including few revisions that arrived later.
A74: TOTAL | B74: 61
A75: [AT] Austria | B75: 2
A76: [BE] Belgium | B76: 1
A77: [CY] Cyprus | B77: 2
A78: [DK] Denmark | B78: 4
A79: [DE] Germany | B79: 12
A80: [ES] Spain | B80: 4
A81: [FI] Finland | B81: 1
A82: [FR] France | B82: 4
A83: [GB] United Kingdom | B83: 4
A84: [HU] Hungary | B84: 1
A85: [IE] Ireland | B85: 3
A86: [IT] Italy | B86: 5
A87: [LU] Luxemburg | B87: 1
A88: [MT] Malta | B88: 1
A89: [NL] Netherlands | B89: 4
A90: [NO] Norway | B90: 1
A91: [PL] Poland | B91: 1
A92: [PT] Portugal | B92: 4
A93: [SE] Sweden | B93: 4
A94: [SI] Slovenia | B94: 2
A97: [AT] Austria | B97: AT001 | C97: Erste Group Bank (EGB)
B98: AT002 | C98: Raiffeisen Zentralbank Österreich (RZB)
A99: [BE] Belgium | B99: BE005 | C99: KBC BANK
A100: [CY] Cyprus | B100: CY006 | C100: MARFIN POPULAR BANK PUBLIC CO LTD
B101: CY007 | C101: BANK OF CYPRUS PUBLIC CO LTD
A102: [DE] Germany | B102: DE017 | C102: DEUTSCHE BANK AG
B103: DE018 | C103: COMMERZBANK AG
B104: DE019 | C104: Landesbank Baden-Württemberg
B105: DE020 | C105: DZ BANK AG Dt. Zentral-Genossenschaftsbank
B106: DE021 | C106: Bayerische Landesbank
B107: DE022 | C107: Norddeutsche Landesbank -GZ
B108: DE023 | C108: Hypo Real Estate Holding AG
B109: DE025 | C109: HSH Nordbank AG, Hamburg
B110: DE026 | C110: Landesbank Hessen-Thüringen GZ, Frankfurt
B111: DE027 | C111: Landesbank Berlin AG
B112: DE028 | C112: DekaBank Deutsche Girozentrale, Frankfurt
B113: DE029 | C113: WGZ BANK AG Westdt. Geno. Zentralbk, Ddf
A114: [DK] Denmark | B114: DK008 | C114: DANSKE BANK
B115: DK009 | C115: Jyske Bank
B116: DK010 | C116: Sydbank
B117: DK011 | C117: Nykredit
A118: [ES] Spain | B118: ES059 | C118: BANCO SANTANDER S.A.
B119: ES060 | C119: BANCO BILBAO VIZCAYA ARGENTARIA S.A. (BBVA)
B120: ES062 | C120: CAJA DE AHORROS Y PENSIONES DE BARCELONA
B121: ES064 | C121: BANCO POPULAR ESPAÑOL, S.A.
A122: [FI] Finland | B122: FI012 | C122: OP-Pohjola Group
A123: [FR] France | B123: FR013 | C123: BNP PARIBAS
B124: FR014 | C124: CREDIT AGRICOLE
B125: FR015 | C125: BPCE
B126: FR016 | C126: SOCIETE GENERALE
A127: [GB] United Kingdom | B127: GB088 | C127: ROYAL BANK OF SCOTLAND GROUP plc
B128: GB089 | C128: HSBC HOLDINGS plc
B129: GB090 | C129: BARCLAYS plc
B130: GB091 | C130: LLOYDS BANKING GROUP plc
A131: [HU] Hungary | B131: HU036 | C131: OTP BANK NYRT.
A132: [IE] Ireland | B132: IE037 | C132: ALLIED IRISH BANKS PLC
B133: IE038 | C133: BANK OF IRELAND
B134: IE039 | C134: IRISH LIFE AND PERMANENT
A135: [IT] Italy | B135: IT040 | C135: INTESA SANPAOLO S.p.A
B136: IT041 | C136: UNICREDIT S.p.A
B137: IT042 | C137: BANCA MONTE DEI PASCHI DI SIENA S.p.A
B138: IT043 | C138: BANCO POPOLARE - S.C.
B139: IT044 | C139: UNIONE DI BANCHE ITALIANE SCPA (UBI BANCA)
A140: [LU] Luxemburg | B140: LU045 | C140: BANQUE ET CAISSE D'EPARGNE DE L'ETAT
A141: [MT] Malta | B141: MT046 | C141: BANK OF VALLETTA (BOV)
A142: [NL] Netherlands | B142: NL047 | C142: ING BANK NV
B143: NL048 | C143: RABOBANK NEDERLAND
B144: NL049 | C144: ABN AMRO BANK NV
B145: NL050 | C145: SNS BANK NV
A146: [NO] Norway | B146: NO051 | C146: DnB NOR Bank ASA
A147: [PL] Poland | B147: PL052 | C147: POWSZECHNA KASA OSZCZEDNOSCI BANK POLSKI S.A. (PKO BANK POLSKI)
A148: [PT] Portugal | B148: PT053 | C148: CAIXA GERAL DE DEPÓSITOS SA
B149: PT054 | C149: BANCO COMERCIAL PORTUGUES SA (BCP OR MILLENNIUM BCP)
B150: PT055 | C150: ESPÍRITO SANTO FINANCIAL GROUP SA (ESFG)
B151: PT056 | C151: Banco BPI, SA
A152: [SE] Sweden | B152: SE084 | C152: Nordea Bank AB (publ)
B153: SE085 | C153: Skandinaviska Enskilda Banken AB (publ) (SEB)
B154: SE086 | C154: Svenska Handelsbanken AB (publ)
B155: SE087 | C155: Swedbank AB (publ)
A156: [SI] Slovenia | B156: SI057 | C156: NOVA LJUBLJANSKA BANKA D.D. (NLB d.d.)
B157: SI058 | C157: NOVA KREDITNA BANKA MARIBOR D.D. (NKBM d.d.)

Sheet TOT 2. Credit Risk Appr_ (hidden)
A1: 0 | B1: No breakdown by portfolio
A2: 1 | B2: SA | E2: 2. CREDIT RISK | F2: =RIGHT(LEFT(Menu!H15,3),2) -> TO | G2: 0 | H2: Status | I2: Portfolio
A3: 2 | B3: IRB | E3: =CONCATENATE("as of ", TEXT(F3,"dd/mm/yyyy")) -> as of 00/01/1900 | F3: =Menu!H17 -> 00:00:00 | G3: 0 | H3: Exposure | I3: 0
A4: 3 | B4: F-IRB | AB4: =Menu!H15 -> [TO] TOTAL | AD4: =Menu!H15 -> [TO] TOTAL
E5: 0 | G5: 400000 | H5: 400000 | I5: 400000 | J5: 400000 | K5: 400000 | L5: 400000 | O5: 400300 | P5: 400300 | Q5: 400300 | R5: 400300 | S5: 400300 | T5: 400300 | W5: 401100 | X5: 401100 | Y5: 401100 | Z5: 401100 | AA5: 401100 | AB5: 401100
A6: 4 | B6: A-IRB | G6: 3 | H6: 3 | I6: 4 | J6: 4 | K6: 1 | L6: 1 | O6: 3 | P6: 3 | Q6: 4 | R6: 4 | S6: 1 | T6: 1 | W6: 3 | X6: 3 | Y6: 4 | Z6: 4 | AA6: 1 | AB6: 1
A7: 5 | B7: IM | G7: 1 | H7: 2 | I7: 1 | J7: 2 | K7: 1 | L7: 2 | O7: 1 | P7: 2 | Q7: 1 | R7: 2 | S7: 1 | T7: 2 | W7: 1 | X7: 2 | Y7: 1 | Z7: 2 | AA7: 1 | AB7: 2
E8: All couterparty countries | G8: Exposure values (as of 31/12/2012) ** | M8: Exposure values | U8: RWA | AC8: Value adjustments and provisions
G9: F-IRB | I9: A-IRB | K9: STA | O9: F-IRB | Q9: A-IRB | S9: STA | W9: F-IRB | Y9: A-IRB | AA9: STA
G10: Non-defaulted | H10: Defaulted | I10: Non-defaulted | J10: Defaulted | K10: Non-defaulted | L10: Defaulted | M10: Non-defaulted | N10: Defaulted | O10: Non-defaulted | P10: Defaulted | Q10: Non-defaulted | R10: Defaulted | S10: Non-defaulted | T10: Defaulted | U10: Non-defaulted | V10: Defaulted | W10: Non-defaulted | X10: Defaulted | Y10: Non-defaulted | Z10: Defaulted | AA10: Non-defaulted | AB10: Defaulted | AC10: Non-defaulted | AD10: Defaulted
D11: =VLOOKUP(TRIM(F11),'DATA MART_'!$AD$3:$AF$25,3,0) -> 1 | F11: Central banks and central governments | G11: =IF($F$2="TO",SUMIFS('DATA MART_'!$R:$R,'DATA MART_'!$H:$H,$F$3,'DATA MART_'!$A:$A,CONCATENATE($F$3,"|",G$5,"|",$E$5,"|",$G$2,"|",$G$3,"|", G$7,"|",$D11,"|",G$6,"|",$I$3)), SUMIFS('DATA MART_'!$R:$R,'DATA MART_'!$H:$H,$F$3,'DATA MART_'!$A:$A,CONCATENATE($F$3,"|",G$5,"|",$E$5,"|",$G$2,"|",$G$3,"|", G$7,"|",$D11,"|",G$6,"|",$I$3), 'DATA MART_'!$G:$G,$F$2)) -> 0 | H11: =IF($F$2="TO",SUMIFS('DATA MART_'!$R:$R,'DATA MART_'!$H:$H,$F$3,'DATA MART_'!$A:$A,CONCATENATE($F$3,"|",H$5,"|",$E$5,"|",$G$2,"|",$G$3,"|", H$7,"|",$D11,"|",H$6,"|",$I$3)), SUMIFS('DATA MART_'!$R:$R,'DATA MART_'!$H:$H,$F$3,'DATA MART_'!$A:$A,CONCATENATE($F$3,"|",H$5,"|",$E$5,"|",$G$2,"|",$G$3,"|", H$7,"|",$D11,"|",H$6,"|",$I$3), 'DATA MART_'!$G:$G,$F$2)) -> 0 | I11: =IF($F$2="TO",SUMIFS('DATA MART_'!$R:$R,'DATA MART_'!$H:$H,$F$3,'DATA MART_'!$A:$A,CONCATENATE($F$3,"|",I$5,"|",$E$5,"|",$G$2,"|",$G$3,"|", I$7,"|",$D11,"|",I$6,"|",$I$3)), SUMIFS('DATA MART_'!$R:$R,'DATA MART_'!$H:$H,$F$3,'DATA MART_'!$A:$A,CONCATENATE($F$3,"|",I$5,"|",$E$5,"|",$G$2,"|",$G$3,"|", I$7,"|",$D11,"|",I$6,"|",$I$3), 'DATA MART_'!$G:$G,$F$2)) -> 0 | J11: =IF($F$2="TO",SUMIFS('DATA MART_'!$R:$R,'DATA MART_'!$H:$H,$F$3,'DATA MART_'!$A:$A,CONCATENATE($F$3,"|",J$5,"|",$E$5,"|",$G$2,"|",$G$3,"|", J$7,"|",$D11,"|",J$6,"|",$I$3)), SUMIFS('DATA MART_'!$R:$R,'DATA MART_'!$H:$H,$F$3,'DATA MART_'!$A:$A,CONCATENATE($F$3,"|",J$5,"|",$E$5,"|",$G$2,"|",$G$3,"|", J$7,"|",$D11,"|",J$6,"|",$I$3), 'DATA MART_'!$G:$G,$F$2)) -> 0 | K11: =IF($F$2="TO",SUMIFS('DATA MART_'!$R:$R,'DATA MART_'!$H:$H,$F$3,'DATA MART_'!$A:$A,CONCATENATE($F$3,"|",K$5,"|",$E$5,"|",$G$2,"|",$G$3,"|", K$7,"|",$D11,"|",K$6,"|",$I$3)), SUMIFS('DATA MART_'!$R:$R,'DATA MART_'!$H:$H,$F$3,'DATA MART_'!$A:$A,CONCATENATE($F$3,"|",K$5,"|",$E$5,"|",$G$2,"|",$G$3,"|", K$7,"|",$D11,"|",K$6,"|",$I$3), 'DATA MART_'!$G:$G,$F$2)) -> 0 | L11: =IF($F$2="TO",SUMIFS('DATA MART_'!$R:$R,'DATA MART_'!$H:$H,$F$3,'DATA MART_'!$A:$A,CONCATENATE($F$3,"|",L$5,"|",$E$5,"|",$G$2,"|",$G$3,"|", L$7,"|",$D11,"|",L$6,"|",$I$3)), SUMIFS('DATA MART_'!$R:$R,'DATA MART_'!$H:$H,$F$3,'DATA MART_'!$A:$A,CONCATENATE($F$3,"|",L$5,"|",$E$5,"|",$G$2,"|",$G$3,"|", L$7,"|",$D11,"|",L$6,"|",$I$3), 'DATA MART_'!$G:$G,$F$2)) -> 0 | M11: =G11+I11+K11 -> 0 | N11: =H11+J11+L11 -> 0 | O11: =IF($F$2="TO",SUMIFS('DATA MART_'!$R:$R,'DATA MART_'!$H:$H,$F$3,'DATA MART_'!$A:$A,CONCATENATE($F$3,"|",O$5,"|",$E$5,"|",$G$2,"|",$G$3,"|", O$7,"|",$D11,"|",O$6,"|",$I$3)), SUMIFS('DATA MART_'!$R:$R,'DATA MART_'!$H:$H,$F$3,'DATA MART_'!$A:$A,CONCATENATE($F$3,"|",O$5,"|",$E$5,"|",$G$2,"|",$G$3,"|", O$7,"|",$D11,"|",O$6,"|",$I$3), 'DATA MART_'!$G:$G,$F$2)) -> 0 | P11: =IF($F$2="TO",SUMIFS('DATA MART_'!$R:$R,'DATA MART_'!$H:$H,$F$3,'DATA MART_'!$A:$A,CONCATENATE($F$3,"|",P$5,"|",$E$5,"|",$G$2,"|",$G$3,"|", P$7,"|",$D11,"|",P$6,"|",$I$3)), SUMIFS('DATA MART_'!$R:$R,'DATA MART_'!$H:$H,$F$3,'DATA MART_'!$A:$A,CONCATENATE($F$3,"|",P$5,"|",$E$5,"|",$G$2,"|",$G$3,"|", P$7,"|",$D11,"|",P$6,"|",$I$3), 'DATA MART_'!$G:$G,$F$2)) -> 0 | Q11: =IF($F$2="TO",SUMIFS('DATA MART_'!$R:$R,'DATA MART_'!$H:$H,$F$3,'DATA MART_'!$A:$A,CONCATENATE($F$3,"|",Q$5,"|",$E$5,"|",$G$2,"|",$G$3,"|", Q$7,"|",$D11,"|",Q$6,"|",$I$3)), SUMIFS('DATA MART_'!$R:$R,'DATA MART_'!$H:$H,$F$3,'DATA MART_'!$A:$A,CONCATENATE($F$3,"|",Q$5,"|",$E$5,"|",$G$2,"|",$G$3,"|", Q$7,"|",$D11,"|",Q$6,"|",$I$3), 'DATA MART_'!$G:$G,$F$2)) -> 0 | R11: =IF($F$2="TO",SUMIFS('DATA MART_'!$R:$R,'DATA MART_'!$H:$H,$F$3,'DATA MART_'!$A:$A,CONCATENATE($F$3,"|",R$5,"|",$E$5,"|",$G$2,"|",$G$3,"|", R$7,"|",$D11,"|",R$6,"|",$I$3)), SUMIFS('DATA MART_'!$R:$R,'DATA MART_'!$H:$H,$F$3,'DATA MART_'!$A:$A,CONCATENATE($F$3,"|",R$5,"|",$E$5,"|",$G$2,"|",$G$3,"|", R$7,"|",$D11,"|",R$6,"|",$I$3), 'DATA MART_'!$G:$G,$F$2)) -> 0 | S11: =IF($F$2="TO",SUMIFS('DATA MART_'!$R:$R,'DATA MART_'!$H:$H,$F$3,'DATA MART_'!$A:$A,CONCATENATE($F$3,"|",S$5,"|",$E$5,"|",$G$2,"|",$G$3,"|", S$7,"|",$D11,"|",S$6,"|",$I$3)), SUMIFS('DATA MART_'!$R:$R,'DATA MART_'!$H:$H,$F$3,'DATA MART_'!$A:$A,CONCATENATE($F$3,"|",S$5,"|",$E$5,"|",$G$2,"|",$G$3,"|", S$7,"|",$D11,"|",S$6,"|",$I$3), 'DATA MART_'!$G:$G,$F$2)) -> 0 | T11: =IF($F$2="TO",SUMIFS('DATA MART_'!$R:$R,'DATA MART_'!$H:$H,$F$3,'DATA MART_'!$A:$A,CONCATENATE($F$3,"|",T$5,"|",$E$5,"|",$G$2,"|",$G$3,"|", T$7,"|",$D11,"|",T$6,"|",$I$3)), SUMIFS('DATA MART_'!$R:$R,'DATA MART_'!$H:$H,$F$3,'DATA MART_'!$A:$A,CONCATENATE($F$3,"|",T$5,"|",$E$5,"|",$G$2,"|",$G$3,"|", T$7,"|",$D11,"|",T$6,"|",$I$3), 'DATA MART_'!$G:$G,$F$2)) -> 0 | U11: =O11+Q11+S11 -> 0 | V11: =P11+R11+T11 -> 0 | X11: =IF($F$2="TO",SUMIFS('DATA MART_'!$R:$R,'DATA MART_'!$H:$H,$F$3,'DATA MART_'!$A:$A,CONCATENATE($F$3,"|",X$5,"|",$E$5,"|",$G$2,"|",$G$3,"|", X$7,"|",$D11,"|",X$6,"|",$I$3)), SUMIFS('DATA MART_'!$R:$R,'DATA MART_'!$H:$H,$F$3,'DATA MART_'!$A:$A,CONCATENATE($F$3,"|",X$5,"|",$E$5,"|",$G$2,"|",$G$3,"|", X$7,"|",$D11,"|",X$6,"|",$I$3), 'DATA MART_'!$G:$G,$F$2)) -> 0 | Z11: =IF($F$2="TO",SUMIFS('DATA MART_'!$R:$R,'DATA MART_'!$H:$H,$F$3,'DATA MART_'!$A:$A,CONCATENATE($F$3,"|",Z$5,"|",$E$5,"|",$G$2,"|",$G$3,"|", Z$7,"|",$D11,"|",Z$6,"|",$I$3)), SUMIFS('DATA MART_'!$R:$R,'DATA MART_'!$H:$H,$F$3,'DATA MART_'!$A:$A,CONCATENATE($F$3,"|",Z$5,"|",$E$5,"|",$G$2,"|",$G$3,"|", Z$7,"|",$D11,"|",Z$6,"|",$I$3), 'DATA MART_'!$G:$G,$F$2)) -> 0 | AB11: =IF($F$2="TO",SUMIFS('DATA MART_'!$R:$R,'DATA MART_'!$H:$H,$F$3,'DATA MART_'!$A:$A,CONCATENATE($F$3,"|",AB$5,"|",$E$5,"|",$G$2,"|",$G$3,"|", AB$7,"|",$D11,"|",AB$6,"|",$I$3)), SUMIFS('DATA MART_'!$R:$R,'DATA MART_'!$H:$H,$F$3,'DATA MART_'!$A:$A,CONCATENATE($F$3,"|",AB$5,"|",$E$5,"|",$G$2,"|",$G$3,"|", AB$7,"|",$D11,"|",AB$6,"|",$I$3), 'DATA MART_'!$G:$G,$F$2)) -> 0 | AD11: =X11+Z11+AB11 -> 0 | AE11: 100100
D12: =VLOOKUP(TRIM(F12),'DATA MART_'!$AD$3:$AF$25,3,0) -> 2 | F12: Institutions | G12: =IF($F$2="TO",SUMIFS('DATA MART_'!$R:$R,'DATA MART_'!$H:$H,$F$3,'DATA MART_'!$A:$A,CONCATENATE($F$3,"|",G$5,"|",$E$5,"|",$G$2,"|",$G$3,"|", G$7,"|",$D12,"|",G$6,"|",$I$3)), SUMIFS('DATA MART_'!$R:$R,'DATA MART_'!$H:$H,$F$3,'DATA MART_'!$A:$A,CONCATENATE($F$3,"|",G$5,"|",$E$5,"|",$G$2,"|",$G$3,"|", G$7,"|",$D12,"|",G$6,"|",$I$3), 'DATA MART_'!$G:$G,$F$2)) -> 0 | H12: =IF($F$2="TO",SUMIFS('DATA MART_'!$R:$R,'DATA MART_'!$H:$H,$F$3,'DATA MART_'!$A:$A,CONCATENATE($F$3,"|",H$5,"|",$E$5,"|",$G$2,"|",$G$3,"|", H$7,"|",$D12,"|",H$6,"|",$I$3)), SUMIFS('DATA MART_'!$R:$R,'DATA MART_'!$H:$H,$F$3,'DATA MART_'!$A:$A,CONCATENATE($F$3,"|",H$5,"|",$E$5,"|",$G$2,"|",$G$3,"|", H$7,"|",$D12,"|",H$6,"|",$I$3), 'DATA MART_'!$G:$G,$F$2)) -> 0 | I12: =IF($F$2="TO",SUMIFS('DATA MART_'!$R:$R,'DATA MART_'!$H:$H,$F$3,'DATA MART_'!$A:$A,CONCATENATE($F$3,"|",I$5,"|",$E$5,"|",$G$2,"|",$G$3,"|", I$7,"|",$D12,"|",I$6,"|",$I$3)), SUMIFS('DATA MART_'!$R:$R,'DATA MART_'!$H:$H,$F$3,'DATA MART_'!$A:$A,CONCATENATE($F$3,"|",I$5,"|",$E$5,"|",$G$2,"|",$G$3,"|", I$7,"|",$D12,"|",I$6,"|",$I$3), 'DATA MART_'!$G:$G,$F$2)) -> 0 | J12: =IF($F$2="TO",SUMIFS('DATA MART_'!$R:$R,'DATA MART_'!$H:$H,$F$3,'DATA MART_'!$A:$A,CONCATENATE($F$3,"|",J$5,"|",$E$5,"|",$G$2,"|",$G$3,"|", J$7,"|",$D12,"|",J$6,"|",$I$3)), SUMIFS('DATA MART_'!$R:$R,'DATA MART_'!$H:$H,$F$3,'DATA MART_'!$A:$A,CONCATENATE($F$3,"|",J$5,"|",$E$5,"|",$G$2,"|",$G$3,"|", J$7,"|",$D12,"|",J$6,"|",$I$3), 'DATA MART_'!$G:$G,$F$2)) -> 0 | K12: =IF($F$2="TO",SUMIFS('DATA MART_'!$R:$R,'DATA MART_'!$H:$H,$F$3,'DATA MART_'!$A:$A,CONCATENATE($F$3,"|",K$5,"|",$E$5,"|",$G$2,"|",$G$3,"|", K$7,"|",$D12,"|",K$6,"|",$I$3)), SUMIFS('DATA MART_'!$R:$R,'DATA MART_'!$H:$H,$F$3,'DATA MART_'!$A:$A,CONCATENATE($F$3,"|",K$5,"|",$E$5,"|",$G$2,"|",$G$3,"|", K$7,"|",$D12,"|",K$6,"|",$I$3), 'DATA MART_'!$G:$G,$F$2)) -> 0 | L12: =IF($F$2="TO",SUMIFS('DATA MART_'!$R:$R,'DATA MART_'!$H:$H,$F$3,'DATA MART_'!$A:$A,CONCATENATE($F$3,"|",L$5,"|",$E$5,"|",$G$2,"|",$G$3,"|", L$7,"|",$D12,"|",L$6,"|",$I$3)), SUMIFS('DATA MART_'!$R:$R,'DATA MART_'!$H:$H,$F$3,'DATA MART_'!$A:$A,CONCATENATE($F$3,"|",L$5,"|",$E$5,"|",$G$2,"|",$G$3,"|", L$7,"|",$D12,"|",L$6,"|",$I$3), 'DATA MART_'!$G:$G,$F$2)) -> 0 | M12: =G12+I12+K12 -> 0 | N12: =H12+J12+L12 -> 0 | O12: =IF($F$2="TO",SUMIFS('DATA MART_'!$R:$R,'DATA MART_'!$H:$H,$F$3,'DATA MART_'!$A:$A,CONCATENATE($F$3,"|",O$5,"|",$E$5,"|",$G$2,"|",$G$3,"|", O$7,"|",$D12,"|",O$6,"|",$I$3)), SUMIFS('DATA MART_'!$R:$R,'DATA MART_'!$H:$H,$F$3,'DATA MART_'!$A:$A,CONCATENATE($F$3,"|",O$5,"|",$E$5,"|",$G$2,"|",$G$3,"|", O$7,"|",$D12,"|",O$6,"|",$I$3), 'DATA MART_'!$G:$G,$F$2)) -> 0 | P12: =IF($F$2="TO",SUMIFS('DATA MART_'!$R:$R,'DATA MART_'!$H:$H,$F$3,'DATA MART_'!$A:$A,CONCATENATE($F$3,"|",P$5,"|",$E$5,"|",$G$2,"|",$G$3,"|", P$7,"|",$D12,"|",P$6,"|",$I$3)), SUMIFS('DATA MART_'!$R:$R,'DATA MART_'!$H:$H,$F$3,'DATA MART_'!$A:$A,CONCATENATE($F$3,"|",P$5,"|",$E$5,"|",$G$2,"|",$G$3,"|", P$7,"|",$D12,"|",P$6,"|",$I$3), 'DATA MART_'!$G:$G,$F$2)) -> 0 | Q12: =IF($F$2="TO",SUMIFS('DATA MART_'!$R:$R,'DATA MART_'!$H:$H,$F$3,'DATA MART_'!$A:$A,CONCATENATE($F$3,"|",Q$5,"|",$E$5,"|",$G$2,"|",$G$3,"|", Q$7,"|",$D12,"|",Q$6,"|",$I$3)), SUMIFS('DATA MART_'!$R:$R,'DATA MART_'!$H:$H,$F$3,'DATA MART_'!$A:$A,CONCATENATE($F$3,"|",Q$5,"|",$E$5,"|",$G$2,"|",$G$3,"|", Q$7,"|",$D12,"|",Q$6,"|",$I$3), 'DATA MART_'!$G:$G,$F$2)) -> 0 | R12: =IF($F$2="TO",SUMIFS('DATA MART_'!$R:$R,'DATA MART_'!$H:$H,$F$3,'DATA MART_'!$A:$A,CONCATENATE($F$3,"|",R$5,"|",$E$5,"|",$G$2,"|",$G$3,"|", R$7,"|",$D12,"|",R$6,"|",$I$3)), SUMIFS('DATA MART_'!$R:$R,'DATA MART_'!$H:$H,$F$3,'DATA MART_'!$A:$A,CONCATENATE($F$3,"|",R$5,"|",$E$5,"|",$G$2,"|",$G$3,"|", R$7,"|",$D12,"|",R$6,"|",$I$3), 'DATA MART_'!$G:$G,$F$2)) -> 0 | S12: =IF($F$2="TO",SUMIFS('DATA MART_'!$R:$R,'DATA MART_'!$H:$H,$F$3,'DATA MART_'!$A:$A,CONCATENATE($F$3,"|",S$5,"|",$E$5,"|",$G$2,"|",$G$3,"|", S$7,"|",$D12,"|",S$6,"|",$I$3)), SUMIFS('DATA MART_'!$R:$R,'DATA MART_'!$H:$H,$F$3,'DATA MART_'!$A:$A,CONCATENATE($F$3,"|",S$5,"|",$E$5,"|",$G$2,"|",$G$3,"|", S$7,"|",$D12,"|",S$6,"|",$I$3), 'DATA MART_'!$G:$G,$F$2)) -> 0 | T12: =IF($F$2="TO",SUMIFS('DATA MART_'!$R:$R,'DATA MART_'!$H:$H,$F$3,'DATA MART_'!$A:$A,CONCATENATE($F$3,"|",T$5,"|",$E$5,"|",$G$2,"|",$G$3,"|", T$7,"|",$D12,"|",T$6,"|",$I$3)), SUMIFS('DATA MART_'!$R:$R,'DATA MART_'!$H:$H,$F$3,'DATA MART_'!$A:$A,CONCATENATE($F$3,"|",T$5,"|",$E$5,"|",$G$2,"|",$G$3,"|", T$7,"|",$D12,"|",T$6,"|",$I$3), 'DATA MART_'!$G:$G,$F$2)) -> 0 | U12: =O12+Q12+S12 -> 0 | V12: =P12+R12+T12 -> 0 | X12: =IF($F$2="TO",SUMIFS('DATA MART_'!$R:$R,'DATA MART_'!$H:$H,$F$3,'DATA MART_'!$A:$A,CONCATENATE($F$3,"|",X$5,"|",$E$5,"|",$G$2,"|",$G$3,"|", X$7,"|",$D12,"|",X$6,"|",$I$3)), SUMIFS('DATA MART_'!$R:$R,'DATA MART_'!$H:$H,$F$3,'DATA MART_'!$A:$A,CONCATENATE($F$3,"|",X$5,"|",$E$5,"|",$G$2,"|",$G$3,"|", X$7,"|",$D12,"|",X$6,"|",$I$3), 'DATA MART_'!$G:$G,$F$2)) -> 0 | Z12: =IF($F$2="TO",SUMIFS('DATA MART_'!$R:$R,'DATA MART_'!$H:$H,$F$3,'DATA MART_'!$A:$A,CONCATENATE($F$3,"|",Z$5,"|",$E$5,"|",$G$2,"|",$G$3,"|", Z$7,"|",$D12,"|",Z$6,"|",$I$3)), SUMIFS('DATA MART_'!$R:$R,'DATA MART_'!$H:$H,$F$3,'DATA MART_'!$A:$A,CONCATENATE($F$3,"|",Z$5,"|",$E$5,"|",$G$2,"|",$G$3,"|", Z$7,"|",$D12,"|",Z$6,"|",$I$3), 'DATA MART_'!$G:$G,$F$2)) -> 0 | AB12: =IF($F$2="TO",SUMIFS('DATA MART_'!$R:$R,'DATA MART_'!$H:$H,$F$3,'DATA MART_'!$A:$A,CONCATENATE($F$3,"|",AB$5,"|",$E$5,"|",$G$2,"|",$G$3,"|", AB$7,"|",$D12,"|",AB$6,"|",$I$3)), SUMIFS('DATA MART_'!$R:$R,'DATA MART_'!$H:$H,$F$3,'DATA MART_'!$A:$A,CONCATENATE($F$3,"|",AB$5,"|",$E$5,"|",$G$2,"|",$G$3,"|", AB$7,"|",$D12,"|",AB$6,"|",$I$3), 'DATA MART_'!$G:$G,$F$2)) -> 0 | AD12: =X12+Z12+AB12 -> 0 | AE12: 100103
D13: =VLOOKUP(TRIM(F13),'DATA MART_'!$AD$3:$AF$25,3,0) -> 3 | F13: Corporates | G13: =IF($F$2="TO",SUMIFS('DATA MART_'!$R:$R,'DATA MART_'!$H:$H,$F$3,'DATA MART_'!$A:$A,CONCATENATE($F$3,"|",G$5,"|",$E$5,"|",$G$2,"|",$G$3,"|", G$7,"|",$D13,"|",G$6,"|",$I$3)), SUMIFS('DATA MART_'!$R:$R,'DATA MART_'!$H:$H,$F$3,'DATA MART_'!$A:$A,CONCATENATE($F$3,"|",G$5,"|",$E$5,"|",$G$2,"|",$G$3,"|", G$7,"|",$D13,"|",G$6,"|",$I$3), 'DATA MART_'!$G:$G,$F$2)) -> 0 | H13: =IF($F$2="TO",SUMIFS('DATA MART_'!$R:$R,'DATA MART_'!$H:$H,$F$3,'DATA MART_'!$A:$A,CONCATENATE($F$3,"|",H$5,"|",$E$5,"|",$G$2,"|",$G$3,"|", H$7,"|",$D13,"|",H$6,"|",$I$3)), SUMIFS('DATA MART_'!$R:$R,'DATA MART_'!$H:$H,$F$3,'DATA MART_'!$A:$A,CONCATENATE($F$3,"|",H$5,"|",$E$5,"|",$G$2,"|",$G$3,"|", H$7,"|",$D13,"|",H$6,"|",$I$3), 'DATA MART_'!$G:$G,$F$2)) -> 0 | I13: =IF($F$2="TO",SUMIFS('DATA MART_'!$R:$R,'DATA MART_'!$H:$H,$F$3,'DATA MART_'!$A:$A,CONCATENATE($F$3,"|",I$5,"|",$E$5,"|",$G$2,"|",$G$3,"|", I$7,"|",$D13,"|",I$6,"|",$I$3)), SUMIFS('DATA MART_'!$R:$R,'DATA MART_'!$H:$H,$F$3,'DATA MART_'!$A:$A,CONCATENATE($F$3,"|",I$5,"|",$E$5,"|",$G$2,"|",$G$3,"|", I$7,"|",$D13,"|",I$6,"|",$I$3), 'DATA MART_'!$G:$G,$F$2)) -> 0 | J13: =IF($F$2="TO",SUMIFS('DATA MART_'!$R:$R,'DATA MART_'!$H:$H,$F$3,'DATA MART_'!$A:$A,CONCATENATE($F$3,"|",J$5,"|",$E$5,"|",$G$2,"|",$G$3,"|", J$7,"|",$D13,"|",J$6,"|",$I$3)), SUMIFS('DATA MART_'!$R:$R,'DATA MART_'!$H:$H,$F$3,'DATA MART_'!$A:$A,CONCATENATE($F$3,"|",J$5,"|",$E$5,"|",$G$2,"|",$G$3,"|", J$7,"|",$D13,"|",J$6,"|",$I$3), 'DATA MART_'!$G:$G,$F$2)) -> 0 | K13: =IF($F$2="TO",SUMIFS('DATA MART_'!$R:$R,'DATA MART_'!$H:$H,$F$3,'DATA MART_'!$A:$A,CONCATENATE($F$3,"|",K$5,"|",$E$5,"|",$G$2,"|",$G$3,"|", K$7,"|",$D13,"|",K$6,"|",$I$3)), SUMIFS('DATA MART_'!$R:$R,'DATA MART_'!$H:$H,$F$3,'DATA MART_'!$A:$A,CONCATENATE($F$3,"|",K$5,"|",$E$5,"|",$G$2,"|",$G$3,"|", K$7,"|",$D13,"|",K$6,"|",$I$3), 'DATA MART_'!$G:$G,$F$2)) -> 0 | L13: =IF($F$2="TO",SUMIFS('DATA MART_'!$R:$R,'DATA MART_'!$H:$H,$F$3,'DATA MART_'!$A:$A,CONCATENATE($F$3,"|",L$5,"|",$E$5,"|",$G$2,"|",$G$3,"|", L$7,"|",$D13,"|",L$6,"|",$I$3)), SUMIFS('DATA MART_'!$R:$R,'DATA MART_'!$H:$H,$F$3,'DATA MART_'!$A:$A,CONCATENATE($F$3,"|",L$5,"|",$E$5,"|",$G$2,"|",$G$3,"|", L$7,"|",$D13,"|",L$6,"|",$I$3), 'DATA MART_'!$G:$G,$F$2)) -> 0 | M13: 0 | N13: 0 | O13: =IF($F$2="TO",SUMIFS('DATA MART_'!$R:$R,'DATA MART_'!$H:$H,$F$3,'DATA MART_'!$A:$A,CONCATENATE($F$3,"|",O$5,"|",$E$5,"|",$G$2,"|",$G$3,"|", O$7,"|",$D13,"|",O$6,"|",$I$3)), SUMIFS('DATA MART_'!$R:$R,'DATA MART_'!$H:$H,$F$3,'DATA MART_'!$A:$A,CONCATENATE($F$3,"|",O$5,"|",$E$5,"|",$G$2,"|",$G$3,"|", O$7,"|",$D13,"|",O$6,"|",$I$3), 'DATA MART_'!$G:$G,$F$2)) -> 0 | P13: =IF($F$2="TO",SUMIFS('DATA MART_'!$R:$R,'DATA MART_'!$H:$H,$F$3,'DATA MART_'!$A:$A,CONCATENATE($F$3,"|",P$5,"|",$E$5,"|",$G$2,"|",$G$3,"|", P$7,"|",$D13,"|",P$6,"|",$I$3)), SUMIFS('DATA MART_'!$R:$R,'DATA MART_'!$H:$H,$F$3,'DATA MART_'!$A:$A,CONCATENATE($F$3,"|",P$5,"|",$E$5,"|",$G$2,"|",$G$3,"|", P$7,"|",$D13,"|",P$6,"|",$I$3), 'DATA MART_'!$G:$G,$F$2)) -> 0 | Q13: =IF($F$2="TO",SUMIFS('DATA MART_'!$R:$R,'DATA MART_'!$H:$H,$F$3,'DATA MART_'!$A:$A,CONCATENATE($F$3,"|",Q$5,"|",$E$5,"|",$G$2,"|",$G$3,"|", Q$7,"|",$D13,"|",Q$6,"|",$I$3)), SUMIFS('DATA MART_'!$R:$R,'DATA MART_'!$H:$H,$F$3,'DATA MART_'!$A:$A,CONCATENATE($F$3,"|",Q$5,"|",$E$5,"|",$G$2,"|",$G$3,"|", Q$7,"|",$D13,"|",Q$6,"|",$I$3), 'DATA MART_'!$G:$G,$F$2)) -> 0 | R13: =IF($F$2="TO",SUMIFS('DATA MART_'!$R:$R,'DATA MART_'!$H:$H,$F$3,'DATA MART_'!$A:$A,CONCATENATE($F$3,"|",R$5,"|",$E$5,"|",$G$2,"|",$G$3,"|", R$7,"|",$D13,"|",R$6,"|",$I$3)), SUMIFS('DATA MART_'!$R:$R,'DATA MART_'!$H:$H,$F$3,'DATA MART_'!$A:$A,CONCATENATE($F$3,"|",R$5,"|",$E$5,"|",$G$2,"|",$G$3,"|", R$7,"|",$D13,"|",R$6,"|",$I$3), 'DATA MART_'!$G:$G,$F$2)) -> 0 | S13: =IF($F$2="TO",SUMIFS('DATA MART_'!$R:$R,'DATA MART_'!$H:$H,$F$3,'DATA MART_'!$A:$A,CONCATENATE($F$3,"|",S$5,"|",$E$5,"|",$G$2,"|",$G$3,"|", S$7,"|",$D13,"|",S$6,"|",$I$3)), SUMIFS('DATA MART_'!$R:$R,'DATA MART_'!$H:$H,$F$3,'DATA MART_'!$A:$A,CONCATENATE($F$3,"|",S$5,"|",$E$5,"|",$G$2,"|",$G$3,"|", S$7,"|",$D13,"|",S$6,"|",$I$3), 'DATA MART_'!$G:$G,$F$2)) -> 0 | T13: =IF($F$2="TO",SUMIFS('DATA MART_'!$R:$R,'DATA MART_'!$H:$H,$F$3,'DATA MART_'!$A:$A,CONCATENATE($F$3,"|",T$5,"|",$E$5,"|",$G$2,"|",$G$3,"|", T$7,"|",$D13,"|",T$6,"|",$I$3)), SUMIFS('DATA MART_'!$R:$R,'DATA MART_'!$H:$H,$F$3,'DATA MART_'!$A:$A,CONCATENATE($F$3,"|",T$5,"|",$E$5,"|",$G$2,"|",$G$3,"|", T$7,"|",$D13,"|",T$6,"|",$I$3), 'DATA MART_'!$G:$G,$F$2)) -> 0 | U13: 0 | V13: 0 | X13: =IF($F$2="TO",SUMIFS('DATA MART_'!$R:$R,'DATA MART_'!$H:$H,$F$3,'DATA MART_'!$A:$A,CONCATENATE($F$3,"|",X$5,"|",$E$5,"|",$G$2,"|",$G$3,"|", X$7,"|",$D13,"|",X$6,"|",$I$3)), SUMIFS('DATA MART_'!$R:$R,'DATA MART_'!$H:$H,$F$3,'DATA MART_'!$A:$A,CONCATENATE($F$3,"|",X$5,"|",$E$5,"|",$G$2,"|",$G$3,"|", X$7,"|",$D13,"|",X$6,"|",$I$3), 'DATA MART_'!$G:$G,$F$2)) -> 0 | Z13: =IF($F$2="TO",SUMIFS('DATA MART_'!$R:$R,'DATA MART_'!$H:$H,$F$3,'DATA MART_'!$A:$A,CONCATENATE($F$3,"|",Z$5,"|",$E$5,"|",$G$2,"|",$G$3,"|", Z$7,"|",$D13,"|",Z$6,"|",$I$3)), SUMIFS('DATA MART_'!$R:$R,'DATA MART_'!$H:$H,$F$3,'DATA MART_'!$A:$A,CONCATENATE($F$3,"|",Z$5,"|",$E$5,"|",$G$2,"|",$G$3,"|", Z$7,"|",$D13,"|",Z$6,"|",$I$3), 'DATA MART_'!$G:$G,$F$2)) -> 0 | AB13: =IF($F$2="TO",SUMIFS('DATA MART_'!$R:$R,'DATA MART_'!$H:$H,$F$3,'DATA MART_'!$A:$A,CONCATENATE($F$3,"|",AB$5,"|",$E$5,"|",$G$2,"|",$G$3,"|", AB$7,"|",$D13,"|",AB$6,"|",$I$3)), SUMIFS('DATA MART_'!$R:$R,'DATA MART_'!$H:$H,$F$3,'DATA MART_'!$A:$A,CONCATENATE($F$3,"|",AB$5,"|",$E$5,"|",$G$2,"|",$G$3,"|", AB$7,"|",$D13,"|",AB$6,"|",$I$3), 'DATA MART_'!$G:$G,$F$2)) -> 0 | AD13: 0 | AE13: 100200
D14: =VLOOKUP(TRIM(F14),'DATA MART_'!$AD$3:$AF$25,3,0) -> 12 | F14: Corporates - Of Which: Specialised Lending | G14: =IF($F$2="TO",SUMIFS('DATA MART_'!$R:$R,'DATA MART_'!$H:$H,$F$3,'DATA MART_'!$A:$A,CONCATENATE($F$3,"|",G$5,"|",$E$5,"|",$G$2,"|",$G$3,"|", G$7,"|",$D14,"|",G$6,"|",$I$3)), SUMIFS('DATA MART_'!$R:$R,'DATA MART_'!$H:$H,$F$3,'DATA MART_'!$A:$A,CONCATENATE($F$3,"|",G$5,"|",$E$5,"|",$G$2,"|",$G$3,"|", G$7,"|",$D14,"|",G$6,"|",$I$3), 'DATA MART_'!$G:$G,$F$2)) -> 0 | H14: =IF($F$2="TO",SUMIFS('DATA MART_'!$R:$R,'DATA MART_'!$H:$H,$F$3,'DATA MART_'!$A:$A,CONCATENATE($F$3,"|",H$5,"|",$E$5,"|",$G$2,"|",$G$3,"|", H$7,"|",$D14,"|",H$6,"|",$I$3)), SUMIFS('DATA MART_'!$R:$R,'DATA MART_'!$H:$H,$F$3,'DATA MART_'!$A:$A,CONCATENATE($F$3,"|",H$5,"|",$E$5,"|",$G$2,"|",$G$3,"|", H$7,"|",$D14,"|",H$6,"|",$I$3), 'DATA MART_'!$G:$G,$F$2)) -> 0 | I14: =IF($F$2="TO",SUMIFS('DATA MART_'!$R:$R,'DATA MART_'!$H:$H,$F$3,'DATA MART_'!$A:$A,CONCATENATE($F$3,"|",I$5,"|",$E$5,"|",$G$2,"|",$G$3,"|", I$7,"|",$D14,"|",I$6,"|",$I$3)), SUMIFS('DATA MART_'!$R:$R,'DATA MART_'!$H:$H,$F$3,'DATA MART_'!$A:$A,CONCATENATE($F$3,"|",I$5,"|",$E$5,"|",$G$2,"|",$G$3,"|", I$7,"|",$D14,"|",I$6,"|",$I$3), 'DATA MART_'!$G:$G,$F$2)) -> 0 | J14: =IF($F$2="TO",SUMIFS('DATA MART_'!$R:$R,'DATA MART_'!$H:$H,$F$3,'DATA MART_'!$A:$A,CONCATENATE($F$3,"|",J$5,"|",$E$5,"|",$G$2,"|",$G$3,"|", J$7,"|",$D14,"|",J$6,"|",$I$3)), SUMIFS('DATA MART_'!$R:$R,'DATA MART_'!$H:$H,$F$3,'DATA MART_'!$A:$A,CONCATENATE($F$3,"|",J$5,"|",$E$5,"|",$G$2,"|",$G$3,"|", J$7,"|",$D14,"|",J$6,"|",$I$3), 'DATA MART_'!$G:$G,$F$2)) -> 0 | K14: =IF($F$2="TO",SUMIFS('DATA MART_'!$R:$R,'DATA MART_'!$H:$H,$F$3,'DATA MART_'!$A:$A,CONCATENATE($F$3,"|",K$5,"|",$E$5,"|",$G$2,"|",$G$3,"|", K$7,"|",$D14,"|",K$6,"|",$I$3)), SUMIFS('DATA MART_'!$R:$R,'DATA MART_'!$H:$H,$F$3,'DATA MART_'!$A:$A,CONCATENATE($F$3,"|",K$5,"|",$E$5,"|",$G$2,"|",$G$3,"|", K$7,"|",$D14,"|",K$6,"|",$I$3), 'DATA MART_'!$G:$G,$F$2)) -> 0 | L14: =IF($F$2="TO",SUMIFS('DATA MART_'!$R:$R,'DATA MART_'!$H:$H,$F$3,'DATA MART_'!$A:$A,CONCATENATE($F$3,"|",L$5,"|",$E$5,"|",$G$2,"|",$G$3,"|", L$7,"|",$D14,"|",L$6,"|",$I$3)), SUMIFS('DATA MART_'!$R:$R,'DATA MART_'!$H:$H,$F$3,'DATA MART_'!$A:$A,CONCATENATE($F$3,"|",L$5,"|",$E$5,"|",$G$2,"|",$G$3,"|", L$7,"|",$D14,"|",L$6,"|",$I$3), 'DATA MART_'!$G:$G,$F$2)) -> 0 | M14: 0 | N14: 0 | O14: =IF($F$2="TO",SUMIFS('DATA MART_'!$R:$R,'DATA MART_'!$H:$H,$F$3,'DATA MART_'!$A:$A,CONCATENATE($F$3,"|",O$5,"|",$E$5,"|",$G$2,"|",$G$3,"|", O$7,"|",$D14,"|",O$6,"|",$I$3)), SUMIFS('DATA MART_'!$R:$R,'DATA MART_'!$H:$H,$F$3,'DATA MART_'!$A:$A,CONCATENATE($F$3,"|",O$5,"|",$E$5,"|",$G$2,"|",$G$3,"|", O$7,"|",$D14,"|",O$6,"|",$I$3), 'DATA MART_'!$G:$G,$F$2)) -> 0 | P14: =IF($F$2="TO",SUMIFS('DATA MART_'!$R:$R,'DATA MART_'!$H:$H,$F$3,'DATA MART_'!$A:$A,CONCATENATE($F$3,"|",P$5,"|",$E$5,"|",$G$2,"|",$G$3,"|", P$7,"|",$D14,"|",P$6,"|",$I$3)), SUMIFS('DATA MART_'!$R:$R,'DATA MART_'!$H:$H,$F$3,'DATA MART_'!$A:$A,CONCATENATE($F$3,"|",P$5,"|",$E$5,"|",$G$2,"|",$G$3,"|", P$7,"|",$D14,"|",P$6,"|",$I$3), 'DATA MART_'!$G:$G,$F$2)) -> 0 | Q14: =IF($F$2="TO",SUMIFS('DATA MART_'!$R:$R,'DATA MART_'!$H:$H,$F$3,'DATA MART_'!$A:$A,CONCATENATE($F$3,"|",Q$5,"|",$E$5,"|",$G$2,"|",$G$3,"|", Q$7,"|",$D14,"|",Q$6,"|",$I$3)), SUMIFS('DATA MART_'!$R:$R,'DATA MART_'!$H:$H,$F$3,'DATA MART_'!$A:$A,CONCATENATE($F$3,"|",Q$5,"|",$E$5,"|",$G$2,"|",$G$3,"|", Q$7,"|",$D14,"|",Q$6,"|",$I$3), 'DATA MART_'!$G:$G,$F$2)) -> 0 | R14: =IF($F$2="TO",SUMIFS('DATA MART_'!$R:$R,'DATA MART_'!$H:$H,$F$3,'DATA MART_'!$A:$A,CONCATENATE($F$3,"|",R$5,"|",$E$5,"|",$G$2,"|",$G$3,"|", R$7,"|",$D14,"|",R$6,"|",$I$3)), SUMIFS('DATA MART_'!$R:$R,'DATA MART_'!$H:$H,$F$3,'DATA MART_'!$A:$A,CONCATENATE($F$3,"|",R$5,"|",$E$5,"|",$G$2,"|",$G$3,"|", R$7,"|",$D14,"|",R$6,"|",$I$3), 'DATA MART_'!$G:$G,$F$2)) -> 0 | S14: =IF($F$2="TO",SUMIFS('DATA MART_'!$R:$R,'DATA MART_'!$H:$H,$F$3,'DATA MART_'!$A:$A,CONCATENATE($F$3,"|",S$5,"|",$E$5,"|",$G$2,"|",$G$3,"|", S$7,"|",$D14,"|",S$6,"|",$I$3)), SUMIFS('DATA MART_'!$R:$R,'DATA MART_'!$H:$H,$F$3,'DATA MART_'!$A:$A,CONCATENATE($F$3,"|",S$5,"|",$E$5,"|",$G$2,"|",$G$3,"|", S$7,"|",$D14,"|",S$6,"|",$I$3), 'DATA MART_'!$G:$G,$F$2)) -> 0 | T14: =IF($F$2="TO",SUMIFS('DATA MART_'!$R:$R,'DATA MART_'!$H:$H,$F$3,'DATA MART_'!$A:$A,CONCATENATE($F$3,"|",T$5,"|",$E$5,"|",$G$2,"|",$G$3,"|", T$7,"|",$D14,"|",T$6,"|",$I$3)), SUMIFS('DATA MART_'!$R:$R,'DATA MART_'!$H:$H,$F$3,'DATA MART_'!$A:$A,CONCATENATE($F$3,"|",T$5,"|",$E$5,"|",$G$2,"|",$G$3,"|", T$7,"|",$D14,"|",T$6,"|",$I$3), 'DATA MART_'!$G:$G,$F$2)) -> 0 | U14: 0 | V14: 0 | X14: =IF($F$2="TO",SUMIFS('DATA MART_'!$R:$R,'DATA MART_'!$H:$H,$F$3,'DATA MART_'!$A:$A,CONCATENATE($F$3,"|",X$5,"|",$E$5,"|",$G$2,"|",$G$3,"|", X$7,"|",$D14,"|",X$6,"|",$I$3)), SUMIFS('DATA MART_'!$R:$R,'DATA MART_'!$H:$H,$F$3,'DATA MART_'!$A:$A,CONCATENATE($F$3,"|",X$5,"|",$E$5,"|",$G$2,"|",$G$3,"|", X$7,"|",$D14,"|",X$6,"|",$I$3), 'DATA MART_'!$G:$G,$F$2)) -> 0 | Z14: =IF($F$2="TO",SUMIFS('DATA MART_'!$R:$R,'DATA MART_'!$H:$H,$F$3,'DATA MART_'!$A:$A,CONCATENATE($F$3,"|",Z$5,"|",$E$5,"|",$G$2,"|",$G$3,"|", Z$7,"|",$D14,"|",Z$6,"|",$I$3)), SUMIFS('DATA MART_'!$R:$R,'DATA MART_'!$H:$H,$F$3,'DATA MART_'!$A:$A,CONCATENATE($F$3,"|",Z$5,"|",$E$5,"|",$G$2,"|",$G$3,"|", Z$7,"|",$D14,"|",Z$6,"|",$I$3), 'DATA MART_'!$G:$G,$F$2)) -> 0 | AB14: =IF($F$2="TO",SUMIFS('DATA MART_'!$R:$R,'DATA MART_'!$H:$H,$F$3,'DATA MART_'!$A:$A,CONCATENATE($F$3,"|",AB$5,"|",$E$5,"|",$G$2,"|",$G$3,"|", AB$7,"|",$D14,"|",AB$6,"|",$I$3)), SUMIFS('DATA MART_'!$R:$R,'DATA MART_'!$H:$H,$F$3,'DATA MART_'!$A:$A,CONCATENATE($F$3,"|",AB$5,"|",$E$5,"|",$G$2,"|",$G$3,"|", AB$7,"|",$D14,"|",AB$6,"|",$I$3), 'DATA MART_'!$G:$G,$F$2)) -> 0 | AD14: 0 | AE14: 100203
D15: =VLOOKUP(TRIM(F15),'DATA MART_'!$AD$3:$AF$25,3,0) -> 13 | F15: Corporates - Of Which: SME | G15: =IF($F$2="TO",SUMIFS('DATA MART_'!$R:$R,'DATA MART_'!$H:$H,$F$3,'DATA MART_'!$A:$A,CONCATENATE($F$3,"|",G$5,"|",$E$5,"|",$G$2,"|",$G$3,"|", G$7,"|",$D15,"|",G$6,"|",$I$3)), SUMIFS('DATA MART_'!$R:$R,'DATA MART_'!$H:$H,$F$3,'DATA MART_'!$A:$A,CONCATENATE($F$3,"|",G$5,"|",$E$5,"|",$G$2,"|",$G$3,"|", G$7,"|",$D15,"|",G$6,"|",$I$3), 'DATA MART_'!$G:$G,$F$2)) -> 0 | H15: =IF($F$2="TO",SUMIFS('DATA MART_'!$R:$R,'DATA MART_'!$H:$H,$F$3,'DATA MART_'!$A:$A,CONCATENATE($F$3,"|",H$5,"|",$E$5,"|",$G$2,"|",$G$3,"|", H$7,"|",$D15,"|",H$6,"|",$I$3)), SUMIFS('DATA MART_'!$R:$R,'DATA MART_'!$H:$H,$F$3,'DATA MART_'!$A:$A,CONCATENATE($F$3,"|",H$5,"|",$E$5,"|",$G$2,"|",$G$3,"|", H$7,"|",$D15,"|",H$6,"|",$I$3), 'DATA MART_'!$G:$G,$F$2)) -> 0 | I15: =IF($F$2="TO",SUMIFS('DATA MART_'!$R:$R,'DATA MART_'!$H:$H,$F$3,'DATA MART_'!$A:$A,CONCATENATE($F$3,"|",I$5,"|",$E$5,"|",$G$2,"|",$G$3,"|", I$7,"|",$D15,"|",I$6,"|",$I$3)), SUMIFS('DATA MART_'!$R:$R,'DATA MART_'!$H:$H,$F$3,'DATA MART_'!$A:$A,CONCATENATE($F$3,"|",I$5,"|",$E$5,"|",$G$2,"|",$G$3,"|", I$7,"|",$D15,"|",I$6,"|",$I$3), 'DATA MART_'!$G:$G,$F$2)) -> 0 | J15: =IF($F$2="TO",SUMIFS('DATA MART_'!$R:$R,'DATA MART_'!$H:$H,$F$3,'DATA MART_'!$A:$A,CONCATENATE($F$3,"|",J$5,"|",$E$5,"|",$G$2,"|",$G$3,"|", J$7,"|",$D15,"|",J$6,"|",$I$3)), SUMIFS('DATA MART_'!$R:$R,'DATA MART_'!$H:$H,$F$3,'DATA MART_'!$A:$A,CONCATENATE($F$3,"|",J$5,"|",$E$5,"|",$G$2,"|",$G$3,"|", J$7,"|",$D15,"|",J$6,"|",$I$3), 'DATA MART_'!$G:$G,$F$2)) -> 0 | K15: =IF($F$2="TO",SUMIFS('DATA MART_'!$R:$R,'DATA MART_'!$H:$H,$F$3,'DATA MART_'!$A:$A,CONCATENATE($F$3,"|",K$5,"|",$E$5,"|",$G$2,"|",$G$3,"|", K$7,"|",$D15,"|",K$6,"|",$I$3)), SUMIFS('DATA MART_'!$R:$R,'DATA MART_'!$H:$H,$F$3,'DATA MART_'!$A:$A,CONCATENATE($F$3,"|",K$5,"|",$E$5,"|",$G$2,"|",$G$3,"|", K$7,"|",$D15,"|",K$6,"|",$I$3), 'DATA MART_'!$G:$G,$F$2)) -> 0 | L15: =IF($F$2="TO",SUMIFS('DATA MART_'!$R:$R,'DATA MART_'!$H:$H,$F$3,'DATA MART_'!$A:$A,CONCATENATE($F$3,"|",L$5,"|",$E$5,"|",$G$2,"|",$G$3,"|", L$7,"|",$D15,"|",L$6,"|",$I$3)), SUMIFS('DATA MART_'!$R:$R,'DATA MART_'!$H:$H,$F$3,'DATA MART_'!$A:$A,CONCATENATE($F$3,"|",L$5,"|",$E$5,"|",$G$2,"|",$G$3,"|", L$7,"|",$D15,"|",L$6,"|",$I$3), 'DATA MART_'!$G:$G,$F$2)) -> 0 | M15: 0 | N15: 0 | O15: =IF($F$2="TO",SUMIFS('DATA MART_'!$R:$R,'DATA MART_'!$H:$H,$F$3,'DATA MART_'!$A:$A,CONCATENATE($F$3,"|",O$5,"|",$E$5,"|",$G$2,"|",$G$3,"|", O$7,"|",$D15,"|",O$6,"|",$I$3)), SUMIFS('DATA MART_'!$R:$R,'DATA MART_'!$H:$H,$F$3,'DATA MART_'!$A:$A,CONCATENATE($F$3,"|",O$5,"|",$E$5,"|",$G$2,"|",$G$3,"|", O$7,"|",$D15,"|",O$6,"|",$I$3), 'DATA MART_'!$G:$G,$F$2)) -> 0 | P15: =IF($F$2="TO",SUMIFS('DATA MART_'!$R:$R,'DATA MART_'!$H:$H,$F$3,'DATA MART_'!$A:$A,CONCATENATE($F$3,"|",P$5,"|",$E$5,"|",$G$2,"|",$G$3,"|", P$7,"|",$D15,"|",P$6,"|",$I$3)), SUMIFS('DATA MART_'!$R:$R,'DATA MART_'!$H:$H,$F$3,'DATA MART_'!$A:$A,CONCATENATE($F$3,"|",P$5,"|",$E$5,"|",$G$2,"|",$G$3,"|", P$7,"|",$D15,"|",P$6,"|",$I$3), 'DATA MART_'!$G:$G,$F$2)) -> 0 | Q15: =IF($F$2="TO",SUMIFS('DATA MART_'!$R:$R,'DATA MART_'!$H:$H,$F$3,'DATA MART_'!$A:$A,CONCATENATE($F$3,"|",Q$5,"|",$E$5,"|",$G$2,"|",$G$3,"|", Q$7,"|",$D15,"|",Q$6,"|",$I$3)), SUMIFS('DATA MART_'!$R:$R,'DATA MART_'!$H:$H,$F$3,'DATA MART_'!$A:$A,CONCATENATE($F$3,"|",Q$5,"|",$E$5,"|",$G$2,"|",$G$3,"|", Q$7,"|",$D15,"|",Q$6,"|",$I$3), 'DATA MART_'!$G:$G,$F$2)) -> 0 | R15: =IF($F$2="TO",SUMIFS('DATA MART_'!$R:$R,'DATA MART_'!$H:$H,$F$3,'DATA MART_'!$A:$A,CONCATENATE($F$3,"|",R$5,"|",$E$5,"|",$G$2,"|",$G$3,"|", R$7,"|",$D15,"|",R$6,"|",$I$3)), SUMIFS('DATA MART_'!$R:$R,'DATA MART_'!$H:$H,$F$3,'DATA MART_'!$A:$A,CONCATENATE($F$3,"|",R$5,"|",$E$5,"|",$G$2,"|",$G$3,"|", R$7,"|",$D15,"|",R$6,"|",$I$3), 'DATA MART_'!$G:$G,$F$2)) -> 0 | S15: =IF($F$2="TO",SUMIFS('DATA MART_'!$R:$R,'DATA MART_'!$H:$H,$F$3,'DATA MART_'!$A:$A,CONCATENATE($F$3,"|",S$5,"|",$E$5,"|",$G$2,"|",$G$3,"|", S$7,"|",$D15,"|",S$6,"|",$I$3)), SUMIFS('DATA MART_'!$R:$R,'DATA MART_'!$H:$H,$F$3,'DATA MART_'!$A:$A,CONCATENATE($F$3,"|",S$5,"|",$E$5,"|",$G$2,"|",$G$3,"|", S$7,"|",$D15,"|",S$6,"|",$I$3), 'DATA MART_'!$G:$G,$F$2)) -> 0 | T15: =IF($F$2="TO",SUMIFS('DATA MART_'!$R:$R,'DATA MART_'!$H:$H,$F$3,'DATA MART_'!$A:$A,CONCATENATE($F$3,"|",T$5,"|",$E$5,"|",$G$2,"|",$G$3,"|", T$7,"|",$D15,"|",T$6,"|",$I$3)), SUMIFS('DATA MART_'!$R:$R,'DATA MART_'!$H:$H,$F$3,'DATA MART_'!$A:$A,CONCATENATE($F$3,"|",T$5,"|",$E$5,"|",$G$2,"|",$G$3,"|", T$7,"|",$D15,"|",T$6,"|",$I$3), 'DATA MART_'!$G:$G,$F$2)) -> 0 | U15: 0 | V15: 0 | X15: =IF($F$2="TO",SUMIFS('DATA MART_'!$R:$R,'DATA MART_'!$H:$H,$F$3,'DATA MART_'!$A:$A,CONCATENATE($F$3,"|",X$5,"|",$E$5,"|",$G$2,"|",$G$3,"|", X$7,"|",$D15,"|",X$6,"|",$I$3)), SUMIFS('DATA MART_'!$R:$R,'DATA MART_'!$H:$H,$F$3,'DATA MART_'!$A:$A,CONCATENATE($F$3,"|",X$5,"|",$E$5,"|",$G$2,"|",$G$3,"|", X$7,"|",$D15,"|",X$6,"|",$I$3), 'DATA MART_'!$G:$G,$F$2)) -> 0 | Z15: =IF($F$2="TO",SUMIFS('DATA MART_'!$R:$R,'DATA MART_'!$H:$H,$F$3,'DATA MART_'!$A:$A,CONCATENATE($F$3,"|",Z$5,"|",$E$5,"|",$G$2,"|",$G$3,"|", Z$7,"|",$D15,"|",Z$6,"|",$I$3)), SUMIFS('DATA MART_'!$R:$R,'DATA MART_'!$H:$H,$F$3,'DATA MART_'!$A:$A,CONCATENATE($F$3,"|",Z$5,"|",$E$5,"|",$G$2,"|",$G$3,"|", Z$7,"|",$D15,"|",Z$6,"|",$I$3), 'DATA MART_'!$G:$G,$F$2)) -> 0 | AB15: =IF($F$2="TO",SUMIFS('DATA MART_'!$R:$R,'DATA MART_'!$H:$H,$F$3,'DATA MART_'!$A:$A,CONCATENATE($F$3,"|",AB$5,"|",$E$5,"|",$G$2,"|",$G$3,"|", AB$7,"|",$D15,"|",AB$6,"|",$I$3)), SUMIFS('DATA MART_'!$R:$R,'DATA MART_'!$H:$H,$F$3,'DATA MART_'!$A:$A,CONCATENATE($F$3,"|",AB$5,"|",$E$5,"|",$G$2,"|",$G$3,"|", AB$7,"|",$D15,"|",AB$6,"|",$I$3), 'DATA MART_'!$G:$G,$F$2)) -> 0 | AD15: 0 | AE15: 100300
D16: =VLOOKUP(TRIM(F16),'DATA MART_'!$AD$3:$AF$25,3,0) -> 4 | F16: Retail | G16: =IF($F$2="TO",SUMIFS('DATA MART_'!$R:$R,'DATA MART_'!$H:$H,$F$3,'DATA MART_'!$A:$A,CONCATENATE($F$3,"|",G$5,"|",$E$5,"|",$G$2,"|",$G$3,"|", G$7,"|",$D16,"|",G$6,"|",$I$3)), SUMIFS('DATA MART_'!$R:$R,'DATA MART_'!$H:$H,$F$3,'DATA MART_'!$A:$A,CONCATENATE($F$3,"|",G$5,"|",$E$5,"|",$G$2,"|",$G$3,"|", G$7,"|",$D16,"|",G$6,"|",$I$3), 'DATA MART_'!$G:$G,$F$2)) -> 0 | H16: =IF($F$2="TO",SUMIFS('DATA MART_'!$R:$R,'DATA MART_'!$H:$H,$F$3,'DATA MART_'!$A:$A,CONCATENATE($F$3,"|",H$5,"|",$E$5,"|",$G$2,"|",$G$3,"|", H$7,"|",$D16,"|",H$6,"|",$I$3)), SUMIFS('DATA MART_'!$R:$R,'DATA MART_'!$H:$H,$F$3,'DATA MART_'!$A:$A,CONCATENATE($F$3,"|",H$5,"|",$E$5,"|",$G$2,"|",$G$3,"|", H$7,"|",$D16,"|",H$6,"|",$I$3), 'DATA MART_'!$G:$G,$F$2)) -> 0 | I16: =IF($F$2="TO",SUMIFS('DATA MART_'!$R:$R,'DATA MART_'!$H:$H,$F$3,'DATA MART_'!$A:$A,CONCATENATE($F$3,"|",I$5,"|",$E$5,"|",$G$2,"|",$G$3,"|", I$7,"|",$D16,"|",I$6,"|",$I$3)), SUMIFS('DATA MART_'!$R:$R,'DATA MART_'!$H:$H,$F$3,'DATA MART_'!$A:$A,CONCATENATE($F$3,"|",I$5,"|",$E$5,"|",$G$2,"|",$G$3,"|", I$7,"|",$D16,"|",I$6,"|",$I$3), 'DATA MART_'!$G:$G,$F$2)) -> 0 | J16: =IF($F$2="TO",SUMIFS('DATA MART_'!$R:$R,'DATA MART_'!$H:$H,$F$3,'DATA MART_'!$A:$A,CONCATENATE($F$3,"|",J$5,"|",$E$5,"|",$G$2,"|",$G$3,"|", J$7,"|",$D16,"|",J$6,"|",$I$3)), SUMIFS('DATA MART_'!$R:$R,'DATA MART_'!$H:$H,$F$3,'DATA MART_'!$A:$A,CONCATENATE($F$3,"|",J$5,"|",$E$5,"|",$G$2,"|",$G$3,"|", J$7,"|",$D16,"|",J$6,"|",$I$3), 'DATA MART_'!$G:$G,$F$2)) -> 0 | K16: =IF($F$2="TO",SUMIFS('DATA MART_'!$R:$R,'DATA MART_'!$H:$H,$F$3,'DATA MART_'!$A:$A,CONCATENATE($F$3,"|",K$5,"|",$E$5,"|",$G$2,"|",$G$3,"|", K$7,"|",$D16,"|",K$6,"|",$I$3)), SUMIFS('DATA MART_'!$R:$R,'DATA MART_'!$H:$H,$F$3,'DATA MART_'!$A:$A,CONCATENATE($F$3,"|",K$5,"|",$E$5,"|",$G$2,"|",$G$3,"|", K$7,"|",$D16,"|",K$6,"|",$I$3), 'DATA MART_'!$G:$G,$F$2)) -> 0 | L16: =IF($F$2="TO",SUMIFS('DATA MART_'!$R:$R,'DATA MART_'!$H:$H,$F$3,'DATA MART_'!$A:$A,CONCATENATE($F$3,"|",L$5,"|",$E$5,"|",$G$2,"|",$G$3,"|", L$7,"|",$D16,"|",L$6,"|",$I$3)), SUMIFS('DATA MART_'!$R:$R,'DATA MART_'!$H:$H,$F$3,'DATA MART_'!$A:$A,CONCATENATE($F$3,"|",L$5,"|",$E$5,"|",$G$2,"|",$G$3,"|", L$7,"|",$D16,"|",L$6,"|",$I$3), 'DATA MART_'!$G:$G,$F$2)) -> 0 | M16: 0 | N16: 0 | O16: =IF($F$2="TO",SUMIFS('DATA MART_'!$R:$R,'DATA MART_'!$H:$H,$F$3,'DATA MART_'!$A:$A,CONCATENATE($F$3,"|",O$5,"|",$E$5,"|",$G$2,"|",$G$3,"|", O$7,"|",$D16,"|",O$6,"|",$I$3)), SUMIFS('DATA MART_'!$R:$R,'DATA MART_'!$H:$H,$F$3,'DATA MART_'!$A:$A,CONCATENATE($F$3,"|",O$5,"|",$E$5,"|",$G$2,"|",$G$3,"|", O$7,"|",$D16,"|",O$6,"|",$I$3), 'DATA MART_'!$G:$G,$F$2)) -> 0 | P16: =IF($F$2="TO",SUMIFS('DATA MART_'!$R:$R,'DATA MART_'!$H:$H,$F$3,'DATA MART_'!$A:$A,CONCATENATE($F$3,"|",P$5,"|",$E$5,"|",$G$2,"|",$G$3,"|", P$7,"|",$D16,"|",P$6,"|",$I$3)), SUMIFS('DATA MART_'!$R:$R,'DATA MART_'!$H:$H,$F$3,'DATA MART_'!$A:$A,CONCATENATE($F$3,"|",P$5,"|",$E$5,"|",$G$2,"|",$G$3,"|", P$7,"|",$D16,"|",P$6,"|",$I$3), 'DATA MART_'!$G:$G,$F$2)) -> 0 | Q16: =IF($F$2="TO",SUMIFS('DATA MART_'!$R:$R,'DATA MART_'!$H:$H,$F$3,'DATA MART_'!$A:$A,CONCATENATE($F$3,"|",Q$5,"|",$E$5,"|",$G$2,"|",$G$3,"|", Q$7,"|",$D16,"|",Q$6,"|",$I$3)), SUMIFS('DATA MART_'!$R:$R,'DATA MART_'!$H:$H,$F$3,'DATA MART_'!$A:$A,CONCATENATE($F$3,"|",Q$5,"|",$E$5,"|",$G$2,"|",$G$3,"|", Q$7,"|",$D16,"|",Q$6,"|",$I$3), 'DATA MART_'!$G:$G,$F$2)) -> 0 | R16: =IF($F$2="TO",SUMIFS('DATA MART_'!$R:$R,'DATA MART_'!$H:$H,$F$3,'DATA MART_'!$A:$A,CONCATENATE($F$3,"|",R$5,"|",$E$5,"|",$G$2,"|",$G$3,"|", R$7,"|",$D16,"|",R$6,"|",$I$3)), SUMIFS('DATA MART_'!$R:$R,'DATA MART_'!$H:$H,$F$3,'DATA MART_'!$A:$A,CONCATENATE($F$3,"|",R$5,"|",$E$5,"|",$G$2,"|",$G$3,"|", R$7,"|",$D16,"|",R$6,"|",$I$3), 'DATA MART_'!$G:$G,$F$2)) -> 0 | S16: =IF($F$2="TO",SUMIFS('DATA MART_'!$R:$R,'DATA MART_'!$H:$H,$F$3,'DATA MART_'!$A:$A,CONCATENATE($F$3,"|",S$5,"|",$E$5,"|",$G$2,"|",$G$3,"|", S$7,"|",$D16,"|",S$6,"|",$I$3)), SUMIFS('DATA MART_'!$R:$R,'DATA MART_'!$H:$H,$F$3,'DATA MART_'!$A:$A,CONCATENATE($F$3,"|",S$5,"|",$E$5,"|",$G$2,"|",$G$3,"|", S$7,"|",$D16,"|",S$6,"|",$I$3), 'DATA MART_'!$G:$G,$F$2)) -> 0 | T16: =IF($F$2="TO",SUMIFS('DATA MART_'!$R:$R,'DATA MART_'!$H:$H,$F$3,'DATA MART_'!$A:$A,CONCATENATE($F$3,"|",T$5,"|",$E$5,"|",$G$2,"|",$G$3,"|", T$7,"|",$D16,"|",T$6,"|",$I$3)), SUMIFS('DATA MART_'!$R:$R,'DATA MART_'!$H:$H,$F$3,'DATA MART_'!$A:$A,CONCATENATE($F$3,"|",T$5,"|",$E$5,"|",$G$2,"|",$G$3,"|", T$7,"|",$D16,"|",T$6,"|",$I$3), 'DATA MART_'!$G:$G,$F$2)) -> 0 | U16: 0 | V16: 0 | X16: =IF($F$2="TO",SUMIFS('DATA MART_'!$R:$R,'DATA MART_'!$H:$H,$F$3,'DATA MART_'!$A:$A,CONCATENATE($F$3,"|",X$5,"|",$E$5,"|",$G$2,"|",$G$3,"|", X$7,"|",$D16,"|",X$6,"|",$I$3)), SUMIFS('DATA MART_'!$R:$R,'DATA MART_'!$H:$H,$F$3,'DATA MART_'!$A:$A,CONCATENATE($F$3,"|",X$5,"|",$E$5,"|",$G$2,"|",$G$3,"|", X$7,"|",$D16,"|",X$6,"|",$I$3), 'DATA MART_'!$G:$G,$F$2)) -> 0 | Z16: =IF($F$2="TO",SUMIFS('DATA MART_'!$R:$R,'DATA MART_'!$H:$H,$F$3,'DATA MART_'!$A:$A,CONCATENATE($F$3,"|",Z$5,"|",$E$5,"|",$G$2,"|",$G$3,"|", Z$7,"|",$D16,"|",Z$6,"|",$I$3)), SUMIFS('DATA MART_'!$R:$R,'DATA MART_'!$H:$H,$F$3,'DATA MART_'!$A:$A,CONCATENATE($F$3,"|",Z$5,"|",$E$5,"|",$G$2,"|",$G$3,"|", Z$7,"|",$D16,"|",Z$6,"|",$I$3), 'DATA MART_'!$G:$G,$F$2)) -> 0 | AB16: =IF($F$2="TO",SUMIFS('DATA MART_'!$R:$R,'DATA MART_'!$H:$H,$F$3,'DATA MART_'!$A:$A,CONCATENATE($F$3,"|",AB$5,"|",$E$5,"|",$G$2,"|",$G$3,"|", AB$7,"|",$D16,"|",AB$6,"|",$I$3)), SUMIFS('DATA MART_'!$R:$R,'DATA MART_'!$H:$H,$F$3,'DATA MART_'!$A:$A,CONCATENATE($F$3,"|",AB$5,"|",$E$5,"|",$G$2,"|",$G$3,"|", AB$7,"|",$D16,"|",AB$6,"|",$I$3), 'DATA MART_'!$G:$G,$F$2)) -> 0 | AD16: 0 | AE16: 100301
D17: =VLOOKUP(TRIM(F17),'DATA MART_'!$AD$3:$AF$25,3,0) -> 15 | F17: Retail - Secured on real estate property | G17: =IF($F$2="TO",SUMIFS('DATA MART_'!$R:$R,'DATA MART_'!$H:$H,$F$3,'DATA MART_'!$A:$A,CONCATENATE($F$3,"|",G$5,"|",$E$5,"|",$G$2,"|",$G$3,"|", G$7,"|",$D17,"|",G$6,"|",$I$3)), SUMIFS('DATA MART_'!$R:$R,'DATA MART_'!$H:$H,$F$3,'DATA MART_'!$A:$A,CONCATENATE($F$3,"|",G$5,"|",$E$5,"|",$G$2,"|",$G$3,"|", G$7,"|",$D17,"|",G$6,"|",$I$3), 'DATA MART_'!$G:$G,$F$2)) -> 0 | H17: =IF($F$2="TO",SUMIFS('DATA MART_'!$R:$R,'DATA MART_'!$H:$H,$F$3,'DATA MART_'!$A:$A,CONCATENATE($F$3,"|",H$5,"|",$E$5,"|",$G$2,"|",$G$3,"|", H$7,"|",$D17,"|",H$6,"|",$I$3)), SUMIFS('DATA MART_'!$R:$R,'DATA MART_'!$H:$H,$F$3,'DATA MART_'!$A:$A,CONCATENATE($F$3,"|",H$5,"|",$E$5,"|",$G$2,"|",$G$3,"|", H$7,"|",$D17,"|",H$6,"|",$I$3), 'DATA MART_'!$G:$G,$F$2)) -> 0 | I17: =IF($F$2="TO",SUMIFS('DATA MART_'!$R:$R,'DATA MART_'!$H:$H,$F$3,'DATA MART_'!$A:$A,CONCATENATE($F$3,"|",I$5,"|",$E$5,"|",$G$2,"|",$G$3,"|", I$7,"|",$D17,"|",I$6,"|",$I$3)), SUMIFS('DATA MART_'!$R:$R,'DATA MART_'!$H:$H,$F$3,'DATA MART_'!$A:$A,CONCATENATE($F$3,"|",I$5,"|",$E$5,"|",$G$2,"|",$G$3,"|", I$7,"|",$D17,"|",I$6,"|",$I$3), 'DATA MART_'!$G:$G,$F$2)) -> 0 | J17: =IF($F$2="TO",SUMIFS('DATA MART_'!$R:$R,'DATA MART_'!$H:$H,$F$3,'DATA MART_'!$A:$A,CONCATENATE($F$3,"|",J$5,"|",$E$5,"|",$G$2,"|",$G$3,"|", J$7,"|",$D17,"|",J$6,"|",$I$3)), SUMIFS('DATA MART_'!$R:$R,'DATA MART_'!$H:$H,$F$3,'DATA MART_'!$A:$A,CONCATENATE($F$3,"|",J$5,"|",$E$5,"|",$G$2,"|",$G$3,"|", J$7,"|",$D17,"|",J$6,"|",$I$3), 'DATA MART_'!$G:$G,$F$2)) -> 0 | K17: =IF($F$2="TO",SUMIFS('DATA MART_'!$R:$R,'DATA MART_'!$H:$H,$F$3,'DATA MART_'!$A:$A,CONCATENATE($F$3,"|",K$5,"|",$E$5,"|",$G$2,"|",$G$3,"|", K$7,"|",$D17,"|",K$6,"|",$I$3)), SUMIFS('DATA MART_'!$R:$R,'DATA MART_'!$H:$H,$F$3,'DATA MART_'!$A:$A,CONCATENATE($F$3,"|",K$5,"|",$E$5,"|",$G$2,"|",$G$3,"|", K$7,"|",$D17,"|",K$6,"|",$I$3), 'DATA MART_'!$G:$G,$F$2)) -> 0 | L17: =IF($F$2="TO",SUMIFS('DATA MART_'!$R:$R,'DATA MART_'!$H:$H,$F$3,'DATA MART_'!$A:$A,CONCATENATE($F$3,"|",L$5,"|",$E$5,"|",$G$2,"|",$G$3,"|", L$7,"|",$D17,"|",L$6,"|",$I$3)), SUMIFS('DATA MART_'!$R:$R,'DATA MART_'!$H:$H,$F$3,'DATA MART_'!$A:$A,CONCATENATE($F$3,"|",L$5,"|",$E$5,"|",$G$2,"|",$G$3,"|", L$7,"|",$D17,"|",L$6,"|",$I$3), 'DATA MART_'!$G:$G,$F$2)) -> 0 | M17: 0 | N17: 0 | O17: =IF($F$2="TO",SUMIFS('DATA MART_'!$R:$R,'DATA MART_'!$H:$H,$F$3,'DATA MART_'!$A:$A,CONCATENATE($F$3,"|",O$5,"|",$E$5,"|",$G$2,"|",$G$3,"|", O$7,"|",$D17,"|",O$6,"|",$I$3)), SUMIFS('DATA MART_'!$R:$R,'DATA MART_'!$H:$H,$F$3,'DATA MART_'!$A:$A,CONCATENATE($F$3,"|",O$5,"|",$E$5,"|",$G$2,"|",$G$3,"|", O$7,"|",$D17,"|",O$6,"|",$I$3), 'DATA MART_'!$G:$G,$F$2)) -> 0 | P17: =IF($F$2="TO",SUMIFS('DATA MART_'!$R:$R,'DATA MART_'!$H:$H,$F$3,'DATA MART_'!$A:$A,CONCATENATE($F$3,"|",P$5,"|",$E$5,"|",$G$2,"|",$G$3,"|", P$7,"|",$D17,"|",P$6,"|",$I$3)), SUMIFS('DATA MART_'!$R:$R,'DATA MART_'!$H:$H,$F$3,'DATA MART_'!$A:$A,CONCATENATE($F$3,"|",P$5,"|",$E$5,"|",$G$2,"|",$G$3,"|", P$7,"|",$D17,"|",P$6,"|",$I$3), 'DATA MART_'!$G:$G,$F$2)) -> 0 | Q17: =IF($F$2="TO",SUMIFS('DATA MART_'!$R:$R,'DATA MART_'!$H:$H,$F$3,'DATA MART_'!$A:$A,CONCATENATE($F$3,"|",Q$5,"|",$E$5,"|",$G$2,"|",$G$3,"|", Q$7,"|",$D17,"|",Q$6,"|",$I$3)), SUMIFS('DATA MART_'!$R:$R,'DATA MART_'!$H:$H,$F$3,'DATA MART_'!$A:$A,CONCATENATE($F$3,"|",Q$5,"|",$E$5,"|",$G$2,"|",$G$3,"|", Q$7,"|",$D17,"|",Q$6,"|",$I$3), 'DATA MART_'!$G:$G,$F$2)) -> 0 | R17: =IF($F$2="TO",SUMIFS('DATA MART_'!$R:$R,'DATA MART_'!$H:$H,$F$3,'DATA MART_'!$A:$A,CONCATENATE($F$3,"|",R$5,"|",$E$5,"|",$G$2,"|",$G$3,"|", R$7,"|",$D17,"|",R$6,"|",$I$3)), SUMIFS('DATA MART_'!$R:$R,'DATA MART_'!$H:$H,$F$3,'DATA MART_'!$A:$A,CONCATENATE($F$3,"|",R$5,"|",$E$5,"|",$G$2,"|",$G$3,"|", R$7,"|",$D17,"|",R$6,"|",$I$3), 'DATA MART_'!$G:$G,$F$2)) -> 0 | S17: =IF($F$2="TO",SUMIFS('DATA MART_'!$R:$R,'DATA MART_'!$H:$H,$F$3,'DATA MART_'!$A:$A,CONCATENATE($F$3,"|",S$5,"|",$E$5,"|",$G$2,"|",$G$3,"|", S$7,"|",$D17,"|",S$6,"|",$I$3)), SUMIFS('DATA MART_'!$R:$R,'DATA MART_'!$H:$H,$F$3,'DATA MART_'!$A:$A,CONCATENATE($F$3,"|",S$5,"|",$E$5,"|",$G$2,"|",$G$3,"|", S$7,"|",$D17,"|",S$6,"|",$I$3), 'DATA MART_'!$G:$G,$F$2)) -> 0 | T17: =IF($F$2="TO",SUMIFS('DATA MART_'!$R:$R,'DATA MART_'!$H:$H,$F$3,'DATA MART_'!$A:$A,CONCATENATE($F$3,"|",T$5,"|",$E$5,"|",$G$2,"|",$G$3,"|", T$7,"|",$D17,"|",T$6,"|",$I$3)), SUMIFS('DATA MART_'!$R:$R,'DATA MART_'!$H:$H,$F$3,'DATA MART_'!$A:$A,CONCATENATE($F$3,"|",T$5,"|",$E$5,"|",$G$2,"|",$G$3,"|", T$7,"|",$D17,"|",T$6,"|",$I$3), 'DATA MART_'!$G:$G,$F$2)) -> 0 | U17: 0 | V17: 0 | X17: =IF($F$2="TO",SUMIFS('DATA MART_'!$R:$R,'DATA MART_'!$H:$H,$F$3,'DATA MART_'!$A:$A,CONCATENATE($F$3,"|",X$5,"|",$E$5,"|",$G$2,"|",$G$3,"|", X$7,"|",$D17,"|",X$6,"|",$I$3)), SUMIFS('DATA MART_'!$R:$R,'DATA MART_'!$H:$H,$F$3,'DATA MART_'!$A:$A,CONCATENATE($F$3,"|",X$5,"|",$E$5,"|",$G$2,"|",$G$3,"|", X$7,"|",$D17,"|",X$6,"|",$I$3), 'DATA MART_'!$G:$G,$F$2)) -> 0 | Z17: =IF($F$2="TO",SUMIFS('DATA MART_'!$R:$R,'DATA MART_'!$H:$H,$F$3,'DATA MART_'!$A:$A,CONCATENATE($F$3,"|",Z$5,"|",$E$5,"|",$G$2,"|",$G$3,"|", Z$7,"|",$D17,"|",Z$6,"|",$I$3)), SUMIFS('DATA MART_'!$R:$R,'DATA MART_'!$H:$H,$F$3,'DATA MART_'!$A:$A,CONCATENATE($F$3,"|",Z$5,"|",$E$5,"|",$G$2,"|",$G$3,"|", Z$7,"|",$D17,"|",Z$6,"|",$I$3), 'DATA MART_'!$G:$G,$F$2)) -> 0 | AB17: =IF($F$2="TO",SUMIFS('DATA MART_'!$R:$R,'DATA MART_'!$H:$H,$F$3,'DATA MART_'!$A:$A,CONCATENATE($F$3,"|",AB$5,"|",$E$5,"|",$G$2,"|",$G$3,"|", AB$7,"|",$D17,"|",AB$6,"|",$I$3)), SUMIFS('DATA MART_'!$R:$R,'DATA MART_'!$H:$H,$F$3,'DATA MART_'!$A:$A,CONCATENATE($F$3,"|",AB$5,"|",$E$5,"|",$G$2,"|",$G$3,"|", AB$7,"|",$D17,"|",AB$6,"|",$I$3), 'DATA MART_'!$G:$G,$F$2)) -> 0 | AD17: 0 | AE17: 100400
D18: =VLOOKUP(TRIM(F18),'DATA MART_'!$AD$3:$AF$25,3,0) -> 16 | F18: Retail - Secured on real estate property - Of Which: SME | G18: =IF($F$2="TO",SUMIFS('DATA MART_'!$R:$R,'DATA MART_'!$H:$H,$F$3,'DATA MART_'!$A:$A,CONCATENATE($F$3,"|",G$5,"|",$E$5,"|",$G$2,"|",$G$3,"|", G$7,"|",$D18,"|",G$6,"|",$I$3)), SUMIFS('DATA MART_'!$R:$R,'DATA MART_'!$H:$H,$F$3,'DATA MART_'!$A:$A,CONCATENATE($F$3,"|",G$5,"|",$E$5,"|",$G$2,"|",$G$3,"|", G$7,"|",$D18,"|",G$6,"|",$I$3), 'DATA MART_'!$G:$G,$F$2)) -> 0 | H18: =IF($F$2="TO",SUMIFS('DATA MART_'!$R:$R,'DATA MART_'!$H:$H,$F$3,'DATA MART_'!$A:$A,CONCATENATE($F$3,"|",H$5,"|",$E$5,"|",$G$2,"|",$G$3,"|", H$7,"|",$D18,"|",H$6,"|",$I$3)), SUMIFS('DATA MART_'!$R:$R,'DATA MART_'!$H:$H,$F$3,'DATA MART_'!$A:$A,CONCATENATE($F$3,"|",H$5,"|",$E$5,"|",$G$2,"|",$G$3,"|", H$7,"|",$D18,"|",H$6,"|",$I$3), 'DATA MART_'!$G:$G,$F$2)) -> 0 | I18: =IF($F$2="TO",SUMIFS('DATA MART_'!$R:$R,'DATA MART_'!$H:$H,$F$3,'DATA MART_'!$A:$A,CONCATENATE($F$3,"|",I$5,"|",$E$5,"|",$G$2,"|",$G$3,"|", I$7,"|",$D18,"|",I$6,"|",$I$3)), SUMIFS('DATA MART_'!$R:$R,'DATA MART_'!$H:$H,$F$3,'DATA MART_'!$A:$A,CONCATENATE($F$3,"|",I$5,"|",$E$5,"|",$G$2,"|",$G$3,"|", I$7,"|",$D18,"|",I$6,"|",$I$3), 'DATA MART_'!$G:$G,$F$2)) -> 0 | J18: =IF($F$2="TO",SUMIFS('DATA MART_'!$R:$R,'DATA MART_'!$H:$H,$F$3,'DATA MART_'!$A:$A,CONCATENATE($F$3,"|",J$5,"|",$E$5,"|",$G$2,"|",$G$3,"|", J$7,"|",$D18,"|",J$6,"|",$I$3)), SUMIFS('DATA MART_'!$R:$R,'DATA MART_'!$H:$H,$F$3,'DATA MART_'!$A:$A,CONCATENATE($F$3,"|",J$5,"|",$E$5,"|",$G$2,"|",$G$3,"|", J$7,"|",$D18,"|",J$6,"|",$I$3), 'DATA MART_'!$G:$G,$F$2)) -> 0 | K18: =IF($F$2="TO",SUMIFS('DATA MART_'!$R:$R,'DATA MART_'!$H:$H,$F$3,'DATA MART_'!$A:$A,CONCATENATE($F$3,"|",K$5,"|",$E$5,"|",$G$2,"|",$G$3,"|", K$7,"|",$D18,"|",K$6,"|",$I$3)), SUMIFS('DATA MART_'!$R:$R,'DATA MART_'!$H:$H,$F$3,'DATA MART_'!$A:$A,CONCATENATE($F$3,"|",K$5,"|",$E$5,"|",$G$2,"|",$G$3,"|", K$7,"|",$D18,"|",K$6,"|",$I$3), 'DATA MART_'!$G:$G,$F$2)) -> 0 | L18: =IF($F$2="TO",SUMIFS('DATA MART_'!$R:$R,'DATA MART_'!$H:$H,$F$3,'DATA MART_'!$A:$A,CONCATENATE($F$3,"|",L$5,"|",$E$5,"|",$G$2,"|",$G$3,"|", L$7,"|",$D18,"|",L$6,"|",$I$3)), SUMIFS('DATA MART_'!$R:$R,'DATA MART_'!$H:$H,$F$3,'DATA MART_'!$A:$A,CONCATENATE($F$3,"|",L$5,"|",$E$5,"|",$G$2,"|",$G$3,"|", L$7,"|",$D18,"|",L$6,"|",$I$3), 'DATA MART_'!$G:$G,$F$2)) -> 0 | M18: 0 | N18: 0 | O18: =IF($F$2="TO",SUMIFS('DATA MART_'!$R:$R,'DATA MART_'!$H:$H,$F$3,'DATA MART_'!$A:$A,CONCATENATE($F$3,"|",O$5,"|",$E$5,"|",$G$2,"|",$G$3,"|", O$7,"|",$D18,"|",O$6,"|",$I$3)), SUMIFS('DATA MART_'!$R:$R,'DATA MART_'!$H:$H,$F$3,'DATA MART_'!$A:$A,CONCATENATE($F$3,"|",O$5,"|",$E$5,"|",$G$2,"|",$G$3,"|", O$7,"|",$D18,"|",O$6,"|",$I$3), 'DATA MART_'!$G:$G,$F$2)) -> 0 | P18: =IF($F$2="TO",SUMIFS('DATA MART_'!$R:$R,'DATA MART_'!$H:$H,$F$3,'DATA MART_'!$A:$A,CONCATENATE($F$3,"|",P$5,"|",$E$5,"|",$G$2,"|",$G$3,"|", P$7,"|",$D18,"|",P$6,"|",$I$3)), SUMIFS('DATA MART_'!$R:$R,'DATA MART_'!$H:$H,$F$3,'DATA MART_'!$A:$A,CONCATENATE($F$3,"|",P$5,"|",$E$5,"|",$G$2,"|",$G$3,"|", P$7,"|",$D18,"|",P$6,"|",$I$3), 'DATA MART_'!$G:$G,$F$2)) -> 0 | Q18: =IF($F$2="TO",SUMIFS('DATA MART_'!$R:$R,'DATA MART_'!$H:$H,$F$3,'DATA MART_'!$A:$A,CONCATENATE($F$3,"|",Q$5,"|",$E$5,"|",$G$2,"|",$G$3,"|", Q$7,"|",$D18,"|",Q$6,"|",$I$3)), SUMIFS('DATA MART_'!$R:$R,'DATA MART_'!$H:$H,$F$3,'DATA MART_'!$A:$A,CONCATENATE($F$3,"|",Q$5,"|",$E$5,"|",$G$2,"|",$G$3,"|", Q$7,"|",$D18,"|",Q$6,"|",$I$3), 'DATA MART_'!$G:$G,$F$2)) -> 0 | R18: =IF($F$2="TO",SUMIFS('DATA MART_'!$R:$R,'DATA MART_'!$H:$H,$F$3,'DATA MART_'!$A:$A,CONCATENATE($F$3,"|",R$5,"|",$E$5,"|",$G$2,"|",$G$3,"|", R$7,"|",$D18,"|",R$6,"|",$I$3)), SUMIFS('DATA MART_'!$R:$R,'DATA MART_'!$H:$H,$F$3,'DATA MART_'!$A:$A,CONCATENATE($F$3,"|",R$5,"|",$E$5,"|",$G$2,"|",$G$3,"|", R$7,"|",$D18,"|",R$6,"|",$I$3), 'DATA MART_'!$G:$G,$F$2)) -> 0 | S18: =IF($F$2="TO",SUMIFS('DATA MART_'!$R:$R,'DATA MART_'!$H:$H,$F$3,'DATA MART_'!$A:$A,CONCATENATE($F$3,"|",S$5,"|",$E$5,"|",$G$2,"|",$G$3,"|", S$7,"|",$D18,"|",S$6,"|",$I$3)), SUMIFS('DATA MART_'!$R:$R,'DATA MART_'!$H:$H,$F$3,'DATA MART_'!$A:$A,CONCATENATE($F$3,"|",S$5,"|",$E$5,"|",$G$2,"|",$G$3,"|", S$7,"|",$D18,"|",S$6,"|",$I$3), 'DATA MART_'!$G:$G,$F$2)) -> 0 | T18: =IF($F$2="TO",SUMIFS('DATA MART_'!$R:$R,'DATA MART_'!$H:$H,$F$3,'DATA MART_'!$A:$A,CONCATENATE($F$3,"|",T$5,"|",$E$5,"|",$G$2,"|",$G$3,"|", T$7,"|",$D18,"|",T$6,"|",$I$3)), SUMIFS('DATA MART_'!$R:$R,'DATA MART_'!$H:$H,$F$3,'DATA MART_'!$A:$A,CONCATENATE($F$3,"|",T$5,"|",$E$5,"|",$G$2,"|",$G$3,"|", T$7,"|",$D18,"|",T$6,"|",$I$3), 'DATA MART_'!$G:$G,$F$2)) -> 0 | U18: 0 | V18: 0 | X18: =IF($F$2="TO",SUMIFS('DATA MART_'!$R:$R,'DATA MART_'!$H:$H,$F$3,'DATA MART_'!$A:$A,CONCATENATE($F$3,"|",X$5,"|",$E$5,"|",$G$2,"|",$G$3,"|", X$7,"|",$D18,"|",X$6,"|",$I$3)), SUMIFS('DATA MART_'!$R:$R,'DATA MART_'!$H:$H,$F$3,'DATA MART_'!$A:$A,CONCATENATE($F$3,"|",X$5,"|",$E$5,"|",$G$2,"|",$G$3,"|", X$7,"|",$D18,"|",X$6,"|",$I$3), 'DATA MART_'!$G:$G,$F$2)) -> 0 | Z18: =IF($F$2="TO",SUMIFS('DATA MART_'!$R:$R,'DATA MART_'!$H:$H,$F$3,'DATA MART_'!$A:$A,CONCATENATE($F$3,"|",Z$5,"|",$E$5,"|",$G$2,"|",$G$3,"|", Z$7,"|",$D18,"|",Z$6,"|",$I$3)), SUMIFS('DATA MART_'!$R:$R,'DATA MART_'!$H:$H,$F$3,'DATA MART_'!$A:$A,CONCATENATE($F$3,"|",Z$5,"|",$E$5,"|",$G$2,"|",$G$3,"|", Z$7,"|",$D18,"|",Z$6,"|",$I$3), 'DATA MART_'!$G:$G,$F$2)) -> 0 | AB18: =IF($F$2="TO",SUMIFS('DATA MART_'!$R:$R,'DATA MART_'!$H:$H,$F$3,'DATA MART_'!$A:$A,CONCATENATE($F$3,"|",AB$5,"|",$E$5,"|",$G$2,"|",$G$3,"|", AB$7,"|",$D18,"|",AB$6,"|",$I$3)), SUMIFS('DATA MART_'!$R:$R,'DATA MART_'!$H:$H,$F$3,'DATA MART_'!$A:$A,CONCATENATE($F$3,"|",AB$5,"|",$E$5,"|",$G$2,"|",$G$3,"|", AB$7,"|",$D18,"|",AB$6,"|",$I$3), 'DATA MART_'!$G:$G,$F$2)) -> 0 | AD18: 0 | AE18: 100500
D19: =VLOOKUP(TRIM(F19),'DATA MART_'!$AD$3:$AF$25,3,0) -> 17 | F19: Retail - Secured on real estate property - Of Which: non-SME | G19: =IF($F$2="TO",SUMIFS('DATA MART_'!$R:$R,'DATA MART_'!$H:$H,$F$3,'DATA MART_'!$A:$A,CONCATENATE($F$3,"|",G$5,"|",$E$5,"|",$G$2,"|",$G$3,"|", G$7,"|",$D19,"|",G$6,"|",$I$3)), SUMIFS('DATA MART_'!$R:$R,'DATA MART_'!$H:$H,$F$3,'DATA MART_'!$A:$A,CONCATENATE($F$3,"|",G$5,"|",$E$5,"|",$G$2,"|",$G$3,"|", G$7,"|",$D19,"|",G$6,"|",$I$3), 'DATA MART_'!$G:$G,$F$2)) -> 0 | H19: =IF($F$2="TO",SUMIFS('DATA MART_'!$R:$R,'DATA MART_'!$H:$H,$F$3,'DATA MART_'!$A:$A,CONCATENATE($F$3,"|",H$5,"|",$E$5,"|",$G$2,"|",$G$3,"|", H$7,"|",$D19,"|",H$6,"|",$I$3)), SUMIFS('DATA MART_'!$R:$R,'DATA MART_'!$H:$H,$F$3,'DATA MART_'!$A:$A,CONCATENATE($F$3,"|",H$5,"|",$E$5,"|",$G$2,"|",$G$3,"|", H$7,"|",$D19,"|",H$6,"|",$I$3), 'DATA MART_'!$G:$G,$F$2)) -> 0 | I19: =IF($F$2="TO",SUMIFS('DATA MART_'!$R:$R,'DATA MART_'!$H:$H,$F$3,'DATA MART_'!$A:$A,CONCATENATE($F$3,"|",I$5,"|",$E$5,"|",$G$2,"|",$G$3,"|", I$7,"|",$D19,"|",I$6,"|",$I$3)), SUMIFS('DATA MART_'!$R:$R,'DATA MART_'!$H:$H,$F$3,'DATA MART_'!$A:$A,CONCATENATE($F$3,"|",I$5,"|",$E$5,"|",$G$2,"|",$G$3,"|", I$7,"|",$D19,"|",I$6,"|",$I$3), 'DATA MART_'!$G:$G,$F$2)) -> 0 | J19: =IF($F$2="TO",SUMIFS('DATA MART_'!$R:$R,'DATA MART_'!$H:$H,$F$3,'DATA MART_'!$A:$A,CONCATENATE($F$3,"|",J$5,"|",$E$5,"|",$G$2,"|",$G$3,"|", J$7,"|",$D19,"|",J$6,"|",$I$3)), SUMIFS('DATA MART_'!$R:$R,'DATA MART_'!$H:$H,$F$3,'DATA MART_'!$A:$A,CONCATENATE($F$3,"|",J$5,"|",$E$5,"|",$G$2,"|",$G$3,"|", J$7,"|",$D19,"|",J$6,"|",$I$3), 'DATA MART_'!$G:$G,$F$2)) -> 0 | K19: =IF($F$2="TO",SUMIFS('DATA MART_'!$R:$R,'DATA MART_'!$H:$H,$F$3,'DATA MART_'!$A:$A,CONCATENATE($F$3,"|",K$5,"|",$E$5,"|",$G$2,"|",$G$3,"|", K$7,"|",$D19,"|",K$6,"|",$I$3)), SUMIFS('DATA MART_'!$R:$R,'DATA MART_'!$H:$H,$F$3,'DATA MART_'!$A:$A,CONCATENATE($F$3,"|",K$5,"|",$E$5,"|",$G$2,"|",$G$3,"|", K$7,"|",$D19,"|",K$6,"|",$I$3), 'DATA MART_'!$G:$G,$F$2)) -> 0 | L19: =IF($F$2="TO",SUMIFS('DATA MART_'!$R:$R,'DATA MART_'!$H:$H,$F$3,'DATA MART_'!$A:$A,CONCATENATE($F$3,"|",L$5,"|",$E$5,"|",$G$2,"|",$G$3,"|", L$7,"|",$D19,"|",L$6,"|",$I$3)), SUMIFS('DATA MART_'!$R:$R,'DATA MART_'!$H:$H,$F$3,'DATA MART_'!$A:$A,CONCATENATE($F$3,"|",L$5,"|",$E$5,"|",$G$2,"|",$G$3,"|", L$7,"|",$D19,"|",L$6,"|",$I$3), 'DATA MART_'!$G:$G,$F$2)) -> 0 | M19: 0 | N19: 0 | O19: =IF($F$2="TO",SUMIFS('DATA MART_'!$R:$R,'DATA MART_'!$H:$H,$F$3,'DATA MART_'!$A:$A,CONCATENATE($F$3,"|",O$5,"|",$E$5,"|",$G$2,"|",$G$3,"|", O$7,"|",$D19,"|",O$6,"|",$I$3)), SUMIFS('DATA MART_'!$R:$R,'DATA MART_'!$H:$H,$F$3,'DATA MART_'!$A:$A,CONCATENATE($F$3,"|",O$5,"|",$E$5,"|",$G$2,"|",$G$3,"|", O$7,"|",$D19,"|",O$6,"|",$I$3), 'DATA MART_'!$G:$G,$F$2)) -> 0 | P19: =IF($F$2="TO",SUMIFS('DATA MART_'!$R:$R,'DATA MART_'!$H:$H,$F$3,'DATA MART_'!$A:$A,CONCATENATE($F$3,"|",P$5,"|",$E$5,"|",$G$2,"|",$G$3,"|", P$7,"|",$D19,"|",P$6,"|",$I$3)), SUMIFS('DATA MART_'!$R:$R,'DATA MART_'!$H:$H,$F$3,'DATA MART_'!$A:$A,CONCATENATE($F$3,"|",P$5,"|",$E$5,"|",$G$2,"|",$G$3,"|", P$7,"|",$D19,"|",P$6,"|",$I$3), 'DATA MART_'!$G:$G,$F$2)) -> 0 | Q19: =IF($F$2="TO",SUMIFS('DATA MART_'!$R:$R,'DATA MART_'!$H:$H,$F$3,'DATA MART_'!$A:$A,CONCATENATE($F$3,"|",Q$5,"|",$E$5,"|",$G$2,"|",$G$3,"|", Q$7,"|",$D19,"|",Q$6,"|",$I$3)), SUMIFS('DATA MART_'!$R:$R,'DATA MART_'!$H:$H,$F$3,'DATA MART_'!$A:$A,CONCATENATE($F$3,"|",Q$5,"|",$E$5,"|",$G$2,"|",$G$3,"|", Q$7,"|",$D19,"|",Q$6,"|",$I$3), 'DATA MART_'!$G:$G,$F$2)) -> 0 | R19: =IF($F$2="TO",SUMIFS('DATA MART_'!$R:$R,'DATA MART_'!$H:$H,$F$3,'DATA MART_'!$A:$A,CONCATENATE($F$3,"|",R$5,"|",$E$5,"|",$G$2,"|",$G$3,"|", R$7,"|",$D19,"|",R$6,"|",$I$3)), SUMIFS('DATA MART_'!$R:$R,'DATA MART_'!$H:$H,$F$3,'DATA MART_'!$A:$A,CONCATENATE($F$3,"|",R$5,"|",$E$5,"|",$G$2,"|",$G$3,"|", R$7,"|",$D19,"|",R$6,"|",$I$3), 'DATA MART_'!$G:$G,$F$2)) -> 0 | S19: =IF($F$2="TO",SUMIFS('DATA MART_'!$R:$R,'DATA MART_'!$H:$H,$F$3,'DATA MART_'!$A:$A,CONCATENATE($F$3,"|",S$5,"|",$E$5,"|",$G$2,"|",$G$3,"|", S$7,"|",$D19,"|",S$6,"|",$I$3)), SUMIFS('DATA MART_'!$R:$R,'DATA MART_'!$H:$H,$F$3,'DATA MART_'!$A:$A,CONCATENATE($F$3,"|",S$5,"|",$E$5,"|",$G$2,"|",$G$3,"|", S$7,"|",$D19,"|",S$6,"|",$I$3), 'DATA MART_'!$G:$G,$F$2)) -> 0 | T19: =IF($F$2="TO",SUMIFS('DATA MART_'!$R:$R,'DATA MART_'!$H:$H,$F$3,'DATA MART_'!$A:$A,CONCATENATE($F$3,"|",T$5,"|",$E$5,"|",$G$2,"|",$G$3,"|", T$7,"|",$D19,"|",T$6,"|",$I$3)), SUMIFS('DATA MART_'!$R:$R,'DATA MART_'!$H:$H,$F$3,'DATA MART_'!$A:$A,CONCATENATE($F$3,"|",T$5,"|",$E$5,"|",$G$2,"|",$G$3,"|", T$7,"|",$D19,"|",T$6,"|",$I$3), 'DATA MART_'!$G:$G,$F$2)) -> 0 | U19: 0 | V19: 0 | X19: =IF($F$2="TO",SUMIFS('DATA MART_'!$R:$R,'DATA MART_'!$H:$H,$F$3,'DATA MART_'!$A:$A,CONCATENATE($F$3,"|",X$5,"|",$E$5,"|",$G$2,"|",$G$3,"|", X$7,"|",$D19,"|",X$6,"|",$I$3)), SUMIFS('DATA MART_'!$R:$R,'DATA MART_'!$H:$H,$F$3,'DATA MART_'!$A:$A,CONCATENATE($F$3,"|",X$5,"|",$E$5,"|",$G$2,"|",$G$3,"|", X$7,"|",$D19,"|",X$6,"|",$I$3), 'DATA MART_'!$G:$G,$F$2)) -> 0 | Z19: =IF($F$2="TO",SUMIFS('DATA MART_'!$R:$R,'DATA MART_'!$H:$H,$F$3,'DATA MART_'!$A:$A,CONCATENATE($F$3,"|",Z$5,"|",$E$5,"|",$G$2,"|",$G$3,"|", Z$7,"|",$D19,"|",Z$6,"|",$I$3)), SUMIFS('DATA MART_'!$R:$R,'DATA MART_'!$H:$H,$F$3,'DATA MART_'!$A:$A,CONCATENATE($F$3,"|",Z$5,"|",$E$5,"|",$G$2,"|",$G$3,"|", Z$7,"|",$D19,"|",Z$6,"|",$I$3), 'DATA MART_'!$G:$G,$F$2)) -> 0 | AB19: =IF($F$2="TO",SUMIFS('DATA MART_'!$R:$R,'DATA MART_'!$H:$H,$F$3,'DATA MART_'!$A:$A,CONCATENATE($F$3,"|",AB$5,"|",$E$5,"|",$G$2,"|",$G$3,"|", AB$7,"|",$D19,"|",AB$6,"|",$I$3)), SUMIFS('DATA MART_'!$R:$R,'DATA MART_'!$H:$H,$F$3,'DATA MART_'!$A:$A,CONCATENATE($F$3,"|",AB$5,"|",$E$5,"|",$G$2,"|",$G$3,"|", AB$7,"|",$D19,"|",AB$6,"|",$I$3), 'DATA MART_'!$G:$G,$F$2)) -> 0 | AD19: 0 | AE19: 100600
D20: =VLOOKUP(TRIM(F20),'DATA MART_'!$AD$3:$AF$25,3,0) -> 18 | F20: Retail - Qualifying Revolving | G20: =IF($F$2="TO",SUMIFS('DATA MART_'!$R:$R,'DATA MART_'!$H:$H,$F$3,'DATA MART_'!$A:$A,CONCATENATE($F$3,"|",G$5,"|",$E$5,"|",$G$2,"|",$G$3,"|", G$7,"|",$D20,"|",G$6,"|",$I$3)), SUMIFS('DATA MART_'!$R:$R,'DATA MART_'!$H:$H,$F$3,'DATA MART_'!$A:$A,CONCATENATE($F$3,"|",G$5,"|",$E$5,"|",$G$2,"|",$G$3,"|", G$7,"|",$D20,"|",G$6,"|",$I$3), 'DATA MART_'!$G:$G,$F$2)) -> 0 | H20: =IF($F$2="TO",SUMIFS('DATA MART_'!$R:$R,'DATA MART_'!$H:$H,$F$3,'DATA MART_'!$A:$A,CONCATENATE($F$3,"|",H$5,"|",$E$5,"|",$G$2,"|",$G$3,"|", H$7,"|",$D20,"|",H$6,"|",$I$3)), SUMIFS('DATA MART_'!$R:$R,'DATA MART_'!$H:$H,$F$3,'DATA MART_'!$A:$A,CONCATENATE($F$3,"|",H$5,"|",$E$5,"|",$G$2,"|",$G$3,"|", H$7,"|",$D20,"|",H$6,"|",$I$3), 'DATA MART_'!$G:$G,$F$2)) -> 0 | I20: =IF($F$2="TO",SUMIFS('DATA MART_'!$R:$R,'DATA MART_'!$H:$H,$F$3,'DATA MART_'!$A:$A,CONCATENATE($F$3,"|",I$5,"|",$E$5,"|",$G$2,"|",$G$3,"|", I$7,"|",$D20,"|",I$6,"|",$I$3)), SUMIFS('DATA MART_'!$R:$R,'DATA MART_'!$H:$H,$F$3,'DATA MART_'!$A:$A,CONCATENATE($F$3,"|",I$5,"|",$E$5,"|",$G$2,"|",$G$3,"|", I$7,"|",$D20,"|",I$6,"|",$I$3), 'DATA MART_'!$G:$G,$F$2)) -> 0 | J20: =IF($F$2="TO",SUMIFS('DATA MART_'!$R:$R,'DATA MART_'!$H:$H,$F$3,'DATA MART_'!$A:$A,CONCATENATE($F$3,"|",J$5,"|",$E$5,"|",$G$2,"|",$G$3,"|", J$7,"|",$D20,"|",J$6,"|",$I$3)), SUMIFS('DATA MART_'!$R:$R,'DATA MART_'!$H:$H,$F$3,'DATA MART_'!$A:$A,CONCATENATE($F$3,"|",J$5,"|",$E$5,"|",$G$2,"|",$G$3,"|", J$7,"|",$D20,"|",J$6,"|",$I$3), 'DATA MART_'!$G:$G,$F$2)) -> 0 | K20: =IF($F$2="TO",SUMIFS('DATA MART_'!$R:$R,'DATA MART_'!$H:$H,$F$3,'DATA MART_'!$A:$A,CONCATENATE($F$3,"|",K$5,"|",$E$5,"|",$G$2,"|",$G$3,"|", K$7,"|",$D20,"|",K$6,"|",$I$3)), SUMIFS('DATA MART_'!$R:$R,'DATA MART_'!$H:$H,$F$3,'DATA MART_'!$A:$A,CONCATENATE($F$3,"|",K$5,"|",$E$5,"|",$G$2,"|",$G$3,"|", K$7,"|",$D20,"|",K$6,"|",$I$3), 'DATA MART_'!$G:$G,$F$2)) -> 0 | L20: =IF($F$2="TO",SUMIFS('DATA MART_'!$R:$R,'DATA MART_'!$H:$H,$F$3,'DATA MART_'!$A:$A,CONCATENATE($F$3,"|",L$5,"|",$E$5,"|",$G$2,"|",$G$3,"|", L$7,"|",$D20,"|",L$6,"|",$I$3)), SUMIFS('DATA MART_'!$R:$R,'DATA MART_'!$H:$H,$F$3,'DATA MART_'!$A:$A,CONCATENATE($F$3,"|",L$5,"|",$E$5,"|",$G$2,"|",$G$3,"|", L$7,"|",$D20,"|",L$6,"|",$I$3), 'DATA MART_'!$G:$G,$F$2)) -> 0 | M20: 0 | N20: 0 | O20: =IF($F$2="TO",SUMIFS('DATA MART_'!$R:$R,'DATA MART_'!$H:$H,$F$3,'DATA MART_'!$A:$A,CONCATENATE($F$3,"|",O$5,"|",$E$5,"|",$G$2,"|",$G$3,"|", O$7,"|",$D20,"|",O$6,"|",$I$3)), SUMIFS('DATA MART_'!$R:$R,'DATA MART_'!$H:$H,$F$3,'DATA MART_'!$A:$A,CONCATENATE($F$3,"|",O$5,"|",$E$5,"|",$G$2,"|",$G$3,"|", O$7,"|",$D20,"|",O$6,"|",$I$3), 'DATA MART_'!$G:$G,$F$2)) -> 0 | P20: =IF($F$2="TO",SUMIFS('DATA MART_'!$R:$R,'DATA MART_'!$H:$H,$F$3,'DATA MART_'!$A:$A,CONCATENATE($F$3,"|",P$5,"|",$E$5,"|",$G$2,"|",$G$3,"|", P$7,"|",$D20,"|",P$6,"|",$I$3)), SUMIFS('DATA MART_'!$R:$R,'DATA MART_'!$H:$H,$F$3,'DATA MART_'!$A:$A,CONCATENATE($F$3,"|",P$5,"|",$E$5,"|",$G$2,"|",$G$3,"|", P$7,"|",$D20,"|",P$6,"|",$I$3), 'DATA MART_'!$G:$G,$F$2)) -> 0 | Q20: =IF($F$2="TO",SUMIFS('DATA MART_'!$R:$R,'DATA MART_'!$H:$H,$F$3,'DATA MART_'!$A:$A,CONCATENATE($F$3,"|",Q$5,"|",$E$5,"|",$G$2,"|",$G$3,"|", Q$7,"|",$D20,"|",Q$6,"|",$I$3)), SUMIFS('DATA MART_'!$R:$R,'DATA MART_'!$H:$H,$F$3,'DATA MART_'!$A:$A,CONCATENATE($F$3,"|",Q$5,"|",$E$5,"|",$G$2,"|",$G$3,"|", Q$7,"|",$D20,"|",Q$6,"|",$I$3), 'DATA MART_'!$G:$G,$F$2)) -> 0 | R20: =IF($F$2="TO",SUMIFS('DATA MART_'!$R:$R,'DATA MART_'!$H:$H,$F$3,'DATA MART_'!$A:$A,CONCATENATE($F$3,"|",R$5,"|",$E$5,"|",$G$2,"|",$G$3,"|", R$7,"|",$D20,"|",R$6,"|",$I$3)), SUMIFS('DATA MART_'!$R:$R,'DATA MART_'!$H:$H,$F$3,'DATA MART_'!$A:$A,CONCATENATE($F$3,"|",R$5,"|",$E$5,"|",$G$2,"|",$G$3,"|", R$7,"|",$D20,"|",R$6,"|",$I$3), 'DATA MART_'!$G:$G,$F$2)) -> 0 | S20: =IF($F$2="TO",SUMIFS('DATA MART_'!$R:$R,'DATA MART_'!$H:$H,$F$3,'DATA MART_'!$A:$A,CONCATENATE($F$3,"|",S$5,"|",$E$5,"|",$G$2,"|",$G$3,"|", S$7,"|",$D20,"|",S$6,"|",$I$3)), SUMIFS('DATA MART_'!$R:$R,'DATA MART_'!$H:$H,$F$3,'DATA MART_'!$A:$A,CONCATENATE($F$3,"|",S$5,"|",$E$5,"|",$G$2,"|",$G$3,"|", S$7,"|",$D20,"|",S$6,"|",$I$3), 'DATA MART_'!$G:$G,$F$2)) -> 0 | T20: =IF($F$2="TO",SUMIFS('DATA MART_'!$R:$R,'DATA MART_'!$H:$H,$F$3,'DATA MART_'!$A:$A,CONCATENATE($F$3,"|",T$5,"|",$E$5,"|",$G$2,"|",$G$3,"|", T$7,"|",$D20,"|",T$6,"|",$I$3)), SUMIFS('DATA MART_'!$R:$R,'DATA MART_'!$H:$H,$F$3,'DATA MART_'!$A:$A,CONCATENATE($F$3,"|",T$5,"|",$E$5,"|",$G$2,"|",$G$3,"|", T$7,"|",$D20,"|",T$6,"|",$I$3), 'DATA MART_'!$G:$G,$F$2)) -> 0 | U20: 0 | V20: 0 | X20: =IF($F$2="TO",SUMIFS('DATA MART_'!$R:$R,'DATA MART_'!$H:$H,$F$3,'DATA MART_'!$A:$A,CONCATENATE($F$3,"|",X$5,"|",$E$5,"|",$G$2,"|",$G$3,"|", X$7,"|",$D20,"|",X$6,"|",$I$3)), SUMIFS('DATA MART_'!$R:$R,'DATA MART_'!$H:$H,$F$3,'DATA MART_'!$A:$A,CONCATENATE($F$3,"|",X$5,"|",$E$5,"|",$G$2,"|",$G$3,"|", X$7,"|",$D20,"|",X$6,"|",$I$3), 'DATA MART_'!$G:$G,$F$2)) -> 0 | Z20: =IF($F$2="TO",SUMIFS('DATA MART_'!$R:$R,'DATA MART_'!$H:$H,$F$3,'DATA MART_'!$A:$A,CONCATENATE($F$3,"|",Z$5,"|",$E$5,"|",$G$2,"|",$G$3,"|", Z$7,"|",$D20,"|",Z$6,"|",$I$3)), SUMIFS('DATA MART_'!$R:$R,'DATA MART_'!$H:$H,$F$3,'DATA MART_'!$A:$A,CONCATENATE($F$3,"|",Z$5,"|",$E$5,"|",$G$2,"|",$G$3,"|", Z$7,"|",$D20,"|",Z$6,"|",$I$3), 'DATA MART_'!$G:$G,$F$2)) -> 0 | AB20: =IF($F$2="TO",SUMIFS('DATA MART_'!$R:$R,'DATA MART_'!$H:$H,$F$3,'DATA MART_'!$A:$A,CONCATENATE($F$3,"|",AB$5,"|",$E$5,"|",$G$2,"|",$G$3,"|", AB$7,"|",$D20,"|",AB$6,"|",$I$3)), SUMIFS('DATA MART_'!$R:$R,'DATA MART_'!$H:$H,$F$3,'DATA MART_'!$A:$A,CONCATENATE($F$3,"|",AB$5,"|",$E$5,"|",$G$2,"|",$G$3,"|", AB$7,"|",$D20,"|",AB$6,"|",$I$3), 'DATA MART_'!$G:$G,$F$2)) -> 0 | AD20: 0 | AE20: 100700
D21: =VLOOKUP(TRIM(F21),'DATA MART_'!$AD$3:$AF$25,3,0) -> 19 | F21: Retail - Other Retail | G21: =IF($F$2="TO",SUMIFS('DATA MART_'!$R:$R,'DATA MART_'!$H:$H,$F$3,'DATA MART_'!$A:$A,CONCATENATE($F$3,"|",G$5,"|",$E$5,"|",$G$2,"|",$G$3,"|", G$7,"|",$D21,"|",G$6,"|",$I$3)), SUMIFS('DATA MART_'!$R:$R,'DATA MART_'!$H:$H,$F$3,'DATA MART_'!$A:$A,CONCATENATE($F$3,"|",G$5,"|",$E$5,"|",$G$2,"|",$G$3,"|", G$7,"|",$D21,"|",G$6,"|",$I$3), 'DATA MART_'!$G:$G,$F$2)) -> 0 | H21: =IF($F$2="TO",SUMIFS('DATA MART_'!$R:$R,'DATA MART_'!$H:$H,$F$3,'DATA MART_'!$A:$A,CONCATENATE($F$3,"|",H$5,"|",$E$5,"|",$G$2,"|",$G$3,"|", H$7,"|",$D21,"|",H$6,"|",$I$3)), SUMIFS('DATA MART_'!$R:$R,'DATA MART_'!$H:$H,$F$3,'DATA MART_'!$A:$A,CONCATENATE($F$3,"|",H$5,"|",$E$5,"|",$G$2,"|",$G$3,"|", H$7,"|",$D21,"|",H$6,"|",$I$3), 'DATA MART_'!$G:$G,$F$2)) -> 0 | I21: =IF($F$2="TO",SUMIFS('DATA MART_'!$R:$R,'DATA MART_'!$H:$H,$F$3,'DATA MART_'!$A:$A,CONCATENATE($F$3,"|",I$5,"|",$E$5,"|",$G$2,"|",$G$3,"|", I$7,"|",$D21,"|",I$6,"|",$I$3)), SUMIFS('DATA MART_'!$R:$R,'DATA MART_'!$H:$H,$F$3,'DATA MART_'!$A:$A,CONCATENATE($F$3,"|",I$5,"|",$E$5,"|",$G$2,"|",$G$3,"|", I$7,"|",$D21,"|",I$6,"|",$I$3), 'DATA MART_'!$G:$G,$F$2)) -> 0 | J21: =IF($F$2="TO",SUMIFS('DATA MART_'!$R:$R,'DATA MART_'!$H:$H,$F$3,'DATA MART_'!$A:$A,CONCATENATE($F$3,"|",J$5,"|",$E$5,"|",$G$2,"|",$G$3,"|", J$7,"|",$D21,"|",J$6,"|",$I$3)), SUMIFS('DATA MART_'!$R:$R,'DATA MART_'!$H:$H,$F$3,'DATA MART_'!$A:$A,CONCATENATE($F$3,"|",J$5,"|",$E$5,"|",$G$2,"|",$G$3,"|", J$7,"|",$D21,"|",J$6,"|",$I$3), 'DATA MART_'!$G:$G,$F$2)) -> 0 | K21: =IF($F$2="TO",SUMIFS('DATA MART_'!$R:$R,'DATA MART_'!$H:$H,$F$3,'DATA MART_'!$A:$A,CONCATENATE($F$3,"|",K$5,"|",$E$5,"|",$G$2,"|",$G$3,"|", K$7,"|",$D21,"|",K$6,"|",$I$3)), SUMIFS('DATA MART_'!$R:$R,'DATA MART_'!$H:$H,$F$3,'DATA MART_'!$A:$A,CONCATENATE($F$3,"|",K$5,"|",$E$5,"|",$G$2,"|",$G$3,"|", K$7,"|",$D21,"|",K$6,"|",$I$3), 'DATA MART_'!$G:$G,$F$2)) -> 0 | L21: =IF($F$2="TO",SUMIFS('DATA MART_'!$R:$R,'DATA MART_'!$H:$H,$F$3,'DATA MART_'!$A:$A,CONCATENATE($F$3,"|",L$5,"|",$E$5,"|",$G$2,"|",$G$3,"|", L$7,"|",$D21,"|",L$6,"|",$I$3)), SUMIFS('DATA MART_'!$R:$R,'DATA MART_'!$H:$H,$F$3,'DATA MART_'!$A:$A,CONCATENATE($F$3,"|",L$5,"|",$E$5,"|",$G$2,"|",$G$3,"|", L$7,"|",$D21,"|",L$6,"|",$I$3), 'DATA MART_'!$G:$G,$F$2)) -> 0 | M21: 0 | N21: 0 | O21: =IF($F$2="TO",SUMIFS('DATA MART_'!$R:$R,'DATA MART_'!$H:$H,$F$3,'DATA MART_'!$A:$A,CONCATENATE($F$3,"|",O$5,"|",$E$5,"|",$G$2,"|",$G$3,"|", O$7,"|",$D21,"|",O$6,"|",$I$3)), SUMIFS('DATA MART_'!$R:$R,'DATA MART_'!$H:$H,$F$3,'DATA MART_'!$A:$A,CONCATENATE($F$3,"|",O$5,"|",$E$5,"|",$G$2,"|",$G$3,"|", O$7,"|",$D21,"|",O$6,"|",$I$3), 'DATA MART_'!$G:$G,$F$2)) -> 0 | P21: =IF($F$2="TO",SUMIFS('DATA MART_'!$R:$R,'DATA MART_'!$H:$H,$F$3,'DATA MART_'!$A:$A,CONCATENATE($F$3,"|",P$5,"|",$E$5,"|",$G$2,"|",$G$3,"|", P$7,"|",$D21,"|",P$6,"|",$I$3)), SUMIFS('DATA MART_'!$R:$R,'DATA MART_'!$H:$H,$F$3,'DATA MART_'!$A:$A,CONCATENATE($F$3,"|",P$5,"|",$E$5,"|",$G$2,"|",$G$3,"|", P$7,"|",$D21,"|",P$6,"|",$I$3), 'DATA MART_'!$G:$G,$F$2)) -> 0 | Q21: =IF($F$2="TO",SUMIFS('DATA MART_'!$R:$R,'DATA MART_'!$H:$H,$F$3,'DATA MART_'!$A:$A,CONCATENATE($F$3,"|",Q$5,"|",$E$5,"|",$G$2,"|",$G$3,"|", Q$7,"|",$D21,"|",Q$6,"|",$I$3)), SUMIFS('DATA MART_'!$R:$R,'DATA MART_'!$H:$H,$F$3,'DATA MART_'!$A:$A,CONCATENATE($F$3,"|",Q$5,"|",$E$5,"|",$G$2,"|",$G$3,"|", Q$7,"|",$D21,"|",Q$6,"|",$I$3), 'DATA MART_'!$G:$G,$F$2)) -> 0 | R21: =IF($F$2="TO",SUMIFS('DATA MART_'!$R:$R,'DATA MART_'!$H:$H,$F$3,'DATA MART_'!$A:$A,CONCATENATE($F$3,"|",R$5,"|",$E$5,"|",$G$2,"|",$G$3,"|", R$7,"|",$D21,"|",R$6,"|",$I$3)), SUMIFS('DATA MART_'!$R:$R,'DATA MART_'!$H:$H,$F$3,'DATA MART_'!$A:$A,CONCATENATE($F$3,"|",R$5,"|",$E$5,"|",$G$2,"|",$G$3,"|", R$7,"|",$D21,"|",R$6,"|",$I$3), 'DATA MART_'!$G:$G,$F$2)) -> 0 | S21: =IF($F$2="TO",SUMIFS('DATA MART_'!$R:$R,'DATA MART_'!$H:$H,$F$3,'DATA MART_'!$A:$A,CONCATENATE($F$3,"|",S$5,"|",$E$5,"|",$G$2,"|",$G$3,"|", S$7,"|",$D21,"|",S$6,"|",$I$3)), SUMIFS('DATA MART_'!$R:$R,'DATA MART_'!$H:$H,$F$3,'DATA MART_'!$A:$A,CONCATENATE($F$3,"|",S$5,"|",$E$5,"|",$G$2,"|",$G$3,"|", S$7,"|",$D21,"|",S$6,"|",$I$3), 'DATA MART_'!$G:$G,$F$2)) -> 0 | T21: =IF($F$2="TO",SUMIFS('DATA MART_'!$R:$R,'DATA MART_'!$H:$H,$F$3,'DATA MART_'!$A:$A,CONCATENATE($F$3,"|",T$5,"|",$E$5,"|",$G$2,"|",$G$3,"|", T$7,"|",$D21,"|",T$6,"|",$I$3)), SUMIFS('DATA MART_'!$R:$R,'DATA MART_'!$H:$H,$F$3,'DATA MART_'!$A:$A,CONCATENATE($F$3,"|",T$5,"|",$E$5,"|",$G$2,"|",$G$3,"|", T$7,"|",$D21,"|",T$6,"|",$I$3), 'DATA MART_'!$G:$G,$F$2)) -> 0 | U21: 0 | V21: 0 | X21: =IF($F$2="TO",SUMIFS('DATA MART_'!$R:$R,'DATA MART_'!$H:$H,$F$3,'DATA MART_'!$A:$A,CONCATENATE($F$3,"|",X$5,"|",$E$5,"|",$G$2,"|",$G$3,"|", X$7,"|",$D21,"|",X$6,"|",$I$3)), SUMIFS('DATA MART_'!$R:$R,'DATA MART_'!$H:$H,$F$3,'DATA MART_'!$A:$A,CONCATENATE($F$3,"|",X$5,"|",$E$5,"|",$G$2,"|",$G$3,"|", X$7,"|",$D21,"|",X$6,"|",$I$3), 'DATA MART_'!$G:$G,$F$2)) -> 0 | Z21: =IF($F$2="TO",SUMIFS('DATA MART_'!$R:$R,'DATA MART_'!$H:$H,$F$3,'DATA MART_'!$A:$A,CONCATENATE($F$3,"|",Z$5,"|",$E$5,"|",$G$2,"|",$G$3,"|", Z$7,"|",$D21,"|",Z$6,"|",$I$3)), SUMIFS('DATA MART_'!$R:$R,'DATA MART_'!$H:$H,$F$3,'DATA MART_'!$A:$A,CONCATENATE($F$3,"|",Z$5,"|",$E$5,"|",$G$2,"|",$G$3,"|", Z$7,"|",$D21,"|",Z$6,"|",$I$3), 'DATA MART_'!$G:$G,$F$2)) -> 0 | AB21: =IF($F$2="TO",SUMIFS('DATA MART_'!$R:$R,'DATA MART_'!$H:$H,$F$3,'DATA MART_'!$A:$A,CONCATENATE($F$3,"|",AB$5,"|",$E$5,"|",$G$2,"|",$G$3,"|", AB$7,"|",$D21,"|",AB$6,"|",$I$3)), SUMIFS('DATA MART_'!$R:$R,'DATA MART_'!$H:$H,$F$3,'DATA MART_'!$A:$A,CONCATENATE($F$3,"|",AB$5,"|",$E$5,"|",$G$2,"|",$G$3,"|", AB$7,"|",$D21,"|",AB$6,"|",$I$3), 'DATA MART_'!$G:$G,$F$2)) -> 0 | AD21: 0
D22: =VLOOKUP(TRIM(F22),'DATA MART_'!$AD$3:$AF$25,3,0) -> 20 | F22: Retail - Other Retail - Of Which: SME | G22: =IF($F$2="TO",SUMIFS('DATA MART_'!$R:$R,'DATA MART_'!$H:$H,$F$3,'DATA MART_'!$A:$A,CONCATENATE($F$3,"|",G$5,"|",$E$5,"|",$G$2,"|",$G$3,"|", G$7,"|",$D22,"|",G$6,"|",$I$3)), SUMIFS('DATA MART_'!$R:$R,'DATA MART_'!$H:$H,$F$3,'DATA MART_'!$A:$A,CONCATENATE($F$3,"|",G$5,"|",$E$5,"|",$G$2,"|",$G$3,"|", G$7,"|",$D22,"|",G$6,"|",$I$3), 'DATA MART_'!$G:$G,$F$2)) -> 0 | H22: =IF($F$2="TO",SUMIFS('DATA MART_'!$R:$R,'DATA MART_'!$H:$H,$F$3,'DATA MART_'!$A:$A,CONCATENATE($F$3,"|",H$5,"|",$E$5,"|",$G$2,"|",$G$3,"|", H$7,"|",$D22,"|",H$6,"|",$I$3)), SUMIFS('DATA MART_'!$R:$R,'DATA MART_'!$H:$H,$F$3,'DATA MART_'!$A:$A,CONCATENATE($F$3,"|",H$5,"|",$E$5,"|",$G$2,"|",$G$3,"|", H$7,"|",$D22,"|",H$6,"|",$I$3), 'DATA MART_'!$G:$G,$F$2)) -> 0 | I22: =IF($F$2="TO",SUMIFS('DATA MART_'!$R:$R,'DATA MART_'!$H:$H,$F$3,'DATA MART_'!$A:$A,CONCATENATE($F$3,"|",I$5,"|",$E$5,"|",$G$2,"|",$G$3,"|", I$7,"|",$D22,"|",I$6,"|",$I$3)), SUMIFS('DATA MART_'!$R:$R,'DATA MART_'!$H:$H,$F$3,'DATA MART_'!$A:$A,CONCATENATE($F$3,"|",I$5,"|",$E$5,"|",$G$2,"|",$G$3,"|", I$7,"|",$D22,"|",I$6,"|",$I$3), 'DATA MART_'!$G:$G,$F$2)) -> 0 | J22: =IF($F$2="TO",SUMIFS('DATA MART_'!$R:$R,'DATA MART_'!$H:$H,$F$3,'DATA MART_'!$A:$A,CONCATENATE($F$3,"|",J$5,"|",$E$5,"|",$G$2,"|",$G$3,"|", J$7,"|",$D22,"|",J$6,"|",$I$3)), SUMIFS('DATA MART_'!$R:$R,'DATA MART_'!$H:$H,$F$3,'DATA MART_'!$A:$A,CONCATENATE($F$3,"|",J$5,"|",$E$5,"|",$G$2,"|",$G$3,"|", J$7,"|",$D22,"|",J$6,"|",$I$3), 'DATA MART_'!$G:$G,$F$2)) -> 0 | K22: =IF($F$2="TO",SUMIFS('DATA MART_'!$R:$R,'DATA MART_'!$H:$H,$F$3,'DATA MART_'!$A:$A,CONCATENATE($F$3,"|",K$5,"|",$E$5,"|",$G$2,"|",$G$3,"|", K$7,"|",$D22,"|",K$6,"|",$I$3)), SUMIFS('DATA MART_'!$R:$R,'DATA MART_'!$H:$H,$F$3,'DATA MART_'!$A:$A,CONCATENATE($F$3,"|",K$5,"|",$E$5,"|",$G$2,"|",$G$3,"|", K$7,"|",$D22,"|",K$6,"|",$I$3), 'DATA MART_'!$G:$G,$F$2)) -> 0 | L22: =IF($F$2="TO",SUMIFS('DATA MART_'!$R:$R,'DATA MART_'!$H:$H,$F$3,'DATA MART_'!$A:$A,CONCATENATE($F$3,"|",L$5,"|",$E$5,"|",$G$2,"|",$G$3,"|", L$7,"|",$D22,"|",L$6,"|",$I$3)), SUMIFS('DATA MART_'!$R:$R,'DATA MART_'!$H:$H,$F$3,'DATA MART_'!$A:$A,CONCATENATE($F$3,"|",L$5,"|",$E$5,"|",$G$2,"|",$G$3,"|", L$7,"|",$D22,"|",L$6,"|",$I$3), 'DATA MART_'!$G:$G,$F$2)) -> 0 | M22: 0 | N22: 0 | O22: =IF($F$2="TO",SUMIFS('DATA MART_'!$R:$R,'DATA MART_'!$H:$H,$F$3,'DATA MART_'!$A:$A,CONCATENATE($F$3,"|",O$5,"|",$E$5,"|",$G$2,"|",$G$3,"|", O$7,"|",$D22,"|",O$6,"|",$I$3)), SUMIFS('DATA MART_'!$R:$R,'DATA MART_'!$H:$H,$F$3,'DATA MART_'!$A:$A,CONCATENATE($F$3,"|",O$5,"|",$E$5,"|",$G$2,"|",$G$3,"|", O$7,"|",$D22,"|",O$6,"|",$I$3), 'DATA MART_'!$G:$G,$F$2)) -> 0 | P22: =IF($F$2="TO",SUMIFS('DATA MART_'!$R:$R,'DATA MART_'!$H:$H,$F$3,'DATA MART_'!$A:$A,CONCATENATE($F$3,"|",P$5,"|",$E$5,"|",$G$2,"|",$G$3,"|", P$7,"|",$D22,"|",P$6,"|",$I$3)), SUMIFS('DATA MART_'!$R:$R,'DATA MART_'!$H:$H,$F$3,'DATA MART_'!$A:$A,CONCATENATE($F$3,"|",P$5,"|",$E$5,"|",$G$2,"|",$G$3,"|", P$7,"|",$D22,"|",P$6,"|",$I$3), 'DATA MART_'!$G:$G,$F$2)) -> 0 | Q22: =IF($F$2="TO",SUMIFS('DATA MART_'!$R:$R,'DATA MART_'!$H:$H,$F$3,'DATA MART_'!$A:$A,CONCATENATE($F$3,"|",Q$5,"|",$E$5,"|",$G$2,"|",$G$3,"|", Q$7,"|",$D22,"|",Q$6,"|",$I$3)), SUMIFS('DATA MART_'!$R:$R,'DATA MART_'!$H:$H,$F$3,'DATA MART_'!$A:$A,CONCATENATE($F$3,"|",Q$5,"|",$E$5,"|",$G$2,"|",$G$3,"|", Q$7,"|",$D22,"|",Q$6,"|",$I$3), 'DATA MART_'!$G:$G,$F$2)) -> 0 | R22: =IF($F$2="TO",SUMIFS('DATA MART_'!$R:$R,'DATA MART_'!$H:$H,$F$3,'DATA MART_'!$A:$A,CONCATENATE($F$3,"|",R$5,"|",$E$5,"|",$G$2,"|",$G$3,"|", R$7,"|",$D22,"|",R$6,"|",$I$3)), SUMIFS('DATA MART_'!$R:$R,'DATA MART_'!$H:$H,$F$3,'DATA MART_'!$A:$A,CONCATENATE($F$3,"|",R$5,"|",$E$5,"|",$G$2,"|",$G$3,"|", R$7,"|",$D22,"|",R$6,"|",$I$3), 'DATA MART_'!$G:$G,$F$2)) -> 0 | S22: =IF($F$2="TO",SUMIFS('DATA MART_'!$R:$R,'DATA MART_'!$H:$H,$F$3,'DATA MART_'!$A:$A,CONCATENATE($F$3,"|",S$5,"|",$E$5,"|",$G$2,"|",$G$3,"|", S$7,"|",$D22,"|",S$6,"|",$I$3)), SUMIFS('DATA MART_'!$R:$R,'DATA MART_'!$H:$H,$F$3,'DATA MART_'!$A:$A,CONCATENATE($F$3,"|",S$5,"|",$E$5,"|",$G$2,"|",$G$3,"|", S$7,"|",$D22,"|",S$6,"|",$I$3), 'DATA MART_'!$G:$G,$F$2)) -> 0 | T22: =IF($F$2="TO",SUMIFS('DATA MART_'!$R:$R,'DATA MART_'!$H:$H,$F$3,'DATA MART_'!$A:$A,CONCATENATE($F$3,"|",T$5,"|",$E$5,"|",$G$2,"|",$G$3,"|", T$7,"|",$D22,"|",T$6,"|",$I$3)), SUMIFS('DATA MART_'!$R:$R,'DATA MART_'!$H:$H,$F$3,'DATA MART_'!$A:$A,CONCATENATE($F$3,"|",T$5,"|",$E$5,"|",$G$2,"|",$G$3,"|", T$7,"|",$D22,"|",T$6,"|",$I$3), 'DATA MART_'!$G:$G,$F$2)) -> 0 | U22: 0 | V22: 0 | X22: =IF($F$2="TO",SUMIFS('DATA MART_'!$R:$R,'DATA MART_'!$H:$H,$F$3,'DATA MART_'!$A:$A,CONCATENATE($F$3,"|",X$5,"|",$E$5,"|",$G$2,"|",$G$3,"|", X$7,"|",$D22,"|",X$6,"|",$I$3)), SUMIFS('DATA MART_'!$R:$R,'DATA MART_'!$H:$H,$F$3,'DATA MART_'!$A:$A,CONCATENATE($F$3,"|",X$5,"|",$E$5,"|",$G$2,"|",$G$3,"|", X$7,"|",$D22,"|",X$6,"|",$I$3), 'DATA MART_'!$G:$G,$F$2)) -> 0 | Z22: =IF($F$2="TO",SUMIFS('DATA MART_'!$R:$R,'DATA MART_'!$H:$H,$F$3,'DATA MART_'!$A:$A,CONCATENATE($F$3,"|",Z$5,"|",$E$5,"|",$G$2,"|",$G$3,"|", Z$7,"|",$D22,"|",Z$6,"|",$I$3)), SUMIFS('DATA MART_'!$R:$R,'DATA MART_'!$H:$H,$F$3,'DATA MART_'!$A:$A,CONCATENATE($F$3,"|",Z$5,"|",$E$5,"|",$G$2,"|",$G$3,"|", Z$7,"|",$D22,"|",Z$6,"|",$I$3), 'DATA MART_'!$G:$G,$F$2)) -> 0 | AB22: =IF($F$2="TO",SUMIFS('DATA MART_'!$R:$R,'DATA MART_'!$H:$H,$F$3,'DATA MART_'!$A:$A,CONCATENATE($F$3,"|",AB$5,"|",$E$5,"|",$G$2,"|",$G$3,"|", AB$7,"|",$D22,"|",AB$6,"|",$I$3)), SUMIFS('DATA MART_'!$R:$R,'DATA MART_'!$H:$H,$F$3,'DATA MART_'!$A:$A,CONCATENATE($F$3,"|",AB$5,"|",$E$5,"|",$G$2,"|",$G$3,"|", AB$7,"|",$D22,"|",AB$6,"|",$I$3), 'DATA MART_'!$G:$G,$F$2)) -> 0 | AD22: 0 | AE22: 100800
D23: =VLOOKUP(TRIM(F23),'DATA MART_'!$AD$3:$AF$25,3,0) -> 21 | F23: Retail - Other Retail - Of Which: non-SME | G23: =IF($F$2="TO",SUMIFS('DATA MART_'!$R:$R,'DATA MART_'!$H:$H,$F$3,'DATA MART_'!$A:$A,CONCATENATE($F$3,"|",G$5,"|",$E$5,"|",$G$2,"|",$G$3,"|", G$7,"|",$D23,"|",G$6,"|",$I$3)), SUMIFS('DATA MART_'!$R:$R,'DATA MART_'!$H:$H,$F$3,'DATA MART_'!$A:$A,CONCATENATE($F$3,"|",G$5,"|",$E$5,"|",$G$2,"|",$G$3,"|", G$7,"|",$D23,"|",G$6,"|",$I$3), 'DATA MART_'!$G:$G,$F$2)) -> 0 | H23: =IF($F$2="TO",SUMIFS('DATA MART_'!$R:$R,'DATA MART_'!$H:$H,$F$3,'DATA MART_'!$A:$A,CONCATENATE($F$3,"|",H$5,"|",$E$5,"|",$G$2,"|",$G$3,"|", H$7,"|",$D23,"|",H$6,"|",$I$3)), SUMIFS('DATA MART_'!$R:$R,'DATA MART_'!$H:$H,$F$3,'DATA MART_'!$A:$A,CONCATENATE($F$3,"|",H$5,"|",$E$5,"|",$G$2,"|",$G$3,"|", H$7,"|",$D23,"|",H$6,"|",$I$3), 'DATA MART_'!$G:$G,$F$2)) -> 0 | I23: =IF($F$2="TO",SUMIFS('DATA MART_'!$R:$R,'DATA MART_'!$H:$H,$F$3,'DATA MART_'!$A:$A,CONCATENATE($F$3,"|",I$5,"|",$E$5,"|",$G$2,"|",$G$3,"|", I$7,"|",$D23,"|",I$6,"|",$I$3)), SUMIFS('DATA MART_'!$R:$R,'DATA MART_'!$H:$H,$F$3,'DATA MART_'!$A:$A,CONCATENATE($F$3,"|",I$5,"|",$E$5,"|",$G$2,"|",$G$3,"|", I$7,"|",$D23,"|",I$6,"|",$I$3), 'DATA MART_'!$G:$G,$F$2)) -> 0 | J23: =IF($F$2="TO",SUMIFS('DATA MART_'!$R:$R,'DATA MART_'!$H:$H,$F$3,'DATA MART_'!$A:$A,CONCATENATE($F$3,"|",J$5,"|",$E$5,"|",$G$2,"|",$G$3,"|", J$7,"|",$D23,"|",J$6,"|",$I$3)), SUMIFS('DATA MART_'!$R:$R,'DATA MART_'!$H:$H,$F$3,'DATA MART_'!$A:$A,CONCATENATE($F$3,"|",J$5,"|",$E$5,"|",$G$2,"|",$G$3,"|", J$7,"|",$D23,"|",J$6,"|",$I$3), 'DATA MART_'!$G:$G,$F$2)) -> 0 | K23: =IF($F$2="TO",SUMIFS('DATA MART_'!$R:$R,'DATA MART_'!$H:$H,$F$3,'DATA MART_'!$A:$A,CONCATENATE($F$3,"|",K$5,"|",$E$5,"|",$G$2,"|",$G$3,"|", K$7,"|",$D23,"|",K$6,"|",$I$3)), SUMIFS('DATA MART_'!$R:$R,'DATA MART_'!$H:$H,$F$3,'DATA MART_'!$A:$A,CONCATENATE($F$3,"|",K$5,"|",$E$5,"|",$G$2,"|",$G$3,"|", K$7,"|",$D23,"|",K$6,"|",$I$3), 'DATA MART_'!$G:$G,$F$2)) -> 0 | L23: =IF($F$2="TO",SUMIFS('DATA MART_'!$R:$R,'DATA MART_'!$H:$H,$F$3,'DATA MART_'!$A:$A,CONCATENATE($F$3,"|",L$5,"|",$E$5,"|",$G$2,"|",$G$3,"|", L$7,"|",$D23,"|",L$6,"|",$I$3)), SUMIFS('DATA MART_'!$R:$R,'DATA MART_'!$H:$H,$F$3,'DATA MART_'!$A:$A,CONCATENATE($F$3,"|",L$5,"|",$E$5,"|",$G$2,"|",$G$3,"|", L$7,"|",$D23,"|",L$6,"|",$I$3), 'DATA MART_'!$G:$G,$F$2)) -> 0 | M23: 0 | N23: 0 | O23: =IF($F$2="TO",SUMIFS('DATA MART_'!$R:$R,'DATA MART_'!$H:$H,$F$3,'DATA MART_'!$A:$A,CONCATENATE($F$3,"|",O$5,"|",$E$5,"|",$G$2,"|",$G$3,"|", O$7,"|",$D23,"|",O$6,"|",$I$3)), SUMIFS('DATA MART_'!$R:$R,'DATA MART_'!$H:$H,$F$3,'DATA MART_'!$A:$A,CONCATENATE($F$3,"|",O$5,"|",$E$5,"|",$G$2,"|",$G$3,"|", O$7,"|",$D23,"|",O$6,"|",$I$3), 'DATA MART_'!$G:$G,$F$2)) -> 0 | P23: =IF($F$2="TO",SUMIFS('DATA MART_'!$R:$R,'DATA MART_'!$H:$H,$F$3,'DATA MART_'!$A:$A,CONCATENATE($F$3,"|",P$5,"|",$E$5,"|",$G$2,"|",$G$3,"|", P$7,"|",$D23,"|",P$6,"|",$I$3)), SUMIFS('DATA MART_'!$R:$R,'DATA MART_'!$H:$H,$F$3,'DATA MART_'!$A:$A,CONCATENATE($F$3,"|",P$5,"|",$E$5,"|",$G$2,"|",$G$3,"|", P$7,"|",$D23,"|",P$6,"|",$I$3), 'DATA MART_'!$G:$G,$F$2)) -> 0 | Q23: =IF($F$2="TO",SUMIFS('DATA MART_'!$R:$R,'DATA MART_'!$H:$H,$F$3,'DATA MART_'!$A:$A,CONCATENATE($F$3,"|",Q$5,"|",$E$5,"|",$G$2,"|",$G$3,"|", Q$7,"|",$D23,"|",Q$6,"|",$I$3)), SUMIFS('DATA MART_'!$R:$R,'DATA MART_'!$H:$H,$F$3,'DATA MART_'!$A:$A,CONCATENATE($F$3,"|",Q$5,"|",$E$5,"|",$G$2,"|",$G$3,"|", Q$7,"|",$D23,"|",Q$6,"|",$I$3), 'DATA MART_'!$G:$G,$F$2)) -> 0 | R23: =IF($F$2="TO",SUMIFS('DATA MART_'!$R:$R,'DATA MART_'!$H:$H,$F$3,'DATA MART_'!$A:$A,CONCATENATE($F$3,"|",R$5,"|",$E$5,"|",$G$2,"|",$G$3,"|", R$7,"|",$D23,"|",R$6,"|",$I$3)), SUMIFS('DATA MART_'!$R:$R,'DATA MART_'!$H:$H,$F$3,'DATA MART_'!$A:$A,CONCATENATE($F$3,"|",R$5,"|",$E$5,"|",$G$2,"|",$G$3,"|", R$7,"|",$D23,"|",R$6,"|",$I$3), 'DATA MART_'!$G:$G,$F$2)) -> 0 | S23: =IF($F$2="TO",SUMIFS('DATA MART_'!$R:$R,'DATA MART_'!$H:$H,$F$3,'DATA MART_'!$A:$A,CONCATENATE($F$3,"|",S$5,"|",$E$5,"|",$G$2,"|",$G$3,"|", S$7,"|",$D23,"|",S$6,"|",$I$3)), SUMIFS('DATA MART_'!$R:$R,'DATA MART_'!$H:$H,$F$3,'DATA MART_'!$A:$A,CONCATENATE($F$3,"|",S$5,"|",$E$5,"|",$G$2,"|",$G$3,"|", S$7,"|",$D23,"|",S$6,"|",$I$3), 'DATA MART_'!$G:$G,$F$2)) -> 0 | T23: =IF($F$2="TO",SUMIFS('DATA MART_'!$R:$R,'DATA MART_'!$H:$H,$F$3,'DATA MART_'!$A:$A,CONCATENATE($F$3,"|",T$5,"|",$E$5,"|",$G$2,"|",$G$3,"|", T$7,"|",$D23,"|",T$6,"|",$I$3)), SUMIFS('DATA MART_'!$R:$R,'DATA MART_'!$H:$H,$F$3,'DATA MART_'!$A:$A,CONCATENATE($F$3,"|",T$5,"|",$E$5,"|",$G$2,"|",$G$3,"|", T$7,"|",$D23,"|",T$6,"|",$I$3), 'DATA MART_'!$G:$G,$F$2)) -> 0 | U23: 0 | V23: 0 | X23: =IF($F$2="TO",SUMIFS('DATA MART_'!$R:$R,'DATA MART_'!$H:$H,$F$3,'DATA MART_'!$A:$A,CONCATENATE($F$3,"|",X$5,"|",$E$5,"|",$G$2,"|",$G$3,"|", X$7,"|",$D23,"|",X$6,"|",$I$3)), SUMIFS('DATA MART_'!$R:$R,'DATA MART_'!$H:$H,$F$3,'DATA MART_'!$A:$A,CONCATENATE($F$3,"|",X$5,"|",$E$5,"|",$G$2,"|",$G$3,"|", X$7,"|",$D23,"|",X$6,"|",$I$3), 'DATA MART_'!$G:$G,$F$2)) -> 0 | Z23: =IF($F$2="TO",SUMIFS('DATA MART_'!$R:$R,'DATA MART_'!$H:$H,$F$3,'DATA MART_'!$A:$A,CONCATENATE($F$3,"|",Z$5,"|",$E$5,"|",$G$2,"|",$G$3,"|", Z$7,"|",$D23,"|",Z$6,"|",$I$3)), SUMIFS('DATA MART_'!$R:$R,'DATA MART_'!$H:$H,$F$3,'DATA MART_'!$A:$A,CONCATENATE($F$3,"|",Z$5,"|",$E$5,"|",$G$2,"|",$G$3,"|", Z$7,"|",$D23,"|",Z$6,"|",$I$3), 'DATA MART_'!$G:$G,$F$2)) -> 0 | AB23: =IF($F$2="TO",SUMIFS('DATA MART_'!$R:$R,'DATA MART_'!$H:$H,$F$3,'DATA MART_'!$A:$A,CONCATENATE($F$3,"|",AB$5,"|",$E$5,"|",$G$2,"|",$G$3,"|", AB$7,"|",$D23,"|",AB$6,"|",$I$3)), SUMIFS('DATA MART_'!$R:$R,'DATA MART_'!$H:$H,$F$3,'DATA MART_'!$A:$A,CONCATENATE($F$3,"|",AB$5,"|",$E$5,"|",$G$2,"|",$G$3,"|", AB$7,"|",$D23,"|",AB$6,"|",$I$3), 'DATA MART_'!$G:$G,$F$2)) -> 0 | AD23: 0 | AE23: 100900
D24: =VLOOKUP(TRIM(F24),'DATA MART_'!$AD$3:$AF$25,3,0) -> 9 | F24: Equity | G24: =IF($F$2="TO",SUMIFS('DATA MART_'!$R:$R,'DATA MART_'!$H:$H,$F$3,'DATA MART_'!$A:$A,CONCATENATE($F$3,"|",G$5,"|",$E$5,"|",$G$2,"|",$G$3,"|", G$7,"|",$D24,"|",G$6,"|",$I$3)), SUMIFS('DATA MART_'!$R:$R,'DATA MART_'!$H:$H,$F$3,'DATA MART_'!$A:$A,CONCATENATE($F$3,"|",G$5,"|",$E$5,"|",$G$2,"|",$G$3,"|", G$7,"|",$D24,"|",G$6,"|",$I$3), 'DATA MART_'!$G:$G,$F$2)) -> 0 | H24: =IF($F$2="TO",SUMIFS('DATA MART_'!$R:$R,'DATA MART_'!$H:$H,$F$3,'DATA MART_'!$A:$A,CONCATENATE($F$3,"|",H$5,"|",$E$5,"|",$G$2,"|",$G$3,"|", H$7,"|",$D24,"|",H$6,"|",$I$3)), SUMIFS('DATA MART_'!$R:$R,'DATA MART_'!$H:$H,$F$3,'DATA MART_'!$A:$A,CONCATENATE($F$3,"|",H$5,"|",$E$5,"|",$G$2,"|",$G$3,"|", H$7,"|",$D24,"|",H$6,"|",$I$3), 'DATA MART_'!$G:$G,$F$2)) -> 0 | I24: =IF($F$2="TO",SUMIFS('DATA MART_'!$R:$R,'DATA MART_'!$H:$H,$F$3,'DATA MART_'!$A:$A,CONCATENATE($F$3,"|",I$5,"|",$E$5,"|",$G$2,"|",$G$3,"|", I$7,"|",$D24,"|",I$6,"|",$I$3)), SUMIFS('DATA MART_'!$R:$R,'DATA MART_'!$H:$H,$F$3,'DATA MART_'!$A:$A,CONCATENATE($F$3,"|",I$5,"|",$E$5,"|",$G$2,"|",$G$3,"|", I$7,"|",$D24,"|",I$6,"|",$I$3), 'DATA MART_'!$G:$G,$F$2)) -> 0 | J24: =IF($F$2="TO",SUMIFS('DATA MART_'!$R:$R,'DATA MART_'!$H:$H,$F$3,'DATA MART_'!$A:$A,CONCATENATE($F$3,"|",J$5,"|",$E$5,"|",$G$2,"|",$G$3,"|", J$7,"|",$D24,"|",J$6,"|",$I$3)), SUMIFS('DATA MART_'!$R:$R,'DATA MART_'!$H:$H,$F$3,'DATA MART_'!$A:$A,CONCATENATE($F$3,"|",J$5,"|",$E$5,"|",$G$2,"|",$G$3,"|", J$7,"|",$D24,"|",J$6,"|",$I$3), 'DATA MART_'!$G:$G,$F$2)) -> 0 | K24: =IF($F$2="TO",SUMIFS('DATA MART_'!$R:$R,'DATA MART_'!$H:$H,$F$3,'DATA MART_'!$A:$A,CONCATENATE($F$3,"|",K$5,"|",$E$5,"|",$G$2,"|",$G$3,"|", K$7,"|",$D24,"|",K$6,"|",$I$3)), SUMIFS('DATA MART_'!$R:$R,'DATA MART_'!$H:$H,$F$3,'DATA MART_'!$A:$A,CONCATENATE($F$3,"|",K$5,"|",$E$5,"|",$G$2,"|",$G$3,"|", K$7,"|",$D24,"|",K$6,"|",$I$3), 'DATA MART_'!$G:$G,$F$2)) -> 0 | L24: =IF($F$2="TO",SUMIFS('DATA MART_'!$R:$R,'DATA MART_'!$H:$H,$F$3,'DATA MART_'!$A:$A,CONCATENATE($F$3,"|",L$5,"|",$E$5,"|",$G$2,"|",$G$3,"|", L$7,"|",$D24,"|",L$6,"|",$I$3)), SUMIFS('DATA MART_'!$R:$R,'DATA MART_'!$H:$H,$F$3,'DATA MART_'!$A:$A,CONCATENATE($F$3,"|",L$5,"|",$E$5,"|",$G$2,"|",$G$3,"|", L$7,"|",$D24,"|",L$6,"|",$I$3), 'DATA MART_'!$G:$G,$F$2)) -> 0 | M24: 0 | N24: 0 | O24: =IF($F$2="TO",SUMIFS('DATA MART_'!$R:$R,'DATA MART_'!$H:$H,$F$3,'DATA MART_'!$A:$A,CONCATENATE($F$3,"|",O$5,"|",$E$5,"|",$G$2,"|",$G$3,"|", O$7,"|",$D24,"|",O$6,"|",$I$3)), SUMIFS('DATA MART_'!$R:$R,'DATA MART_'!$H:$H,$F$3,'DATA MART_'!$A:$A,CONCATENATE($F$3,"|",O$5,"|",$E$5,"|",$G$2,"|",$G$3,"|", O$7,"|",$D24,"|",O$6,"|",$I$3), 'DATA MART_'!$G:$G,$F$2)) -> 0 | P24: =IF($F$2="TO",SUMIFS('DATA MART_'!$R:$R,'DATA MART_'!$H:$H,$F$3,'DATA MART_'!$A:$A,CONCATENATE($F$3,"|",P$5,"|",$E$5,"|",$G$2,"|",$G$3,"|", P$7,"|",$D24,"|",P$6,"|",$I$3)), SUMIFS('DATA MART_'!$R:$R,'DATA MART_'!$H:$H,$F$3,'DATA MART_'!$A:$A,CONCATENATE($F$3,"|",P$5,"|",$E$5,"|",$G$2,"|",$G$3,"|", P$7,"|",$D24,"|",P$6,"|",$I$3), 'DATA MART_'!$G:$G,$F$2)) -> 0 | Q24: =IF($F$2="TO",SUMIFS('DATA MART_'!$R:$R,'DATA MART_'!$H:$H,$F$3,'DATA MART_'!$A:$A,CONCATENATE($F$3,"|",Q$5,"|",$E$5,"|",$G$2,"|",$G$3,"|", Q$7,"|",$D24,"|",Q$6,"|",$I$3)), SUMIFS('DATA MART_'!$R:$R,'DATA MART_'!$H:$H,$F$3,'DATA MART_'!$A:$A,CONCATENATE($F$3,"|",Q$5,"|",$E$5,"|",$G$2,"|",$G$3,"|", Q$7,"|",$D24,"|",Q$6,"|",$I$3), 'DATA MART_'!$G:$G,$F$2)) -> 0 | R24: =IF($F$2="TO",SUMIFS('DATA MART_'!$R:$R,'DATA MART_'!$H:$H,$F$3,'DATA MART_'!$A:$A,CONCATENATE($F$3,"|",R$5,"|",$E$5,"|",$G$2,"|",$G$3,"|", R$7,"|",$D24,"|",R$6,"|",$I$3)), SUMIFS('DATA MART_'!$R:$R,'DATA MART_'!$H:$H,$F$3,'DATA MART_'!$A:$A,CONCATENATE($F$3,"|",R$5,"|",$E$5,"|",$G$2,"|",$G$3,"|", R$7,"|",$D24,"|",R$6,"|",$I$3), 'DATA MART_'!$G:$G,$F$2)) -> 0 | S24: =IF($F$2="TO",SUMIFS('DATA MART_'!$R:$R,'DATA MART_'!$H:$H,$F$3,'DATA MART_'!$A:$A,CONCATENATE($F$3,"|",S$5,"|",$E$5,"|",$G$2,"|",$G$3,"|", S$7,"|",$D24,"|",S$6,"|",$I$3)), SUMIFS('DATA MART_'!$R:$R,'DATA MART_'!$H:$H,$F$3,'DATA MART_'!$A:$A,CONCATENATE($F$3,"|",S$5,"|",$E$5,"|",$G$2,"|",$G$3,"|", S$7,"|",$D24,"|",S$6,"|",$I$3), 'DATA MART_'!$G:$G,$F$2)) -> 0 | T24: =IF($F$2="TO",SUMIFS('DATA MART_'!$R:$R,'DATA MART_'!$H:$H,$F$3,'DATA MART_'!$A:$A,CONCATENATE($F$3,"|",T$5,"|",$E$5,"|",$G$2,"|",$G$3,"|", T$7,"|",$D24,"|",T$6,"|",$I$3)), SUMIFS('DATA MART_'!$R:$R,'DATA MART_'!$H:$H,$F$3,'DATA MART_'!$A:$A,CONCATENATE($F$3,"|",T$5,"|",$E$5,"|",$G$2,"|",$G$3,"|", T$7,"|",$D24,"|",T$6,"|",$I$3), 'DATA MART_'!$G:$G,$F$2)) -> 0 | U24: 0 | V24: 0 | X24: =IF($F$2="TO",SUMIFS('DATA MART_'!$R:$R,'DATA MART_'!$H:$H,$F$3,'DATA MART_'!$A:$A,CONCATENATE($F$3,"|",X$5,"|",$E$5,"|",$G$2,"|",$G$3,"|", X$7,"|",$D24,"|",X$6,"|",$I$3)), SUMIFS('DATA MART_'!$R:$R,'DATA MART_'!$H:$H,$F$3,'DATA MART_'!$A:$A,CONCATENATE($F$3,"|",X$5,"|",$E$5,"|",$G$2,"|",$G$3,"|", X$7,"|",$D24,"|",X$6,"|",$I$3), 'DATA MART_'!$G:$G,$F$2)) -> 0 | Z24: =IF($F$2="TO",SUMIFS('DATA MART_'!$R:$R,'DATA MART_'!$H:$H,$F$3,'DATA MART_'!$A:$A,CONCATENATE($F$3,"|",Z$5,"|",$E$5,"|",$G$2,"|",$G$3,"|", Z$7,"|",$D24,"|",Z$6,"|",$I$3)), SUMIFS('DATA MART_'!$R:$R,'DATA MART_'!$H:$H,$F$3,'DATA MART_'!$A:$A,CONCATENATE($F$3,"|",Z$5,"|",$E$5,"|",$G$2,"|",$G$3,"|", Z$7,"|",$D24,"|",Z$6,"|",$I$3), 'DATA MART_'!$G:$G,$F$2)) -> 0 | AB24: =IF($F$2="TO",SUMIFS('DATA MART_'!$R:$R,'DATA MART_'!$H:$H,$F$3,'DATA MART_'!$A:$A,CONCATENATE($F$3,"|",AB$5,"|",$E$5,"|",$G$2,"|",$G$3,"|", AB$7,"|",$D24,"|",AB$6,"|",$I$3)), SUMIFS('DATA MART_'!$R:$R,'DATA MART_'!$H:$H,$F$3,'DATA MART_'!$A:$A,CONCATENATE($F$3,"|",AB$5,"|",$E$5,"|",$G$2,"|",$G$3,"|", AB$7,"|",$D24,"|",AB$6,"|",$I$3), 'DATA MART_'!$G:$G,$F$2)) -> 0 | AD24: 0 | AE24: 101001 | AI24: The template has been pre-filled in with the figures published on the EBA web site. Please, double check them and, should it be needed, change them.
D25: =VLOOKUP(TRIM(F25),'DATA MART_'!$AD$3:$AF$25,3,0) -> 10 | F25: Securitisation | G25: =IF($F$2="TO",SUMIFS('DATA MART_'!$R:$R,'DATA MART_'!$H:$H,$F$3,'DATA MART_'!$A:$A,CONCATENATE($F$3,"|",G$5,"|",$E$5,"|",$G$2,"|",$G$3,"|", G$7,"|",$D25,"|",G$6,"|",$I$3)), SUMIFS('DATA MART_'!$R:$R,'DATA MART_'!$H:$H,$F$3,'DATA MART_'!$A:$A,CONCATENATE($F$3,"|",G$5,"|",$E$5,"|",$G$2,"|",$G$3,"|", G$7,"|",$D25,"|",G$6,"|",$I$3), 'DATA MART_'!$G:$G,$F$2)) -> 0 | H25: =IF($F$2="TO",SUMIFS('DATA MART_'!$R:$R,'DATA MART_'!$H:$H,$F$3,'DATA MART_'!$A:$A,CONCATENATE($F$3,"|",H$5,"|",$E$5,"|",$G$2,"|",$G$3,"|", H$7,"|",$D25,"|",H$6,"|",$I$3)), SUMIFS('DATA MART_'!$R:$R,'DATA MART_'!$H:$H,$F$3,'DATA MART_'!$A:$A,CONCATENATE($F$3,"|",H$5,"|",$E$5,"|",$G$2,"|",$G$3,"|", H$7,"|",$D25,"|",H$6,"|",$I$3), 'DATA MART_'!$G:$G,$F$2)) -> 0 | I25: =IF($F$2="TO",SUMIFS('DATA MART_'!$R:$R,'DATA MART_'!$H:$H,$F$3,'DATA MART_'!$A:$A,CONCATENATE($F$3,"|",I$5,"|",$E$5,"|",$G$2,"|",$G$3,"|", I$7,"|",$D25,"|",I$6,"|",$I$3)), SUMIFS('DATA MART_'!$R:$R,'DATA MART_'!$H:$H,$F$3,'DATA MART_'!$A:$A,CONCATENATE($F$3,"|",I$5,"|",$E$5,"|",$G$2,"|",$G$3,"|", I$7,"|",$D25,"|",I$6,"|",$I$3), 'DATA MART_'!$G:$G,$F$2)) -> 0 | J25: =IF($F$2="TO",SUMIFS('DATA MART_'!$R:$R,'DATA MART_'!$H:$H,$F$3,'DATA MART_'!$A:$A,CONCATENATE($F$3,"|",J$5,"|",$E$5,"|",$G$2,"|",$G$3,"|", J$7,"|",$D25,"|",J$6,"|",$I$3)), SUMIFS('DATA MART_'!$R:$R,'DATA MART_'!$H:$H,$F$3,'DATA MART_'!$A:$A,CONCATENATE($F$3,"|",J$5,"|",$E$5,"|",$G$2,"|",$G$3,"|", J$7,"|",$D25,"|",J$6,"|",$I$3), 'DATA MART_'!$G:$G,$F$2)) -> 0 | K25: =IF($F$2="TO",SUMIFS('DATA MART_'!$R:$R,'DATA MART_'!$H:$H,$F$3,'DATA MART_'!$A:$A,CONCATENATE($F$3,"|",K$5,"|",$E$5,"|",$G$2,"|",$G$3,"|", K$7,"|",$D25,"|",K$6,"|",$I$3)), SUMIFS('DATA MART_'!$R:$R,'DATA MART_'!$H:$H,$F$3,'DATA MART_'!$A:$A,CONCATENATE($F$3,"|",K$5,"|",$E$5,"|",$G$2,"|",$G$3,"|", K$7,"|",$D25,"|",K$6,"|",$I$3), 'DATA MART_'!$G:$G,$F$2)) -> 0 | L25: =IF($F$2="TO",SUMIFS('DATA MART_'!$R:$R,'DATA MART_'!$H:$H,$F$3,'DATA MART_'!$A:$A,CONCATENATE($F$3,"|",L$5,"|",$E$5,"|",$G$2,"|",$G$3,"|", L$7,"|",$D25,"|",L$6,"|",$I$3)), SUMIFS('DATA MART_'!$R:$R,'DATA MART_'!$H:$H,$F$3,'DATA MART_'!$A:$A,CONCATENATE($F$3,"|",L$5,"|",$E$5,"|",$G$2,"|",$G$3,"|", L$7,"|",$D25,"|",L$6,"|",$I$3), 'DATA MART_'!$G:$G,$F$2)) -> 0 | M25: 0 | N25: 0 | O25: =IF($F$2="TO",SUMIFS('DATA MART_'!$R:$R,'DATA MART_'!$H:$H,$F$3,'DATA MART_'!$A:$A,CONCATENATE($F$3,"|",O$5,"|",$E$5,"|",$G$2,"|",$G$3,"|", O$7,"|",$D25,"|",O$6,"|",$I$3)), SUMIFS('DATA MART_'!$R:$R,'DATA MART_'!$H:$H,$F$3,'DATA MART_'!$A:$A,CONCATENATE($F$3,"|",O$5,"|",$E$5,"|",$G$2,"|",$G$3,"|", O$7,"|",$D25,"|",O$6,"|",$I$3), 'DATA MART_'!$G:$G,$F$2)) -> 0 | P25: =IF($F$2="TO",SUMIFS('DATA MART_'!$R:$R,'DATA MART_'!$H:$H,$F$3,'DATA MART_'!$A:$A,CONCATENATE($F$3,"|",P$5,"|",$E$5,"|",$G$2,"|",$G$3,"|", P$7,"|",$D25,"|",P$6,"|",$I$3)), SUMIFS('DATA MART_'!$R:$R,'DATA MART_'!$H:$H,$F$3,'DATA MART_'!$A:$A,CONCATENATE($F$3,"|",P$5,"|",$E$5,"|",$G$2,"|",$G$3,"|", P$7,"|",$D25,"|",P$6,"|",$I$3), 'DATA MART_'!$G:$G,$F$2)) -> 0 | Q25: =IF($F$2="TO",SUMIFS('DATA MART_'!$R:$R,'DATA MART_'!$H:$H,$F$3,'DATA MART_'!$A:$A,CONCATENATE($F$3,"|",Q$5,"|",$E$5,"|",$G$2,"|",$G$3,"|", Q$7,"|",$D25,"|",Q$6,"|",$I$3)), SUMIFS('DATA MART_'!$R:$R,'DATA MART_'!$H:$H,$F$3,'DATA MART_'!$A:$A,CONCATENATE($F$3,"|",Q$5,"|",$E$5,"|",$G$2,"|",$G$3,"|", Q$7,"|",$D25,"|",Q$6,"|",$I$3), 'DATA MART_'!$G:$G,$F$2)) -> 0 | R25: =IF($F$2="TO",SUMIFS('DATA MART_'!$R:$R,'DATA MART_'!$H:$H,$F$3,'DATA MART_'!$A:$A,CONCATENATE($F$3,"|",R$5,"|",$E$5,"|",$G$2,"|",$G$3,"|", R$7,"|",$D25,"|",R$6,"|",$I$3)), SUMIFS('DATA MART_'!$R:$R,'DATA MART_'!$H:$H,$F$3,'DATA MART_'!$A:$A,CONCATENATE($F$3,"|",R$5,"|",$E$5,"|",$G$2,"|",$G$3,"|", R$7,"|",$D25,"|",R$6,"|",$I$3), 'DATA MART_'!$G:$G,$F$2)) -> 0 | S25: =IF($F$2="TO",SUMIFS('DATA MART_'!$R:$R,'DATA MART_'!$H:$H,$F$3,'DATA MART_'!$A:$A,CONCATENATE($F$3,"|",S$5,"|",$E$5,"|",$G$2,"|",$G$3,"|", S$7,"|",$D25,"|",S$6,"|",$I$3)), SUMIFS('DATA MART_'!$R:$R,'DATA MART_'!$H:$H,$F$3,'DATA MART_'!$A:$A,CONCATENATE($F$3,"|",S$5,"|",$E$5,"|",$G$2,"|",$G$3,"|", S$7,"|",$D25,"|",S$6,"|",$I$3), 'DATA MART_'!$G:$G,$F$2)) -> 0 | T25: =IF($F$2="TO",SUMIFS('DATA MART_'!$R:$R,'DATA MART_'!$H:$H,$F$3,'DATA MART_'!$A:$A,CONCATENATE($F$3,"|",T$5,"|",$E$5,"|",$G$2,"|",$G$3,"|", T$7,"|",$D25,"|",T$6,"|",$I$3)), SUMIFS('DATA MART_'!$R:$R,'DATA MART_'!$H:$H,$F$3,'DATA MART_'!$A:$A,CONCATENATE($F$3,"|",T$5,"|",$E$5,"|",$G$2,"|",$G$3,"|", T$7,"|",$D25,"|",T$6,"|",$I$3), 'DATA MART_'!$G:$G,$F$2)) -> 0 | U25: 0 | V25: 0 | X25: =IF($F$2="TO",SUMIFS('DATA MART_'!$R:$R,'DATA MART_'!$H:$H,$F$3,'DATA MART_'!$A:$A,CONCATENATE($F$3,"|",X$5,"|",$E$5,"|",$G$2,"|",$G$3,"|", X$7,"|",$D25,"|",X$6,"|",$I$3)), SUMIFS('DATA MART_'!$R:$R,'DATA MART_'!$H:$H,$F$3,'DATA MART_'!$A:$A,CONCATENATE($F$3,"|",X$5,"|",$E$5,"|",$G$2,"|",$G$3,"|", X$7,"|",$D25,"|",X$6,"|",$I$3), 'DATA MART_'!$G:$G,$F$2)) -> 0 | Z25: =IF($F$2="TO",SUMIFS('DATA MART_'!$R:$R,'DATA MART_'!$H:$H,$F$3,'DATA MART_'!$A:$A,CONCATENATE($F$3,"|",Z$5,"|",$E$5,"|",$G$2,"|",$G$3,"|", Z$7,"|",$D25,"|",Z$6,"|",$I$3)), SUMIFS('DATA MART_'!$R:$R,'DATA MART_'!$H:$H,$F$3,'DATA MART_'!$A:$A,CONCATENATE($F$3,"|",Z$5,"|",$E$5,"|",$G$2,"|",$G$3,"|", Z$7,"|",$D25,"|",Z$6,"|",$I$3), 'DATA MART_'!$G:$G,$F$2)) -> 0 | AB25: =IF($F$2="TO",SUMIFS('DATA MART_'!$R:$R,'DATA MART_'!$H:$H,$F$3,'DATA MART_'!$A:$A,CONCATENATE($F$3,"|",AB$5,"|",$E$5,"|",$G$2,"|",$G$3,"|", AB$7,"|",$D25,"|",AB$6,"|",$I$3)), SUMIFS('DATA MART_'!$R:$R,'DATA MART_'!$H:$H,$F$3,'DATA MART_'!$A:$A,CONCATENATE($F$3,"|",AB$5,"|",$E$5,"|",$G$2,"|",$G$3,"|", AB$7,"|",$D25,"|",AB$6,"|",$I$3), 'DATA MART_'!$G:$G,$F$2)) -> 0 | AD25: 0 | AE25: 101002 | AI25: The template has been pre-filled in with the figures published on the EBA web site. Please, double check them and, should it be needed, change them.
D26: =VLOOKUP(TRIM(F26),'DATA MART_'!$AD$3:$AF$25,3,0) -> 11 | F26: Other non-credit obligation assets | G26: =IF($F$2="TO",SUMIFS('DATA MART_'!$R:$R,'DATA MART_'!$H:$H,$F$3,'DATA MART_'!$A:$A,CONCATENATE($F$3,"|",G$5,"|",$E$5,"|",$G$2,"|",$G$3,"|", G$7,"|",$D26,"|",G$6,"|",$I$3)), SUMIFS('DATA MART_'!$R:$R,'DATA MART_'!$H:$H,$F$3,'DATA MART_'!$A:$A,CONCATENATE($F$3,"|",G$5,"|",$E$5,"|",$G$2,"|",$G$3,"|", G$7,"|",$D26,"|",G$6,"|",$I$3), 'DATA MART_'!$G:$G,$F$2)) -> 0 | H26: =IF($F$2="TO",SUMIFS('DATA MART_'!$R:$R,'DATA MART_'!$H:$H,$F$3,'DATA MART_'!$A:$A,CONCATENATE($F$3,"|",H$5,"|",$E$5,"|",$G$2,"|",$G$3,"|", H$7,"|",$D26,"|",H$6,"|",$I$3)), SUMIFS('DATA MART_'!$R:$R,'DATA MART_'!$H:$H,$F$3,'DATA MART_'!$A:$A,CONCATENATE($F$3,"|",H$5,"|",$E$5,"|",$G$2,"|",$G$3,"|", H$7,"|",$D26,"|",H$6,"|",$I$3), 'DATA MART_'!$G:$G,$F$2)) -> 0 | I26: =IF($F$2="TO",SUMIFS('DATA MART_'!$R:$R,'DATA MART_'!$H:$H,$F$3,'DATA MART_'!$A:$A,CONCATENATE($F$3,"|",I$5,"|",$E$5,"|",$G$2,"|",$G$3,"|", I$7,"|",$D26,"|",I$6,"|",$I$3)), SUMIFS('DATA MART_'!$R:$R,'DATA MART_'!$H:$H,$F$3,'DATA MART_'!$A:$A,CONCATENATE($F$3,"|",I$5,"|",$E$5,"|",$G$2,"|",$G$3,"|", I$7,"|",$D26,"|",I$6,"|",$I$3), 'DATA MART_'!$G:$G,$F$2)) -> 0 | J26: =IF($F$2="TO",SUMIFS('DATA MART_'!$R:$R,'DATA MART_'!$H:$H,$F$3,'DATA MART_'!$A:$A,CONCATENATE($F$3,"|",J$5,"|",$E$5,"|",$G$2,"|",$G$3,"|", J$7,"|",$D26,"|",J$6,"|",$I$3)), SUMIFS('DATA MART_'!$R:$R,'DATA MART_'!$H:$H,$F$3,'DATA MART_'!$A:$A,CONCATENATE($F$3,"|",J$5,"|",$E$5,"|",$G$2,"|",$G$3,"|", J$7,"|",$D26,"|",J$6,"|",$I$3), 'DATA MART_'!$G:$G,$F$2)) -> 0 | K26: =IF($F$2="TO",SUMIFS('DATA MART_'!$R:$R,'DATA MART_'!$H:$H,$F$3,'DATA MART_'!$A:$A,CONCATENATE($F$3,"|",K$5,"|",$E$5,"|",$G$2,"|",$G$3,"|", K$7,"|",$D26,"|",K$6,"|",$I$3)), SUMIFS('DATA MART_'!$R:$R,'DATA MART_'!$H:$H,$F$3,'DATA MART_'!$A:$A,CONCATENATE($F$3,"|",K$5,"|",$E$5,"|",$G$2,"|",$G$3,"|", K$7,"|",$D26,"|",K$6,"|",$I$3), 'DATA MART_'!$G:$G,$F$2)) -> 0 | L26: =IF($F$2="TO",SUMIFS('DATA MART_'!$R:$R,'DATA MART_'!$H:$H,$F$3,'DATA MART_'!$A:$A,CONCATENATE($F$3,"|",L$5,"|",$E$5,"|",$G$2,"|",$G$3,"|", L$7,"|",$D26,"|",L$6,"|",$I$3)), SUMIFS('DATA MART_'!$R:$R,'DATA MART_'!$H:$H,$F$3,'DATA MART_'!$A:$A,CONCATENATE($F$3,"|",L$5,"|",$E$5,"|",$G$2,"|",$G$3,"|", L$7,"|",$D26,"|",L$6,"|",$I$3), 'DATA MART_'!$G:$G,$F$2)) -> 0 | M26: 0 | N26: 0 | O26: =IF($F$2="TO",SUMIFS('DATA MART_'!$R:$R,'DATA MART_'!$H:$H,$F$3,'DATA MART_'!$A:$A,CONCATENATE($F$3,"|",O$5,"|",$E$5,"|",$G$2,"|",$G$3,"|", O$7,"|",$D26,"|",O$6,"|",$I$3)), SUMIFS('DATA MART_'!$R:$R,'DATA MART_'!$H:$H,$F$3,'DATA MART_'!$A:$A,CONCATENATE($F$3,"|",O$5,"|",$E$5,"|",$G$2,"|",$G$3,"|", O$7,"|",$D26,"|",O$6,"|",$I$3), 'DATA MART_'!$G:$G,$F$2)) -> 0 | P26: =IF($F$2="TO",SUMIFS('DATA MART_'!$R:$R,'DATA MART_'!$H:$H,$F$3,'DATA MART_'!$A:$A,CONCATENATE($F$3,"|",P$5,"|",$E$5,"|",$G$2,"|",$G$3,"|", P$7,"|",$D26,"|",P$6,"|",$I$3)), SUMIFS('DATA MART_'!$R:$R,'DATA MART_'!$H:$H,$F$3,'DATA MART_'!$A:$A,CONCATENATE($F$3,"|",P$5,"|",$E$5,"|",$G$2,"|",$G$3,"|", P$7,"|",$D26,"|",P$6,"|",$I$3), 'DATA MART_'!$G:$G,$F$2)) -> 0 | Q26: =IF($F$2="TO",SUMIFS('DATA MART_'!$R:$R,'DATA MART_'!$H:$H,$F$3,'DATA MART_'!$A:$A,CONCATENATE($F$3,"|",Q$5,"|",$E$5,"|",$G$2,"|",$G$3,"|", Q$7,"|",$D26,"|",Q$6,"|",$I$3)), SUMIFS('DATA MART_'!$R:$R,'DATA MART_'!$H:$H,$F$3,'DATA MART_'!$A:$A,CONCATENATE($F$3,"|",Q$5,"|",$E$5,"|",$G$2,"|",$G$3,"|", Q$7,"|",$D26,"|",Q$6,"|",$I$3), 'DATA MART_'!$G:$G,$F$2)) -> 0 | R26: =IF($F$2="TO",SUMIFS('DATA MART_'!$R:$R,'DATA MART_'!$H:$H,$F$3,'DATA MART_'!$A:$A,CONCATENATE($F$3,"|",R$5,"|",$E$5,"|",$G$2,"|",$G$3,"|", R$7,"|",$D26,"|",R$6,"|",$I$3)), SUMIFS('DATA MART_'!$R:$R,'DATA MART_'!$H:$H,$F$3,'DATA MART_'!$A:$A,CONCATENATE($F$3,"|",R$5,"|",$E$5,"|",$G$2,"|",$G$3,"|", R$7,"|",$D26,"|",R$6,"|",$I$3), 'DATA MART_'!$G:$G,$F$2)) -> 0 | S26: =IF($F$2="TO",SUMIFS('DATA MART_'!$R:$R,'DATA MART_'!$H:$H,$F$3,'DATA MART_'!$A:$A,CONCATENATE($F$3,"|",S$5,"|",$E$5,"|",$G$2,"|",$G$3,"|", S$7,"|",$D26,"|",S$6,"|",$I$3)), SUMIFS('DATA MART_'!$R:$R,'DATA MART_'!$H:$H,$F$3,'DATA MART_'!$A:$A,CONCATENATE($F$3,"|",S$5,"|",$E$5,"|",$G$2,"|",$G$3,"|", S$7,"|",$D26,"|",S$6,"|",$I$3), 'DATA MART_'!$G:$G,$F$2)) -> 0 | T26: =IF($F$2="TO",SUMIFS('DATA MART_'!$R:$R,'DATA MART_'!$H:$H,$F$3,'DATA MART_'!$A:$A,CONCATENATE($F$3,"|",T$5,"|",$E$5,"|",$G$2,"|",$G$3,"|", T$7,"|",$D26,"|",T$6,"|",$I$3)), SUMIFS('DATA MART_'!$R:$R,'DATA MART_'!$H:$H,$F$3,'DATA MART_'!$A:$A,CONCATENATE($F$3,"|",T$5,"|",$E$5,"|",$G$2,"|",$G$3,"|", T$7,"|",$D26,"|",T$6,"|",$I$3), 'DATA MART_'!$G:$G,$F$2)) -> 0 | U26: 0 | V26: 0 | X26: =IF($F$2="TO",SUMIFS('DATA MART_'!$R:$R,'DATA MART_'!$H:$H,$F$3,'DATA MART_'!$A:$A,CONCATENATE($F$3,"|",X$5,"|",$E$5,"|",$G$2,"|",$G$3,"|", X$7,"|",$D26,"|",X$6,"|",$I$3)), SUMIFS('DATA MART_'!$R:$R,'DATA MART_'!$H:$H,$F$3,'DATA MART_'!$A:$A,CONCATENATE($F$3,"|",X$5,"|",$E$5,"|",$G$2,"|",$G$3,"|", X$7,"|",$D26,"|",X$6,"|",$I$3), 'DATA MART_'!$G:$G,$F$2)) -> 0 | Z26: =IF($F$2="TO",SUMIFS('DATA MART_'!$R:$R,'DATA MART_'!$H:$H,$F$3,'DATA MART_'!$A:$A,CONCATENATE($F$3,"|",Z$5,"|",$E$5,"|",$G$2,"|",$G$3,"|", Z$7,"|",$D26,"|",Z$6,"|",$I$3)), SUMIFS('DATA MART_'!$R:$R,'DATA MART_'!$H:$H,$F$3,'DATA MART_'!$A:$A,CONCATENATE($F$3,"|",Z$5,"|",$E$5,"|",$G$2,"|",$G$3,"|", Z$7,"|",$D26,"|",Z$6,"|",$I$3), 'DATA MART_'!$G:$G,$F$2)) -> 0 | AB26: =IF($F$2="TO",SUMIFS('DATA MART_'!$R:$R,'DATA MART_'!$H:$H,$F$3,'DATA MART_'!$A:$A,CONCATENATE($F$3,"|",AB$5,"|",$E$5,"|",$G$2,"|",$G$3,"|", AB$7,"|",$D26,"|",AB$6,"|",$I$3)), SUMIFS('DATA MART_'!$R:$R,'DATA MART_'!$H:$H,$F$3,'DATA MART_'!$A:$A,CONCATENATE($F$3,"|",AB$5,"|",$E$5,"|",$G$2,"|",$G$3,"|", AB$7,"|",$D26,"|",AB$6,"|",$I$3), 'DATA MART_'!$G:$G,$F$2)) -> 0 | AD26: 0 | AE26: 101000
D27: =VLOOKUP(TRIM(F27),'DATA MART_'!$AD$3:$AF$25,3,0) -> 0 | F27: TOTAL | G27: =IF($F$2="TO",SUMIFS('DATA MART_'!$R:$R,'DATA MART_'!$H:$H,$F$3,'DATA MART_'!$A:$A,CONCATENATE($F$3,"|",G$5,"|",$E$5,"|",$G$2,"|",$G$3,"|", G$7,"|",$D27,"|",G$6,"|",$I$3)), SUMIFS('DATA MART_'!$R:$R,'DATA MART_'!$H:$H,$F$3,'DATA MART_'!$A:$A,CONCATENATE($F$3,"|",G$5,"|",$E$5,"|",$G$2,"|",$G$3,"|", G$7,"|",$D27,"|",G$6,"|",$I$3), 'DATA MART_'!$G:$G,$F$2)) -> 0 | H27: =IF($F$2="TO",SUMIFS('DATA MART_'!$R:$R,'DATA MART_'!$H:$H,$F$3,'DATA MART_'!$A:$A,CONCATENATE($F$3,"|",H$5,"|",$E$5,"|",$G$2,"|",$G$3,"|", H$7,"|",$D27,"|",H$6,"|",$I$3)), SUMIFS('DATA MART_'!$R:$R,'DATA MART_'!$H:$H,$F$3,'DATA MART_'!$A:$A,CONCATENATE($F$3,"|",H$5,"|",$E$5,"|",$G$2,"|",$G$3,"|", H$7,"|",$D27,"|",H$6,"|",$I$3), 'DATA MART_'!$G:$G,$F$2)) -> 0 | I27: =IF($F$2="TO",SUMIFS('DATA MART_'!$R:$R,'DATA MART_'!$H:$H,$F$3,'DATA MART_'!$A:$A,CONCATENATE($F$3,"|",I$5,"|",$E$5,"|",$G$2,"|",$G$3,"|", I$7,"|",$D27,"|",I$6,"|",$I$3)), SUMIFS('DATA MART_'!$R:$R,'DATA MART_'!$H:$H,$F$3,'DATA MART_'!$A:$A,CONCATENATE($F$3,"|",I$5,"|",$E$5,"|",$G$2,"|",$G$3,"|", I$7,"|",$D27,"|",I$6,"|",$I$3), 'DATA MART_'!$G:$G,$F$2)) -> 0 | J27: =IF($F$2="TO",SUMIFS('DATA MART_'!$R:$R,'DATA MART_'!$H:$H,$F$3,'DATA MART_'!$A:$A,CONCATENATE($F$3,"|",J$5,"|",$E$5,"|",$G$2,"|",$G$3,"|", J$7,"|",$D27,"|",J$6,"|",$I$3)), SUMIFS('DATA MART_'!$R:$R,'DATA MART_'!$H:$H,$F$3,'DATA MART_'!$A:$A,CONCATENATE($F$3,"|",J$5,"|",$E$5,"|",$G$2,"|",$G$3,"|", J$7,"|",$D27,"|",J$6,"|",$I$3), 'DATA MART_'!$G:$G,$F$2)) -> 0 | K27: =IF($F$2="TO",SUMIFS('DATA MART_'!$R:$R,'DATA MART_'!$H:$H,$F$3,'DATA MART_'!$A:$A,CONCATENATE($F$3,"|",K$5,"|",$E$5,"|",$G$2,"|",$G$3,"|", K$7,"|",$D27,"|",K$6,"|",$I$3)), SUMIFS('DATA MART_'!$R:$R,'DATA MART_'!$H:$H,$F$3,'DATA MART_'!$A:$A,CONCATENATE($F$3,"|",K$5,"|",$E$5,"|",$G$2,"|",$G$3,"|", K$7,"|",$D27,"|",K$6,"|",$I$3), 'DATA MART_'!$G:$G,$F$2)) -> 0 | L27: =IF($F$2="TO",SUMIFS('DATA MART_'!$R:$R,'DATA MART_'!$H:$H,$F$3,'DATA MART_'!$A:$A,CONCATENATE($F$3,"|",L$5,"|",$E$5,"|",$G$2,"|",$G$3,"|", L$7,"|",$D27,"|",L$6,"|",$I$3)), SUMIFS('DATA MART_'!$R:$R,'DATA MART_'!$H:$H,$F$3,'DATA MART_'!$A:$A,CONCATENATE($F$3,"|",L$5,"|",$E$5,"|",$G$2,"|",$G$3,"|", L$7,"|",$D27,"|",L$6,"|",$I$3), 'DATA MART_'!$G:$G,$F$2)) -> 0 | M27: 0 | N27: 0 | O27: =IF($F$2="TO",SUMIFS('DATA MART_'!$R:$R,'DATA MART_'!$H:$H,$F$3,'DATA MART_'!$A:$A,CONCATENATE($F$3,"|",O$5,"|",$E$5,"|",$G$2,"|",$G$3,"|", O$7,"|",$D27,"|",O$6,"|",$I$3)), SUMIFS('DATA MART_'!$R:$R,'DATA MART_'!$H:$H,$F$3,'DATA MART_'!$A:$A,CONCATENATE($F$3,"|",O$5,"|",$E$5,"|",$G$2,"|",$G$3,"|", O$7,"|",$D27,"|",O$6,"|",$I$3), 'DATA MART_'!$G:$G,$F$2)) -> 0 | P27: =IF($F$2="TO",SUMIFS('DATA MART_'!$R:$R,'DATA MART_'!$H:$H,$F$3,'DATA MART_'!$A:$A,CONCATENATE($F$3,"|",P$5,"|",$E$5,"|",$G$2,"|",$G$3,"|", P$7,"|",$D27,"|",P$6,"|",$I$3)), SUMIFS('DATA MART_'!$R:$R,'DATA MART_'!$H:$H,$F$3,'DATA MART_'!$A:$A,CONCATENATE($F$3,"|",P$5,"|",$E$5,"|",$G$2,"|",$G$3,"|", P$7,"|",$D27,"|",P$6,"|",$I$3), 'DATA MART_'!$G:$G,$F$2)) -> 0 | Q27: =IF($F$2="TO",SUMIFS('DATA MART_'!$R:$R,'DATA MART_'!$H:$H,$F$3,'DATA MART_'!$A:$A,CONCATENATE($F$3,"|",Q$5,"|",$E$5,"|",$G$2,"|",$G$3,"|", Q$7,"|",$D27,"|",Q$6,"|",$I$3)), SUMIFS('DATA MART_'!$R:$R,'DATA MART_'!$H:$H,$F$3,'DATA MART_'!$A:$A,CONCATENATE($F$3,"|",Q$5,"|",$E$5,"|",$G$2,"|",$G$3,"|", Q$7,"|",$D27,"|",Q$6,"|",$I$3), 'DATA MART_'!$G:$G,$F$2)) -> 0 | R27: =IF($F$2="TO",SUMIFS('DATA MART_'!$R:$R,'DATA MART_'!$H:$H,$F$3,'DATA MART_'!$A:$A,CONCATENATE($F$3,"|",R$5,"|",$E$5,"|",$G$2,"|",$G$3,"|", R$7,"|",$D27,"|",R$6,"|",$I$3)), SUMIFS('DATA MART_'!$R:$R,'DATA MART_'!$H:$H,$F$3,'DATA MART_'!$A:$A,CONCATENATE($F$3,"|",R$5,"|",$E$5,"|",$G$2,"|",$G$3,"|", R$7,"|",$D27,"|",R$6,"|",$I$3), 'DATA MART_'!$G:$G,$F$2)) -> 0 | S27: =IF($F$2="TO",SUMIFS('DATA MART_'!$R:$R,'DATA MART_'!$H:$H,$F$3,'DATA MART_'!$A:$A,CONCATENATE($F$3,"|",S$5,"|",$E$5,"|",$G$2,"|",$G$3,"|", S$7,"|",$D27,"|",S$6,"|",$I$3)), SUMIFS('DATA MART_'!$R:$R,'DATA MART_'!$H:$H,$F$3,'DATA MART_'!$A:$A,CONCATENATE($F$3,"|",S$5,"|",$E$5,"|",$G$2,"|",$G$3,"|", S$7,"|",$D27,"|",S$6,"|",$I$3), 'DATA MART_'!$G:$G,$F$2)) -> 0 | T27: =IF($F$2="TO",SUMIFS('DATA MART_'!$R:$R,'DATA MART_'!$H:$H,$F$3,'DATA MART_'!$A:$A,CONCATENATE($F$3,"|",T$5,"|",$E$5,"|",$G$2,"|",$G$3,"|", T$7,"|",$D27,"|",T$6,"|",$I$3)), SUMIFS('DATA MART_'!$R:$R,'DATA MART_'!$H:$H,$F$3,'DATA MART_'!$A:$A,CONCATENATE($F$3,"|",T$5,"|",$E$5,"|",$G$2,"|",$G$3,"|", T$7,"|",$D27,"|",T$6,"|",$I$3), 'DATA MART_'!$G:$G,$F$2)) -> 0 | U27: 0 | V27: 0 | W27: =IF($F$2="TO",SUMIFS('DATA MART_'!$R:$R,'DATA MART_'!$H:$H,$F$3,'DATA MART_'!$A:$A,CONCATENATE($F$3,"|",W$5,"|",$E$5,"|",$G$2,"|",$G$3,"|", W$7,"|",$D27,"|",W$6,"|",$I$3)), SUMIFS('DATA MART_'!$R:$R,'DATA MART_'!$H:$H,$F$3,'DATA MART_'!$A:$A,CONCATENATE($F$3,"|",W$5,"|",$E$5,"|",$G$2,"|",$G$3,"|", W$7,"|",$D27,"|",W$6,"|",$I$3), 'DATA MART_'!$G:$G,$F$2)) -> 0 | X27: =IF($F$2="TO",SUMIFS('DATA MART_'!$R:$R,'DATA MART_'!$H:$H,$F$3,'DATA MART_'!$A:$A,CONCATENATE($F$3,"|",X$5,"|",$E$5,"|",$G$2,"|",$G$3,"|", X$7,"|",$D27,"|",X$6,"|",$I$3)), SUMIFS('DATA MART_'!$R:$R,'DATA MART_'!$H:$H,$F$3,'DATA MART_'!$A:$A,CONCATENATE($F$3,"|",X$5,"|",$E$5,"|",$G$2,"|",$G$3,"|", X$7,"|",$D27,"|",X$6,"|",$I$3), 'DATA MART_'!$G:$G,$F$2)) -> 0 | Y27: =IF($F$2="TO",SUMIFS('DATA MART_'!$R:$R,'DATA MART_'!$H:$H,$F$3,'DATA MART_'!$A:$A,CONCATENATE($F$3,"|",Y$5,"|",$E$5,"|",$G$2,"|",$G$3,"|", Y$7,"|",$D27,"|",Y$6,"|",$I$3)), SUMIFS('DATA MART_'!$R:$R,'DATA MART_'!$H:$H,$F$3,'DATA MART_'!$A:$A,CONCATENATE($F$3,"|",Y$5,"|",$E$5,"|",$G$2,"|",$G$3,"|", Y$7,"|",$D27,"|",Y$6,"|",$I$3), 'DATA MART_'!$G:$G,$F$2)) -> 0 | Z27: =IF($F$2="TO",SUMIFS('DATA MART_'!$R:$R,'DATA MART_'!$H:$H,$F$3,'DATA MART_'!$A:$A,CONCATENATE($F$3,"|",Z$5,"|",$E$5,"|",$G$2,"|",$G$3,"|", Z$7,"|",$D27,"|",Z$6,"|",$I$3)), SUMIFS('DATA MART_'!$R:$R,'DATA MART_'!$H:$H,$F$3,'DATA MART_'!$A:$A,CONCATENATE($F$3,"|",Z$5,"|",$E$5,"|",$G$2,"|",$G$3,"|", Z$7,"|",$D27,"|",Z$6,"|",$I$3), 'DATA MART_'!$G:$G,$F$2)) -> 0 | AA27: =IF($F$2="TO",SUMIFS('DATA MART_'!$R:$R,'DATA MART_'!$H:$H,$F$3,'DATA MART_'!$A:$A,CONCATENATE($F$3,"|",AA$5,"|",$E$5,"|",$G$2,"|",$G$3,"|", AA$7,"|",$D27,"|",AA$6,"|",$I$3)), SUMIFS('DATA MART_'!$R:$R,'DATA MART_'!$H:$H,$F$3,'DATA MART_'!$A:$A,CONCATENATE($F$3,"|",AA$5,"|",$E$5,"|",$G$2,"|",$G$3,"|", AA$7,"|",$D27,"|",AA$6,"|",$I$3), 'DATA MART_'!$G:$G,$F$2)) -> 0 | AB27: =IF($F$2="TO",SUMIFS('DATA MART_'!$R:$R,'DATA MART_'!$H:$H,$F$3,'DATA MART_'!$A:$A,CONCATENATE($F$3,"|",AB$5,"|",$E$5,"|",$G$2,"|",$G$3,"|", AB$7,"|",$D27,"|",AB$6,"|",$I$3)), SUMIFS('DATA MART_'!$R:$R,'DATA MART_'!$H:$H,$F$3,'DATA MART_'!$A:$A,CONCATENATE($F$3,"|",AB$5,"|",$E$5,"|",$G$2,"|",$G$3,"|", AB$7,"|",$D27,"|",AB$6,"|",$I$3), 'DATA MART_'!$G:$G,$F$2)) -> 0 | AC27: =W27+Y27+AA27 -> 0 | AD27: 0
D28: =VLOOKUP(TRIM(F28),'DATA MART_'!$AD$3:$AF$25,3,0) -> 22 | F28: Securitisation and re-securitisations positions deducted from capital * | G28: =IF($F$2="TO",SUMIFS('DATA MART_'!$R:$R,'DATA MART_'!$H:$H,$F$3,'DATA MART_'!$A:$A,CONCATENATE($F$3,"|",G$5,"|",$E$5,"|",$G$2,"|",$G$3,"|", G$7,"|",$D28,"|",G$6,"|",$I$3)), SUMIFS('DATA MART_'!$R:$R,'DATA MART_'!$H:$H,$F$3,'DATA MART_'!$A:$A,CONCATENATE($F$3,"|",G$5,"|",$E$5,"|",$G$2,"|",$G$3,"|", G$7,"|",$D28,"|",G$6,"|",$I$3), 'DATA MART_'!$G:$G,$F$2)) -> 0 | H28: =IF($F$2="TO",SUMIFS('DATA MART_'!$R:$R,'DATA MART_'!$H:$H,$F$3,'DATA MART_'!$A:$A,CONCATENATE($F$3,"|",H$5,"|",$E$5,"|",$G$2,"|",$G$3,"|", H$7,"|",$D28,"|",H$6,"|",$I$3)), SUMIFS('DATA MART_'!$R:$R,'DATA MART_'!$H:$H,$F$3,'DATA MART_'!$A:$A,CONCATENATE($F$3,"|",H$5,"|",$E$5,"|",$G$2,"|",$G$3,"|", H$7,"|",$D28,"|",H$6,"|",$I$3), 'DATA MART_'!$G:$G,$F$2)) -> 0 | I28: =IF($F$2="TO",SUMIFS('DATA MART_'!$R:$R,'DATA MART_'!$H:$H,$F$3,'DATA MART_'!$A:$A,CONCATENATE($F$3,"|",I$5,"|",$E$5,"|",$G$2,"|",$G$3,"|", I$7,"|",$D28,"|",I$6,"|",$I$3)), SUMIFS('DATA MART_'!$R:$R,'DATA MART_'!$H:$H,$F$3,'DATA MART_'!$A:$A,CONCATENATE($F$3,"|",I$5,"|",$E$5,"|",$G$2,"|",$G$3,"|", I$7,"|",$D28,"|",I$6,"|",$I$3), 'DATA MART_'!$G:$G,$F$2)) -> 0 | J28: =IF($F$2="TO",SUMIFS('DATA MART_'!$R:$R,'DATA MART_'!$H:$H,$F$3,'DATA MART_'!$A:$A,CONCATENATE($F$3,"|",J$5,"|",$E$5,"|",$G$2,"|",$G$3,"|", J$7,"|",$D28,"|",J$6,"|",$I$3)), SUMIFS('DATA MART_'!$R:$R,'DATA MART_'!$H:$H,$F$3,'DATA MART_'!$A:$A,CONCATENATE($F$3,"|",J$5,"|",$E$5,"|",$G$2,"|",$G$3,"|", J$7,"|",$D28,"|",J$6,"|",$I$3), 'DATA MART_'!$G:$G,$F$2)) -> 0 | K28: =IF($F$2="TO",SUMIFS('DATA MART_'!$R:$R,'DATA MART_'!$H:$H,$F$3,'DATA MART_'!$A:$A,CONCATENATE($F$3,"|",K$5,"|",$E$5,"|",$G$2,"|",$G$3,"|", K$7,"|",$D28,"|",K$6,"|",$I$3)), SUMIFS('DATA MART_'!$R:$R,'DATA MART_'!$H:$H,$F$3,'DATA MART_'!$A:$A,CONCATENATE($F$3,"|",K$5,"|",$E$5,"|",$G$2,"|",$G$3,"|", K$7,"|",$D28,"|",K$6,"|",$I$3), 'DATA MART_'!$G:$G,$F$2)) -> 0 | L28: =IF($F$2="TO",SUMIFS('DATA MART_'!$R:$R,'DATA MART_'!$H:$H,$F$3,'DATA MART_'!$A:$A,CONCATENATE($F$3,"|",L$5,"|",$E$5,"|",$G$2,"|",$G$3,"|", L$7,"|",$D28,"|",L$6,"|",$I$3)), SUMIFS('DATA MART_'!$R:$R,'DATA MART_'!$H:$H,$F$3,'DATA MART_'!$A:$A,CONCATENATE($F$3,"|",L$5,"|",$E$5,"|",$G$2,"|",$G$3,"|", L$7,"|",$D28,"|",L$6,"|",$I$3), 'DATA MART_'!$G:$G,$F$2)) -> 0 | M28: 0 | N28: 0 | O28: =IF($F$2="TO",SUMIFS('DATA MART_'!$R:$R,'DATA MART_'!$H:$H,$F$3,'DATA MART_'!$A:$A,CONCATENATE($F$3,"|",O$5,"|",$E$5,"|",$G$2,"|",$G$3,"|", O$7,"|",$D28,"|",O$6,"|",$I$3)), SUMIFS('DATA MART_'!$R:$R,'DATA MART_'!$H:$H,$F$3,'DATA MART_'!$A:$A,CONCATENATE($F$3,"|",O$5,"|",$E$5,"|",$G$2,"|",$G$3,"|", O$7,"|",$D28,"|",O$6,"|",$I$3), 'DATA MART_'!$G:$G,$F$2)) -> 0 | P28: =IF($F$2="TO",SUMIFS('DATA MART_'!$R:$R,'DATA MART_'!$H:$H,$F$3,'DATA MART_'!$A:$A,CONCATENATE($F$3,"|",P$5,"|",$E$5,"|",$G$2,"|",$G$3,"|", P$7,"|",$D28,"|",P$6,"|",$I$3)), SUMIFS('DATA MART_'!$R:$R,'DATA MART_'!$H:$H,$F$3,'DATA MART_'!$A:$A,CONCATENATE($F$3,"|",P$5,"|",$E$5,"|",$G$2,"|",$G$3,"|", P$7,"|",$D28,"|",P$6,"|",$I$3), 'DATA MART_'!$G:$G,$F$2)) -> 0 | Q28: =IF($F$2="TO",SUMIFS('DATA MART_'!$R:$R,'DATA MART_'!$H:$H,$F$3,'DATA MART_'!$A:$A,CONCATENATE($F$3,"|",Q$5,"|",$E$5,"|",$G$2,"|",$G$3,"|", Q$7,"|",$D28,"|",Q$6,"|",$I$3)), SUMIFS('DATA MART_'!$R:$R,'DATA MART_'!$H:$H,$F$3,'DATA MART_'!$A:$A,CONCATENATE($F$3,"|",Q$5,"|",$E$5,"|",$G$2,"|",$G$3,"|", Q$7,"|",$D28,"|",Q$6,"|",$I$3), 'DATA MART_'!$G:$G,$F$2)) -> 0 | R28: =IF($F$2="TO",SUMIFS('DATA MART_'!$R:$R,'DATA MART_'!$H:$H,$F$3,'DATA MART_'!$A:$A,CONCATENATE($F$3,"|",R$5,"|",$E$5,"|",$G$2,"|",$G$3,"|", R$7,"|",$D28,"|",R$6,"|",$I$3)), SUMIFS('DATA MART_'!$R:$R,'DATA MART_'!$H:$H,$F$3,'DATA MART_'!$A:$A,CONCATENATE($F$3,"|",R$5,"|",$E$5,"|",$G$2,"|",$G$3,"|", R$7,"|",$D28,"|",R$6,"|",$I$3), 'DATA MART_'!$G:$G,$F$2)) -> 0 | S28: =IF($F$2="TO",SUMIFS('DATA MART_'!$R:$R,'DATA MART_'!$H:$H,$F$3,'DATA MART_'!$A:$A,CONCATENATE($F$3,"|",S$5,"|",$E$5,"|",$G$2,"|",$G$3,"|", S$7,"|",$D28,"|",S$6,"|",$I$3)), SUMIFS('DATA MART_'!$R:$R,'DATA MART_'!$H:$H,$F$3,'DATA MART_'!$A:$A,CONCATENATE($F$3,"|",S$5,"|",$E$5,"|",$G$2,"|",$G$3,"|", S$7,"|",$D28,"|",S$6,"|",$I$3), 'DATA MART_'!$G:$G,$F$2)) -> 0 | T28: =IF($F$2="TO",SUMIFS('DATA MART_'!$R:$R,'DATA MART_'!$H:$H,$F$3,'DATA MART_'!$A:$A,CONCATENATE($F$3,"|",T$5,"|",$E$5,"|",$G$2,"|",$G$3,"|", T$7,"|",$D28,"|",T$6,"|",$I$3)), SUMIFS('DATA MART_'!$R:$R,'DATA MART_'!$H:$H,$F$3,'DATA MART_'!$A:$A,CONCATENATE($F$3,"|",T$5,"|",$E$5,"|",$G$2,"|",$G$3,"|", T$7,"|",$D28,"|",T$6,"|",$I$3), 'DATA MART_'!$G:$G,$F$2)) -> 0 | U28: 0 | V28: 0 | X28: =IF($F$2="TO",SUMIFS('DATA MART_'!$R:$R,'DATA MART_'!$H:$H,$F$3,'DATA MART_'!$A:$A,CONCATENATE($F$3,"|",X$5,"|",$E$5,"|",$G$2,"|",$G$3,"|", X$7,"|",$D28,"|",X$6,"|",$I$3)), SUMIFS('DATA MART_'!$R:$R,'DATA MART_'!$H:$H,$F$3,'DATA MART_'!$A:$A,CONCATENATE($F$3,"|",X$5,"|",$E$5,"|",$G$2,"|",$G$3,"|", X$7,"|",$D28,"|",X$6,"|",$I$3), 'DATA MART_'!$G:$G,$F$2)) -> 0 | Z28: =IF($F$2="TO",SUMIFS('DATA MART_'!$R:$R,'DATA MART_'!$H:$H,$F$3,'DATA MART_'!$A:$A,CONCATENATE($F$3,"|",Z$5,"|",$E$5,"|",$G$2,"|",$G$3,"|", Z$7,"|",$D28,"|",Z$6,"|",$I$3)), SUMIFS('DATA MART_'!$R:$R,'DATA MART_'!$H:$H,$F$3,'DATA MART_'!$A:$A,CONCATENATE($F$3,"|",Z$5,"|",$E$5,"|",$G$2,"|",$G$3,"|", Z$7,"|",$D28,"|",Z$6,"|",$I$3), 'DATA MART_'!$G:$G,$F$2)) -> 0 | AB28: =IF($F$2="TO",SUMIFS('DATA MART_'!$R:$R,'DATA MART_'!$H:$H,$F$3,'DATA MART_'!$A:$A,CONCATENATE($F$3,"|",AB$5,"|",$E$5,"|",$G$2,"|",$G$3,"|", AB$7,"|",$D28,"|",AB$6,"|",$I$3)), SUMIFS('DATA MART_'!$R:$R,'DATA MART_'!$H:$H,$F$3,'DATA MART_'!$A:$A,CONCATENATE($F$3,"|",AB$5,"|",$E$5,"|",$G$2,"|",$G$3,"|", AB$7,"|",$D28,"|",AB$6,"|",$I$3), 'DATA MART_'!$G:$G,$F$2)) -> 0 | AD28: 0
E29: Notes and definitions
E30: * Refers to the part of Securitization exposure that is deducted from capital and is not included in RWA
E31: ** As explained in the Guidelines

Sheet 1. Capital Composition_ (hidden)
D1: =RIGHT(LEFT(Menu!H6,6),5) ->  | E1: OK | F1: 0 | G1: 0 | H1: 0
C2: 1. CAPITAL | D2: Period | E2: 0 | F2: 0 | G2: 0 | H2: 0
H3: =+D1 -> 
H4: =VLOOKUP(H3,ANNEX!B12:C75,2) -> 
A6: PERIOD | B6: ITEM
C7: Capital position CRD3 rules | D7: 2012-12-31 | F7: 2013-06-30 | H7: References to COREP reporting
D8: Million EUR | E8: % RWA | F8: Million EUR | G8: % RWA
B9: =VLOOKUP(C9,'DATA MART_'!$Z$30:$AA$81,2,0) -> 100100 | C9: A) Common equity before deductions (Original own funds without hybrid instruments and government support measures other than ordinary shares) (+) | D9: =VLOOKUP(CONCATENATE($D$1,"|",$D$7,"|",$B9,"|",$E$2,"|",$F$1,"|",$F$2,"|",$G$1,"|",$G$2,"|",$H$1,"|",$H$2),'DATA MART_'!$C$2:$R$985098,16,0) ->  | F9: =VLOOKUP(CONCATENATE($D$1,"|",$F$7,"|",$B9,"|",$E$2,"|",$F$1,"|",$F$2,"|",$G$1,"|",$G$2,"|",$H$1,"|",$H$2),'DATA MART_'!$C$2:$R$985098,16,0) ->  | H9: COREP CA 1.1 without Hybrid instruments and government support measures other than ordinary shares | J9: 100100
B10: 100103 | C10: Of which: adjustment to valuation differences in other AFS assets (1) (-/+) | D10: =VLOOKUP(CONCATENATE($D$1,"|",$D$7,"|",$B10,"|",$E$2,"|",$F$1,"|",$F$2,"|",$G$1,"|",$G$2,"|",$H$1,"|",$H$2),'DATA MART_'!$C$2:$R$985098,16,0) ->  | F10: =VLOOKUP(CONCATENATE($D$1,"|",$F$7,"|",$B10,"|",$E$2,"|",$F$1,"|",$F$2,"|",$G$1,"|",$G$2,"|",$H$1,"|",$H$2),'DATA MART_'!$C$2:$R$985098,16,0) ->  | H10: Prudential filters for regulatory capital (COREP line 1.1.2.6.06) | J10: 100103
B11: =VLOOKUP(C11,'DATA MART_'!$Z$30:$AA$81,2,0) -> 100200 | C11: B) Deductions from common equity (Elements deducted from original own funds) (-) | D11: =VLOOKUP(CONCATENATE($D$1,"|",$D$7,"|",$B11,"|",$E$2,"|",$F$1,"|",$F$2,"|",$G$1,"|",$G$2,"|",$H$1,"|",$H$2),'DATA MART_'!$C$2:$R$985098,16,0) ->  | F11: =VLOOKUP(CONCATENATE($D$1,"|",$F$7,"|",$B11,"|",$E$2,"|",$F$1,"|",$F$2,"|",$G$1,"|",$G$2,"|",$H$1,"|",$H$2),'DATA MART_'!$C$2:$R$985098,16,0) ->  | H11: COREP CA 1.3.T1* (negative amount) | J11: 100200
B12: 100203 | C12: Of which: IRB provision shortfall and IRB equity expected loss amounts (before tax) (-) | D12: =VLOOKUP(CONCATENATE($D$1,"|",$D$7,"|",$B12,"|",$E$2,"|",$F$1,"|",$F$2,"|",$G$1,"|",$G$2,"|",$H$1,"|",$H$2),'DATA MART_'!$C$2:$R$985098,16,0) ->  | F12: =VLOOKUP(CONCATENATE($D$1,"|",$F$7,"|",$B12,"|",$E$2,"|",$F$1,"|",$F$2,"|",$G$1,"|",$G$2,"|",$H$1,"|",$H$2),'DATA MART_'!$C$2:$R$985098,16,0) ->  | H12: As defined by Article 57 (q) of Directive 2006/48/EC (COREP line 1.3.8 included in 1.3.T1*) | J12: 100203
B13: =VLOOKUP(C13,'DATA MART_'!$Z$30:$AA$81,2,0) -> 100300 | C13: C) Common equity (A+B) | D13: =VLOOKUP(CONCATENATE($D$1,"|",$D$7,"|",$B13,"|",$E$2,"|",$F$1,"|",$F$2,"|",$G$1,"|",$G$2,"|",$H$1,"|",$H$2),'DATA MART_'!$C$2:$R$985098,16,0) ->  | E13: =IF(D$20>0,D13/D$20,"") ->  | F13: =VLOOKUP(CONCATENATE($D$1,"|",$F$7,"|",$B13,"|",$E$2,"|",$F$1,"|",$F$2,"|",$G$1,"|",$G$2,"|",$H$1,"|",$H$2),'DATA MART_'!$C$2:$R$985098,16,0) ->  | G13: =IF(F$20>0,F13/F$20,"") ->  | J13: 100300
B14: =VLOOKUP(C14,'DATA MART_'!$Z$30:$AA$81,2,0) -> 100301 | C14: Of which: ordinary shares subscribed by government | D14: =VLOOKUP(CONCATENATE($D$1,"|",$D$7,"|",$B14,"|",$E$2,"|",$F$1,"|",$F$2,"|",$G$1,"|",$G$2,"|",$H$1,"|",$H$2),'DATA MART_'!$C$2:$R$985098,16,0) ->  | F14: =VLOOKUP(CONCATENATE($D$1,"|",$F$7,"|",$B14,"|",$E$2,"|",$F$1,"|",$F$2,"|",$G$1,"|",$G$2,"|",$H$1,"|",$H$2),'DATA MART_'!$C$2:$R$985098,16,0) ->  | H14: Paid up ordinary shares subscribed by government | J14: 100301
B15: =VLOOKUP(C15,'DATA MART_'!$Z$30:$AA$81,2,0) -> 100402 | C15: D) CoCos issued before 30 June 2012 according to EBA Common Term Sheet (+) | D15: =VLOOKUP(CONCATENATE($D$1,"|",$D$7,"|",$B15,"|",$E$2,"|",$F$1,"|",$F$2,"|",$G$1,"|",$G$2,"|",$H$1,"|",$H$2),'DATA MART_'!$C$2:$R$985098,16,0) ->  | F15: =VLOOKUP(CONCATENATE($D$1,"|",$F$7,"|",$B15,"|",$E$2,"|",$F$1,"|",$F$2,"|",$G$1,"|",$G$2,"|",$H$1,"|",$H$2),'DATA MART_'!$C$2:$R$985098,16,0) ->  | H15: EBA/REC/2011/1 | J15: 100400
B16: =VLOOKUP(C16,'DATA MART_'!$Z$30:$AA$81,2,0) -> 100500 | C16: E) Other Existing government support measures (+) | D16: =VLOOKUP(CONCATENATE($D$1,"|",$D$7,"|",$B16,"|",$E$2,"|",$F$1,"|",$F$2,"|",$G$1,"|",$G$2,"|",$H$1,"|",$H$2),'DATA MART_'!$C$2:$R$985098,16,0) ->  | F16: =VLOOKUP(CONCATENATE($D$1,"|",$F$7,"|",$B16,"|",$E$2,"|",$F$1,"|",$F$2,"|",$G$1,"|",$G$2,"|",$H$1,"|",$H$2),'DATA MART_'!$C$2:$R$985098,16,0) ->  | J16: 100500
B17: =VLOOKUP(C17,'DATA MART_'!$Z$30:$AA$81,2,0) -> 100600 | C17: F) Core Tier 1 including other intruments eligible and existing government support measures (C+D+E) | D17: =VLOOKUP(CONCATENATE($D$1,"|",$D$7,"|",$B17,"|",$E$2,"|",$F$1,"|",$F$2,"|",$G$1,"|",$G$2,"|",$H$1,"|",$H$2),'DATA MART_'!$C$2:$R$985098,16,0) ->  | E17: =IF(D$20>0,D17/D$20,"") ->  | F17: =VLOOKUP(CONCATENATE($D$1,"|",$F$7,"|",$B17,"|",$E$2,"|",$F$1,"|",$F$2,"|",$G$1,"|",$G$2,"|",$H$1,"|",$H$2),'DATA MART_'!$C$2:$R$985098,16,0) ->  | G17: =IF(F$20>0,F17/F$20,"") ->  | J17: 100600
B18: =VLOOKUP(C18,'DATA MART_'!$Z$30:$AA$81,2,0) -> 100700 | C18: G) Hybrid instruments not subscribed by government | D18: =VLOOKUP(CONCATENATE($D$1,"|",$D$7,"|",$B18,"|",$E$2,"|",$F$1,"|",$F$2,"|",$G$1,"|",$G$2,"|",$H$1,"|",$H$2),'DATA MART_'!$C$2:$R$985098,16,0) ->  | F18: =VLOOKUP(CONCATENATE($D$1,"|",$F$7,"|",$B18,"|",$E$2,"|",$F$1,"|",$F$2,"|",$G$1,"|",$G$2,"|",$H$1,"|",$H$2),'DATA MART_'!$C$2:$R$985098,16,0) ->  | H18: Net amount included in T1 own funds (COREP line 1.1.4.1a + COREP lines from 1.1.2.2***01 to 1.1.2.2***05 + COREP line 1.1.5.2a (negative amount)) not subscribed by government | J18: 100700
B19: 100800 | C19: H) Tier 1 Capital (F+G) | D19: =VLOOKUP(CONCATENATE($D$1,"|",$D$7,"|",$B19,"|",$E$2,"|",$F$1,"|",$F$2,"|",$G$1,"|",$G$2,"|",$H$1,"|",$H$2),'DATA MART_'!$C$2:$R$985098,16,0) ->  | E19: =IF(D$20>0,D19/D$20,"") ->  | F19: =VLOOKUP(CONCATENATE($D$1,"|",$F$7,"|",$B19,"|",$E$2,"|",$F$1,"|",$F$2,"|",$G$1,"|",$G$2,"|",$H$1,"|",$H$2),'DATA MART_'!$C$2:$R$985098,16,0) ->  | G19: =IF(F$20>0,F19/F$20,"") ->  | H19: COREP CA 1.4 = COREP CA 1.1 + COREP CA 1.3.T1* (negative amount) | J19: 100800
B20: =VLOOKUP(C20,'DATA MART_'!$Z$30:$AA$81,2,0) -> 100900 | C20: I) RWA | D20: =VLOOKUP(CONCATENATE($D$1,"|",$D$7,"|",$B20,"|",$E$2,"|",$F$1,"|",$F$2,"|",$G$1,"|",$G$2,"|",$H$1,"|",$H$2),'DATA MART_'!$C$2:$R$985098,16,0) ->  | F20: =VLOOKUP(CONCATENATE($D$1,"|",$F$7,"|",$B20,"|",$E$2,"|",$F$1,"|",$F$2,"|",$G$1,"|",$G$2,"|",$H$1,"|",$H$2),'DATA MART_'!$C$2:$R$985098,16,0) ->  | J20: 100900
C21: CRR / CRDIV memo items
B22: =VLOOKUP(C22,'DATA MART_'!$Z$30:$AA$81,2,0) -> 130100 | C22: Common Equity instruments under A) not eligible as CET1 (under CRR) | D22: =VLOOKUP(CONCATENATE($D$1,"|",$D$7,"|",$B22,"|",$E$2,"|",$F$1,"|",$F$2,"|",$G$1,"|",$G$2,"|",$H$1,"|",$H$2),'DATA MART_'!$C$2:$R$985098,16,0) ->  | F22: =VLOOKUP(CONCATENATE($D$1,"|",$F$7,"|",$B22,"|",$E$2,"|",$F$1,"|",$F$2,"|",$G$1,"|",$G$2,"|",$H$1,"|",$H$2),'DATA MART_'!$C$2:$R$985098,16,0) ->  | H22: Articles 26(1) point (c) and 26(2) of CRR | J22: 101001 | N22: The template has been pre-filled in with the figures published on the EBA web site. Please, double check them and, should it be needed, change them.
B23: =VLOOKUP(C23,'DATA MART_'!$Z$30:$AA$81,2,0) -> 130200 | C23: Adjustments to Minority Interests | D23: =VLOOKUP(CONCATENATE($D$1,"|",$D$7,"|",$B23,"|",$E$2,"|",$F$1,"|",$F$2,"|",$G$1,"|",$G$2,"|",$H$1,"|",$H$2),'DATA MART_'!$C$2:$R$985098,16,0) ->  | F23: =VLOOKUP(CONCATENATE($D$1,"|",$F$7,"|",$B23,"|",$E$2,"|",$F$1,"|",$F$2,"|",$G$1,"|",$G$2,"|",$H$1,"|",$H$2),'DATA MART_'!$C$2:$R$985098,16,0) ->  | H23: Article 84 of CRR | J23: 101002 | N23: The template has been pre-filled in with the figures published on the EBA web site. Please, double check them and, should it be needed, change them.
B24: =VLOOKUP(C24,'DATA MART_'!$Z$30:$AA$81,2,0) -> 130300 | C24: DTAs that rely on future profitability (net of associated DTL) | D24: =VLOOKUP(CONCATENATE($D$1,"|",$D$7,"|",$B24,"|",$E$2,"|",$F$1,"|",$F$2,"|",$G$1,"|",$G$2,"|",$H$1,"|",$H$2),'DATA MART_'!$C$2:$R$985098,16,0) ->  | F24: =VLOOKUP(CONCATENATE($D$1,"|",$F$7,"|",$B24,"|",$E$2,"|",$F$1,"|",$F$2,"|",$G$1,"|",$G$2,"|",$H$1,"|",$H$2),'DATA MART_'!$C$2:$R$985098,16,0) ->  | H24: Articles 36(1) point (c) and 38 of CRR [new COREP CA4 lines {1.2 + 1.3 - 2.2.1 - 2.2.2}] | J24: 101000
B25: =VLOOKUP(C25,'DATA MART_'!$Z$30:$AA$81,2,0) -> 130400 | C25: Holdings of CET1 capital instruments of financial sector entities: reciprocal cross holdings, non significant and significant investments | D25: =VLOOKUP(CONCATENATE($D$1,"|",$D$7,"|",$B25,"|",$E$2,"|",$F$1,"|",$F$2,"|",$G$1,"|",$G$2,"|",$H$1,"|",$H$2),'DATA MART_'!$C$2:$R$985098,16,0) ->  | F25: =VLOOKUP(CONCATENATE($D$1,"|",$F$7,"|",$B25,"|",$E$2,"|",$F$1,"|",$F$2,"|",$G$1,"|",$G$2,"|",$H$1,"|",$H$2),'DATA MART_'!$C$2:$R$985098,16,0) ->  | H25: Articles 36(1) point (g), (h) and (i), 43, 44 and 45 of CRR | J25: 101100
B26: 130500 | C26: RWA for Credit Value Adjustment Risk (CVA) | D26: =VLOOKUP(CONCATENATE($D$1,"|",$D$7,"|",$B26,"|",$E$2,"|",$F$1,"|",$F$2,"|",$G$1,"|",$G$2,"|",$H$1,"|",$H$2),'DATA MART_'!$C$2:$R$985098,16,0) ->  | F26: =VLOOKUP(CONCATENATE($D$1,"|",$F$7,"|",$B26,"|",$E$2,"|",$F$1,"|",$F$2,"|",$G$1,"|",$G$2,"|",$H$1,"|",$H$2),'DATA MART_'!$C$2:$R$985098,16,0) ->  | H26: Articles 381 to 386 of CRR | J26: 101200
C27: Notes and definitions
C28: (1) The amount is already included in the computation of the eligible capital and reserves and it is provided separately for information purposes.

Sheet 2. Credit Risk Dec12_ (hidden)
A1: 0 | B1: No breakdown by portfolio
A2: 1 | B2: SA | E2: 2. CREDIT RISK | F2: =+'1. Capital Composition_'!H3 ->  | G2: Item | H2: 0 | I2: Status | J2: Portfolio
A3: 2 | B3: IRB | E3: as of 31 December 2012 | F3: 2012-12-31 | G3: Country | H3: 0 | I3: Exposure | J3: 0 | Y3: =+'1. Capital Composition_'!H3 -> 
A4: 3 | B4: F-IRB | Y4: =+'1. Capital Composition_'!H4 -> 
E5: =VLOOKUP(CONCATENATE($F$2,"|",$F$3,"|",H$5,"|",$H2,"|",$H$3,"|",H$7,"|",$D11,"|",$H$6,"|",$J$3),'DATA MART_'!$D$2:$R$1033646,8,0) ->  | G5: 401000 | H5: 400000 | I5: 400000 | J5: 400000 | K5: 400000 | L5: 400000 | M5: 400000 | N5: 400300 | O5: 400300 | P5: 400300 | Q5: 400300 | R5: 400300 | S5: 400300 | T5: 401100 | U5: 401100 | V5: 401100 | W5: 401100 | X5: 401100 | Y5: 401100
A6: 4 | B6: A-IRB | G6: 0 | H6: 3 | I6: 3 | J6: 4 | K6: 4 | L6: 1 | M6: 1 | N6: 3 | O6: 3 | P6: 4 | Q6: 4 | R6: 1 | S6: 1 | T6: 3 | U6: 3 | V6: 4 | W6: 4 | X6: 1 | Y6: 1
A7: 5 | B7: IM | G7: 0 | H7: 1 | I7: 2 | J7: 1 | K7: 2 | L7: 1 | M7: 2 | N7: 1 | O7: 2 | P7: 1 | Q7: 2 | R7: 1 | S7: 2 | T7: 1 | U7: 2 | V7: 1 | W7: 2 | X7: 1 | Y7: 2
E8: All couterparty countries | G8: LTV % ** (as of 31/12/2012) | H8: Exposure values (as of 31/12/2012) ** | N8: RWA (as of 31/12/2012) ** | T8: Value adjustments and provisions (as of 31/12/2012) **
H9: F-IRB | J9: A-IRB | L9: STA | N9: F-IRB | P9: A-IRB | R9: STA | T9: F-IRB | V9: A-IRB | X9: STA
H10: Non-defaulted | I10: Defaulted | J10: Non-defaulted | K10: Defaulted | L10: Non-defaulted | M10: Defaulted | N10: Non-defaulted | O10: Defaulted | P10: Non-defaulted | Q10: Defaulted | R10: Non-defaulted | S10: Defaulted | T10: Non-defaulted | U10: Defaulted | V10: Non-defaulted | W10: Defaulted | X10: Non-defaulted | Y10: Defaulted
D11: =VLOOKUP(TRIM(F11),'DATA MART_'!$AD$3:$AF$25,3,0) -> 1 | E11: =+'1. Capital Composition_'!H4 ->  | F11: Central banks and central governments | H11: =VLOOKUP(CONCATENATE($F$2,"|",$F$3,"|",H$5,"|",$E$5,"|",$H$2,"|",$H$3,"|",H$7,"|",$D11,"|",H$6,"|",$J$3),'DATA MART_'!$C$2:$R$985098,16,0) ->  | I11: =VLOOKUP(CONCATENATE($F$2,"|",$F$3,"|",I$5,"|",$E$5,"|",$H$2,"|",$H$3,"|",I$7,"|",$D11,"|",I$6,"|",$J$3),'DATA MART_'!$C$2:$R$985098,16,0) ->  | J11: =VLOOKUP(CONCATENATE($F$2,"|",$F$3,"|",J$5,"|",$E$5,"|",$H$2,"|",$H$3,"|",J$7,"|",$D11,"|",J$6,"|",$J$3),'DATA MART_'!$C$2:$R$985098,16,0) ->  | K11: =VLOOKUP(CONCATENATE($F$2,"|",$F$3,"|",K$5,"|",$E$5,"|",$H$2,"|",$H$3,"|",K$7,"|",$D11,"|",K$6,"|",$J$3),'DATA MART_'!$C$2:$R$985098,16,0) ->  | L11: =VLOOKUP(CONCATENATE($F$2,"|",$F$3,"|",L$5,"|",$E$5,"|",$H$2,"|",$H$3,"|",L$7,"|",$D11,"|",L$6,"|",$J$3),'DATA MART_'!$C$2:$R$985098,16,0) ->  | M11: =VLOOKUP(CONCATENATE($F$2,"|",$F$3,"|",M$5,"|",$E$5,"|",$H$2,"|",$H$3,"|",M$7,"|",$D11,"|",M$6,"|",$J$3),'DATA MART_'!$C$2:$R$985098,16,0) ->  | N11: =VLOOKUP(CONCATENATE($F$2,"|",$F$3,"|",N$5,"|",$E$5,"|",$H$2,"|",$H$3,"|",N$7,"|",$D11,"|",N$6,"|",$J$3),'DATA MART_'!$C$2:$R$985098,16,0) ->  | O11: =VLOOKUP(CONCATENATE($F$2,"|",$F$3,"|",O$5,"|",$E$5,"|",$H$2,"|",$H$3,"|",O$7,"|",$D11,"|",O$6,"|",$J$3),'DATA MART_'!$C$2:$R$985098,16,0) ->  | P11: =VLOOKUP(CONCATENATE($F$2,"|",$F$3,"|",P$5,"|",$E$5,"|",$H$2,"|",$H$3,"|",P$7,"|",$D11,"|",P$6,"|",$J$3),'DATA MART_'!$C$2:$R$985098,16,0) ->  | Q11: =VLOOKUP(CONCATENATE($F$2,"|",$F$3,"|",Q$5,"|",$E$5,"|",$H$2,"|",$H$3,"|",Q$7,"|",$D11,"|",Q$6,"|",$J$3),'DATA MART_'!$C$2:$R$985098,16,0) ->  | R11: =VLOOKUP(CONCATENATE($F$2,"|",$F$3,"|",R$5,"|",$E$5,"|",$H$2,"|",$H$3,"|",R$7,"|",$D11,"|",R$6,"|",$J$3),'DATA MART_'!$C$2:$R$985098,16,0) ->  | S11: =VLOOKUP(CONCATENATE($F$2,"|",$F$3,"|",S$5,"|",$E$5,"|",$H$2,"|",$H$3,"|",S$7,"|",$D11,"|",S$6,"|",$J$3),'DATA MART_'!$C$2:$R$985098,16,0) ->  | U11: =VLOOKUP(CONCATENATE($F$2,"|",$F$3,"|",U$5,"|",$E$5,"|",$H$2,"|",$H$3,"|",U$7,"|",$D11,"|",U$6,"|",$J$3),'DATA MART_'!$C$2:$R$985098,16,0) ->  | W11: =VLOOKUP(CONCATENATE($F$2,"|",$F$3,"|",W$5,"|",$E$5,"|",$H$2,"|",$H$3,"|",W$7,"|",$D11,"|",W$6,"|",$J$3),'DATA MART_'!$C$2:$R$985098,16,0) ->  | Y11: =VLOOKUP(CONCATENATE($F$2,"|",$F$3,"|",Y$5,"|",$E$5,"|",$H$2,"|",$H$3,"|",Y$7,"|",$D11,"|",Y$6,"|",$J$3),'DATA MART_'!$C$2:$R$985098,16,0) ->  | Z11: 100100
D12: =VLOOKUP(TRIM(F12),'DATA MART_'!$AD$3:$AF$25,3,0) -> 2 | F12: Institutions | H12: =VLOOKUP(CONCATENATE($F$2,"|",$F$3,"|",H$5,"|",$E$5,"|",$H$2,"|",$H$3,"|",H$7,"|",$D12,"|",H$6,"|",$J$3),'DATA MART_'!$C$2:$R$985098,16,0) ->  | I12: =VLOOKUP(CONCATENATE($F$2,"|",$F$3,"|",I$5,"|",$E$5,"|",$H$2,"|",$H$3,"|",I$7,"|",$D12,"|",I$6,"|",$J$3),'DATA MART_'!$C$2:$R$985098,16,0) ->  | J12: =VLOOKUP(CONCATENATE($F$2,"|",$F$3,"|",J$5,"|",$E$5,"|",$H$2,"|",$H$3,"|",J$7,"|",$D12,"|",J$6,"|",$J$3),'DATA MART_'!$C$2:$R$985098,16,0) ->  | K12: =VLOOKUP(CONCATENATE($F$2,"|",$F$3,"|",K$5,"|",$E$5,"|",$H$2,"|",$H$3,"|",K$7,"|",$D12,"|",K$6,"|",$J$3),'DATA MART_'!$C$2:$R$985098,16,0) ->  | L12: =VLOOKUP(CONCATENATE($F$2,"|",$F$3,"|",L$5,"|",$E$5,"|",$H$2,"|",$H$3,"|",L$7,"|",$D12,"|",L$6,"|",$J$3),'DATA MART_'!$C$2:$R$985098,16,0) ->  | M12: =VLOOKUP(CONCATENATE($F$2,"|",$F$3,"|",M$5,"|",$E$5,"|",$H$2,"|",$H$3,"|",M$7,"|",$D12,"|",M$6,"|",$J$3),'DATA MART_'!$C$2:$R$985098,16,0) ->  | N12: =VLOOKUP(CONCATENATE($F$2,"|",$F$3,"|",N$5,"|",$E$5,"|",$H$2,"|",$H$3,"|",N$7,"|",$D12,"|",N$6,"|",$J$3),'DATA MART_'!$C$2:$R$985098,16,0) ->  | O12: =VLOOKUP(CONCATENATE($F$2,"|",$F$3,"|",O$5,"|",$E$5,"|",$H$2,"|",$H$3,"|",O$7,"|",$D12,"|",O$6,"|",$J$3),'DATA MART_'!$C$2:$R$985098,16,0) ->  | P12: =VLOOKUP(CONCATENATE($F$2,"|",$F$3,"|",P$5,"|",$E$5,"|",$H$2,"|",$H$3,"|",P$7,"|",$D12,"|",P$6,"|",$J$3),'DATA MART_'!$C$2:$R$985098,16,0) ->  | Q12: =VLOOKUP(CONCATENATE($F$2,"|",$F$3,"|",Q$5,"|",$E$5,"|",$H$2,"|",$H$3,"|",Q$7,"|",$D12,"|",Q$6,"|",$J$3),'DATA MART_'!$C$2:$R$985098,16,0) ->  | R12: =VLOOKUP(CONCATENATE($F$2,"|",$F$3,"|",R$5,"|",$E$5,"|",$H$2,"|",$H$3,"|",R$7,"|",$D12,"|",R$6,"|",$J$3),'DATA MART_'!$C$2:$R$985098,16,0) ->  | S12: =VLOOKUP(CONCATENATE($F$2,"|",$F$3,"|",S$5,"|",$E$5,"|",$H$2,"|",$H$3,"|",S$7,"|",$D12,"|",S$6,"|",$J$3),'DATA MART_'!$C$2:$R$985098,16,0) ->  | U12: =VLOOKUP(CONCATENATE($F$2,"|",$F$3,"|",U$5,"|",$E$5,"|",$H$2,"|",$H$3,"|",U$7,"|",$D12,"|",U$6,"|",$J$3),'DATA MART_'!$C$2:$R$985098,16,0) ->  | W12: =VLOOKUP(CONCATENATE($F$2,"|",$F$3,"|",W$5,"|",$E$5,"|",$H$2,"|",$H$3,"|",W$7,"|",$D12,"|",W$6,"|",$J$3),'DATA MART_'!$C$2:$R$985098,16,0) ->  | Y12: =VLOOKUP(CONCATENATE($F$2,"|",$F$3,"|",Y$5,"|",$E$5,"|",$H$2,"|",$H$3,"|",Y$7,"|",$D12,"|",Y$6,"|",$J$3),'DATA MART_'!$C$2:$R$985098,16,0) ->  | Z12: 100103
D13: =VLOOKUP(TRIM(F13),'DATA MART_'!$AD$3:$AF$25,3,0) -> 3 | F13: Corporates | H13: =VLOOKUP(CONCATENATE($F$2,"|",$F$3,"|",H$5,"|",$E$5,"|",$H$2,"|",$H$3,"|",H$7,"|",$D13,"|",H$6,"|",$J$3),'DATA MART_'!$C$2:$R$985098,16,0) ->  | I13: =VLOOKUP(CONCATENATE($F$2,"|",$F$3,"|",I$5,"|",$E$5,"|",$H$2,"|",$H$3,"|",I$7,"|",$D13,"|",I$6,"|",$J$3),'DATA MART_'!$C$2:$R$985098,16,0) ->  | J13: =VLOOKUP(CONCATENATE($F$2,"|",$F$3,"|",J$5,"|",$E$5,"|",$H$2,"|",$H$3,"|",J$7,"|",$D13,"|",J$6,"|",$J$3),'DATA MART_'!$C$2:$R$985098,16,0) ->  | K13: =VLOOKUP(CONCATENATE($F$2,"|",$F$3,"|",K$5,"|",$E$5,"|",$H$2,"|",$H$3,"|",K$7,"|",$D13,"|",K$6,"|",$J$3),'DATA MART_'!$C$2:$R$985098,16,0) ->  | L13: =VLOOKUP(CONCATENATE($F$2,"|",$F$3,"|",L$5,"|",$E$5,"|",$H$2,"|",$H$3,"|",L$7,"|",$D13,"|",L$6,"|",$J$3),'DATA MART_'!$C$2:$R$985098,16,0) ->  | M13: =VLOOKUP(CONCATENATE($F$2,"|",$F$3,"|",M$5,"|",$E$5,"|",$H$2,"|",$H$3,"|",M$7,"|",$D13,"|",M$6,"|",$J$3),'DATA MART_'!$C$2:$R$985098,16,0) ->  | N13: =VLOOKUP(CONCATENATE($F$2,"|",$F$3,"|",N$5,"|",$E$5,"|",$H$2,"|",$H$3,"|",N$7,"|",$D13,"|",N$6,"|",$J$3),'DATA MART_'!$C$2:$R$985098,16,0) ->  | O13: =VLOOKUP(CONCATENATE($F$2,"|",$F$3,"|",O$5,"|",$E$5,"|",$H$2,"|",$H$3,"|",O$7,"|",$D13,"|",O$6,"|",$J$3),'DATA MART_'!$C$2:$R$985098,16,0) ->  | P13: =VLOOKUP(CONCATENATE($F$2,"|",$F$3,"|",P$5,"|",$E$5,"|",$H$2,"|",$H$3,"|",P$7,"|",$D13,"|",P$6,"|",$J$3),'DATA MART_'!$C$2:$R$985098,16,0) ->  | Q13: =VLOOKUP(CONCATENATE($F$2,"|",$F$3,"|",Q$5,"|",$E$5,"|",$H$2,"|",$H$3,"|",Q$7,"|",$D13,"|",Q$6,"|",$J$3),'DATA MART_'!$C$2:$R$985098,16,0) ->  | R13: =VLOOKUP(CONCATENATE($F$2,"|",$F$3,"|",R$5,"|",$E$5,"|",$H$2,"|",$H$3,"|",R$7,"|",$D13,"|",R$6,"|",$J$3),'DATA MART_'!$C$2:$R$985098,16,0) ->  | S13: =VLOOKUP(CONCATENATE($F$2,"|",$F$3,"|",S$5,"|",$E$5,"|",$H$2,"|",$H$3,"|",S$7,"|",$D13,"|",S$6,"|",$J$3),'DATA MART_'!$C$2:$R$985098,16,0) ->  | U13: =VLOOKUP(CONCATENATE($F$2,"|",$F$3,"|",U$5,"|",$E$5,"|",$H$2,"|",$H$3,"|",U$7,"|",$D13,"|",U$6,"|",$J$3),'DATA MART_'!$C$2:$R$985098,16,0) ->  | W13: =VLOOKUP(CONCATENATE($F$2,"|",$F$3,"|",W$5,"|",$E$5,"|",$H$2,"|",$H$3,"|",W$7,"|",$D13,"|",W$6,"|",$J$3),'DATA MART_'!$C$2:$R$985098,16,0) ->  | Y13: =VLOOKUP(CONCATENATE($F$2,"|",$F$3,"|",Y$5,"|",$E$5,"|",$H$2,"|",$H$3,"|",Y$7,"|",$D13,"|",Y$6,"|",$J$3),'DATA MART_'!$C$2:$R$985098,16,0) ->  | Z13: 100200
D14: =VLOOKUP(TRIM(F14),'DATA MART_'!$AD$3:$AF$25,3,0) -> 12 | F14: Corporates - Of Which: Specialised Lending | H14: =VLOOKUP(CONCATENATE($F$2,"|",$F$3,"|",H$5,"|",$E$5,"|",$H$2,"|",$H$3,"|",H$7,"|",$D14,"|",H$6,"|",$J$3),'DATA MART_'!$C$2:$R$985098,16,0) ->  | I14: =VLOOKUP(CONCATENATE($F$2,"|",$F$3,"|",I$5,"|",$E$5,"|",$H$2,"|",$H$3,"|",I$7,"|",$D14,"|",I$6,"|",$J$3),'DATA MART_'!$C$2:$R$985098,16,0) ->  | J14: =VLOOKUP(CONCATENATE($F$2,"|",$F$3,"|",J$5,"|",$E$5,"|",$H$2,"|",$H$3,"|",J$7,"|",$D14,"|",J$6,"|",$J$3),'DATA MART_'!$C$2:$R$985098,16,0) ->  | K14: =VLOOKUP(CONCATENATE($F$2,"|",$F$3,"|",K$5,"|",$E$5,"|",$H$2,"|",$H$3,"|",K$7,"|",$D14,"|",K$6,"|",$J$3),'DATA MART_'!$C$2:$R$985098,16,0) ->  | L14: =VLOOKUP(CONCATENATE($F$2,"|",$F$3,"|",L$5,"|",$E$5,"|",$H$2,"|",$H$3,"|",L$7,"|",$D14,"|",L$6,"|",$J$3),'DATA MART_'!$C$2:$R$985098,16,0) ->  | M14: =VLOOKUP(CONCATENATE($F$2,"|",$F$3,"|",M$5,"|",$E$5,"|",$H$2,"|",$H$3,"|",M$7,"|",$D14,"|",M$6,"|",$J$3),'DATA MART_'!$C$2:$R$985098,16,0) ->  | N14: =VLOOKUP(CONCATENATE($F$2,"|",$F$3,"|",N$5,"|",$E$5,"|",$H$2,"|",$H$3,"|",N$7,"|",$D14,"|",N$6,"|",$J$3),'DATA MART_'!$C$2:$R$985098,16,0) ->  | O14: =VLOOKUP(CONCATENATE($F$2,"|",$F$3,"|",O$5,"|",$E$5,"|",$H$2,"|",$H$3,"|",O$7,"|",$D14,"|",O$6,"|",$J$3),'DATA MART_'!$C$2:$R$985098,16,0) ->  | P14: =VLOOKUP(CONCATENATE($F$2,"|",$F$3,"|",P$5,"|",$E$5,"|",$H$2,"|",$H$3,"|",P$7,"|",$D14,"|",P$6,"|",$J$3),'DATA MART_'!$C$2:$R$985098,16,0) ->  | Q14: =VLOOKUP(CONCATENATE($F$2,"|",$F$3,"|",Q$5,"|",$E$5,"|",$H$2,"|",$H$3,"|",Q$7,"|",$D14,"|",Q$6,"|",$J$3),'DATA MART_'!$C$2:$R$985098,16,0) ->  | R14: =VLOOKUP(CONCATENATE($F$2,"|",$F$3,"|",R$5,"|",$E$5,"|",$H$2,"|",$H$3,"|",R$7,"|",$D14,"|",R$6,"|",$J$3),'DATA MART_'!$C$2:$R$985098,16,0) ->  | S14: =VLOOKUP(CONCATENATE($F$2,"|",$F$3,"|",S$5,"|",$E$5,"|",$H$2,"|",$H$3,"|",S$7,"|",$D14,"|",S$6,"|",$J$3),'DATA MART_'!$C$2:$R$985098,16,0) ->  | U14: =VLOOKUP(CONCATENATE($F$2,"|",$F$3,"|",U$5,"|",$E$5,"|",$H$2,"|",$H$3,"|",U$7,"|",$D14,"|",U$6,"|",$J$3),'DATA MART_'!$C$2:$R$985098,16,0) ->  | W14: =VLOOKUP(CONCATENATE($F$2,"|",$F$3,"|",W$5,"|",$E$5,"|",$H$2,"|",$H$3,"|",W$7,"|",$D14,"|",W$6,"|",$J$3),'DATA MART_'!$C$2:$R$985098,16,0) ->  | Y14: =VLOOKUP(CONCATENATE($F$2,"|",$F$3,"|",Y$5,"|",$E$5,"|",$H$2,"|",$H$3,"|",Y$7,"|",$D14,"|",Y$6,"|",$J$3),'DATA MART_'!$C$2:$R$985098,16,0) ->  | Z14: 100203
D15: =VLOOKUP(TRIM(F15),'DATA MART_'!$AD$3:$AF$25,3,0) -> 13 | F15: Corporates - Of Which: SME | H15: =VLOOKUP(CONCATENATE($F$2,"|",$F$3,"|",H$5,"|",$E$5,"|",$H$2,"|",$H$3,"|",H$7,"|",$D15,"|",H$6,"|",$J$3),'DATA MART_'!$C$2:$R$985098,16,0) ->  | I15: =VLOOKUP(CONCATENATE($F$2,"|",$F$3,"|",I$5,"|",$E$5,"|",$H$2,"|",$H$3,"|",I$7,"|",$D15,"|",I$6,"|",$J$3),'DATA MART_'!$C$2:$R$985098,16,0) ->  | J15: =VLOOKUP(CONCATENATE($F$2,"|",$F$3,"|",J$5,"|",$E$5,"|",$H$2,"|",$H$3,"|",J$7,"|",$D15,"|",J$6,"|",$J$3),'DATA MART_'!$C$2:$R$985098,16,0) ->  | K15: =VLOOKUP(CONCATENATE($F$2,"|",$F$3,"|",K$5,"|",$E$5,"|",$H$2,"|",$H$3,"|",K$7,"|",$D15,"|",K$6,"|",$J$3),'DATA MART_'!$C$2:$R$985098,16,0) ->  | L15: =VLOOKUP(CONCATENATE($F$2,"|",$F$3,"|",L$5,"|",$E$5,"|",$H$2,"|",$H$3,"|",L$7,"|",$D15,"|",L$6,"|",$J$3),'DATA MART_'!$C$2:$R$985098,16,0) ->  | M15: =VLOOKUP(CONCATENATE($F$2,"|",$F$3,"|",M$5,"|",$E$5,"|",$H$2,"|",$H$3,"|",M$7,"|",$D15,"|",M$6,"|",$J$3),'DATA MART_'!$C$2:$R$985098,16,0) ->  | N15: =VLOOKUP(CONCATENATE($F$2,"|",$F$3,"|",N$5,"|",$E$5,"|",$H$2,"|",$H$3,"|",N$7,"|",$D15,"|",N$6,"|",$J$3),'DATA MART_'!$C$2:$R$985098,16,0) ->  | O15: =VLOOKUP(CONCATENATE($F$2,"|",$F$3,"|",O$5,"|",$E$5,"|",$H$2,"|",$H$3,"|",O$7,"|",$D15,"|",O$6,"|",$J$3),'DATA MART_'!$C$2:$R$985098,16,0) ->  | P15: =VLOOKUP(CONCATENATE($F$2,"|",$F$3,"|",P$5,"|",$E$5,"|",$H$2,"|",$H$3,"|",P$7,"|",$D15,"|",P$6,"|",$J$3),'DATA MART_'!$C$2:$R$985098,16,0) ->  | Q15: =VLOOKUP(CONCATENATE($F$2,"|",$F$3,"|",Q$5,"|",$E$5,"|",$H$2,"|",$H$3,"|",Q$7,"|",$D15,"|",Q$6,"|",$J$3),'DATA MART_'!$C$2:$R$985098,16,0) ->  | R15: =VLOOKUP(CONCATENATE($F$2,"|",$F$3,"|",R$5,"|",$E$5,"|",$H$2,"|",$H$3,"|",R$7,"|",$D15,"|",R$6,"|",$J$3),'DATA MART_'!$C$2:$R$985098,16,0) ->  | S15: =VLOOKUP(CONCATENATE($F$2,"|",$F$3,"|",S$5,"|",$E$5,"|",$H$2,"|",$H$3,"|",S$7,"|",$D15,"|",S$6,"|",$J$3),'DATA MART_'!$C$2:$R$985098,16,0) ->  | U15: =VLOOKUP(CONCATENATE($F$2,"|",$F$3,"|",U$5,"|",$E$5,"|",$H$2,"|",$H$3,"|",U$7,"|",$D15,"|",U$6,"|",$J$3),'DATA MART_'!$C$2:$R$985098,16,0) ->  | W15: =VLOOKUP(CONCATENATE($F$2,"|",$F$3,"|",W$5,"|",$E$5,"|",$H$2,"|",$H$3,"|",W$7,"|",$D15,"|",W$6,"|",$J$3),'DATA MART_'!$C$2:$R$985098,16,0) ->  | Y15: =VLOOKUP(CONCATENATE($F$2,"|",$F$3,"|",Y$5,"|",$E$5,"|",$H$2,"|",$H$3,"|",Y$7,"|",$D15,"|",Y$6,"|",$J$3),'DATA MART_'!$C$2:$R$985098,16,0) ->  | Z15: 100300
D16: =VLOOKUP(TRIM(F16),'DATA MART_'!$AD$3:$AF$25,3,0) -> 4 | F16: Retail | H16: =VLOOKUP(CONCATENATE($F$2,"|",$F$3,"|",H$5,"|",$E$5,"|",$H$2,"|",$H$3,"|",H$7,"|",$D16,"|",H$6,"|",$J$3),'DATA MART_'!$C$2:$R$985098,16,0) ->  | I16: =VLOOKUP(CONCATENATE($F$2,"|",$F$3,"|",I$5,"|",$E$5,"|",$H$2,"|",$H$3,"|",I$7,"|",$D16,"|",I$6,"|",$J$3),'DATA MART_'!$C$2:$R$985098,16,0) ->  | J16: =VLOOKUP(CONCATENATE($F$2,"|",$F$3,"|",J$5,"|",$E$5,"|",$H$2,"|",$H$3,"|",J$7,"|",$D16,"|",J$6,"|",$J$3),'DATA MART_'!$C$2:$R$985098,16,0) ->  | K16: =VLOOKUP(CONCATENATE($F$2,"|",$F$3,"|",K$5,"|",$E$5,"|",$H$2,"|",$H$3,"|",K$7,"|",$D16,"|",K$6,"|",$J$3),'DATA MART_'!$C$2:$R$985098,16,0) ->  | L16: =VLOOKUP(CONCATENATE($F$2,"|",$F$3,"|",L$5,"|",$E$5,"|",$H$2,"|",$H$3,"|",L$7,"|",$D16,"|",L$6,"|",$J$3),'DATA MART_'!$C$2:$R$985098,16,0) ->  | M16: =VLOOKUP(CONCATENATE($F$2,"|",$F$3,"|",M$5,"|",$E$5,"|",$H$2,"|",$H$3,"|",M$7,"|",$D16,"|",M$6,"|",$J$3),'DATA MART_'!$C$2:$R$985098,16,0) ->  | N16: =VLOOKUP(CONCATENATE($F$2,"|",$F$3,"|",N$5,"|",$E$5,"|",$H$2,"|",$H$3,"|",N$7,"|",$D16,"|",N$6,"|",$J$3),'DATA MART_'!$C$2:$R$985098,16,0) ->  | O16: =VLOOKUP(CONCATENATE($F$2,"|",$F$3,"|",O$5,"|",$E$5,"|",$H$2,"|",$H$3,"|",O$7,"|",$D16,"|",O$6,"|",$J$3),'DATA MART_'!$C$2:$R$985098,16,0) ->  | P16: =VLOOKUP(CONCATENATE($F$2,"|",$F$3,"|",P$5,"|",$E$5,"|",$H$2,"|",$H$3,"|",P$7,"|",$D16,"|",P$6,"|",$J$3),'DATA MART_'!$C$2:$R$985098,16,0) ->  | Q16: =VLOOKUP(CONCATENATE($F$2,"|",$F$3,"|",Q$5,"|",$E$5,"|",$H$2,"|",$H$3,"|",Q$7,"|",$D16,"|",Q$6,"|",$J$3),'DATA MART_'!$C$2:$R$985098,16,0) ->  | R16: =VLOOKUP(CONCATENATE($F$2,"|",$F$3,"|",R$5,"|",$E$5,"|",$H$2,"|",$H$3,"|",R$7,"|",$D16,"|",R$6,"|",$J$3),'DATA MART_'!$C$2:$R$985098,16,0) ->  | S16: =VLOOKUP(CONCATENATE($F$2,"|",$F$3,"|",S$5,"|",$E$5,"|",$H$2,"|",$H$3,"|",S$7,"|",$D16,"|",S$6,"|",$J$3),'DATA MART_'!$C$2:$R$985098,16,0) ->  | U16: =VLOOKUP(CONCATENATE($F$2,"|",$F$3,"|",U$5,"|",$E$5,"|",$H$2,"|",$H$3,"|",U$7,"|",$D16,"|",U$6,"|",$J$3),'DATA MART_'!$C$2:$R$985098,16,0) ->  | W16: =VLOOKUP(CONCATENATE($F$2,"|",$F$3,"|",W$5,"|",$E$5,"|",$H$2,"|",$H$3,"|",W$7,"|",$D16,"|",W$6,"|",$J$3),'DATA MART_'!$C$2:$R$985098,16,0) ->  | Y16: =VLOOKUP(CONCATENATE($F$2,"|",$F$3,"|",Y$5,"|",$E$5,"|",$H$2,"|",$H$3,"|",Y$7,"|",$D16,"|",Y$6,"|",$J$3),'DATA MART_'!$C$2:$R$985098,16,0) ->  | Z16: 100301
D17: =VLOOKUP(TRIM(F17),'DATA MART_'!$AD$3:$AF$25,3,0) -> 15 | F17: Retail - Secured on real estate property | G17: =VLOOKUP(CONCATENATE($F$2,"|",$F$3,"|",G$5,"|",$E$5,"|",$H$2,"|",$H$3,"|",G$7,"|",$D17,"|",G$6,"|",$J$3),'DATA MART_'!$C$2:$R$985098,16,0) ->  | H17: =VLOOKUP(CONCATENATE($F$2,"|",$F$3,"|",H$5,"|",$E$5,"|",$H$2,"|",$H$3,"|",H$7,"|",$D17,"|",H$6,"|",$J$3),'DATA MART_'!$C$2:$R$985098,16,0) ->  | I17: =VLOOKUP(CONCATENATE($F$2,"|",$F$3,"|",I$5,"|",$E$5,"|",$H$2,"|",$H$3,"|",I$7,"|",$D17,"|",I$6,"|",$J$3),'DATA MART_'!$C$2:$R$985098,16,0) ->  | J17: =VLOOKUP(CONCATENATE($F$2,"|",$F$3,"|",J$5,"|",$E$5,"|",$H$2,"|",$H$3,"|",J$7,"|",$D17,"|",J$6,"|",$J$3),'DATA MART_'!$C$2:$R$985098,16,0) ->  | K17: =VLOOKUP(CONCATENATE($F$2,"|",$F$3,"|",K$5,"|",$E$5,"|",$H$2,"|",$H$3,"|",K$7,"|",$D17,"|",K$6,"|",$J$3),'DATA MART_'!$C$2:$R$985098,16,0) ->  | L17: =VLOOKUP(CONCATENATE($F$2,"|",$F$3,"|",L$5,"|",$E$5,"|",$H$2,"|",$H$3,"|",L$7,"|",$D17,"|",L$6,"|",$J$3),'DATA MART_'!$C$2:$R$985098,16,0) ->  | M17: =VLOOKUP(CONCATENATE($F$2,"|",$F$3,"|",M$5,"|",$E$5,"|",$H$2,"|",$H$3,"|",M$7,"|",$D17,"|",M$6,"|",$J$3),'DATA MART_'!$C$2:$R$985098,16,0) ->  | N17: =VLOOKUP(CONCATENATE($F$2,"|",$F$3,"|",N$5,"|",$E$5,"|",$H$2,"|",$H$3,"|",N$7,"|",$D17,"|",N$6,"|",$J$3),'DATA MART_'!$C$2:$R$985098,16,0) ->  | O17: =VLOOKUP(CONCATENATE($F$2,"|",$F$3,"|",O$5,"|",$E$5,"|",$H$2,"|",$H$3,"|",O$7,"|",$D17,"|",O$6,"|",$J$3),'DATA MART_'!$C$2:$R$985098,16,0) ->  | P17: =VLOOKUP(CONCATENATE($F$2,"|",$F$3,"|",P$5,"|",$E$5,"|",$H$2,"|",$H$3,"|",P$7,"|",$D17,"|",P$6,"|",$J$3),'DATA MART_'!$C$2:$R$985098,16,0) ->  | Q17: =VLOOKUP(CONCATENATE($F$2,"|",$F$3,"|",Q$5,"|",$E$5,"|",$H$2,"|",$H$3,"|",Q$7,"|",$D17,"|",Q$6,"|",$J$3),'DATA MART_'!$C$2:$R$985098,16,0) ->  | R17: =VLOOKUP(CONCATENATE($F$2,"|",$F$3,"|",R$5,"|",$E$5,"|",$H$2,"|",$H$3,"|",R$7,"|",$D17,"|",R$6,"|",$J$3),'DATA MART_'!$C$2:$R$985098,16,0) ->  | S17: =VLOOKUP(CONCATENATE($F$2,"|",$F$3,"|",S$5,"|",$E$5,"|",$H$2,"|",$H$3,"|",S$7,"|",$D17,"|",S$6,"|",$J$3),'DATA MART_'!$C$2:$R$985098,16,0) ->  | U17: =VLOOKUP(CONCATENATE($F$2,"|",$F$3,"|",U$5,"|",$E$5,"|",$H$2,"|",$H$3,"|",U$7,"|",$D17,"|",U$6,"|",$J$3),'DATA MART_'!$C$2:$R$985098,16,0) ->  | W17: =VLOOKUP(CONCATENATE($F$2,"|",$F$3,"|",W$5,"|",$E$5,"|",$H$2,"|",$H$3,"|",W$7,"|",$D17,"|",W$6,"|",$J$3),'DATA MART_'!$C$2:$R$985098,16,0) ->  | Y17: =VLOOKUP(CONCATENATE($F$2,"|",$F$3,"|",Y$5,"|",$E$5,"|",$H$2,"|",$H$3,"|",Y$7,"|",$D17,"|",Y$6,"|",$J$3),'DATA MART_'!$C$2:$R$985098,16,0) ->  | Z17: 100400
D18: =VLOOKUP(TRIM(F18),'DATA MART_'!$AD$3:$AF$25,3,0) -> 16 | F18: Retail - Secured on real estate property - Of Which: SME | G18: =VLOOKUP(CONCATENATE($F$2,"|",$F$3,"|",G$5,"|",$E$5,"|",$H$2,"|",$H$3,"|",G$7,"|",$D18,"|",G$6,"|",$J$3),'DATA MART_'!$C$2:$R$985098,16,0) ->  | H18: =VLOOKUP(CONCATENATE($F$2,"|",$F$3,"|",H$5,"|",$E$5,"|",$H$2,"|",$H$3,"|",H$7,"|",$D18,"|",H$6,"|",$J$3),'DATA MART_'!$C$2:$R$985098,16,0) ->  | I18: =VLOOKUP(CONCATENATE($F$2,"|",$F$3,"|",I$5,"|",$E$5,"|",$H$2,"|",$H$3,"|",I$7,"|",$D18,"|",I$6,"|",$J$3),'DATA MART_'!$C$2:$R$985098,16,0) ->  | J18: =VLOOKUP(CONCATENATE($F$2,"|",$F$3,"|",J$5,"|",$E$5,"|",$H$2,"|",$H$3,"|",J$7,"|",$D18,"|",J$6,"|",$J$3),'DATA MART_'!$C$2:$R$985098,16,0) ->  | K18: =VLOOKUP(CONCATENATE($F$2,"|",$F$3,"|",K$5,"|",$E$5,"|",$H$2,"|",$H$3,"|",K$7,"|",$D18,"|",K$6,"|",$J$3),'DATA MART_'!$C$2:$R$985098,16,0) ->  | L18: =VLOOKUP(CONCATENATE($F$2,"|",$F$3,"|",L$5,"|",$E$5,"|",$H$2,"|",$H$3,"|",L$7,"|",$D18,"|",L$6,"|",$J$3),'DATA MART_'!$C$2:$R$985098,16,0) ->  | M18: =VLOOKUP(CONCATENATE($F$2,"|",$F$3,"|",M$5,"|",$E$5,"|",$H$2,"|",$H$3,"|",M$7,"|",$D18,"|",M$6,"|",$J$3),'DATA MART_'!$C$2:$R$985098,16,0) ->  | N18: =VLOOKUP(CONCATENATE($F$2,"|",$F$3,"|",N$5,"|",$E$5,"|",$H$2,"|",$H$3,"|",N$7,"|",$D18,"|",N$6,"|",$J$3),'DATA MART_'!$C$2:$R$985098,16,0) ->  | O18: =VLOOKUP(CONCATENATE($F$2,"|",$F$3,"|",O$5,"|",$E$5,"|",$H$2,"|",$H$3,"|",O$7,"|",$D18,"|",O$6,"|",$J$3),'DATA MART_'!$C$2:$R$985098,16,0) ->  | P18: =VLOOKUP(CONCATENATE($F$2,"|",$F$3,"|",P$5,"|",$E$5,"|",$H$2,"|",$H$3,"|",P$7,"|",$D18,"|",P$6,"|",$J$3),'DATA MART_'!$C$2:$R$985098,16,0) ->  | Q18: =VLOOKUP(CONCATENATE($F$2,"|",$F$3,"|",Q$5,"|",$E$5,"|",$H$2,"|",$H$3,"|",Q$7,"|",$D18,"|",Q$6,"|",$J$3),'DATA MART_'!$C$2:$R$985098,16,0) ->  | R18: =VLOOKUP(CONCATENATE($F$2,"|",$F$3,"|",R$5,"|",$E$5,"|",$H$2,"|",$H$3,"|",R$7,"|",$D18,"|",R$6,"|",$J$3),'DATA MART_'!$C$2:$R$985098,16,0) ->  | S18: =VLOOKUP(CONCATENATE($F$2,"|",$F$3,"|",S$5,"|",$E$5,"|",$H$2,"|",$H$3,"|",S$7,"|",$D18,"|",S$6,"|",$J$3),'DATA MART_'!$C$2:$R$985098,16,0) ->  | U18: =VLOOKUP(CONCATENATE($F$2,"|",$F$3,"|",U$5,"|",$E$5,"|",$H$2,"|",$H$3,"|",U$7,"|",$D18,"|",U$6,"|",$J$3),'DATA MART_'!$C$2:$R$985098,16,0) ->  | W18: =VLOOKUP(CONCATENATE($F$2,"|",$F$3,"|",W$5,"|",$E$5,"|",$H$2,"|",$H$3,"|",W$7,"|",$D18,"|",W$6,"|",$J$3),'DATA MART_'!$C$2:$R$985098,16,0) ->  | Y18: =VLOOKUP(CONCATENATE($F$2,"|",$F$3,"|",Y$5,"|",$E$5,"|",$H$2,"|",$H$3,"|",Y$7,"|",$D18,"|",Y$6,"|",$J$3),'DATA MART_'!$C$2:$R$985098,16,0) ->  | Z18: 100500
D19: =VLOOKUP(TRIM(F19),'DATA MART_'!$AD$3:$AF$25,3,0) -> 17 | F19: Retail - Secured on real estate property - Of Which: non-SME | G19: =VLOOKUP(CONCATENATE($F$2,"|",$F$3,"|",G$5,"|",$E$5,"|",$H$2,"|",$H$3,"|",G$7,"|",$D19,"|",G$6,"|",$J$3),'DATA MART_'!$C$2:$R$985098,16,0) ->  | H19: =VLOOKUP(CONCATENATE($F$2,"|",$F$3,"|",H$5,"|",$E$5,"|",$H$2,"|",$H$3,"|",H$7,"|",$D19,"|",H$6,"|",$J$3),'DATA MART_'!$C$2:$R$985098,16,0) ->  | I19: =VLOOKUP(CONCATENATE($F$2,"|",$F$3,"|",I$5,"|",$E$5,"|",$H$2,"|",$H$3,"|",I$7,"|",$D19,"|",I$6,"|",$J$3),'DATA MART_'!$C$2:$R$985098,16,0) ->  | J19: =VLOOKUP(CONCATENATE($F$2,"|",$F$3,"|",J$5,"|",$E$5,"|",$H$2,"|",$H$3,"|",J$7,"|",$D19,"|",J$6,"|",$J$3),'DATA MART_'!$C$2:$R$985098,16,0) ->  | K19: =VLOOKUP(CONCATENATE($F$2,"|",$F$3,"|",K$5,"|",$E$5,"|",$H$2,"|",$H$3,"|",K$7,"|",$D19,"|",K$6,"|",$J$3),'DATA MART_'!$C$2:$R$985098,16,0) ->  | L19: =VLOOKUP(CONCATENATE($F$2,"|",$F$3,"|",L$5,"|",$E$5,"|",$H$2,"|",$H$3,"|",L$7,"|",$D19,"|",L$6,"|",$J$3),'DATA MART_'!$C$2:$R$985098,16,0) ->  | M19: =VLOOKUP(CONCATENATE($F$2,"|",$F$3,"|",M$5,"|",$E$5,"|",$H$2,"|",$H$3,"|",M$7,"|",$D19,"|",M$6,"|",$J$3),'DATA MART_'!$C$2:$R$985098,16,0) ->  | N19: =VLOOKUP(CONCATENATE($F$2,"|",$F$3,"|",N$5,"|",$E$5,"|",$H$2,"|",$H$3,"|",N$7,"|",$D19,"|",N$6,"|",$J$3),'DATA MART_'!$C$2:$R$985098,16,0) ->  | O19: =VLOOKUP(CONCATENATE($F$2,"|",$F$3,"|",O$5,"|",$E$5,"|",$H$2,"|",$H$3,"|",O$7,"|",$D19,"|",O$6,"|",$J$3),'DATA MART_'!$C$2:$R$985098,16,0) ->  | P19: =VLOOKUP(CONCATENATE($F$2,"|",$F$3,"|",P$5,"|",$E$5,"|",$H$2,"|",$H$3,"|",P$7,"|",$D19,"|",P$6,"|",$J$3),'DATA MART_'!$C$2:$R$985098,16,0) ->  | Q19: =VLOOKUP(CONCATENATE($F$2,"|",$F$3,"|",Q$5,"|",$E$5,"|",$H$2,"|",$H$3,"|",Q$7,"|",$D19,"|",Q$6,"|",$J$3),'DATA MART_'!$C$2:$R$985098,16,0) ->  | R19: =VLOOKUP(CONCATENATE($F$2,"|",$F$3,"|",R$5,"|",$E$5,"|",$H$2,"|",$H$3,"|",R$7,"|",$D19,"|",R$6,"|",$J$3),'DATA MART_'!$C$2:$R$985098,16,0) ->  | S19: =VLOOKUP(CONCATENATE($F$2,"|",$F$3,"|",S$5,"|",$E$5,"|",$H$2,"|",$H$3,"|",S$7,"|",$D19,"|",S$6,"|",$J$3),'DATA MART_'!$C$2:$R$985098,16,0) ->  | U19: =VLOOKUP(CONCATENATE($F$2,"|",$F$3,"|",U$5,"|",$E$5,"|",$H$2,"|",$H$3,"|",U$7,"|",$D19,"|",U$6,"|",$J$3),'DATA MART_'!$C$2:$R$985098,16,0) ->  | W19: =VLOOKUP(CONCATENATE($F$2,"|",$F$3,"|",W$5,"|",$E$5,"|",$H$2,"|",$H$3,"|",W$7,"|",$D19,"|",W$6,"|",$J$3),'DATA MART_'!$C$2:$R$985098,16,0) ->  | Y19: =VLOOKUP(CONCATENATE($F$2,"|",$F$3,"|",Y$5,"|",$E$5,"|",$H$2,"|",$H$3,"|",Y$7,"|",$D19,"|",Y$6,"|",$J$3),'DATA MART_'!$C$2:$R$985098,16,0) ->  | Z19: 100600
D20: =VLOOKUP(TRIM(F20),'DATA MART_'!$AD$3:$AF$25,3,0) -> 18 | F20: Retail - Qualifying Revolving | H20: =VLOOKUP(CONCATENATE($F$2,"|",$F$3,"|",H$5,"|",$E$5,"|",$H$2,"|",$H$3,"|",H$7,"|",$D20,"|",H$6,"|",$J$3),'DATA MART_'!$C$2:$R$985098,16,0) ->  | I20: =VLOOKUP(CONCATENATE($F$2,"|",$F$3,"|",I$5,"|",$E$5,"|",$H$2,"|",$H$3,"|",I$7,"|",$D20,"|",I$6,"|",$J$3),'DATA MART_'!$C$2:$R$985098,16,0) ->  | J20: =VLOOKUP(CONCATENATE($F$2,"|",$F$3,"|",J$5,"|",$E$5,"|",$H$2,"|",$H$3,"|",J$7,"|",$D20,"|",J$6,"|",$J$3),'DATA MART_'!$C$2:$R$985098,16,0) ->  | K20: =VLOOKUP(CONCATENATE($F$2,"|",$F$3,"|",K$5,"|",$E$5,"|",$H$2,"|",$H$3,"|",K$7,"|",$D20,"|",K$6,"|",$J$3),'DATA MART_'!$C$2:$R$985098,16,0) ->  | L20: =VLOOKUP(CONCATENATE($F$2,"|",$F$3,"|",L$5,"|",$E$5,"|",$H$2,"|",$H$3,"|",L$7,"|",$D20,"|",L$6,"|",$J$3),'DATA MART_'!$C$2:$R$985098,16,0) ->  | M20: =VLOOKUP(CONCATENATE($F$2,"|",$F$3,"|",M$5,"|",$E$5,"|",$H$2,"|",$H$3,"|",M$7,"|",$D20,"|",M$6,"|",$J$3),'DATA MART_'!$C$2:$R$985098,16,0) ->  | N20: =VLOOKUP(CONCATENATE($F$2,"|",$F$3,"|",N$5,"|",$E$5,"|",$H$2,"|",$H$3,"|",N$7,"|",$D20,"|",N$6,"|",$J$3),'DATA MART_'!$C$2:$R$985098,16,0) ->  | O20: =VLOOKUP(CONCATENATE($F$2,"|",$F$3,"|",O$5,"|",$E$5,"|",$H$2,"|",$H$3,"|",O$7,"|",$D20,"|",O$6,"|",$J$3),'DATA MART_'!$C$2:$R$985098,16,0) ->  | P20: =VLOOKUP(CONCATENATE($F$2,"|",$F$3,"|",P$5,"|",$E$5,"|",$H$2,"|",$H$3,"|",P$7,"|",$D20,"|",P$6,"|",$J$3),'DATA MART_'!$C$2:$R$985098,16,0) ->  | Q20: =VLOOKUP(CONCATENATE($F$2,"|",$F$3,"|",Q$5,"|",$E$5,"|",$H$2,"|",$H$3,"|",Q$7,"|",$D20,"|",Q$6,"|",$J$3),'DATA MART_'!$C$2:$R$985098,16,0) ->  | R20: =VLOOKUP(CONCATENATE($F$2,"|",$F$3,"|",R$5,"|",$E$5,"|",$H$2,"|",$H$3,"|",R$7,"|",$D20,"|",R$6,"|",$J$3),'DATA MART_'!$C$2:$R$985098,16,0) ->  | S20: =VLOOKUP(CONCATENATE($F$2,"|",$F$3,"|",S$5,"|",$E$5,"|",$H$2,"|",$H$3,"|",S$7,"|",$D20,"|",S$6,"|",$J$3),'DATA MART_'!$C$2:$R$985098,16,0) ->  | U20: =VLOOKUP(CONCATENATE($F$2,"|",$F$3,"|",U$5,"|",$E$5,"|",$H$2,"|",$H$3,"|",U$7,"|",$D20,"|",U$6,"|",$J$3),'DATA MART_'!$C$2:$R$985098,16,0) ->  | W20: =VLOOKUP(CONCATENATE($F$2,"|",$F$3,"|",W$5,"|",$E$5,"|",$H$2,"|",$H$3,"|",W$7,"|",$D20,"|",W$6,"|",$J$3),'DATA MART_'!$C$2:$R$985098,16,0) ->  | Y20: =VLOOKUP(CONCATENATE($F$2,"|",$F$3,"|",Y$5,"|",$E$5,"|",$H$2,"|",$H$3,"|",Y$7,"|",$D20,"|",Y$6,"|",$J$3),'DATA MART_'!$C$2:$R$985098,16,0) ->  | Z20: 100700
D21: =VLOOKUP(TRIM(F21),'DATA MART_'!$AD$3:$AF$25,3,0) -> 19 | F21: Retail - Other Retail | H21: =VLOOKUP(CONCATENATE($F$2,"|",$F$3,"|",H$5,"|",$E$5,"|",$H$2,"|",$H$3,"|",H$7,"|",$D21,"|",H$6,"|",$J$3),'DATA MART_'!$C$2:$R$985098,16,0) ->  | I21: =VLOOKUP(CONCATENATE($F$2,"|",$F$3,"|",I$5,"|",$E$5,"|",$H$2,"|",$H$3,"|",I$7,"|",$D21,"|",I$6,"|",$J$3),'DATA MART_'!$C$2:$R$985098,16,0) ->  | J21: =VLOOKUP(CONCATENATE($F$2,"|",$F$3,"|",J$5,"|",$E$5,"|",$H$2,"|",$H$3,"|",J$7,"|",$D21,"|",J$6,"|",$J$3),'DATA MART_'!$C$2:$R$985098,16,0) ->  | K21: =VLOOKUP(CONCATENATE($F$2,"|",$F$3,"|",K$5,"|",$E$5,"|",$H$2,"|",$H$3,"|",K$7,"|",$D21,"|",K$6,"|",$J$3),'DATA MART_'!$C$2:$R$985098,16,0) ->  | L21: =VLOOKUP(CONCATENATE($F$2,"|",$F$3,"|",L$5,"|",$E$5,"|",$H$2,"|",$H$3,"|",L$7,"|",$D21,"|",L$6,"|",$J$3),'DATA MART_'!$C$2:$R$985098,16,0) ->  | M21: =VLOOKUP(CONCATENATE($F$2,"|",$F$3,"|",M$5,"|",$E$5,"|",$H$2,"|",$H$3,"|",M$7,"|",$D21,"|",M$6,"|",$J$3),'DATA MART_'!$C$2:$R$985098,16,0) ->  | N21: =VLOOKUP(CONCATENATE($F$2,"|",$F$3,"|",N$5,"|",$E$5,"|",$H$2,"|",$H$3,"|",N$7,"|",$D21,"|",N$6,"|",$J$3),'DATA MART_'!$C$2:$R$985098,16,0) ->  | O21: =VLOOKUP(CONCATENATE($F$2,"|",$F$3,"|",O$5,"|",$E$5,"|",$H$2,"|",$H$3,"|",O$7,"|",$D21,"|",O$6,"|",$J$3),'DATA MART_'!$C$2:$R$985098,16,0) ->  | P21: =VLOOKUP(CONCATENATE($F$2,"|",$F$3,"|",P$5,"|",$E$5,"|",$H$2,"|",$H$3,"|",P$7,"|",$D21,"|",P$6,"|",$J$3),'DATA MART_'!$C$2:$R$985098,16,0) ->  | Q21: =VLOOKUP(CONCATENATE($F$2,"|",$F$3,"|",Q$5,"|",$E$5,"|",$H$2,"|",$H$3,"|",Q$7,"|",$D21,"|",Q$6,"|",$J$3),'DATA MART_'!$C$2:$R$985098,16,0) ->  | R21: =VLOOKUP(CONCATENATE($F$2,"|",$F$3,"|",R$5,"|",$E$5,"|",$H$2,"|",$H$3,"|",R$7,"|",$D21,"|",R$6,"|",$J$3),'DATA MART_'!$C$2:$R$985098,16,0) ->  | S21: =VLOOKUP(CONCATENATE($F$2,"|",$F$3,"|",S$5,"|",$E$5,"|",$H$2,"|",$H$3,"|",S$7,"|",$D21,"|",S$6,"|",$J$3),'DATA MART_'!$C$2:$R$985098,16,0) ->  | U21: =VLOOKUP(CONCATENATE($F$2,"|",$F$3,"|",U$5,"|",$E$5,"|",$H$2,"|",$H$3,"|",U$7,"|",$D21,"|",U$6,"|",$J$3),'DATA MART_'!$C$2:$R$985098,16,0) ->  | W21: =VLOOKUP(CONCATENATE($F$2,"|",$F$3,"|",W$5,"|",$E$5,"|",$H$2,"|",$H$3,"|",W$7,"|",$D21,"|",W$6,"|",$J$3),'DATA MART_'!$C$2:$R$985098,16,0) ->  | Y21: =VLOOKUP(CONCATENATE($F$2,"|",$F$3,"|",Y$5,"|",$E$5,"|",$H$2,"|",$H$3,"|",Y$7,"|",$D21,"|",Y$6,"|",$J$3),'DATA MART_'!$C$2:$R$985098,16,0) -> 
D22: =VLOOKUP(TRIM(F22),'DATA MART_'!$AD$3:$AF$25,3,0) -> 20 | F22: Retail - Other Retail - Of Which: SME | H22: =VLOOKUP(CONCATENATE($F$2,"|",$F$3,"|",H$5,"|",$E$5,"|",$H$2,"|",$H$3,"|",H$7,"|",$D22,"|",H$6,"|",$J$3),'DATA MART_'!$C$2:$R$985098,16,0) ->  | I22: =VLOOKUP(CONCATENATE($F$2,"|",$F$3,"|",I$5,"|",$E$5,"|",$H$2,"|",$H$3,"|",I$7,"|",$D22,"|",I$6,"|",$J$3),'DATA MART_'!$C$2:$R$985098,16,0) ->  | J22: =VLOOKUP(CONCATENATE($F$2,"|",$F$3,"|",J$5,"|",$E$5,"|",$H$2,"|",$H$3,"|",J$7,"|",$D22,"|",J$6,"|",$J$3),'DATA MART_'!$C$2:$R$985098,16,0) ->  | K22: =VLOOKUP(CONCATENATE($F$2,"|",$F$3,"|",K$5,"|",$E$5,"|",$H$2,"|",$H$3,"|",K$7,"|",$D22,"|",K$6,"|",$J$3),'DATA MART_'!$C$2:$R$985098,16,0) ->  | L22: =VLOOKUP(CONCATENATE($F$2,"|",$F$3,"|",L$5,"|",$E$5,"|",$H$2,"|",$H$3,"|",L$7,"|",$D22,"|",L$6,"|",$J$3),'DATA MART_'!$C$2:$R$985098,16,0) ->  | M22: =VLOOKUP(CONCATENATE($F$2,"|",$F$3,"|",M$5,"|",$E$5,"|",$H$2,"|",$H$3,"|",M$7,"|",$D22,"|",M$6,"|",$J$3),'DATA MART_'!$C$2:$R$985098,16,0) ->  | N22: =VLOOKUP(CONCATENATE($F$2,"|",$F$3,"|",N$5,"|",$E$5,"|",$H$2,"|",$H$3,"|",N$7,"|",$D22,"|",N$6,"|",$J$3),'DATA MART_'!$C$2:$R$985098,16,0) ->  | O22: =VLOOKUP(CONCATENATE($F$2,"|",$F$3,"|",O$5,"|",$E$5,"|",$H$2,"|",$H$3,"|",O$7,"|",$D22,"|",O$6,"|",$J$3),'DATA MART_'!$C$2:$R$985098,16,0) ->  | P22: =VLOOKUP(CONCATENATE($F$2,"|",$F$3,"|",P$5,"|",$E$5,"|",$H$2,"|",$H$3,"|",P$7,"|",$D22,"|",P$6,"|",$J$3),'DATA MART_'!$C$2:$R$985098,16,0) ->  | Q22: =VLOOKUP(CONCATENATE($F$2,"|",$F$3,"|",Q$5,"|",$E$5,"|",$H$2,"|",$H$3,"|",Q$7,"|",$D22,"|",Q$6,"|",$J$3),'DATA MART_'!$C$2:$R$985098,16,0) ->  | R22: =VLOOKUP(CONCATENATE($F$2,"|",$F$3,"|",R$5,"|",$E$5,"|",$H$2,"|",$H$3,"|",R$7,"|",$D22,"|",R$6,"|",$J$3),'DATA MART_'!$C$2:$R$985098,16,0) ->  | S22: =VLOOKUP(CONCATENATE($F$2,"|",$F$3,"|",S$5,"|",$E$5,"|",$H$2,"|",$H$3,"|",S$7,"|",$D22,"|",S$6,"|",$J$3),'DATA MART_'!$C$2:$R$985098,16,0) ->  | U22: =VLOOKUP(CONCATENATE($F$2,"|",$F$3,"|",U$5,"|",$E$5,"|",$H$2,"|",$H$3,"|",U$7,"|",$D22,"|",U$6,"|",$J$3),'DATA MART_'!$C$2:$R$985098,16,0) ->  | W22: =VLOOKUP(CONCATENATE($F$2,"|",$F$3,"|",W$5,"|",$E$5,"|",$H$2,"|",$H$3,"|",W$7,"|",$D22,"|",W$6,"|",$J$3),'DATA MART_'!$C$2:$R$985098,16,0) ->  | Y22: =VLOOKUP(CONCATENATE($F$2,"|",$F$3,"|",Y$5,"|",$E$5,"|",$H$2,"|",$H$3,"|",Y$7,"|",$D22,"|",Y$6,"|",$J$3),'DATA MART_'!$C$2:$R$985098,16,0) ->  | Z22: 100800
D23: =VLOOKUP(TRIM(F23),'DATA MART_'!$AD$3:$AF$25,3,0) -> 21 | F23: Retail - Other Retail - Of Which: non-SME | H23: =VLOOKUP(CONCATENATE($F$2,"|",$F$3,"|",H$5,"|",$E$5,"|",$H$2,"|",$H$3,"|",H$7,"|",$D23,"|",H$6,"|",$J$3),'DATA MART_'!$C$2:$R$985098,16,0) ->  | I23: =VLOOKUP(CONCATENATE($F$2,"|",$F$3,"|",I$5,"|",$E$5,"|",$H$2,"|",$H$3,"|",I$7,"|",$D23,"|",I$6,"|",$J$3),'DATA MART_'!$C$2:$R$985098,16,0) ->  | J23: =VLOOKUP(CONCATENATE($F$2,"|",$F$3,"|",J$5,"|",$E$5,"|",$H$2,"|",$H$3,"|",J$7,"|",$D23,"|",J$6,"|",$J$3),'DATA MART_'!$C$2:$R$985098,16,0) ->  | K23: =VLOOKUP(CONCATENATE($F$2,"|",$F$3,"|",K$5,"|",$E$5,"|",$H$2,"|",$H$3,"|",K$7,"|",$D23,"|",K$6,"|",$J$3),'DATA MART_'!$C$2:$R$985098,16,0) ->  | L23: =VLOOKUP(CONCATENATE($F$2,"|",$F$3,"|",L$5,"|",$E$5,"|",$H$2,"|",$H$3,"|",L$7,"|",$D23,"|",L$6,"|",$J$3),'DATA MART_'!$C$2:$R$985098,16,0) ->  | M23: =VLOOKUP(CONCATENATE($F$2,"|",$F$3,"|",M$5,"|",$E$5,"|",$H$2,"|",$H$3,"|",M$7,"|",$D23,"|",M$6,"|",$J$3),'DATA MART_'!$C$2:$R$985098,16,0) ->  | N23: =VLOOKUP(CONCATENATE($F$2,"|",$F$3,"|",N$5,"|",$E$5,"|",$H$2,"|",$H$3,"|",N$7,"|",$D23,"|",N$6,"|",$J$3),'DATA MART_'!$C$2:$R$985098,16,0) ->  | O23: =VLOOKUP(CONCATENATE($F$2,"|",$F$3,"|",O$5,"|",$E$5,"|",$H$2,"|",$H$3,"|",O$7,"|",$D23,"|",O$6,"|",$J$3),'DATA MART_'!$C$2:$R$985098,16,0) ->  | P23: =VLOOKUP(CONCATENATE($F$2,"|",$F$3,"|",P$5,"|",$E$5,"|",$H$2,"|",$H$3,"|",P$7,"|",$D23,"|",P$6,"|",$J$3),'DATA MART_'!$C$2:$R$985098,16,0) ->  | Q23: =VLOOKUP(CONCATENATE($F$2,"|",$F$3,"|",Q$5,"|",$E$5,"|",$H$2,"|",$H$3,"|",Q$7,"|",$D23,"|",Q$6,"|",$J$3),'DATA MART_'!$C$2:$R$985098,16,0) ->  | R23: =VLOOKUP(CONCATENATE($F$2,"|",$F$3,"|",R$5,"|",$E$5,"|",$H$2,"|",$H$3,"|",R$7,"|",$D23,"|",R$6,"|",$J$3),'DATA MART_'!$C$2:$R$985098,16,0) ->  | S23: =VLOOKUP(CONCATENATE($F$2,"|",$F$3,"|",S$5,"|",$E$5,"|",$H$2,"|",$H$3,"|",S$7,"|",$D23,"|",S$6,"|",$J$3),'DATA MART_'!$C$2:$R$985098,16,0) ->  | U23: =VLOOKUP(CONCATENATE($F$2,"|",$F$3,"|",U$5,"|",$E$5,"|",$H$2,"|",$H$3,"|",U$7,"|",$D23,"|",U$6,"|",$J$3),'DATA MART_'!$C$2:$R$985098,16,0) ->  | W23: =VLOOKUP(CONCATENATE($F$2,"|",$F$3,"|",W$5,"|",$E$5,"|",$H$2,"|",$H$3,"|",W$7,"|",$D23,"|",W$6,"|",$J$3),'DATA MART_'!$C$2:$R$985098,16,0) ->  | Y23: =VLOOKUP(CONCATENATE($F$2,"|",$F$3,"|",Y$5,"|",$E$5,"|",$H$2,"|",$H$3,"|",Y$7,"|",$D23,"|",Y$6,"|",$J$3),'DATA MART_'!$C$2:$R$985098,16,0) ->  | Z23: 100900
D24: =VLOOKUP(TRIM(F24),'DATA MART_'!$AD$3:$AF$25,3,0) -> 9 | F24: Equity | H24: =VLOOKUP(CONCATENATE($F$2,"|",$F$3,"|",H$5,"|",$E$5,"|",$H$2,"|",$H$3,"|",H$7,"|",$D24,"|",H$6,"|",$J$3),'DATA MART_'!$C$2:$R$985098,16,0) ->  | I24: =VLOOKUP(CONCATENATE($F$2,"|",$F$3,"|",I$5,"|",$E$5,"|",$H$2,"|",$H$3,"|",I$7,"|",$D24,"|",I$6,"|",$J$3),'DATA MART_'!$C$2:$R$985098,16,0) ->  | J24: =VLOOKUP(CONCATENATE($F$2,"|",$F$3,"|",J$5,"|",$E$5,"|",$H$2,"|",$H$3,"|",J$7,"|",$D24,"|",J$6,"|",$J$3),'DATA MART_'!$C$2:$R$985098,16,0) ->  | K24: =VLOOKUP(CONCATENATE($F$2,"|",$F$3,"|",K$5,"|",$E$5,"|",$H$2,"|",$H$3,"|",K$7,"|",$D24,"|",K$6,"|",$J$3),'DATA MART_'!$C$2:$R$985098,16,0) ->  | L24: =VLOOKUP(CONCATENATE($F$2,"|",$F$3,"|",L$5,"|",$E$5,"|",$H$2,"|",$H$3,"|",L$7,"|",$D24,"|",L$6,"|",$J$3),'DATA MART_'!$C$2:$R$985098,16,0) ->  | M24: =VLOOKUP(CONCATENATE($F$2,"|",$F$3,"|",M$5,"|",$E$5,"|",$H$2,"|",$H$3,"|",M$7,"|",$D24,"|",M$6,"|",$J$3),'DATA MART_'!$C$2:$R$985098,16,0) ->  | N24: =VLOOKUP(CONCATENATE($F$2,"|",$F$3,"|",N$5,"|",$E$5,"|",$H$2,"|",$H$3,"|",N$7,"|",$D24,"|",N$6,"|",$J$3),'DATA MART_'!$C$2:$R$985098,16,0) ->  | O24: =VLOOKUP(CONCATENATE($F$2,"|",$F$3,"|",O$5,"|",$E$5,"|",$H$2,"|",$H$3,"|",O$7,"|",$D24,"|",O$6,"|",$J$3),'DATA MART_'!$C$2:$R$985098,16,0) ->  | P24: =VLOOKUP(CONCATENATE($F$2,"|",$F$3,"|",P$5,"|",$E$5,"|",$H$2,"|",$H$3,"|",P$7,"|",$D24,"|",P$6,"|",$J$3),'DATA MART_'!$C$2:$R$985098,16,0) ->  | Q24: =VLOOKUP(CONCATENATE($F$2,"|",$F$3,"|",Q$5,"|",$E$5,"|",$H$2,"|",$H$3,"|",Q$7,"|",$D24,"|",Q$6,"|",$J$3),'DATA MART_'!$C$2:$R$985098,16,0) ->  | R24: =VLOOKUP(CONCATENATE($F$2,"|",$F$3,"|",R$5,"|",$E$5,"|",$H$2,"|",$H$3,"|",R$7,"|",$D24,"|",R$6,"|",$J$3),'DATA MART_'!$C$2:$R$985098,16,0) ->  | S24: =VLOOKUP(CONCATENATE($F$2,"|",$F$3,"|",S$5,"|",$E$5,"|",$H$2,"|",$H$3,"|",S$7,"|",$D24,"|",S$6,"|",$J$3),'DATA MART_'!$C$2:$R$985098,16,0) ->  | U24: =VLOOKUP(CONCATENATE($F$2,"|",$F$3,"|",U$5,"|",$E$5,"|",$H$2,"|",$H$3,"|",U$7,"|",$D24,"|",U$6,"|",$J$3),'DATA MART_'!$C$2:$R$985098,16,0) ->  | W24: =VLOOKUP(CONCATENATE($F$2,"|",$F$3,"|",W$5,"|",$E$5,"|",$H$2,"|",$H$3,"|",W$7,"|",$D24,"|",W$6,"|",$J$3),'DATA MART_'!$C$2:$R$985098,16,0) ->  | Y24: =VLOOKUP(CONCATENATE($F$2,"|",$F$3,"|",Y$5,"|",$E$5,"|",$H$2,"|",$H$3,"|",Y$7,"|",$D24,"|",Y$6,"|",$J$3),'DATA MART_'!$C$2:$R$985098,16,0) ->  | Z24: 101001 | AD24: The template has been pre-filled in with the figures published on the EBA web site. Please, double check them and, should it be needed, change them.
D25: =VLOOKUP(TRIM(F25),'DATA MART_'!$AD$3:$AF$25,3,0) -> 10 | F25: Securitisation | H25: =VLOOKUP(CONCATENATE($F$2,"|",$F$3,"|",H$5,"|",$E$5,"|",$H$2,"|",$H$3,"|",H$7,"|",$D25,"|",H$6,"|",$J$3),'DATA MART_'!$C$2:$R$985098,16,0) ->  | I25: =VLOOKUP(CONCATENATE($F$2,"|",$F$3,"|",I$5,"|",$E$5,"|",$H$2,"|",$H$3,"|",I$7,"|",$D25,"|",I$6,"|",$J$3),'DATA MART_'!$C$2:$R$985098,16,0) ->  | J25: =VLOOKUP(CONCATENATE($F$2,"|",$F$3,"|",J$5,"|",$E$5,"|",$H$2,"|",$H$3,"|",J$7,"|",$D25,"|",J$6,"|",$J$3),'DATA MART_'!$C$2:$R$985098,16,0) ->  | K25: =VLOOKUP(CONCATENATE($F$2,"|",$F$3,"|",K$5,"|",$E$5,"|",$H$2,"|",$H$3,"|",K$7,"|",$D25,"|",K$6,"|",$J$3),'DATA MART_'!$C$2:$R$985098,16,0) ->  | L25: =VLOOKUP(CONCATENATE($F$2,"|",$F$3,"|",L$5,"|",$E$5,"|",$H$2,"|",$H$3,"|",L$7,"|",$D25,"|",L$6,"|",$J$3),'DATA MART_'!$C$2:$R$985098,16,0) ->  | M25: =VLOOKUP(CONCATENATE($F$2,"|",$F$3,"|",M$5,"|",$E$5,"|",$H$2,"|",$H$3,"|",M$7,"|",$D25,"|",M$6,"|",$J$3),'DATA MART_'!$C$2:$R$985098,16,0) ->  | N25: =VLOOKUP(CONCATENATE($F$2,"|",$F$3,"|",N$5,"|",$E$5,"|",$H$2,"|",$H$3,"|",N$7,"|",$D25,"|",N$6,"|",$J$3),'DATA MART_'!$C$2:$R$985098,16,0) ->  | O25: =VLOOKUP(CONCATENATE($F$2,"|",$F$3,"|",O$5,"|",$E$5,"|",$H$2,"|",$H$3,"|",O$7,"|",$D25,"|",O$6,"|",$J$3),'DATA MART_'!$C$2:$R$985098,16,0) ->  | P25: =VLOOKUP(CONCATENATE($F$2,"|",$F$3,"|",P$5,"|",$E$5,"|",$H$2,"|",$H$3,"|",P$7,"|",$D25,"|",P$6,"|",$J$3),'DATA MART_'!$C$2:$R$985098,16,0) ->  | Q25: =VLOOKUP(CONCATENATE($F$2,"|",$F$3,"|",Q$5,"|",$E$5,"|",$H$2,"|",$H$3,"|",Q$7,"|",$D25,"|",Q$6,"|",$J$3),'DATA MART_'!$C$2:$R$985098,16,0) ->  | R25: =VLOOKUP(CONCATENATE($F$2,"|",$F$3,"|",R$5,"|",$E$5,"|",$H$2,"|",$H$3,"|",R$7,"|",$D25,"|",R$6,"|",$J$3),'DATA MART_'!$C$2:$R$985098,16,0) ->  | S25: =VLOOKUP(CONCATENATE($F$2,"|",$F$3,"|",S$5,"|",$E$5,"|",$H$2,"|",$H$3,"|",S$7,"|",$D25,"|",S$6,"|",$J$3),'DATA MART_'!$C$2:$R$985098,16,0) ->  | U25: =VLOOKUP(CONCATENATE($F$2,"|",$F$3,"|",U$5,"|",$E$5,"|",$H$2,"|",$H$3,"|",U$7,"|",$D25,"|",U$6,"|",$J$3),'DATA MART_'!$C$2:$R$985098,16,0) ->  | W25: =VLOOKUP(CONCATENATE($F$2,"|",$F$3,"|",W$5,"|",$E$5,"|",$H$2,"|",$H$3,"|",W$7,"|",$D25,"|",W$6,"|",$J$3),'DATA MART_'!$C$2:$R$985098,16,0) ->  | Y25: =VLOOKUP(CONCATENATE($F$2,"|",$F$3,"|",Y$5,"|",$E$5,"|",$H$2,"|",$H$3,"|",Y$7,"|",$D25,"|",Y$6,"|",$J$3),'DATA MART_'!$C$2:$R$985098,16,0) ->  | Z25: 101002 | AD25: The template has been pre-filled in with the figures published on the EBA web site. Please, double check them and, should it be needed, change them.
D26: =VLOOKUP(TRIM(F26),'DATA MART_'!$AD$3:$AF$25,3,0) -> 11 | F26: Other non-credit obligation assets | H26: =VLOOKUP(CONCATENATE($F$2,"|",$F$3,"|",H$5,"|",$E$5,"|",$H$2,"|",$H$3,"|",H$7,"|",$D26,"|",H$6,"|",$J$3),'DATA MART_'!$C$2:$R$985098,16,0) ->  | I26: =VLOOKUP(CONCATENATE($F$2,"|",$F$3,"|",I$5,"|",$E$5,"|",$H$2,"|",$H$3,"|",I$7,"|",$D26,"|",I$6,"|",$J$3),'DATA MART_'!$C$2:$R$985098,16,0) ->  | J26: =VLOOKUP(CONCATENATE($F$2,"|",$F$3,"|",J$5,"|",$E$5,"|",$H$2,"|",$H$3,"|",J$7,"|",$D26,"|",J$6,"|",$J$3),'DATA MART_'!$C$2:$R$985098,16,0) ->  | K26: =VLOOKUP(CONCATENATE($F$2,"|",$F$3,"|",K$5,"|",$E$5,"|",$H$2,"|",$H$3,"|",K$7,"|",$D26,"|",K$6,"|",$J$3),'DATA MART_'!$C$2:$R$985098,16,0) ->  | L26: =VLOOKUP(CONCATENATE($F$2,"|",$F$3,"|",L$5,"|",$E$5,"|",$H$2,"|",$H$3,"|",L$7,"|",$D26,"|",L$6,"|",$J$3),'DATA MART_'!$C$2:$R$985098,16,0) ->  | M26: =VLOOKUP(CONCATENATE($F$2,"|",$F$3,"|",M$5,"|",$E$5,"|",$H$2,"|",$H$3,"|",M$7,"|",$D26,"|",M$6,"|",$J$3),'DATA MART_'!$C$2:$R$985098,16,0) ->  | N26: =VLOOKUP(CONCATENATE($F$2,"|",$F$3,"|",N$5,"|",$E$5,"|",$H$2,"|",$H$3,"|",N$7,"|",$D26,"|",N$6,"|",$J$3),'DATA MART_'!$C$2:$R$985098,16,0) ->  | O26: =VLOOKUP(CONCATENATE($F$2,"|",$F$3,"|",O$5,"|",$E$5,"|",$H$2,"|",$H$3,"|",O$7,"|",$D26,"|",O$6,"|",$J$3),'DATA MART_'!$C$2:$R$985098,16,0) ->  | P26: =VLOOKUP(CONCATENATE($F$2,"|",$F$3,"|",P$5,"|",$E$5,"|",$H$2,"|",$H$3,"|",P$7,"|",$D26,"|",P$6,"|",$J$3),'DATA MART_'!$C$2:$R$985098,16,0) ->  | Q26: =VLOOKUP(CONCATENATE($F$2,"|",$F$3,"|",Q$5,"|",$E$5,"|",$H$2,"|",$H$3,"|",Q$7,"|",$D26,"|",Q$6,"|",$J$3),'DATA MART_'!$C$2:$R$985098,16,0) ->  | R26: =VLOOKUP(CONCATENATE($F$2,"|",$F$3,"|",R$5,"|",$E$5,"|",$H$2,"|",$H$3,"|",R$7,"|",$D26,"|",R$6,"|",$J$3),'DATA MART_'!$C$2:$R$985098,16,0) ->  | S26: =VLOOKUP(CONCATENATE($F$2,"|",$F$3,"|",S$5,"|",$E$5,"|",$H$2,"|",$H$3,"|",S$7,"|",$D26,"|",S$6,"|",$J$3),'DATA MART_'!$C$2:$R$985098,16,0) ->  | U26: =VLOOKUP(CONCATENATE($F$2,"|",$F$3,"|",U$5,"|",$E$5,"|",$H$2,"|",$H$3,"|",U$7,"|",$D26,"|",U$6,"|",$J$3),'DATA MART_'!$C$2:$R$985098,16,0) ->  | W26: =VLOOKUP(CONCATENATE($F$2,"|",$F$3,"|",W$5,"|",$E$5,"|",$H$2,"|",$H$3,"|",W$7,"|",$D26,"|",W$6,"|",$J$3),'DATA MART_'!$C$2:$R$985098,16,0) ->  | Y26: =VLOOKUP(CONCATENATE($F$2,"|",$F$3,"|",Y$5,"|",$E$5,"|",$H$2,"|",$H$3,"|",Y$7,"|",$D26,"|",Y$6,"|",$J$3),'DATA MART_'!$C$2:$R$985098,16,0) ->  | Z26: 101000
D27: =VLOOKUP(TRIM(F27),'DATA MART_'!$AD$3:$AF$25,3,0) -> 0 | F27: TOTAL | H27: =VLOOKUP(CONCATENATE($F$2,"|",$F$3,"|",H$5,"|",$E$5,"|",$H$2,"|",$H$3,"|",H$7,"|",$D27,"|",H$6,"|",$J$3),'DATA MART_'!$C$2:$R$985098,16,0) ->  | I27: =VLOOKUP(CONCATENATE($F$2,"|",$F$3,"|",I$5,"|",$E$5,"|",$H$2,"|",$H$3,"|",I$7,"|",$D27,"|",I$6,"|",$J$3),'DATA MART_'!$C$2:$R$985098,16,0) ->  | J27: =VLOOKUP(CONCATENATE($F$2,"|",$F$3,"|",J$5,"|",$E$5,"|",$H$2,"|",$H$3,"|",J$7,"|",$D27,"|",J$6,"|",$J$3),'DATA MART_'!$C$2:$R$985098,16,0) ->  | K27: =VLOOKUP(CONCATENATE($F$2,"|",$F$3,"|",K$5,"|",$E$5,"|",$H$2,"|",$H$3,"|",K$7,"|",$D27,"|",K$6,"|",$J$3),'DATA MART_'!$C$2:$R$985098,16,0) ->  | L27: =VLOOKUP(CONCATENATE($F$2,"|",$F$3,"|",L$5,"|",$E$5,"|",$H$2,"|",$H$3,"|",L$7,"|",$D27,"|",L$6,"|",$J$3),'DATA MART_'!$C$2:$R$985098,16,0) ->  | M27: =VLOOKUP(CONCATENATE($F$2,"|",$F$3,"|",M$5,"|",$E$5,"|",$H$2,"|",$H$3,"|",M$7,"|",$D27,"|",M$6,"|",$J$3),'DATA MART_'!$C$2:$R$985098,16,0) ->  | N27: =VLOOKUP(CONCATENATE($F$2,"|",$F$3,"|",N$5,"|",$E$5,"|",$H$2,"|",$H$3,"|",N$7,"|",$D27,"|",N$6,"|",$J$3),'DATA MART_'!$C$2:$R$985098,16,0) ->  | O27: =VLOOKUP(CONCATENATE($F$2,"|",$F$3,"|",O$5,"|",$E$5,"|",$H$2,"|",$H$3,"|",O$7,"|",$D27,"|",O$6,"|",$J$3),'DATA MART_'!$C$2:$R$985098,16,0) ->  | P27: =VLOOKUP(CONCATENATE($F$2,"|",$F$3,"|",P$5,"|",$E$5,"|",$H$2,"|",$H$3,"|",P$7,"|",$D27,"|",P$6,"|",$J$3),'DATA MART_'!$C$2:$R$985098,16,0) ->  | Q27: =VLOOKUP(CONCATENATE($F$2,"|",$F$3,"|",Q$5,"|",$E$5,"|",$H$2,"|",$H$3,"|",Q$7,"|",$D27,"|",Q$6,"|",$J$3),'DATA MART_'!$C$2:$R$985098,16,0) ->  | R27: =VLOOKUP(CONCATENATE($F$2,"|",$F$3,"|",R$5,"|",$E$5,"|",$H$2,"|",$H$3,"|",R$7,"|",$D27,"|",R$6,"|",$J$3),'DATA MART_'!$C$2:$R$985098,16,0) ->  | S27: =VLOOKUP(CONCATENATE($F$2,"|",$F$3,"|",S$5,"|",$E$5,"|",$H$2,"|",$H$3,"|",S$7,"|",$D27,"|",S$6,"|",$J$3),'DATA MART_'!$C$2:$R$985098,16,0) ->  | T27: =VLOOKUP(CONCATENATE($F$2,"|",$F$3,"|",T$5,"|",$E$5,"|",$H$2,"|",$H$3,"|",T$7,"|",$D27,"|",T$6,"|",$J$3),'DATA MART_'!$C$2:$R$985098,16,0) ->  | U27: =VLOOKUP(CONCATENATE($F$2,"|",$F$3,"|",U$5,"|",$E$5,"|",$H$2,"|",$H$3,"|",U$7,"|",$D27,"|",U$6,"|",$J$3),'DATA MART_'!$C$2:$R$985098,16,0) ->  | V27: =VLOOKUP(CONCATENATE($F$2,"|",$F$3,"|",V$5,"|",$E$5,"|",$H$2,"|",$H$3,"|",V$7,"|",$D27,"|",V$6,"|",$J$3),'DATA MART_'!$C$2:$R$985098,16,0) ->  | W27: =VLOOKUP(CONCATENATE($F$2,"|",$F$3,"|",W$5,"|",$E$5,"|",$H$2,"|",$H$3,"|",W$7,"|",$D27,"|",W$6,"|",$J$3),'DATA MART_'!$C$2:$R$985098,16,0) ->  | X27: =VLOOKUP(CONCATENATE($F$2,"|",$F$3,"|",X$5,"|",$E$5,"|",$H$2,"|",$H$3,"|",X$7,"|",$D27,"|",X$6,"|",$J$3),'DATA MART_'!$C$2:$R$985098,16,0) ->  | Y27: =VLOOKUP(CONCATENATE($F$2,"|",$F$3,"|",Y$5,"|",$E$5,"|",$H$2,"|",$H$3,"|",Y$7,"|",$D27,"|",Y$6,"|",$J$3),'DATA MART_'!$C$2:$R$985098,16,0) -> 
D28: =VLOOKUP(TRIM(F28),'DATA MART_'!$AD$3:$AF$25,3,0) -> 22 | F28: Securitisation and re-securitisations positions deducted from capital * | H28: =VLOOKUP(CONCATENATE($F$2,"|",$F$3,"|",H$5,"|",$E$5,"|",$H$2,"|",$H$3,"|",H$7,"|",$D28,"|",H$6,"|",$J$3),'DATA MART_'!$C$2:$R$985098,16,0) ->  | I28: =VLOOKUP(CONCATENATE($F$2,"|",$F$3,"|",I$5,"|",$E$5,"|",$H$2,"|",$H$3,"|",I$7,"|",$D28,"|",I$6,"|",$J$3),'DATA MART_'!$C$2:$R$985098,16,0) ->  | J28: =VLOOKUP(CONCATENATE($F$2,"|",$F$3,"|",J$5,"|",$E$5,"|",$H$2,"|",$H$3,"|",J$7,"|",$D28,"|",J$6,"|",$J$3),'DATA MART_'!$C$2:$R$985098,16,0) ->  | K28: =VLOOKUP(CONCATENATE($F$2,"|",$F$3,"|",K$5,"|",$E$5,"|",$H$2,"|",$H$3,"|",K$7,"|",$D28,"|",K$6,"|",$J$3),'DATA MART_'!$C$2:$R$985098,16,0) ->  | L28: =VLOOKUP(CONCATENATE($F$2,"|",$F$3,"|",L$5,"|",$E$5,"|",$H$2,"|",$H$3,"|",L$7,"|",$D28,"|",L$6,"|",$J$3),'DATA MART_'!$C$2:$R$985098,16,0) ->  | M28: =VLOOKUP(CONCATENATE($F$2,"|",$F$3,"|",M$5,"|",$E$5,"|",$H$2,"|",$H$3,"|",M$7,"|",$D28,"|",M$6,"|",$J$3),'DATA MART_'!$C$2:$R$985098,16,0) ->  | N28: =VLOOKUP(CONCATENATE($F$2,"|",$F$3,"|",N$5,"|",$E$5,"|",$H$2,"|",$H$3,"|",N$7,"|",$D28,"|",N$6,"|",$J$3),'DATA MART_'!$C$2:$R$985098,16,0) ->  | O28: =VLOOKUP(CONCATENATE($F$2,"|",$F$3,"|",O$5,"|",$E$5,"|",$H$2,"|",$H$3,"|",O$7,"|",$D28,"|",O$6,"|",$J$3),'DATA MART_'!$C$2:$R$985098,16,0) ->  | P28: =VLOOKUP(CONCATENATE($F$2,"|",$F$3,"|",P$5,"|",$E$5,"|",$H$2,"|",$H$3,"|",P$7,"|",$D28,"|",P$6,"|",$J$3),'DATA MART_'!$C$2:$R$985098,16,0) ->  | Q28: =VLOOKUP(CONCATENATE($F$2,"|",$F$3,"|",Q$5,"|",$E$5,"|",$H$2,"|",$H$3,"|",Q$7,"|",$D28,"|",Q$6,"|",$J$3),'DATA MART_'!$C$2:$R$985098,16,0) ->  | R28: =VLOOKUP(CONCATENATE($F$2,"|",$F$3,"|",R$5,"|",$E$5,"|",$H$2,"|",$H$3,"|",R$7,"|",$D28,"|",R$6,"|",$J$3),'DATA MART_'!$C$2:$R$985098,16,0) ->  | S28: =VLOOKUP(CONCATENATE($F$2,"|",$F$3,"|",S$5,"|",$E$5,"|",$H$2,"|",$H$3,"|",S$7,"|",$D28,"|",S$6,"|",$J$3),'DATA MART_'!$C$2:$R$985098,16,0) ->  | U28: =VLOOKUP(CONCATENATE($F$2,"|",$F$3,"|",U$5,"|",$E$5,"|",$H$2,"|",$H$3,"|",U$7,"|",$D28,"|",U$6,"|",$J$3),'DATA MART_'!$C$2:$R$985098,16,0) ->  | W28: =VLOOKUP(CONCATENATE($F$2,"|",$F$3,"|",W$5,"|",$E$5,"|",$H$2,"|",$H$3,"|",W$7,"|",$D28,"|",W$6,"|",$J$3),'DATA MART_'!$C$2:$R$985098,16,0) ->  | Y28: =VLOOKUP(CONCATENATE($F$2,"|",$F$3,"|",Y$5,"|",$E$5,"|",$H$2,"|",$H$3,"|",Y$7,"|",$D28,"|",Y$6,"|",$J$3),'DATA MART_'!$C$2:$R$985098,16,0) -> 
E29: Notes and definitions
E30: * Refers to the part of Securitization exposure that is deducted from capital and is not included in RWA
E31: ** As explained in the Guidelines
E33: =VLOOKUP(CONCATENATE($F$2,"|",$F$3,"|",H$5,"|",$G33,"|",$H$3,"|",H$7,"|",$D39,"|",$H$6,"|",$J$3),'DATA MART_'!$D$2:$R$1033646,8,0) ->  | G33: 1
E36: Counterparty Country (1) | G36: LTV % ** (as of 31/12/2012) | H36: Exposure values (as of 31/12/2012) ** | N36: RWA (as of 31/12/2012) ** | T36: Value adjustments and provisions (as of 31/12/2012) **
H37: F-IRB | J37: A-IRB | L37: STA | N37: F-IRB | P37: A-IRB | R37: STA | T37: F-IRB | V37: A-IRB | X37: STA
H38: Non-defaulted | I38: Defaulted | J38: Non-defaulted | K38: Defaulted | L38: Non-defaulted | M38: Defaulted | N38: Non-defaulted | O38: Defaulted | P38: Non-defaulted | Q38: Defaulted | R38: Non-defaulted | S38: Defaulted | T38: Non-defaulted | U38: Defaulted | V38: Non-defaulted | W38: Defaulted | X38: Non-defaulted | Y38: Defaulted
D39: =VLOOKUP(TRIM(F39),'DATA MART_'!$AD$3:$AF$25,3,0) -> 1 | E39: =VLOOKUP('2. Credit Risk Dec12_'!E33,'DATA MART_'!$AO$4:$AP$242,2,0) ->  | F39: Central banks and central governments | H39: =VLOOKUP(CONCATENATE($F$2,"|",$F$3,"|",H$5,"|",$E$33,"|",$G$33,"|",$H$3,"|",H$7,"|",$D39,"|",H$6,"|",$J$3),'DATA MART_'!$C$2:$R$985098,16,0) ->  | I39: =VLOOKUP(CONCATENATE($F$2,"|",$F$3,"|",I$5,"|",$E$33,"|",$G$33,"|",$H$3,"|",I$7,"|",$D39,"|",I$6,"|",$J$3),'DATA MART_'!$C$2:$R$985098,16,0) ->  | J39: =VLOOKUP(CONCATENATE($F$2,"|",$F$3,"|",J$5,"|",$E$33,"|",$G$33,"|",$H$3,"|",J$7,"|",$D39,"|",J$6,"|",$J$3),'DATA MART_'!$C$2:$R$985098,16,0) ->  | K39: =VLOOKUP(CONCATENATE($F$2,"|",$F$3,"|",K$5,"|",$E$33,"|",$G$33,"|",$H$3,"|",K$7,"|",$D39,"|",K$6,"|",$J$3),'DATA MART_'!$C$2:$R$985098,16,0) ->  | L39: =VLOOKUP(CONCATENATE($F$2,"|",$F$3,"|",L$5,"|",$E$33,"|",$G$33,"|",$H$3,"|",L$7,"|",$D39,"|",L$6,"|",$J$3),'DATA MART_'!$C$2:$R$985098,16,0) ->  | M39: =VLOOKUP(CONCATENATE($F$2,"|",$F$3,"|",M$5,"|",$E$33,"|",$G$33,"|",$H$3,"|",M$7,"|",$D39,"|",M$6,"|",$J$3),'DATA MART_'!$C$2:$R$985098,16,0) ->  | N39: =VLOOKUP(CONCATENATE($F$2,"|",$F$3,"|",N$5,"|",$E$33,"|",$G$33,"|",$H$3,"|",N$7,"|",$D39,"|",N$6,"|",$J$3),'DATA MART_'!$C$2:$R$985098,16,0) ->  | O39: =VLOOKUP(CONCATENATE($F$2,"|",$F$3,"|",O$5,"|",$E$33,"|",$G$33,"|",$H$3,"|",O$7,"|",$D39,"|",O$6,"|",$J$3),'DATA MART_'!$C$2:$R$985098,16,0) ->  | P39: =VLOOKUP(CONCATENATE($F$2,"|",$F$3,"|",P$5,"|",$E$33,"|",$G$33,"|",$H$3,"|",P$7,"|",$D39,"|",P$6,"|",$J$3),'DATA MART_'!$C$2:$R$985098,16,0) ->  | Q39: =VLOOKUP(CONCATENATE($F$2,"|",$F$3,"|",Q$5,"|",$E$33,"|",$G$33,"|",$H$3,"|",Q$7,"|",$D39,"|",Q$6,"|",$J$3),'DATA MART_'!$C$2:$R$985098,16,0) ->  | R39: =VLOOKUP(CONCATENATE($F$2,"|",$F$3,"|",R$5,"|",$E$33,"|",$G$33,"|",$H$3,"|",R$7,"|",$D39,"|",R$6,"|",$J$3),'DATA MART_'!$C$2:$R$985098,16,0) ->  | S39: =VLOOKUP(CONCATENATE($F$2,"|",$F$3,"|",S$5,"|",$E$33,"|",$G$33,"|",$H$3,"|",S$7,"|",$D39,"|",S$6,"|",$J$3),'DATA MART_'!$C$2:$R$985098,16,0) ->  | U39: =VLOOKUP(CONCATENATE($F$2,"|",$F$3,"|",U$5,"|",$E$33,"|",$G$33,"|",$H$3,"|",U$7,"|",$D39,"|",U$6,"|",$J$3),'DATA MART_'!$C$2:$R$985098,16,0) ->  | W39: =VLOOKUP(CONCATENATE($F$2,"|",$F$3,"|",W$5,"|",$E$33,"|",$G$33,"|",$H$3,"|",W$7,"|",$D39,"|",W$6,"|",$J$3),'DATA MART_'!$C$2:$R$985098,16,0) ->  | Y39: =VLOOKUP(CONCATENATE($F$2,"|",$F$3,"|",Y$5,"|",$E$33,"|",$G$33,"|",$H$3,"|",Y$7,"|",$D39,"|",Y$6,"|",$J$3),'DATA MART_'!$C$2:$R$985098,16,0) ->  | Z39: 100100
D40: =VLOOKUP(TRIM(F40),'DATA MART_'!$AD$3:$AF$25,3,0) -> 2 | F40: Institutions | H40: =VLOOKUP(CONCATENATE($F$2,"|",$F$3,"|",H$5,"|",$E$33,"|",$G$33,"|",$H$3,"|",H$7,"|",$D40,"|",H$6,"|",$J$3),'DATA MART_'!$C$2:$R$985098,16,0) ->  | I40: =VLOOKUP(CONCATENATE($F$2,"|",$F$3,"|",I$5,"|",$E$33,"|",$G$33,"|",$H$3,"|",I$7,"|",$D40,"|",I$6,"|",$J$3),'DATA MART_'!$C$2:$R$985098,16,0) ->  | J40: =VLOOKUP(CONCATENATE($F$2,"|",$F$3,"|",J$5,"|",$E$33,"|",$G$33,"|",$H$3,"|",J$7,"|",$D40,"|",J$6,"|",$J$3),'DATA MART_'!$C$2:$R$985098,16,0) ->  | K40: =VLOOKUP(CONCATENATE($F$2,"|",$F$3,"|",K$5,"|",$E$33,"|",$G$33,"|",$H$3,"|",K$7,"|",$D40,"|",K$6,"|",$J$3),'DATA MART_'!$C$2:$R$985098,16,0) ->  | L40: =VLOOKUP(CONCATENATE($F$2,"|",$F$3,"|",L$5,"|",$E$33,"|",$G$33,"|",$H$3,"|",L$7,"|",$D40,"|",L$6,"|",$J$3),'DATA MART_'!$C$2:$R$985098,16,0) ->  | M40: =VLOOKUP(CONCATENATE($F$2,"|",$F$3,"|",M$5,"|",$E$33,"|",$G$33,"|",$H$3,"|",M$7,"|",$D40,"|",M$6,"|",$J$3),'DATA MART_'!$C$2:$R$985098,16,0) ->  | N40: =VLOOKUP(CONCATENATE($F$2,"|",$F$3,"|",N$5,"|",$E$33,"|",$G$33,"|",$H$3,"|",N$7,"|",$D40,"|",N$6,"|",$J$3),'DATA MART_'!$C$2:$R$985098,16,0) ->  | O40: =VLOOKUP(CONCATENATE($F$2,"|",$F$3,"|",O$5,"|",$E$33,"|",$G$33,"|",$H$3,"|",O$7,"|",$D40,"|",O$6,"|",$J$3),'DATA MART_'!$C$2:$R$985098,16,0) ->  | P40: =VLOOKUP(CONCATENATE($F$2,"|",$F$3,"|",P$5,"|",$E$33,"|",$G$33,"|",$H$3,"|",P$7,"|",$D40,"|",P$6,"|",$J$3),'DATA MART_'!$C$2:$R$985098,16,0) ->  | Q40: =VLOOKUP(CONCATENATE($F$2,"|",$F$3,"|",Q$5,"|",$E$33,"|",$G$33,"|",$H$3,"|",Q$7,"|",$D40,"|",Q$6,"|",$J$3),'DATA MART_'!$C$2:$R$985098,16,0) ->  | R40: =VLOOKUP(CONCATENATE($F$2,"|",$F$3,"|",R$5,"|",$E$33,"|",$G$33,"|",$H$3,"|",R$7,"|",$D40,"|",R$6,"|",$J$3),'DATA MART_'!$C$2:$R$985098,16,0) ->  | S40: =VLOOKUP(CONCATENATE($F$2,"|",$F$3,"|",S$5,"|",$E$33,"|",$G$33,"|",$H$3,"|",S$7,"|",$D40,"|",S$6,"|",$J$3),'DATA MART_'!$C$2:$R$985098,16,0) ->  | U40: =VLOOKUP(CONCATENATE($F$2,"|",$F$3,"|",U$5,"|",$E$33,"|",$G$33,"|",$H$3,"|",U$7,"|",$D40,"|",U$6,"|",$J$3),'DATA MART_'!$C$2:$R$985098,16,0) ->  | W40: =VLOOKUP(CONCATENATE($F$2,"|",$F$3,"|",W$5,"|",$E$33,"|",$G$33,"|",$H$3,"|",W$7,"|",$D40,"|",W$6,"|",$J$3),'DATA MART_'!$C$2:$R$985098,16,0) ->  | Y40: =VLOOKUP(CONCATENATE($F$2,"|",$F$3,"|",Y$5,"|",$E$33,"|",$G$33,"|",$H$3,"|",Y$7,"|",$D40,"|",Y$6,"|",$J$3),'DATA MART_'!$C$2:$R$985098,16,0) ->  | Z40: 100103
D41: =VLOOKUP(TRIM(F41),'DATA MART_'!$AD$3:$AF$25,3,0) -> 3 | F41: Corporates | H41: =VLOOKUP(CONCATENATE($F$2,"|",$F$3,"|",H$5,"|",$E$33,"|",$G$33,"|",$H$3,"|",H$7,"|",$D41,"|",H$6,"|",$J$3),'DATA MART_'!$C$2:$R$985098,16,0) ->  | I41: =VLOOKUP(CONCATENATE($F$2,"|",$F$3,"|",I$5,"|",$E$33,"|",$G$33,"|",$H$3,"|",I$7,"|",$D41,"|",I$6,"|",$J$3),'DATA MART_'!$C$2:$R$985098,16,0) ->  | J41: =VLOOKUP(CONCATENATE($F$2,"|",$F$3,"|",J$5,"|",$E$33,"|",$G$33,"|",$H$3,"|",J$7,"|",$D41,"|",J$6,"|",$J$3),'DATA MART_'!$C$2:$R$985098,16,0) ->  | K41: =VLOOKUP(CONCATENATE($F$2,"|",$F$3,"|",K$5,"|",$E$33,"|",$G$33,"|",$H$3,"|",K$7,"|",$D41,"|",K$6,"|",$J$3),'DATA MART_'!$C$2:$R$985098,16,0) ->  | L41: =VLOOKUP(CONCATENATE($F$2,"|",$F$3,"|",L$5,"|",$E$33,"|",$G$33,"|",$H$3,"|",L$7,"|",$D41,"|",L$6,"|",$J$3),'DATA MART_'!$C$2:$R$985098,16,0) ->  | M41: =VLOOKUP(CONCATENATE($F$2,"|",$F$3,"|",M$5,"|",$E$33,"|",$G$33,"|",$H$3,"|",M$7,"|",$D41,"|",M$6,"|",$J$3),'DATA MART_'!$C$2:$R$985098,16,0) ->  | N41: =VLOOKUP(CONCATENATE($F$2,"|",$F$3,"|",N$5,"|",$E$33,"|",$G$33,"|",$H$3,"|",N$7,"|",$D41,"|",N$6,"|",$J$3),'DATA MART_'!$C$2:$R$985098,16,0) ->  | O41: =VLOOKUP(CONCATENATE($F$2,"|",$F$3,"|",O$5,"|",$E$33,"|",$G$33,"|",$H$3,"|",O$7,"|",$D41,"|",O$6,"|",$J$3),'DATA MART_'!$C$2:$R$985098,16,0) ->  | P41: =VLOOKUP(CONCATENATE($F$2,"|",$F$3,"|",P$5,"|",$E$33,"|",$G$33,"|",$H$3,"|",P$7,"|",$D41,"|",P$6,"|",$J$3),'DATA MART_'!$C$2:$R$985098,16,0) ->  | Q41: =VLOOKUP(CONCATENATE($F$2,"|",$F$3,"|",Q$5,"|",$E$33,"|",$G$33,"|",$H$3,"|",Q$7,"|",$D41,"|",Q$6,"|",$J$3),'DATA MART_'!$C$2:$R$985098,16,0) ->  | R41: =VLOOKUP(CONCATENATE($F$2,"|",$F$3,"|",R$5,"|",$E$33,"|",$G$33,"|",$H$3,"|",R$7,"|",$D41,"|",R$6,"|",$J$3),'DATA MART_'!$C$2:$R$985098,16,0) ->  | S41: =VLOOKUP(CONCATENATE($F$2,"|",$F$3,"|",S$5,"|",$E$33,"|",$G$33,"|",$H$3,"|",S$7,"|",$D41,"|",S$6,"|",$J$3),'DATA MART_'!$C$2:$R$985098,16,0) ->  | U41: =VLOOKUP(CONCATENATE($F$2,"|",$F$3,"|",U$5,"|",$E$33,"|",$G$33,"|",$H$3,"|",U$7,"|",$D41,"|",U$6,"|",$J$3),'DATA MART_'!$C$2:$R$985098,16,0) ->  | W41: =VLOOKUP(CONCATENATE($F$2,"|",$F$3,"|",W$5,"|",$E$33,"|",$G$33,"|",$H$3,"|",W$7,"|",$D41,"|",W$6,"|",$J$3),'DATA MART_'!$C$2:$R$985098,16,0) ->  | Y41: =VLOOKUP(CONCATENATE($F$2,"|",$F$3,"|",Y$5,"|",$E$33,"|",$G$33,"|",$H$3,"|",Y$7,"|",$D41,"|",Y$6,"|",$J$3),'DATA MART_'!$C$2:$R$985098,16,0) ->  | Z41: 100200
D42: =VLOOKUP(TRIM(F42),'DATA MART_'!$AD$3:$AF$25,3,0) -> 12 | F42: Corporates - Of Which: Specialised Lending | H42: =VLOOKUP(CONCATENATE($F$2,"|",$F$3,"|",H$5,"|",$E$33,"|",$G$33,"|",$H$3,"|",H$7,"|",$D42,"|",H$6,"|",$J$3),'DATA MART_'!$C$2:$R$985098,16,0) ->  | I42: =VLOOKUP(CONCATENATE($F$2,"|",$F$3,"|",I$5,"|",$E$33,"|",$G$33,"|",$H$3,"|",I$7,"|",$D42,"|",I$6,"|",$J$3),'DATA MART_'!$C$2:$R$985098,16,0) ->  | J42: =VLOOKUP(CONCATENATE($F$2,"|",$F$3,"|",J$5,"|",$E$33,"|",$G$33,"|",$H$3,"|",J$7,"|",$D42,"|",J$6,"|",$J$3),'DATA MART_'!$C$2:$R$985098,16,0) ->  | K42: =VLOOKUP(CONCATENATE($F$2,"|",$F$3,"|",K$5,"|",$E$33,"|",$G$33,"|",$H$3,"|",K$7,"|",$D42,"|",K$6,"|",$J$3),'DATA MART_'!$C$2:$R$985098,16,0) ->  | L42: =VLOOKUP(CONCATENATE($F$2,"|",$F$3,"|",L$5,"|",$E$33,"|",$G$33,"|",$H$3,"|",L$7,"|",$D42,"|",L$6,"|",$J$3),'DATA MART_'!$C$2:$R$985098,16,0) ->  | M42: =VLOOKUP(CONCATENATE($F$2,"|",$F$3,"|",M$5,"|",$E$33,"|",$G$33,"|",$H$3,"|",M$7,"|",$D42,"|",M$6,"|",$J$3),'DATA MART_'!$C$2:$R$985098,16,0) ->  | N42: =VLOOKUP(CONCATENATE($F$2,"|",$F$3,"|",N$5,"|",$E$33,"|",$G$33,"|",$H$3,"|",N$7,"|",$D42,"|",N$6,"|",$J$3),'DATA MART_'!$C$2:$R$985098,16,0) ->  | O42: =VLOOKUP(CONCATENATE($F$2,"|",$F$3,"|",O$5,"|",$E$33,"|",$G$33,"|",$H$3,"|",O$7,"|",$D42,"|",O$6,"|",$J$3),'DATA MART_'!$C$2:$R$985098,16,0) ->  | P42: =VLOOKUP(CONCATENATE($F$2,"|",$F$3,"|",P$5,"|",$E$33,"|",$G$33,"|",$H$3,"|",P$7,"|",$D42,"|",P$6,"|",$J$3),'DATA MART_'!$C$2:$R$985098,16,0) ->  | Q42: =VLOOKUP(CONCATENATE($F$2,"|",$F$3,"|",Q$5,"|",$E$33,"|",$G$33,"|",$H$3,"|",Q$7,"|",$D42,"|",Q$6,"|",$J$3),'DATA MART_'!$C$2:$R$985098,16,0) ->  | R42: =VLOOKUP(CONCATENATE($F$2,"|",$F$3,"|",R$5,"|",$E$33,"|",$G$33,"|",$H$3,"|",R$7,"|",$D42,"|",R$6,"|",$J$3),'DATA MART_'!$C$2:$R$985098,16,0) ->  | S42: =VLOOKUP(CONCATENATE($F$2,"|",$F$3,"|",S$5,"|",$E$33,"|",$G$33,"|",$H$3,"|",S$7,"|",$D42,"|",S$6,"|",$J$3),'DATA MART_'!$C$2:$R$985098,16,0) ->  | U42: =VLOOKUP(CONCATENATE($F$2,"|",$F$3,"|",U$5,"|",$E$33,"|",$G$33,"|",$H$3,"|",U$7,"|",$D42,"|",U$6,"|",$J$3),'DATA MART_'!$C$2:$R$985098,16,0) ->  | W42: =VLOOKUP(CONCATENATE($F$2,"|",$F$3,"|",W$5,"|",$E$33,"|",$G$33,"|",$H$3,"|",W$7,"|",$D42,"|",W$6,"|",$J$3),'DATA MART_'!$C$2:$R$985098,16,0) ->  | Y42: =VLOOKUP(CONCATENATE($F$2,"|",$F$3,"|",Y$5,"|",$E$33,"|",$G$33,"|",$H$3,"|",Y$7,"|",$D42,"|",Y$6,"|",$J$3),'DATA MART_'!$C$2:$R$985098,16,0) ->  | Z42: 100203
D43: =VLOOKUP(TRIM(F43),'DATA MART_'!$AD$3:$AF$25,3,0) -> 13 | F43: Corporates - Of Which: SME | H43: =VLOOKUP(CONCATENATE($F$2,"|",$F$3,"|",H$5,"|",$E$33,"|",$G$33,"|",$H$3,"|",H$7,"|",$D43,"|",H$6,"|",$J$3),'DATA MART_'!$C$2:$R$985098,16,0) ->  | I43: =VLOOKUP(CONCATENATE($F$2,"|",$F$3,"|",I$5,"|",$E$33,"|",$G$33,"|",$H$3,"|",I$7,"|",$D43,"|",I$6,"|",$J$3),'DATA MART_'!$C$2:$R$985098,16,0) ->  | J43: =VLOOKUP(CONCATENATE($F$2,"|",$F$3,"|",J$5,"|",$E$33,"|",$G$33,"|",$H$3,"|",J$7,"|",$D43,"|",J$6,"|",$J$3),'DATA MART_'!$C$2:$R$985098,16,0) ->  | K43: =VLOOKUP(CONCATENATE($F$2,"|",$F$3,"|",K$5,"|",$E$33,"|",$G$33,"|",$H$3,"|",K$7,"|",$D43,"|",K$6,"|",$J$3),'DATA MART_'!$C$2:$R$985098,16,0) ->  | L43: =VLOOKUP(CONCATENATE($F$2,"|",$F$3,"|",L$5,"|",$E$33,"|",$G$33,"|",$H$3,"|",L$7,"|",$D43,"|",L$6,"|",$J$3),'DATA MART_'!$C$2:$R$985098,16,0) ->  | M43: =VLOOKUP(CONCATENATE($F$2,"|",$F$3,"|",M$5,"|",$E$33,"|",$G$33,"|",$H$3,"|",M$7,"|",$D43,"|",M$6,"|",$J$3),'DATA MART_'!$C$2:$R$985098,16,0) ->  | N43: =VLOOKUP(CONCATENATE($F$2,"|",$F$3,"|",N$5,"|",$E$33,"|",$G$33,"|",$H$3,"|",N$7,"|",$D43,"|",N$6,"|",$J$3),'DATA MART_'!$C$2:$R$985098,16,0) ->  | O43: =VLOOKUP(CONCATENATE($F$2,"|",$F$3,"|",O$5,"|",$E$33,"|",$G$33,"|",$H$3,"|",O$7,"|",$D43,"|",O$6,"|",$J$3),'DATA MART_'!$C$2:$R$985098,16,0) ->  | P43: =VLOOKUP(CONCATENATE($F$2,"|",$F$3,"|",P$5,"|",$E$33,"|",$G$33,"|",$H$3,"|",P$7,"|",$D43,"|",P$6,"|",$J$3),'DATA MART_'!$C$2:$R$985098,16,0) ->  | Q43: =VLOOKUP(CONCATENATE($F$2,"|",$F$3,"|",Q$5,"|",$E$33,"|",$G$33,"|",$H$3,"|",Q$7,"|",$D43,"|",Q$6,"|",$J$3),'DATA MART_'!$C$2:$R$985098,16,0) ->  | R43: =VLOOKUP(CONCATENATE($F$2,"|",$F$3,"|",R$5,"|",$E$33,"|",$G$33,"|",$H$3,"|",R$7,"|",$D43,"|",R$6,"|",$J$3),'DATA MART_'!$C$2:$R$985098,16,0) ->  | S43: =VLOOKUP(CONCATENATE($F$2,"|",$F$3,"|",S$5,"|",$E$33,"|",$G$33,"|",$H$3,"|",S$7,"|",$D43,"|",S$6,"|",$J$3),'DATA MART_'!$C$2:$R$985098,16,0) ->  | U43: =VLOOKUP(CONCATENATE($F$2,"|",$F$3,"|",U$5,"|",$E$33,"|",$G$33,"|",$H$3,"|",U$7,"|",$D43,"|",U$6,"|",$J$3),'DATA MART_'!$C$2:$R$985098,16,0) ->  | W43: =VLOOKUP(CONCATENATE($F$2,"|",$F$3,"|",W$5,"|",$E$33,"|",$G$33,"|",$H$3,"|",W$7,"|",$D43,"|",W$6,"|",$J$3),'DATA MART_'!$C$2:$R$985098,16,0) ->  | Y43: =VLOOKUP(CONCATENATE($F$2,"|",$F$3,"|",Y$5,"|",$E$33,"|",$G$33,"|",$H$3,"|",Y$7,"|",$D43,"|",Y$6,"|",$J$3),'DATA MART_'!$C$2:$R$985098,16,0) ->  | Z43: 100300
D44: =VLOOKUP(TRIM(F44),'DATA MART_'!$AD$3:$AF$25,3,0) -> 4 | F44: Retail | H44: =VLOOKUP(CONCATENATE($F$2,"|",$F$3,"|",H$5,"|",$E$33,"|",$G$33,"|",$H$3,"|",H$7,"|",$D44,"|",H$6,"|",$J$3),'DATA MART_'!$C$2:$R$985098,16,0) ->  | I44: =VLOOKUP(CONCATENATE($F$2,"|",$F$3,"|",I$5,"|",$E$33,"|",$G$33,"|",$H$3,"|",I$7,"|",$D44,"|",I$6,"|",$J$3),'DATA MART_'!$C$2:$R$985098,16,0) ->  | J44: =VLOOKUP(CONCATENATE($F$2,"|",$F$3,"|",J$5,"|",$E$33,"|",$G$33,"|",$H$3,"|",J$7,"|",$D44,"|",J$6,"|",$J$3),'DATA MART_'!$C$2:$R$985098,16,0) ->  | K44: =VLOOKUP(CONCATENATE($F$2,"|",$F$3,"|",K$5,"|",$E$33,"|",$G$33,"|",$H$3,"|",K$7,"|",$D44,"|",K$6,"|",$J$3),'DATA MART_'!$C$2:$R$985098,16,0) ->  | L44: =VLOOKUP(CONCATENATE($F$2,"|",$F$3,"|",L$5,"|",$E$33,"|",$G$33,"|",$H$3,"|",L$7,"|",$D44,"|",L$6,"|",$J$3),'DATA MART_'!$C$2:$R$985098,16,0) ->  | M44: =VLOOKUP(CONCATENATE($F$2,"|",$F$3,"|",M$5,"|",$E$33,"|",$G$33,"|",$H$3,"|",M$7,"|",$D44,"|",M$6,"|",$J$3),'DATA MART_'!$C$2:$R$985098,16,0) ->  | N44: =VLOOKUP(CONCATENATE($F$2,"|",$F$3,"|",N$5,"|",$E$33,"|",$G$33,"|",$H$3,"|",N$7,"|",$D44,"|",N$6,"|",$J$3),'DATA MART_'!$C$2:$R$985098,16,0) ->  | O44: =VLOOKUP(CONCATENATE($F$2,"|",$F$3,"|",O$5,"|",$E$33,"|",$G$33,"|",$H$3,"|",O$7,"|",$D44,"|",O$6,"|",$J$3),'DATA MART_'!$C$2:$R$985098,16,0) ->  | P44: =VLOOKUP(CONCATENATE($F$2,"|",$F$3,"|",P$5,"|",$E$33,"|",$G$33,"|",$H$3,"|",P$7,"|",$D44,"|",P$6,"|",$J$3),'DATA MART_'!$C$2:$R$985098,16,0) ->  | Q44: =VLOOKUP(CONCATENATE($F$2,"|",$F$3,"|",Q$5,"|",$E$33,"|",$G$33,"|",$H$3,"|",Q$7,"|",$D44,"|",Q$6,"|",$J$3),'DATA MART_'!$C$2:$R$985098,16,0) ->  | R44: =VLOOKUP(CONCATENATE($F$2,"|",$F$3,"|",R$5,"|",$E$33,"|",$G$33,"|",$H$3,"|",R$7,"|",$D44,"|",R$6,"|",$J$3),'DATA MART_'!$C$2:$R$985098,16,0) ->  | S44: =VLOOKUP(CONCATENATE($F$2,"|",$F$3,"|",S$5,"|",$E$33,"|",$G$33,"|",$H$3,"|",S$7,"|",$D44,"|",S$6,"|",$J$3),'DATA MART_'!$C$2:$R$985098,16,0) ->  | U44: =VLOOKUP(CONCATENATE($F$2,"|",$F$3,"|",U$5,"|",$E$33,"|",$G$33,"|",$H$3,"|",U$7,"|",$D44,"|",U$6,"|",$J$3),'DATA MART_'!$C$2:$R$985098,16,0) ->  | W44: =VLOOKUP(CONCATENATE($F$2,"|",$F$3,"|",W$5,"|",$E$33,"|",$G$33,"|",$H$3,"|",W$7,"|",$D44,"|",W$6,"|",$J$3),'DATA MART_'!$C$2:$R$985098,16,0) ->  | Y44: =VLOOKUP(CONCATENATE($F$2,"|",$F$3,"|",Y$5,"|",$E$33,"|",$G$33,"|",$H$3,"|",Y$7,"|",$D44,"|",Y$6,"|",$J$3),'DATA MART_'!$C$2:$R$985098,16,0) ->  | Z44: 100301
D45: =VLOOKUP(TRIM(F45),'DATA MART_'!$AD$3:$AF$25,3,0) -> 15 | F45: Retail - Secured on real estate property | G45: =VLOOKUP(CONCATENATE($F$2,"|",$F$3,"|",G$5,"|",$E$33,"|",$G$33,"|",$H$3,"|",G$7,"|",$D45,"|",G$6,"|",$J$3),'DATA MART_'!$C$2:$R$985098,16,0) ->  | H45: =VLOOKUP(CONCATENATE($F$2,"|",$F$3,"|",H$5,"|",$E$33,"|",$G$33,"|",$H$3,"|",H$7,"|",$D45,"|",H$6,"|",$J$3),'DATA MART_'!$C$2:$R$985098,16,0) ->  | I45: =VLOOKUP(CONCATENATE($F$2,"|",$F$3,"|",I$5,"|",$E$33,"|",$G$33,"|",$H$3,"|",I$7,"|",$D45,"|",I$6,"|",$J$3),'DATA MART_'!$C$2:$R$985098,16,0) ->  | J45: =VLOOKUP(CONCATENATE($F$2,"|",$F$3,"|",J$5,"|",$E$33,"|",$G$33,"|",$H$3,"|",J$7,"|",$D45,"|",J$6,"|",$J$3),'DATA MART_'!$C$2:$R$985098,16,0) ->  | K45: =VLOOKUP(CONCATENATE($F$2,"|",$F$3,"|",K$5,"|",$E$33,"|",$G$33,"|",$H$3,"|",K$7,"|",$D45,"|",K$6,"|",$J$3),'DATA MART_'!$C$2:$R$985098,16,0) ->  | L45: =VLOOKUP(CONCATENATE($F$2,"|",$F$3,"|",L$5,"|",$E$33,"|",$G$33,"|",$H$3,"|",L$7,"|",$D45,"|",L$6,"|",$J$3),'DATA MART_'!$C$2:$R$985098,16,0) ->  | M45: =VLOOKUP(CONCATENATE($F$2,"|",$F$3,"|",M$5,"|",$E$33,"|",$G$33,"|",$H$3,"|",M$7,"|",$D45,"|",M$6,"|",$J$3),'DATA MART_'!$C$2:$R$985098,16,0) ->  | N45: =VLOOKUP(CONCATENATE($F$2,"|",$F$3,"|",N$5,"|",$E$33,"|",$G$33,"|",$H$3,"|",N$7,"|",$D45,"|",N$6,"|",$J$3),'DATA MART_'!$C$2:$R$985098,16,0) ->  | O45: =VLOOKUP(CONCATENATE($F$2,"|",$F$3,"|",O$5,"|",$E$33,"|",$G$33,"|",$H$3,"|",O$7,"|",$D45,"|",O$6,"|",$J$3),'DATA MART_'!$C$2:$R$985098,16,0) ->  | P45: =VLOOKUP(CONCATENATE($F$2,"|",$F$3,"|",P$5,"|",$E$33,"|",$G$33,"|",$H$3,"|",P$7,"|",$D45,"|",P$6,"|",$J$3),'DATA MART_'!$C$2:$R$985098,16,0) ->  | Q45: =VLOOKUP(CONCATENATE($F$2,"|",$F$3,"|",Q$5,"|",$E$33,"|",$G$33,"|",$H$3,"|",Q$7,"|",$D45,"|",Q$6,"|",$J$3),'DATA MART_'!$C$2:$R$985098,16,0) ->  | R45: =VLOOKUP(CONCATENATE($F$2,"|",$F$3,"|",R$5,"|",$E$33,"|",$G$33,"|",$H$3,"|",R$7,"|",$D45,"|",R$6,"|",$J$3),'DATA MART_'!$C$2:$R$985098,16,0) ->  | S45: =VLOOKUP(CONCATENATE($F$2,"|",$F$3,"|",S$5,"|",$E$33,"|",$G$33,"|",$H$3,"|",S$7,"|",$D45,"|",S$6,"|",$J$3),'DATA MART_'!$C$2:$R$985098,16,0) ->  | U45: =VLOOKUP(CONCATENATE($F$2,"|",$F$3,"|",U$5,"|",$E$33,"|",$G$33,"|",$H$3,"|",U$7,"|",$D45,"|",U$6,"|",$J$3),'DATA MART_'!$C$2:$R$985098,16,0) ->  | W45: =VLOOKUP(CONCATENATE($F$2,"|",$F$3,"|",W$5,"|",$E$33,"|",$G$33,"|",$H$3,"|",W$7,"|",$D45,"|",W$6,"|",$J$3),'DATA MART_'!$C$2:$R$985098,16,0) ->  | Y45: =VLOOKUP(CONCATENATE($F$2,"|",$F$3,"|",Y$5,"|",$E$33,"|",$G$33,"|",$H$3,"|",Y$7,"|",$D45,"|",Y$6,"|",$J$3),'DATA MART_'!$C$2:$R$985098,16,0) ->  | Z45: 100400
D46: =VLOOKUP(TRIM(F46),'DATA MART_'!$AD$3:$AF$25,3,0) -> 16 | F46: Retail - Secured on real estate property - Of Which: SME | G46: =VLOOKUP(CONCATENATE($F$2,"|",$F$3,"|",G$5,"|",$E$33,"|",$G$33,"|",$H$3,"|",G$7,"|",$D46,"|",G$6,"|",$J$3),'DATA MART_'!$C$2:$R$985098,16,0) ->  | H46: =VLOOKUP(CONCATENATE($F$2,"|",$F$3,"|",H$5,"|",$E$33,"|",$G$33,"|",$H$3,"|",H$7,"|",$D46,"|",H$6,"|",$J$3),'DATA MART_'!$C$2:$R$985098,16,0) ->  | I46: =VLOOKUP(CONCATENATE($F$2,"|",$F$3,"|",I$5,"|",$E$33,"|",$G$33,"|",$H$3,"|",I$7,"|",$D46,"|",I$6,"|",$J$3),'DATA MART_'!$C$2:$R$985098,16,0) ->  | J46: =VLOOKUP(CONCATENATE($F$2,"|",$F$3,"|",J$5,"|",$E$33,"|",$G$33,"|",$H$3,"|",J$7,"|",$D46,"|",J$6,"|",$J$3),'DATA MART_'!$C$2:$R$985098,16,0) ->  | K46: =VLOOKUP(CONCATENATE($F$2,"|",$F$3,"|",K$5,"|",$E$33,"|",$G$33,"|",$H$3,"|",K$7,"|",$D46,"|",K$6,"|",$J$3),'DATA MART_'!$C$2:$R$985098,16,0) ->  | L46: =VLOOKUP(CONCATENATE($F$2,"|",$F$3,"|",L$5,"|",$E$33,"|",$G$33,"|",$H$3,"|",L$7,"|",$D46,"|",L$6,"|",$J$3),'DATA MART_'!$C$2:$R$985098,16,0) ->  | M46: =VLOOKUP(CONCATENATE($F$2,"|",$F$3,"|",M$5,"|",$E$33,"|",$G$33,"|",$H$3,"|",M$7,"|",$D46,"|",M$6,"|",$J$3),'DATA MART_'!$C$2:$R$985098,16,0) ->  | N46: =VLOOKUP(CONCATENATE($F$2,"|",$F$3,"|",N$5,"|",$E$33,"|",$G$33,"|",$H$3,"|",N$7,"|",$D46,"|",N$6,"|",$J$3),'DATA MART_'!$C$2:$R$985098,16,0) ->  | O46: =VLOOKUP(CONCATENATE($F$2,"|",$F$3,"|",O$5,"|",$E$33,"|",$G$33,"|",$H$3,"|",O$7,"|",$D46,"|",O$6,"|",$J$3),'DATA MART_'!$C$2:$R$985098,16,0) ->  | P46: =VLOOKUP(CONCATENATE($F$2,"|",$F$3,"|",P$5,"|",$E$33,"|",$G$33,"|",$H$3,"|",P$7,"|",$D46,"|",P$6,"|",$J$3),'DATA MART_'!$C$2:$R$985098,16,0) ->  | Q46: =VLOOKUP(CONCATENATE($F$2,"|",$F$3,"|",Q$5,"|",$E$33,"|",$G$33,"|",$H$3,"|",Q$7,"|",$D46,"|",Q$6,"|",$J$3),'DATA MART_'!$C$2:$R$985098,16,0) ->  | R46: =VLOOKUP(CONCATENATE($F$2,"|",$F$3,"|",R$5,"|",$E$33,"|",$G$33,"|",$H$3,"|",R$7,"|",$D46,"|",R$6,"|",$J$3),'DATA MART_'!$C$2:$R$985098,16,0) ->  | S46: =VLOOKUP(CONCATENATE($F$2,"|",$F$3,"|",S$5,"|",$E$33,"|",$G$33,"|",$H$3,"|",S$7,"|",$D46,"|",S$6,"|",$J$3),'DATA MART_'!$C$2:$R$985098,16,0) ->  | U46: =VLOOKUP(CONCATENATE($F$2,"|",$F$3,"|",U$5,"|",$E$33,"|",$G$33,"|",$H$3,"|",U$7,"|",$D46,"|",U$6,"|",$J$3),'DATA MART_'!$C$2:$R$985098,16,0) ->  | W46: =VLOOKUP(CONCATENATE($F$2,"|",$F$3,"|",W$5,"|",$E$33,"|",$G$33,"|",$H$3,"|",W$7,"|",$D46,"|",W$6,"|",$J$3),'DATA MART_'!$C$2:$R$985098,16,0) ->  | Y46: =VLOOKUP(CONCATENATE($F$2,"|",$F$3,"|",Y$5,"|",$E$33,"|",$G$33,"|",$H$3,"|",Y$7,"|",$D46,"|",Y$6,"|",$J$3),'DATA MART_'!$C$2:$R$985098,16,0) ->  | Z46: 100500
D47: =VLOOKUP(TRIM(F47),'DATA MART_'!$AD$3:$AF$25,3,0) -> 17 | F47: Retail - Secured on real estate property - Of Which: non-SME | G47: =VLOOKUP(CONCATENATE($F$2,"|",$F$3,"|",G$5,"|",$E$33,"|",$G$33,"|",$H$3,"|",G$7,"|",$D47,"|",G$6,"|",$J$3),'DATA MART_'!$C$2:$R$985098,16,0) ->  | H47: =VLOOKUP(CONCATENATE($F$2,"|",$F$3,"|",H$5,"|",$E$33,"|",$G$33,"|",$H$3,"|",H$7,"|",$D47,"|",H$6,"|",$J$3),'DATA MART_'!$C$2:$R$985098,16,0) ->  | I47: =VLOOKUP(CONCATENATE($F$2,"|",$F$3,"|",I$5,"|",$E$33,"|",$G$33,"|",$H$3,"|",I$7,"|",$D47,"|",I$6,"|",$J$3),'DATA MART_'!$C$2:$R$985098,16,0) ->  | J47: =VLOOKUP(CONCATENATE($F$2,"|",$F$3,"|",J$5,"|",$E$33,"|",$G$33,"|",$H$3,"|",J$7,"|",$D47,"|",J$6,"|",$J$3),'DATA MART_'!$C$2:$R$985098,16,0) ->  | K47: =VLOOKUP(CONCATENATE($F$2,"|",$F$3,"|",K$5,"|",$E$33,"|",$G$33,"|",$H$3,"|",K$7,"|",$D47,"|",K$6,"|",$J$3),'DATA MART_'!$C$2:$R$985098,16,0) ->  | L47: =VLOOKUP(CONCATENATE($F$2,"|",$F$3,"|",L$5,"|",$E$33,"|",$G$33,"|",$H$3,"|",L$7,"|",$D47,"|",L$6,"|",$J$3),'DATA MART_'!$C$2:$R$985098,16,0) ->  | M47: =VLOOKUP(CONCATENATE($F$2,"|",$F$3,"|",M$5,"|",$E$33,"|",$G$33,"|",$H$3,"|",M$7,"|",$D47,"|",M$6,"|",$J$3),'DATA MART_'!$C$2:$R$985098,16,0) ->  | N47: =VLOOKUP(CONCATENATE($F$2,"|",$F$3,"|",N$5,"|",$E$33,"|",$G$33,"|",$H$3,"|",N$7,"|",$D47,"|",N$6,"|",$J$3),'DATA MART_'!$C$2:$R$985098,16,0) ->  | O47: =VLOOKUP(CONCATENATE($F$2,"|",$F$3,"|",O$5,"|",$E$33,"|",$G$33,"|",$H$3,"|",O$7,"|",$D47,"|",O$6,"|",$J$3),'DATA MART_'!$C$2:$R$985098,16,0) ->  | P47: =VLOOKUP(CONCATENATE($F$2,"|",$F$3,"|",P$5,"|",$E$33,"|",$G$33,"|",$H$3,"|",P$7,"|",$D47,"|",P$6,"|",$J$3),'DATA MART_'!$C$2:$R$985098,16,0) ->  | Q47: =VLOOKUP(CONCATENATE($F$2,"|",$F$3,"|",Q$5,"|",$E$33,"|",$G$33,"|",$H$3,"|",Q$7,"|",$D47,"|",Q$6,"|",$J$3),'DATA MART_'!$C$2:$R$985098,16,0) ->  | R47: =VLOOKUP(CONCATENATE($F$2,"|",$F$3,"|",R$5,"|",$E$33,"|",$G$33,"|",$H$3,"|",R$7,"|",$D47,"|",R$6,"|",$J$3),'DATA MART_'!$C$2:$R$985098,16,0) ->  | S47: =VLOOKUP(CONCATENATE($F$2,"|",$F$3,"|",S$5,"|",$E$33,"|",$G$33,"|",$H$3,"|",S$7,"|",$D47,"|",S$6,"|",$J$3),'DATA MART_'!$C$2:$R$985098,16,0) ->  | U47: =VLOOKUP(CONCATENATE($F$2,"|",$F$3,"|",U$5,"|",$E$33,"|",$G$33,"|",$H$3,"|",U$7,"|",$D47,"|",U$6,"|",$J$3),'DATA MART_'!$C$2:$R$985098,16,0) ->  | W47: =VLOOKUP(CONCATENATE($F$2,"|",$F$3,"|",W$5,"|",$E$33,"|",$G$33,"|",$H$3,"|",W$7,"|",$D47,"|",W$6,"|",$J$3),'DATA MART_'!$C$2:$R$985098,16,0) ->  | Y47: =VLOOKUP(CONCATENATE($F$2,"|",$F$3,"|",Y$5,"|",$E$33,"|",$G$33,"|",$H$3,"|",Y$7,"|",$D47,"|",Y$6,"|",$J$3),'DATA MART_'!$C$2:$R$985098,16,0) ->  | Z47: 100600
D48: =VLOOKUP(TRIM(F48),'DATA MART_'!$AD$3:$AF$25,3,0) -> 18 | F48: Retail - Qualifying Revolving | H48: =VLOOKUP(CONCATENATE($F$2,"|",$F$3,"|",H$5,"|",$E$33,"|",$G$33,"|",$H$3,"|",H$7,"|",$D48,"|",H$6,"|",$J$3),'DATA MART_'!$C$2:$R$985098,16,0) ->  | I48: =VLOOKUP(CONCATENATE($F$2,"|",$F$3,"|",I$5,"|",$E$33,"|",$G$33,"|",$H$3,"|",I$7,"|",$D48,"|",I$6,"|",$J$3),'DATA MART_'!$C$2:$R$985098,16,0) ->  | J48: =VLOOKUP(CONCATENATE($F$2,"|",$F$3,"|",J$5,"|",$E$33,"|",$G$33,"|",$H$3,"|",J$7,"|",$D48,"|",J$6,"|",$J$3),'DATA MART_'!$C$2:$R$985098,16,0) ->  | K48: =VLOOKUP(CONCATENATE($F$2,"|",$F$3,"|",K$5,"|",$E$33,"|",$G$33,"|",$H$3,"|",K$7,"|",$D48,"|",K$6,"|",$J$3),'DATA MART_'!$C$2:$R$985098,16,0) ->  | L48: =VLOOKUP(CONCATENATE($F$2,"|",$F$3,"|",L$5,"|",$E$33,"|",$G$33,"|",$H$3,"|",L$7,"|",$D48,"|",L$6,"|",$J$3),'DATA MART_'!$C$2:$R$985098,16,0) ->  | M48: =VLOOKUP(CONCATENATE($F$2,"|",$F$3,"|",M$5,"|",$E$33,"|",$G$33,"|",$H$3,"|",M$7,"|",$D48,"|",M$6,"|",$J$3),'DATA MART_'!$C$2:$R$985098,16,0) ->  | N48: =VLOOKUP(CONCATENATE($F$2,"|",$F$3,"|",N$5,"|",$E$33,"|",$G$33,"|",$H$3,"|",N$7,"|",$D48,"|",N$6,"|",$J$3),'DATA MART_'!$C$2:$R$985098,16,0) ->  | O48: =VLOOKUP(CONCATENATE($F$2,"|",$F$3,"|",O$5,"|",$E$33,"|",$G$33,"|",$H$3,"|",O$7,"|",$D48,"|",O$6,"|",$J$3),'DATA MART_'!$C$2:$R$985098,16,0) ->  | P48: =VLOOKUP(CONCATENATE($F$2,"|",$F$3,"|",P$5,"|",$E$33,"|",$G$33,"|",$H$3,"|",P$7,"|",$D48,"|",P$6,"|",$J$3),'DATA MART_'!$C$2:$R$985098,16,0) ->  | Q48: =VLOOKUP(CONCATENATE($F$2,"|",$F$3,"|",Q$5,"|",$E$33,"|",$G$33,"|",$H$3,"|",Q$7,"|",$D48,"|",Q$6,"|",$J$3),'DATA MART_'!$C$2:$R$985098,16,0) ->  | R48: =VLOOKUP(CONCATENATE($F$2,"|",$F$3,"|",R$5,"|",$E$33,"|",$G$33,"|",$H$3,"|",R$7,"|",$D48,"|",R$6,"|",$J$3),'DATA MART_'!$C$2:$R$985098,16,0) ->  | S48: =VLOOKUP(CONCATENATE($F$2,"|",$F$3,"|",S$5,"|",$E$33,"|",$G$33,"|",$H$3,"|",S$7,"|",$D48,"|",S$6,"|",$J$3),'DATA MART_'!$C$2:$R$985098,16,0) ->  | U48: =VLOOKUP(CONCATENATE($F$2,"|",$F$3,"|",U$5,"|",$E$33,"|",$G$33,"|",$H$3,"|",U$7,"|",$D48,"|",U$6,"|",$J$3),'DATA MART_'!$C$2:$R$985098,16,0) ->  | W48: =VLOOKUP(CONCATENATE($F$2,"|",$F$3,"|",W$5,"|",$E$33,"|",$G$33,"|",$H$3,"|",W$7,"|",$D48,"|",W$6,"|",$J$3),'DATA MART_'!$C$2:$R$985098,16,0) ->  | Y48: =VLOOKUP(CONCATENATE($F$2,"|",$F$3,"|",Y$5,"|",$E$33,"|",$G$33,"|",$H$3,"|",Y$7,"|",$D48,"|",Y$6,"|",$J$3),'DATA MART_'!$C$2:$R$985098,16,0) ->  | Z48: 100700
D49: =VLOOKUP(TRIM(F49),'DATA MART_'!$AD$3:$AF$25,3,0) -> 19 | F49: Retail - Other Retail | H49: =VLOOKUP(CONCATENATE($F$2,"|",$F$3,"|",H$5,"|",$E$33,"|",$G$33,"|",$H$3,"|",H$7,"|",$D49,"|",H$6,"|",$J$3),'DATA MART_'!$C$2:$R$985098,16,0) ->  | I49: =VLOOKUP(CONCATENATE($F$2,"|",$F$3,"|",I$5,"|",$E$33,"|",$G$33,"|",$H$3,"|",I$7,"|",$D49,"|",I$6,"|",$J$3),'DATA MART_'!$C$2:$R$985098,16,0) ->  | J49: =VLOOKUP(CONCATENATE($F$2,"|",$F$3,"|",J$5,"|",$E$33,"|",$G$33,"|",$H$3,"|",J$7,"|",$D49,"|",J$6,"|",$J$3),'DATA MART_'!$C$2:$R$985098,16,0) ->  | K49: =VLOOKUP(CONCATENATE($F$2,"|",$F$3,"|",K$5,"|",$E$33,"|",$G$33,"|",$H$3,"|",K$7,"|",$D49,"|",K$6,"|",$J$3),'DATA MART_'!$C$2:$R$985098,16,0) ->  | L49: =VLOOKUP(CONCATENATE($F$2,"|",$F$3,"|",L$5,"|",$E$33,"|",$G$33,"|",$H$3,"|",L$7,"|",$D49,"|",L$6,"|",$J$3),'DATA MART_'!$C$2:$R$985098,16,0) ->  | M49: =VLOOKUP(CONCATENATE($F$2,"|",$F$3,"|",M$5,"|",$E$33,"|",$G$33,"|",$H$3,"|",M$7,"|",$D49,"|",M$6,"|",$J$3),'DATA MART_'!$C$2:$R$985098,16,0) ->  | N49: =VLOOKUP(CONCATENATE($F$2,"|",$F$3,"|",N$5,"|",$E$33,"|",$G$33,"|",$H$3,"|",N$7,"|",$D49,"|",N$6,"|",$J$3),'DATA MART_'!$C$2:$R$985098,16,0) ->  | O49: =VLOOKUP(CONCATENATE($F$2,"|",$F$3,"|",O$5,"|",$E$33,"|",$G$33,"|",$H$3,"|",O$7,"|",$D49,"|",O$6,"|",$J$3),'DATA MART_'!$C$2:$R$985098,16,0) ->  | P49: =VLOOKUP(CONCATENATE($F$2,"|",$F$3,"|",P$5,"|",$E$33,"|",$G$33,"|",$H$3,"|",P$7,"|",$D49,"|",P$6,"|",$J$3),'DATA MART_'!$C$2:$R$985098,16,0) ->  | Q49: =VLOOKUP(CONCATENATE($F$2,"|",$F$3,"|",Q$5,"|",$E$33,"|",$G$33,"|",$H$3,"|",Q$7,"|",$D49,"|",Q$6,"|",$J$3),'DATA MART_'!$C$2:$R$985098,16,0) ->  | R49: =VLOOKUP(CONCATENATE($F$2,"|",$F$3,"|",R$5,"|",$E$33,"|",$G$33,"|",$H$3,"|",R$7,"|",$D49,"|",R$6,"|",$J$3),'DATA MART_'!$C$2:$R$985098,16,0) ->  | S49: =VLOOKUP(CONCATENATE($F$2,"|",$F$3,"|",S$5,"|",$E$33,"|",$G$33,"|",$H$3,"|",S$7,"|",$D49,"|",S$6,"|",$J$3),'DATA MART_'!$C$2:$R$985098,16,0) ->  | U49: =VLOOKUP(CONCATENATE($F$2,"|",$F$3,"|",U$5,"|",$E$33,"|",$G$33,"|",$H$3,"|",U$7,"|",$D49,"|",U$6,"|",$J$3),'DATA MART_'!$C$2:$R$985098,16,0) ->  | W49: =VLOOKUP(CONCATENATE($F$2,"|",$F$3,"|",W$5,"|",$E$33,"|",$G$33,"|",$H$3,"|",W$7,"|",$D49,"|",W$6,"|",$J$3),'DATA MART_'!$C$2:$R$985098,16,0) ->  | Y49: =VLOOKUP(CONCATENATE($F$2,"|",$F$3,"|",Y$5,"|",$E$33,"|",$G$33,"|",$H$3,"|",Y$7,"|",$D49,"|",Y$6,"|",$J$3),'DATA MART_'!$C$2:$R$985098,16,0) -> 
D50: =VLOOKUP(TRIM(F50),'DATA MART_'!$AD$3:$AF$25,3,0) -> 20 | F50: Retail - Other Retail - Of Which: SME | H50: =VLOOKUP(CONCATENATE($F$2,"|",$F$3,"|",H$5,"|",$E$33,"|",$G$33,"|",$H$3,"|",H$7,"|",$D50,"|",H$6,"|",$J$3),'DATA MART_'!$C$2:$R$985098,16,0) ->  | I50: =VLOOKUP(CONCATENATE($F$2,"|",$F$3,"|",I$5,"|",$E$33,"|",$G$33,"|",$H$3,"|",I$7,"|",$D50,"|",I$6,"|",$J$3),'DATA MART_'!$C$2:$R$985098,16,0) ->  | J50: =VLOOKUP(CONCATENATE($F$2,"|",$F$3,"|",J$5,"|",$E$33,"|",$G$33,"|",$H$3,"|",J$7,"|",$D50,"|",J$6,"|",$J$3),'DATA MART_'!$C$2:$R$985098,16,0) ->  | K50: =VLOOKUP(CONCATENATE($F$2,"|",$F$3,"|",K$5,"|",$E$33,"|",$G$33,"|",$H$3,"|",K$7,"|",$D50,"|",K$6,"|",$J$3),'DATA MART_'!$C$2:$R$985098,16,0) ->  | L50: =VLOOKUP(CONCATENATE($F$2,"|",$F$3,"|",L$5,"|",$E$33,"|",$G$33,"|",$H$3,"|",L$7,"|",$D50,"|",L$6,"|",$J$3),'DATA MART_'!$C$2:$R$985098,16,0) ->  | M50: =VLOOKUP(CONCATENATE($F$2,"|",$F$3,"|",M$5,"|",$E$33,"|",$G$33,"|",$H$3,"|",M$7,"|",$D50,"|",M$6,"|",$J$3),'DATA MART_'!$C$2:$R$985098,16,0) ->  | N50: =VLOOKUP(CONCATENATE($F$2,"|",$F$3,"|",N$5,"|",$E$33,"|",$G$33,"|",$H$3,"|",N$7,"|",$D50,"|",N$6,"|",$J$3),'DATA MART_'!$C$2:$R$985098,16,0) ->  | O50: =VLOOKUP(CONCATENATE($F$2,"|",$F$3,"|",O$5,"|",$E$33,"|",$G$33,"|",$H$3,"|",O$7,"|",$D50,"|",O$6,"|",$J$3),'DATA MART_'!$C$2:$R$985098,16,0) ->  | P50: =VLOOKUP(CONCATENATE($F$2,"|",$F$3,"|",P$5,"|",$E$33,"|",$G$33,"|",$H$3,"|",P$7,"|",$D50,"|",P$6,"|",$J$3),'DATA MART_'!$C$2:$R$985098,16,0) ->  | Q50: =VLOOKUP(CONCATENATE($F$2,"|",$F$3,"|",Q$5,"|",$E$33,"|",$G$33,"|",$H$3,"|",Q$7,"|",$D50,"|",Q$6,"|",$J$3),'DATA MART_'!$C$2:$R$985098,16,0) ->  | R50: =VLOOKUP(CONCATENATE($F$2,"|",$F$3,"|",R$5,"|",$E$33,"|",$G$33,"|",$H$3,"|",R$7,"|",$D50,"|",R$6,"|",$J$3),'DATA MART_'!$C$2:$R$985098,16,0) ->  | S50: =VLOOKUP(CONCATENATE($F$2,"|",$F$3,"|",S$5,"|",$E$33,"|",$G$33,"|",$H$3,"|",S$7,"|",$D50,"|",S$6,"|",$J$3),'DATA MART_'!$C$2:$R$985098,16,0) ->  | U50: =VLOOKUP(CONCATENATE($F$2,"|",$F$3,"|",U$5,"|",$E$33,"|",$G$33,"|",$H$3,"|",U$7,"|",$D50,"|",U$6,"|",$J$3),'DATA MART_'!$C$2:$R$985098,16,0) ->  | W50: =VLOOKUP(CONCATENATE($F$2,"|",$F$3,"|",W$5,"|",$E$33,"|",$G$33,"|",$H$3,"|",W$7,"|",$D50,"|",W$6,"|",$J$3),'DATA MART_'!$C$2:$R$985098,16,0) ->  | Y50: =VLOOKUP(CONCATENATE($F$2,"|",$F$3,"|",Y$5,"|",$E$33,"|",$G$33,"|",$H$3,"|",Y$7,"|",$D50,"|",Y$6,"|",$J$3),'DATA MART_'!$C$2:$R$985098,16,0) ->  | Z50: 100800
D51: =VLOOKUP(TRIM(F51),'DATA MART_'!$AD$3:$AF$25,3,0) -> 21 | F51: Retail - Other Retail - Of Which: non-SME | H51: =VLOOKUP(CONCATENATE($F$2,"|",$F$3,"|",H$5,"|",$E$33,"|",$G$33,"|",$H$3,"|",H$7,"|",$D51,"|",H$6,"|",$J$3),'DATA MART_'!$C$2:$R$985098,16,0) ->  | I51: =VLOOKUP(CONCATENATE($F$2,"|",$F$3,"|",I$5,"|",$E$33,"|",$G$33,"|",$H$3,"|",I$7,"|",$D51,"|",I$6,"|",$J$3),'DATA MART_'!$C$2:$R$985098,16,0) ->  | J51: =VLOOKUP(CONCATENATE($F$2,"|",$F$3,"|",J$5,"|",$E$33,"|",$G$33,"|",$H$3,"|",J$7,"|",$D51,"|",J$6,"|",$J$3),'DATA MART_'!$C$2:$R$985098,16,0) ->  | K51: =VLOOKUP(CONCATENATE($F$2,"|",$F$3,"|",K$5,"|",$E$33,"|",$G$33,"|",$H$3,"|",K$7,"|",$D51,"|",K$6,"|",$J$3),'DATA MART_'!$C$2:$R$985098,16,0) ->  | L51: =VLOOKUP(CONCATENATE($F$2,"|",$F$3,"|",L$5,"|",$E$33,"|",$G$33,"|",$H$3,"|",L$7,"|",$D51,"|",L$6,"|",$J$3),'DATA MART_'!$C$2:$R$985098,16,0) ->  | M51: =VLOOKUP(CONCATENATE($F$2,"|",$F$3,"|",M$5,"|",$E$33,"|",$G$33,"|",$H$3,"|",M$7,"|",$D51,"|",M$6,"|",$J$3),'DATA MART_'!$C$2:$R$985098,16,0) ->  | N51: =VLOOKUP(CONCATENATE($F$2,"|",$F$3,"|",N$5,"|",$E$33,"|",$G$33,"|",$H$3,"|",N$7,"|",$D51,"|",N$6,"|",$J$3),'DATA MART_'!$C$2:$R$985098,16,0) ->  | O51: =VLOOKUP(CONCATENATE($F$2,"|",$F$3,"|",O$5,"|",$E$33,"|",$G$33,"|",$H$3,"|",O$7,"|",$D51,"|",O$6,"|",$J$3),'DATA MART_'!$C$2:$R$985098,16,0) ->  | P51: =VLOOKUP(CONCATENATE($F$2,"|",$F$3,"|",P$5,"|",$E$33,"|",$G$33,"|",$H$3,"|",P$7,"|",$D51,"|",P$6,"|",$J$3),'DATA MART_'!$C$2:$R$985098,16,0) ->  | Q51: =VLOOKUP(CONCATENATE($F$2,"|",$F$3,"|",Q$5,"|",$E$33,"|",$G$33,"|",$H$3,"|",Q$7,"|",$D51,"|",Q$6,"|",$J$3),'DATA MART_'!$C$2:$R$985098,16,0) ->  | R51: =VLOOKUP(CONCATENATE($F$2,"|",$F$3,"|",R$5,"|",$E$33,"|",$G$33,"|",$H$3,"|",R$7,"|",$D51,"|",R$6,"|",$J$3),'DATA MART_'!$C$2:$R$985098,16,0) ->  | S51: =VLOOKUP(CONCATENATE($F$2,"|",$F$3,"|",S$5,"|",$E$33,"|",$G$33,"|",$H$3,"|",S$7,"|",$D51,"|",S$6,"|",$J$3),'DATA MART_'!$C$2:$R$985098,16,0) ->  | U51: =VLOOKUP(CONCATENATE($F$2,"|",$F$3,"|",U$5,"|",$E$33,"|",$G$33,"|",$H$3,"|",U$7,"|",$D51,"|",U$6,"|",$J$3),'DATA MART_'!$C$2:$R$985098,16,0) ->  | W51: =VLOOKUP(CONCATENATE($F$2,"|",$F$3,"|",W$5,"|",$E$33,"|",$G$33,"|",$H$3,"|",W$7,"|",$D51,"|",W$6,"|",$J$3),'DATA MART_'!$C$2:$R$985098,16,0) ->  | Y51: =VLOOKUP(CONCATENATE($F$2,"|",$F$3,"|",Y$5,"|",$E$33,"|",$G$33,"|",$H$3,"|",Y$7,"|",$D51,"|",Y$6,"|",$J$3),'DATA MART_'!$C$2:$R$985098,16,0) ->  | Z51: 100900
D52: =VLOOKUP(TRIM(F52),'DATA MART_'!$AD$3:$AF$25,3,0) -> 9 | F52: Equity | H52: =VLOOKUP(CONCATENATE($F$2,"|",$F$3,"|",H$5,"|",$E$33,"|",$G$33,"|",$H$3,"|",H$7,"|",$D52,"|",H$6,"|",$J$3),'DATA MART_'!$C$2:$R$985098,16,0) ->  | I52: =VLOOKUP(CONCATENATE($F$2,"|",$F$3,"|",I$5,"|",$E$33,"|",$G$33,"|",$H$3,"|",I$7,"|",$D52,"|",I$6,"|",$J$3),'DATA MART_'!$C$2:$R$985098,16,0) ->  | J52: =VLOOKUP(CONCATENATE($F$2,"|",$F$3,"|",J$5,"|",$E$33,"|",$G$33,"|",$H$3,"|",J$7,"|",$D52,"|",J$6,"|",$J$3),'DATA MART_'!$C$2:$R$985098,16,0) ->  | K52: =VLOOKUP(CONCATENATE($F$2,"|",$F$3,"|",K$5,"|",$E$33,"|",$G$33,"|",$H$3,"|",K$7,"|",$D52,"|",K$6,"|",$J$3),'DATA MART_'!$C$2:$R$985098,16,0) ->  | L52: =VLOOKUP(CONCATENATE($F$2,"|",$F$3,"|",L$5,"|",$E$33,"|",$G$33,"|",$H$3,"|",L$7,"|",$D52,"|",L$6,"|",$J$3),'DATA MART_'!$C$2:$R$985098,16,0) ->  | M52: =VLOOKUP(CONCATENATE($F$2,"|",$F$3,"|",M$5,"|",$E$33,"|",$G$33,"|",$H$3,"|",M$7,"|",$D52,"|",M$6,"|",$J$3),'DATA MART_'!$C$2:$R$985098,16,0) ->  | N52: =VLOOKUP(CONCATENATE($F$2,"|",$F$3,"|",N$5,"|",$E$33,"|",$G$33,"|",$H$3,"|",N$7,"|",$D52,"|",N$6,"|",$J$3),'DATA MART_'!$C$2:$R$985098,16,0) ->  | O52: =VLOOKUP(CONCATENATE($F$2,"|",$F$3,"|",O$5,"|",$E$33,"|",$G$33,"|",$H$3,"|",O$7,"|",$D52,"|",O$6,"|",$J$3),'DATA MART_'!$C$2:$R$985098,16,0) ->  | P52: =VLOOKUP(CONCATENATE($F$2,"|",$F$3,"|",P$5,"|",$E$33,"|",$G$33,"|",$H$3,"|",P$7,"|",$D52,"|",P$6,"|",$J$3),'DATA MART_'!$C$2:$R$985098,16,0) ->  | Q52: =VLOOKUP(CONCATENATE($F$2,"|",$F$3,"|",Q$5,"|",$E$33,"|",$G$33,"|",$H$3,"|",Q$7,"|",$D52,"|",Q$6,"|",$J$3),'DATA MART_'!$C$2:$R$985098,16,0) ->  | R52: =VLOOKUP(CONCATENATE($F$2,"|",$F$3,"|",R$5,"|",$E$33,"|",$G$33,"|",$H$3,"|",R$7,"|",$D52,"|",R$6,"|",$J$3),'DATA MART_'!$C$2:$R$985098,16,0) ->  | S52: =VLOOKUP(CONCATENATE($F$2,"|",$F$3,"|",S$5,"|",$E$33,"|",$G$33,"|",$H$3,"|",S$7,"|",$D52,"|",S$6,"|",$J$3),'DATA MART_'!$C$2:$R$985098,16,0) ->  | U52: =VLOOKUP(CONCATENATE($F$2,"|",$F$3,"|",U$5,"|",$E$33,"|",$G$33,"|",$H$3,"|",U$7,"|",$D52,"|",U$6,"|",$J$3),'DATA MART_'!$C$2:$R$985098,16,0) ->  | W52: =VLOOKUP(CONCATENATE($F$2,"|",$F$3,"|",W$5,"|",$E$33,"|",$G$33,"|",$H$3,"|",W$7,"|",$D52,"|",W$6,"|",$J$3),'DATA MART_'!$C$2:$R$985098,16,0) ->  | Y52: =VLOOKUP(CONCATENATE($F$2,"|",$F$3,"|",Y$5,"|",$E$33,"|",$G$33,"|",$H$3,"|",Y$7,"|",$D52,"|",Y$6,"|",$J$3),'DATA MART_'!$C$2:$R$985098,16,0) ->  | Z52: 101001 | AD52: The template has been pre-filled in with the figures published on the EBA web site. Please, double check them and, should it be needed, change them.
D53: =VLOOKUP(TRIM(F53),'DATA MART_'!$AD$3:$AF$25,3,0) -> 10 | F53: Securitisation | H53: =VLOOKUP(CONCATENATE($F$2,"|",$F$3,"|",H$5,"|",$E$33,"|",$G$33,"|",$H$3,"|",H$7,"|",$D53,"|",H$6,"|",$J$3),'DATA MART_'!$C$2:$R$985098,16,0) ->  | I53: =VLOOKUP(CONCATENATE($F$2,"|",$F$3,"|",I$5,"|",$E$33,"|",$G$33,"|",$H$3,"|",I$7,"|",$D53,"|",I$6,"|",$J$3),'DATA MART_'!$C$2:$R$985098,16,0) ->  | J53: =VLOOKUP(CONCATENATE($F$2,"|",$F$3,"|",J$5,"|",$E$33,"|",$G$33,"|",$H$3,"|",J$7,"|",$D53,"|",J$6,"|",$J$3),'DATA MART_'!$C$2:$R$985098,16,0) ->  | K53: =VLOOKUP(CONCATENATE($F$2,"|",$F$3,"|",K$5,"|",$E$33,"|",$G$33,"|",$H$3,"|",K$7,"|",$D53,"|",K$6,"|",$J$3),'DATA MART_'!$C$2:$R$985098,16,0) ->  | L53: =VLOOKUP(CONCATENATE($F$2,"|",$F$3,"|",L$5,"|",$E$33,"|",$G$33,"|",$H$3,"|",L$7,"|",$D53,"|",L$6,"|",$J$3),'DATA MART_'!$C$2:$R$985098,16,0) ->  | M53: =VLOOKUP(CONCATENATE($F$2,"|",$F$3,"|",M$5,"|",$E$33,"|",$G$33,"|",$H$3,"|",M$7,"|",$D53,"|",M$6,"|",$J$3),'DATA MART_'!$C$2:$R$985098,16,0) ->  | N53: =VLOOKUP(CONCATENATE($F$2,"|",$F$3,"|",N$5,"|",$E$33,"|",$G$33,"|",$H$3,"|",N$7,"|",$D53,"|",N$6,"|",$J$3),'DATA MART_'!$C$2:$R$985098,16,0) ->  | O53: =VLOOKUP(CONCATENATE($F$2,"|",$F$3,"|",O$5,"|",$E$33,"|",$G$33,"|",$H$3,"|",O$7,"|",$D53,"|",O$6,"|",$J$3),'DATA MART_'!$C$2:$R$985098,16,0) ->  | P53: =VLOOKUP(CONCATENATE($F$2,"|",$F$3,"|",P$5,"|",$E$33,"|",$G$33,"|",$H$3,"|",P$7,"|",$D53,"|",P$6,"|",$J$3),'DATA MART_'!$C$2:$R$985098,16,0) ->  | Q53: =VLOOKUP(CONCATENATE($F$2,"|",$F$3,"|",Q$5,"|",$E$33,"|",$G$33,"|",$H$3,"|",Q$7,"|",$D53,"|",Q$6,"|",$J$3),'DATA MART_'!$C$2:$R$985098,16,0) ->  | R53: =VLOOKUP(CONCATENATE($F$2,"|",$F$3,"|",R$5,"|",$E$33,"|",$G$33,"|",$H$3,"|",R$7,"|",$D53,"|",R$6,"|",$J$3),'DATA MART_'!$C$2:$R$985098,16,0) ->  | S53: =VLOOKUP(CONCATENATE($F$2,"|",$F$3,"|",S$5,"|",$E$33,"|",$G$33,"|",$H$3,"|",S$7,"|",$D53,"|",S$6,"|",$J$3),'DATA MART_'!$C$2:$R$985098,16,0) ->  | U53: =VLOOKUP(CONCATENATE($F$2,"|",$F$3,"|",U$5,"|",$E$33,"|",$G$33,"|",$H$3,"|",U$7,"|",$D53,"|",U$6,"|",$J$3),'DATA MART_'!$C$2:$R$985098,16,0) ->  | W53: =VLOOKUP(CONCATENATE($F$2,"|",$F$3,"|",W$5,"|",$E$33,"|",$G$33,"|",$H$3,"|",W$7,"|",$D53,"|",W$6,"|",$J$3),'DATA MART_'!$C$2:$R$985098,16,0) ->  | Y53: =VLOOKUP(CONCATENATE($F$2,"|",$F$3,"|",Y$5,"|",$E$33,"|",$G$33,"|",$H$3,"|",Y$7,"|",$D53,"|",Y$6,"|",$J$3),'DATA MART_'!$C$2:$R$985098,16,0) ->  | Z53: 101002 | AD53: The template has been pre-filled in with the figures published on the EBA web site. Please, double check them and, should it be needed, change them.
D54: =VLOOKUP(TRIM(F54),'DATA MART_'!$AD$3:$AF$25,3,0) -> 11 | F54: Other non-credit obligation assets | H54: =VLOOKUP(CONCATENATE($F$2,"|",$F$3,"|",H$5,"|",$E$33,"|",$G$33,"|",$H$3,"|",H$7,"|",$D54,"|",H$6,"|",$J$3),'DATA MART_'!$C$2:$R$985098,16,0) ->  | I54: =VLOOKUP(CONCATENATE($F$2,"|",$F$3,"|",I$5,"|",$E$33,"|",$G$33,"|",$H$3,"|",I$7,"|",$D54,"|",I$6,"|",$J$3),'DATA MART_'!$C$2:$R$985098,16,0) ->  | J54: =VLOOKUP(CONCATENATE($F$2,"|",$F$3,"|",J$5,"|",$E$33,"|",$G$33,"|",$H$3,"|",J$7,"|",$D54,"|",J$6,"|",$J$3),'DATA MART_'!$C$2:$R$985098,16,0) ->  | K54: =VLOOKUP(CONCATENATE($F$2,"|",$F$3,"|",K$5,"|",$E$33,"|",$G$33,"|",$H$3,"|",K$7,"|",$D54,"|",K$6,"|",$J$3),'DATA MART_'!$C$2:$R$985098,16,0) ->  | L54: =VLOOKUP(CONCATENATE($F$2,"|",$F$3,"|",L$5,"|",$E$33,"|",$G$33,"|",$H$3,"|",L$7,"|",$D54,"|",L$6,"|",$J$3),'DATA MART_'!$C$2:$R$985098,16,0) ->  | M54: =VLOOKUP(CONCATENATE($F$2,"|",$F$3,"|",M$5,"|",$E$33,"|",$G$33,"|",$H$3,"|",M$7,"|",$D54,"|",M$6,"|",$J$3),'DATA MART_'!$C$2:$R$985098,16,0) ->  | N54: =VLOOKUP(CONCATENATE($F$2,"|",$F$3,"|",N$5,"|",$E$33,"|",$G$33,"|",$H$3,"|",N$7,"|",$D54,"|",N$6,"|",$J$3),'DATA MART_'!$C$2:$R$985098,16,0) ->  | O54: =VLOOKUP(CONCATENATE($F$2,"|",$F$3,"|",O$5,"|",$E$33,"|",$G$33,"|",$H$3,"|",O$7,"|",$D54,"|",O$6,"|",$J$3),'DATA MART_'!$C$2:$R$985098,16,0) ->  | P54: =VLOOKUP(CONCATENATE($F$2,"|",$F$3,"|",P$5,"|",$E$33,"|",$G$33,"|",$H$3,"|",P$7,"|",$D54,"|",P$6,"|",$J$3),'DATA MART_'!$C$2:$R$985098,16,0) ->  | Q54: =VLOOKUP(CONCATENATE($F$2,"|",$F$3,"|",Q$5,"|",$E$33,"|",$G$33,"|",$H$3,"|",Q$7,"|",$D54,"|",Q$6,"|",$J$3),'DATA MART_'!$C$2:$R$985098,16,0) ->  | R54: =VLOOKUP(CONCATENATE($F$2,"|",$F$3,"|",R$5,"|",$E$33,"|",$G$33,"|",$H$3,"|",R$7,"|",$D54,"|",R$6,"|",$J$3),'DATA MART_'!$C$2:$R$985098,16,0) ->  | S54: =VLOOKUP(CONCATENATE($F$2,"|",$F$3,"|",S$5,"|",$E$33,"|",$G$33,"|",$H$3,"|",S$7,"|",$D54,"|",S$6,"|",$J$3),'DATA MART_'!$C$2:$R$985098,16,0) ->  | U54: =VLOOKUP(CONCATENATE($F$2,"|",$F$3,"|",U$5,"|",$E$33,"|",$G$33,"|",$H$3,"|",U$7,"|",$D54,"|",U$6,"|",$J$3),'DATA MART_'!$C$2:$R$985098,16,0) ->  | W54: =VLOOKUP(CONCATENATE($F$2,"|",$F$3,"|",W$5,"|",$E$33,"|",$G$33,"|",$H$3,"|",W$7,"|",$D54,"|",W$6,"|",$J$3),'DATA MART_'!$C$2:$R$985098,16,0) ->  | Y54: =VLOOKUP(CONCATENATE($F$2,"|",$F$3,"|",Y$5,"|",$E$33,"|",$G$33,"|",$H$3,"|",Y$7,"|",$D54,"|",Y$6,"|",$J$3),'DATA MART_'!$C$2:$R$985098,16,0) ->  | Z54: 101000
D55: =VLOOKUP(TRIM(F55),'DATA MART_'!$AD$3:$AF$25,3,0) -> 0 | F55: TOTAL | H55: =VLOOKUP(CONCATENATE($F$2,"|",$F$3,"|",H$5,"|",$E$33,"|",$G$33,"|",$H$3,"|",H$7,"|",$D55,"|",H$6,"|",$J$3),'DATA MART_'!$C$2:$R$985098,16,0) ->  | I55: =VLOOKUP(CONCATENATE($F$2,"|",$F$3,"|",I$5,"|",$E$33,"|",$G$33,"|",$H$3,"|",I$7,"|",$D55,"|",I$6,"|",$J$3),'DATA MART_'!$C$2:$R$985098,16,0) ->  | J55: =VLOOKUP(CONCATENATE($F$2,"|",$F$3,"|",J$5,"|",$E$33,"|",$G$33,"|",$H$3,"|",J$7,"|",$D55,"|",J$6,"|",$J$3),'DATA MART_'!$C$2:$R$985098,16,0) ->  | K55: =VLOOKUP(CONCATENATE($F$2,"|",$F$3,"|",K$5,"|",$E$33,"|",$G$33,"|",$H$3,"|",K$7,"|",$D55,"|",K$6,"|",$J$3),'DATA MART_'!$C$2:$R$985098,16,0) ->  | L55: =VLOOKUP(CONCATENATE($F$2,"|",$F$3,"|",L$5,"|",$E$33,"|",$G$33,"|",$H$3,"|",L$7,"|",$D55,"|",L$6,"|",$J$3),'DATA MART_'!$C$2:$R$985098,16,0) ->  | M55: =VLOOKUP(CONCATENATE($F$2,"|",$F$3,"|",M$5,"|",$E$33,"|",$G$33,"|",$H$3,"|",M$7,"|",$D55,"|",M$6,"|",$J$3),'DATA MART_'!$C$2:$R$985098,16,0) ->  | N55: =VLOOKUP(CONCATENATE($F$2,"|",$F$3,"|",N$5,"|",$E$33,"|",$G$33,"|",$H$3,"|",N$7,"|",$D55,"|",N$6,"|",$J$3),'DATA MART_'!$C$2:$R$985098,16,0) ->  | O55: =VLOOKUP(CONCATENATE($F$2,"|",$F$3,"|",O$5,"|",$E$33,"|",$G$33,"|",$H$3,"|",O$7,"|",$D55,"|",O$6,"|",$J$3),'DATA MART_'!$C$2:$R$985098,16,0) ->  | P55: =VLOOKUP(CONCATENATE($F$2,"|",$F$3,"|",P$5,"|",$E$33,"|",$G$33,"|",$H$3,"|",P$7,"|",$D55,"|",P$6,"|",$J$3),'DATA MART_'!$C$2:$R$985098,16,0) ->  | Q55: =VLOOKUP(CONCATENATE($F$2,"|",$F$3,"|",Q$5,"|",$E$33,"|",$G$33,"|",$H$3,"|",Q$7,"|",$D55,"|",Q$6,"|",$J$3),'DATA MART_'!$C$2:$R$985098,16,0) ->  | R55: =VLOOKUP(CONCATENATE($F$2,"|",$F$3,"|",R$5,"|",$E$33,"|",$G$33,"|",$H$3,"|",R$7,"|",$D55,"|",R$6,"|",$J$3),'DATA MART_'!$C$2:$R$985098,16,0) ->  | S55: =VLOOKUP(CONCATENATE($F$2,"|",$F$3,"|",S$5,"|",$E$33,"|",$G$33,"|",$H$3,"|",S$7,"|",$D55,"|",S$6,"|",$J$3),'DATA MART_'!$C$2:$R$985098,16,0) ->  | T55: =VLOOKUP(CONCATENATE($F$2,"|",$F$3,"|",T$5,"|",$E$33,"|",$G$33,"|",$H$3,"|",T$7,"|",$D55,"|",T$6,"|",$J$3),'DATA MART_'!$C$2:$R$985098,16,0) ->  | U55: =VLOOKUP(CONCATENATE($F$2,"|",$F$3,"|",U$5,"|",$E$33,"|",$G$33,"|",$H$3,"|",U$7,"|",$D55,"|",U$6,"|",$J$3),'DATA MART_'!$C$2:$R$985098,16,0) ->  | V55: =VLOOKUP(CONCATENATE($F$2,"|",$F$3,"|",V$5,"|",$E$33,"|",$G$33,"|",$H$3,"|",V$7,"|",$D55,"|",V$6,"|",$J$3),'DATA MART_'!$C$2:$R$985098,16,0) ->  | W55: =VLOOKUP(CONCATENATE($F$2,"|",$F$3,"|",W$5,"|",$E$33,"|",$G$33,"|",$H$3,"|",W$7,"|",$D55,"|",W$6,"|",$J$3),'DATA MART_'!$C$2:$R$985098,16,0) ->  | X55: =VLOOKUP(CONCATENATE($F$2,"|",$F$3,"|",X$5,"|",$E$33,"|",$G$33,"|",$H$3,"|",X$7,"|",$D55,"|",X$6,"|",$J$3),'DATA MART_'!$C$2:$R$985098,16,0) ->  | Y55: =VLOOKUP(CONCATENATE($F$2,"|",$F$3,"|",Y$5,"|",$E$33,"|",$G$33,"|",$H$3,"|",Y$7,"|",$D55,"|",Y$6,"|",$J$3),'DATA MART_'!$C$2:$R$985098,16,0) -> 
D56: =VLOOKUP(TRIM(F56),'DATA MART_'!$AD$3:$AF$25,3,0) -> 22 | F56: Securitisation and re-securitisations positions deducted from capital * | H56: =VLOOKUP(CONCATENATE($F$2,"|",$F$3,"|",H$5,"|",$E$33,"|",$G$33,"|",$H$3,"|",H$7,"|",$D56,"|",H$6,"|",$J$3),'DATA MART_'!$C$2:$R$985098,16,0) ->  | I56: =VLOOKUP(CONCATENATE($F$2,"|",$F$3,"|",I$5,"|",$E$33,"|",$G$33,"|",$H$3,"|",I$7,"|",$D56,"|",I$6,"|",$J$3),'DATA MART_'!$C$2:$R$985098,16,0) ->  | J56: =VLOOKUP(CONCATENATE($F$2,"|",$F$3,"|",J$5,"|",$E$33,"|",$G$33,"|",$H$3,"|",J$7,"|",$D56,"|",J$6,"|",$J$3),'DATA MART_'!$C$2:$R$985098,16,0) ->  | K56: =VLOOKUP(CONCATENATE($F$2,"|",$F$3,"|",K$5,"|",$E$33,"|",$G$33,"|",$H$3,"|",K$7,"|",$D56,"|",K$6,"|",$J$3),'DATA MART_'!$C$2:$R$985098,16,0) ->  | L56: =VLOOKUP(CONCATENATE($F$2,"|",$F$3,"|",L$5,"|",$E$33,"|",$G$33,"|",$H$3,"|",L$7,"|",$D56,"|",L$6,"|",$J$3),'DATA MART_'!$C$2:$R$985098,16,0) ->  | M56: =VLOOKUP(CONCATENATE($F$2,"|",$F$3,"|",M$5,"|",$E$33,"|",$G$33,"|",$H$3,"|",M$7,"|",$D56,"|",M$6,"|",$J$3),'DATA MART_'!$C$2:$R$985098,16,0) ->  | N56: =VLOOKUP(CONCATENATE($F$2,"|",$F$3,"|",N$5,"|",$E$33,"|",$G$33,"|",$H$3,"|",N$7,"|",$D56,"|",N$6,"|",$J$3),'DATA MART_'!$C$2:$R$985098,16,0) ->  | O56: =VLOOKUP(CONCATENATE($F$2,"|",$F$3,"|",O$5,"|",$E$33,"|",$G$33,"|",$H$3,"|",O$7,"|",$D56,"|",O$6,"|",$J$3),'DATA MART_'!$C$2:$R$985098,16,0) ->  | P56: =VLOOKUP(CONCATENATE($F$2,"|",$F$3,"|",P$5,"|",$E$33,"|",$G$33,"|",$H$3,"|",P$7,"|",$D56,"|",P$6,"|",$J$3),'DATA MART_'!$C$2:$R$985098,16,0) ->  | Q56: =VLOOKUP(CONCATENATE($F$2,"|",$F$3,"|",Q$5,"|",$E$33,"|",$G$33,"|",$H$3,"|",Q$7,"|",$D56,"|",Q$6,"|",$J$3),'DATA MART_'!$C$2:$R$985098,16,0) ->  | R56: =VLOOKUP(CONCATENATE($F$2,"|",$F$3,"|",R$5,"|",$E$33,"|",$G$33,"|",$H$3,"|",R$7,"|",$D56,"|",R$6,"|",$J$3),'DATA MART_'!$C$2:$R$985098,16,0) ->  | S56: =VLOOKUP(CONCATENATE($F$2,"|",$F$3,"|",S$5,"|",$E$33,"|",$G$33,"|",$H$3,"|",S$7,"|",$D56,"|",S$6,"|",$J$3),'DATA MART_'!$C$2:$R$985098,16,0) ->  | U56: =VLOOKUP(CONCATENATE($F$2,"|",$F$3,"|",U$5,"|",$E$33,"|",$G$33,"|",$H$3,"|",U$7,"|",$D56,"|",U$6,"|",$J$3),'DATA MART_'!$C$2:$R$985098,16,0) ->  | W56: =VLOOKUP(CONCATENATE($F$2,"|",$F$3,"|",W$5,"|",$E$33,"|",$G$33,"|",$H$3,"|",W$7,"|",$D56,"|",W$6,"|",$J$3),'DATA MART_'!$C$2:$R$985098,16,0) ->  | Y56: =VLOOKUP(CONCATENATE($F$2,"|",$F$3,"|",Y$5,"|",$E$33,"|",$G$33,"|",$H$3,"|",Y$7,"|",$D56,"|",Y$6,"|",$J$3),'DATA MART_'!$C$2:$R$985098,16,0) -> 
E57: Notes and definitions
E58: 1) Breakdown by country of counterparty according to the minimum of: i) 90% of total EAD ii) top 10 countries in terms of exposure
E59: * Refers to the part of Securitization exposure that is deducted from capital and is not included in RWA
E60: ** As explained in the Guidelines
E61: =VLOOKUP(CONCATENATE($F$2,"|",$F$3,"|",H$5,"|",$G61,"|",$H$3,"|",H$7,"|",$D67,"|",$H$6,"|",$J$3),'DATA MART_'!$D$2:$R$1033646,8,0) ->  | G61: 2
E63: Counterparty Country (1) | G63: LTV % ** (as of 31/12/2012) | H63: Exposure values (as of 31/12/2012) ** | N63: RWA (as of 31/12/2012) ** | T63: Value adjustments and provisions (as of 31/12/2012) **
H64: F-IRB | J64: A-IRB | L64: STA | N64: F-IRB | P64: A-IRB | R64: STA | T64: F-IRB | V64: A-IRB | X64: STA
H65: Non-defaulted | I65: Defaulted | J65: Non-defaulted | K65: Defaulted | L65: Non-defaulted | M65: Defaulted | N65: Non-defaulted | O65: Defaulted | P65: Non-defaulted | Q65: Defaulted | R65: Non-defaulted | S65: Defaulted | T65: Non-defaulted | U65: Defaulted | V65: Non-defaulted | W65: Defaulted | X65: Non-defaulted | Y65: Defaulted
D66: =VLOOKUP(TRIM(F66),'DATA MART_'!$AD$3:$AF$25,3,0) -> 1 | E66: =VLOOKUP('2. Credit Risk Dec12_'!E61,'DATA MART_'!$AO$4:$AP$242,2,0) ->  | F66: Central banks and central governments | H66: =VLOOKUP(CONCATENATE($F$2,"|",$F$3,"|",H$5,"|",$E$61,"|",$G$61,"|",$H$3,"|",H$7,"|",$D66,"|",H$6,"|",$J$3),'DATA MART_'!$C$2:$R$985098,16,0) ->  | I66: =VLOOKUP(CONCATENATE($F$2,"|",$F$3,"|",I$5,"|",$E$61,"|",$G$61,"|",$H$3,"|",I$7,"|",$D66,"|",I$6,"|",$J$3),'DATA MART_'!$C$2:$R$985098,16,0) ->  | J66: =VLOOKUP(CONCATENATE($F$2,"|",$F$3,"|",J$5,"|",$E$61,"|",$G$61,"|",$H$3,"|",J$7,"|",$D66,"|",J$6,"|",$J$3),'DATA MART_'!$C$2:$R$985098,16,0) ->  | K66: =VLOOKUP(CONCATENATE($F$2,"|",$F$3,"|",K$5,"|",$E$61,"|",$G$61,"|",$H$3,"|",K$7,"|",$D66,"|",K$6,"|",$J$3),'DATA MART_'!$C$2:$R$985098,16,0) ->  | L66: =VLOOKUP(CONCATENATE($F$2,"|",$F$3,"|",L$5,"|",$E$61,"|",$G$61,"|",$H$3,"|",L$7,"|",$D66,"|",L$6,"|",$J$3),'DATA MART_'!$C$2:$R$985098,16,0) ->  | M66: =VLOOKUP(CONCATENATE($F$2,"|",$F$3,"|",M$5,"|",$E$61,"|",$G$61,"|",$H$3,"|",M$7,"|",$D66,"|",M$6,"|",$J$3),'DATA MART_'!$C$2:$R$985098,16,0) ->  | N66: =VLOOKUP(CONCATENATE($F$2,"|",$F$3,"|",N$5,"|",$E$61,"|",$G$61,"|",$H$3,"|",N$7,"|",$D66,"|",N$6,"|",$J$3),'DATA MART_'!$C$2:$R$985098,16,0) ->  | O66: =VLOOKUP(CONCATENATE($F$2,"|",$F$3,"|",O$5,"|",$E$61,"|",$G$61,"|",$H$3,"|",O$7,"|",$D66,"|",O$6,"|",$J$3),'DATA MART_'!$C$2:$R$985098,16,0) ->  | P66: =VLOOKUP(CONCATENATE($F$2,"|",$F$3,"|",P$5,"|",$E$61,"|",$G$61,"|",$H$3,"|",P$7,"|",$D66,"|",P$6,"|",$J$3),'DATA MART_'!$C$2:$R$985098,16,0) ->  | Q66: =VLOOKUP(CONCATENATE($F$2,"|",$F$3,"|",Q$5,"|",$E$61,"|",$G$61,"|",$H$3,"|",Q$7,"|",$D66,"|",Q$6,"|",$J$3),'DATA MART_'!$C$2:$R$985098,16,0) ->  | R66: =VLOOKUP(CONCATENATE($F$2,"|",$F$3,"|",R$5,"|",$E$61,"|",$G$61,"|",$H$3,"|",R$7,"|",$D66,"|",R$6,"|",$J$3),'DATA MART_'!$C$2:$R$985098,16,0) ->  | S66: =VLOOKUP(CONCATENATE($F$2,"|",$F$3,"|",S$5,"|",$E$61,"|",$G$61,"|",$H$3,"|",S$7,"|",$D66,"|",S$6,"|",$J$3),'DATA MART_'!$C$2:$R$985098,16,0) ->  | U66: =VLOOKUP(CONCATENATE($F$2,"|",$F$3,"|",U$5,"|",$E$61,"|",$G$61,"|",$H$3,"|",U$7,"|",$D66,"|",U$6,"|",$J$3),'DATA MART_'!$C$2:$R$985098,16,0) ->  | W66: =VLOOKUP(CONCATENATE($F$2,"|",$F$3,"|",W$5,"|",$E$61,"|",$G$61,"|",$H$3,"|",W$7,"|",$D66,"|",W$6,"|",$J$3),'DATA MART_'!$C$2:$R$985098,16,0) ->  | Y66: =VLOOKUP(CONCATENATE($F$2,"|",$F$3,"|",Y$5,"|",$E$61,"|",$G$61,"|",$H$3,"|",Y$7,"|",$D66,"|",Y$6,"|",$J$3),'DATA MART_'!$C$2:$R$985098,16,0) ->  | Z66: 100100
D67: =VLOOKUP(TRIM(F67),'DATA MART_'!$AD$3:$AF$25,3,0) -> 2 | F67: Institutions | H67: =VLOOKUP(CONCATENATE($F$2,"|",$F$3,"|",H$5,"|",$E$61,"|",$G$61,"|",$H$3,"|",H$7,"|",$D67,"|",H$6,"|",$J$3),'DATA MART_'!$C$2:$R$985098,16,0) ->  | I67: =VLOOKUP(CONCATENATE($F$2,"|",$F$3,"|",I$5,"|",$E$61,"|",$G$61,"|",$H$3,"|",I$7,"|",$D67,"|",I$6,"|",$J$3),'DATA MART_'!$C$2:$R$985098,16,0) ->  | J67: =VLOOKUP(CONCATENATE($F$2,"|",$F$3,"|",J$5,"|",$E$61,"|",$G$61,"|",$H$3,"|",J$7,"|",$D67,"|",J$6,"|",$J$3),'DATA MART_'!$C$2:$R$985098,16,0) ->  | K67: =VLOOKUP(CONCATENATE($F$2,"|",$F$3,"|",K$5,"|",$E$61,"|",$G$61,"|",$H$3,"|",K$7,"|",$D67,"|",K$6,"|",$J$3),'DATA MART_'!$C$2:$R$985098,16,0) ->  | L67: =VLOOKUP(CONCATENATE($F$2,"|",$F$3,"|",L$5,"|",$E$61,"|",$G$61,"|",$H$3,"|",L$7,"|",$D67,"|",L$6,"|",$J$3),'DATA MART_'!$C$2:$R$985098,16,0) ->  | M67: =VLOOKUP(CONCATENATE($F$2,"|",$F$3,"|",M$5,"|",$E$61,"|",$G$61,"|",$H$3,"|",M$7,"|",$D67,"|",M$6,"|",$J$3),'DATA MART_'!$C$2:$R$985098,16,0) ->  | N67: =VLOOKUP(CONCATENATE($F$2,"|",$F$3,"|",N$5,"|",$E$61,"|",$G$61,"|",$H$3,"|",N$7,"|",$D67,"|",N$6,"|",$J$3),'DATA MART_'!$C$2:$R$985098,16,0) ->  | O67: =VLOOKUP(CONCATENATE($F$2,"|",$F$3,"|",O$5,"|",$E$61,"|",$G$61,"|",$H$3,"|",O$7,"|",$D67,"|",O$6,"|",$J$3),'DATA MART_'!$C$2:$R$985098,16,0) ->  | P67: =VLOOKUP(CONCATENATE($F$2,"|",$F$3,"|",P$5,"|",$E$61,"|",$G$61,"|",$H$3,"|",P$7,"|",$D67,"|",P$6,"|",$J$3),'DATA MART_'!$C$2:$R$985098,16,0) ->  | Q67: =VLOOKUP(CONCATENATE($F$2,"|",$F$3,"|",Q$5,"|",$E$61,"|",$G$61,"|",$H$3,"|",Q$7,"|",$D67,"|",Q$6,"|",$J$3),'DATA MART_'!$C$2:$R$985098,16,0) ->  | R67: =VLOOKUP(CONCATENATE($F$2,"|",$F$3,"|",R$5,"|",$E$61,"|",$G$61,"|",$H$3,"|",R$7,"|",$D67,"|",R$6,"|",$J$3),'DATA MART_'!$C$2:$R$985098,16,0) ->  | S67: =VLOOKUP(CONCATENATE($F$2,"|",$F$3,"|",S$5,"|",$E$61,"|",$G$61,"|",$H$3,"|",S$7,"|",$D67,"|",S$6,"|",$J$3),'DATA MART_'!$C$2:$R$985098,16,0) ->  | U67: =VLOOKUP(CONCATENATE($F$2,"|",$F$3,"|",U$5,"|",$E$61,"|",$G$61,"|",$H$3,"|",U$7,"|",$D67,"|",U$6,"|",$J$3),'DATA MART_'!$C$2:$R$985098,16,0) ->  | W67: =VLOOKUP(CONCATENATE($F$2,"|",$F$3,"|",W$5,"|",$E$61,"|",$G$61,"|",$H$3,"|",W$7,"|",$D67,"|",W$6,"|",$J$3),'DATA MART_'!$C$2:$R$985098,16,0) ->  | Y67: =VLOOKUP(CONCATENATE($F$2,"|",$F$3,"|",Y$5,"|",$E$61,"|",$G$61,"|",$H$3,"|",Y$7,"|",$D67,"|",Y$6,"|",$J$3),'DATA MART_'!$C$2:$R$985098,16,0) ->  | Z67: 100103
D68: =VLOOKUP(TRIM(F68),'DATA MART_'!$AD$3:$AF$25,3,0) -> 3 | F68: Corporates | H68: =VLOOKUP(CONCATENATE($F$2,"|",$F$3,"|",H$5,"|",$E$61,"|",$G$61,"|",$H$3,"|",H$7,"|",$D68,"|",H$6,"|",$J$3),'DATA MART_'!$C$2:$R$985098,16,0) ->  | I68: =VLOOKUP(CONCATENATE($F$2,"|",$F$3,"|",I$5,"|",$E$61,"|",$G$61,"|",$H$3,"|",I$7,"|",$D68,"|",I$6,"|",$J$3),'DATA MART_'!$C$2:$R$985098,16,0) ->  | J68: =VLOOKUP(CONCATENATE($F$2,"|",$F$3,"|",J$5,"|",$E$61,"|",$G$61,"|",$H$3,"|",J$7,"|",$D68,"|",J$6,"|",$J$3),'DATA MART_'!$C$2:$R$985098,16,0) ->  | K68: =VLOOKUP(CONCATENATE($F$2,"|",$F$3,"|",K$5,"|",$E$61,"|",$G$61,"|",$H$3,"|",K$7,"|",$D68,"|",K$6,"|",$J$3),'DATA MART_'!$C$2:$R$985098,16,0) ->  | L68: =VLOOKUP(CONCATENATE($F$2,"|",$F$3,"|",L$5,"|",$E$61,"|",$G$61,"|",$H$3,"|",L$7,"|",$D68,"|",L$6,"|",$J$3),'DATA MART_'!$C$2:$R$985098,16,0) ->  | M68: =VLOOKUP(CONCATENATE($F$2,"|",$F$3,"|",M$5,"|",$E$61,"|",$G$61,"|",$H$3,"|",M$7,"|",$D68,"|",M$6,"|",$J$3),'DATA MART_'!$C$2:$R$985098,16,0) ->  | N68: =VLOOKUP(CONCATENATE($F$2,"|",$F$3,"|",N$5,"|",$E$61,"|",$G$61,"|",$H$3,"|",N$7,"|",$D68,"|",N$6,"|",$J$3),'DATA MART_'!$C$2:$R$985098,16,0) ->  | O68: =VLOOKUP(CONCATENATE($F$2,"|",$F$3,"|",O$5,"|",$E$61,"|",$G$61,"|",$H$3,"|",O$7,"|",$D68,"|",O$6,"|",$J$3),'DATA MART_'!$C$2:$R$985098,16,0) ->  | P68: =VLOOKUP(CONCATENATE($F$2,"|",$F$3,"|",P$5,"|",$E$61,"|",$G$61,"|",$H$3,"|",P$7,"|",$D68,"|",P$6,"|",$J$3),'DATA MART_'!$C$2:$R$985098,16,0) ->  | Q68: =VLOOKUP(CONCATENATE($F$2,"|",$F$3,"|",Q$5,"|",$E$61,"|",$G$61,"|",$H$3,"|",Q$7,"|",$D68,"|",Q$6,"|",$J$3),'DATA MART_'!$C$2:$R$985098,16,0) ->  | R68: =VLOOKUP(CONCATENATE($F$2,"|",$F$3,"|",R$5,"|",$E$61,"|",$G$61,"|",$H$3,"|",R$7,"|",$D68,"|",R$6,"|",$J$3),'DATA MART_'!$C$2:$R$985098,16,0) ->  | S68: =VLOOKUP(CONCATENATE($F$2,"|",$F$3,"|",S$5,"|",$E$61,"|",$G$61,"|",$H$3,"|",S$7,"|",$D68,"|",S$6,"|",$J$3),'DATA MART_'!$C$2:$R$985098,16,0) ->  | U68: =VLOOKUP(CONCATENATE($F$2,"|",$F$3,"|",U$5,"|",$E$61,"|",$G$61,"|",$H$3,"|",U$7,"|",$D68,"|",U$6,"|",$J$3),'DATA MART_'!$C$2:$R$985098,16,0) ->  | W68: =VLOOKUP(CONCATENATE($F$2,"|",$F$3,"|",W$5,"|",$E$61,"|",$G$61,"|",$H$3,"|",W$7,"|",$D68,"|",W$6,"|",$J$3),'DATA MART_'!$C$2:$R$985098,16,0) ->  | Y68: =VLOOKUP(CONCATENATE($F$2,"|",$F$3,"|",Y$5,"|",$E$61,"|",$G$61,"|",$H$3,"|",Y$7,"|",$D68,"|",Y$6,"|",$J$3),'DATA MART_'!$C$2:$R$985098,16,0) ->  | Z68: 100200
D69: =VLOOKUP(TRIM(F69),'DATA MART_'!$AD$3:$AF$25,3,0) -> 12 | F69: Corporates - Of Which: Specialised Lending | H69: =VLOOKUP(CONCATENATE($F$2,"|",$F$3,"|",H$5,"|",$E$61,"|",$G$61,"|",$H$3,"|",H$7,"|",$D69,"|",H$6,"|",$J$3),'DATA MART_'!$C$2:$R$985098,16,0) ->  | I69: =VLOOKUP(CONCATENATE($F$2,"|",$F$3,"|",I$5,"|",$E$61,"|",$G$61,"|",$H$3,"|",I$7,"|",$D69,"|",I$6,"|",$J$3),'DATA MART_'!$C$2:$R$985098,16,0) ->  | J69: =VLOOKUP(CONCATENATE($F$2,"|",$F$3,"|",J$5,"|",$E$61,"|",$G$61,"|",$H$3,"|",J$7,"|",$D69,"|",J$6,"|",$J$3),'DATA MART_'!$C$2:$R$985098,16,0) ->  | K69: =VLOOKUP(CONCATENATE($F$2,"|",$F$3,"|",K$5,"|",$E$61,"|",$G$61,"|",$H$3,"|",K$7,"|",$D69,"|",K$6,"|",$J$3),'DATA MART_'!$C$2:$R$985098,16,0) ->  | L69: =VLOOKUP(CONCATENATE($F$2,"|",$F$3,"|",L$5,"|",$E$61,"|",$G$61,"|",$H$3,"|",L$7,"|",$D69,"|",L$6,"|",$J$3),'DATA MART_'!$C$2:$R$985098,16,0) ->  | M69: =VLOOKUP(CONCATENATE($F$2,"|",$F$3,"|",M$5,"|",$E$61,"|",$G$61,"|",$H$3,"|",M$7,"|",$D69,"|",M$6,"|",$J$3),'DATA MART_'!$C$2:$R$985098,16,0) ->  | N69: =VLOOKUP(CONCATENATE($F$2,"|",$F$3,"|",N$5,"|",$E$61,"|",$G$61,"|",$H$3,"|",N$7,"|",$D69,"|",N$6,"|",$J$3),'DATA MART_'!$C$2:$R$985098,16,0) ->  | O69: =VLOOKUP(CONCATENATE($F$2,"|",$F$3,"|",O$5,"|",$E$61,"|",$G$61,"|",$H$3,"|",O$7,"|",$D69,"|",O$6,"|",$J$3),'DATA MART_'!$C$2:$R$985098,16,0) ->  | P69: =VLOOKUP(CONCATENATE($F$2,"|",$F$3,"|",P$5,"|",$E$61,"|",$G$61,"|",$H$3,"|",P$7,"|",$D69,"|",P$6,"|",$J$3),'DATA MART_'!$C$2:$R$985098,16,0) ->  | Q69: =VLOOKUP(CONCATENATE($F$2,"|",$F$3,"|",Q$5,"|",$E$61,"|",$G$61,"|",$H$3,"|",Q$7,"|",$D69,"|",Q$6,"|",$J$3),'DATA MART_'!$C$2:$R$985098,16,0) ->  | R69: =VLOOKUP(CONCATENATE($F$2,"|",$F$3,"|",R$5,"|",$E$61,"|",$G$61,"|",$H$3,"|",R$7,"|",$D69,"|",R$6,"|",$J$3),'DATA MART_'!$C$2:$R$985098,16,0) ->  | S69: =VLOOKUP(CONCATENATE($F$2,"|",$F$3,"|",S$5,"|",$E$61,"|",$G$61,"|",$H$3,"|",S$7,"|",$D69,"|",S$6,"|",$J$3),'DATA MART_'!$C$2:$R$985098,16,0) ->  | U69: =VLOOKUP(CONCATENATE($F$2,"|",$F$3,"|",U$5,"|",$E$61,"|",$G$61,"|",$H$3,"|",U$7,"|",$D69,"|",U$6,"|",$J$3),'DATA MART_'!$C$2:$R$985098,16,0) ->  | W69: =VLOOKUP(CONCATENATE($F$2,"|",$F$3,"|",W$5,"|",$E$61,"|",$G$61,"|",$H$3,"|",W$7,"|",$D69,"|",W$6,"|",$J$3),'DATA MART_'!$C$2:$R$985098,16,0) ->  | Y69: =VLOOKUP(CONCATENATE($F$2,"|",$F$3,"|",Y$5,"|",$E$61,"|",$G$61,"|",$H$3,"|",Y$7,"|",$D69,"|",Y$6,"|",$J$3),'DATA MART_'!$C$2:$R$985098,16,0) ->  | Z69: 100203
D70: =VLOOKUP(TRIM(F70),'DATA MART_'!$AD$3:$AF$25,3,0) -> 13 | F70: Corporates - Of Which: SME | H70: =VLOOKUP(CONCATENATE($F$2,"|",$F$3,"|",H$5,"|",$E$61,"|",$G$61,"|",$H$3,"|",H$7,"|",$D70,"|",H$6,"|",$J$3),'DATA MART_'!$C$2:$R$985098,16,0) ->  | I70: =VLOOKUP(CONCATENATE($F$2,"|",$F$3,"|",I$5,"|",$E$61,"|",$G$61,"|",$H$3,"|",I$7,"|",$D70,"|",I$6,"|",$J$3),'DATA MART_'!$C$2:$R$985098,16,0) ->  | J70: =VLOOKUP(CONCATENATE($F$2,"|",$F$3,"|",J$5,"|",$E$61,"|",$G$61,"|",$H$3,"|",J$7,"|",$D70,"|",J$6,"|",$J$3),'DATA MART_'!$C$2:$R$985098,16,0) ->  | K70: =VLOOKUP(CONCATENATE($F$2,"|",$F$3,"|",K$5,"|",$E$61,"|",$G$61,"|",$H$3,"|",K$7,"|",$D70,"|",K$6,"|",$J$3),'DATA MART_'!$C$2:$R$985098,16,0) ->  | L70: =VLOOKUP(CONCATENATE($F$2,"|",$F$3,"|",L$5,"|",$E$61,"|",$G$61,"|",$H$3,"|",L$7,"|",$D70,"|",L$6,"|",$J$3),'DATA MART_'!$C$2:$R$985098,16,0) ->  | M70: =VLOOKUP(CONCATENATE($F$2,"|",$F$3,"|",M$5,"|",$E$61,"|",$G$61,"|",$H$3,"|",M$7,"|",$D70,"|",M$6,"|",$J$3),'DATA MART_'!$C$2:$R$985098,16,0) ->  | N70: =VLOOKUP(CONCATENATE($F$2,"|",$F$3,"|",N$5,"|",$E$61,"|",$G$61,"|",$H$3,"|",N$7,"|",$D70,"|",N$6,"|",$J$3),'DATA MART_'!$C$2:$R$985098,16,0) ->  | O70: =VLOOKUP(CONCATENATE($F$2,"|",$F$3,"|",O$5,"|",$E$61,"|",$G$61,"|",$H$3,"|",O$7,"|",$D70,"|",O$6,"|",$J$3),'DATA MART_'!$C$2:$R$985098,16,0) ->  | P70: =VLOOKUP(CONCATENATE($F$2,"|",$F$3,"|",P$5,"|",$E$61,"|",$G$61,"|",$H$3,"|",P$7,"|",$D70,"|",P$6,"|",$J$3),'DATA MART_'!$C$2:$R$985098,16,0) ->  | Q70: =VLOOKUP(CONCATENATE($F$2,"|",$F$3,"|",Q$5,"|",$E$61,"|",$G$61,"|",$H$3,"|",Q$7,"|",$D70,"|",Q$6,"|",$J$3),'DATA MART_'!$C$2:$R$985098,16,0) ->  | R70: =VLOOKUP(CONCATENATE($F$2,"|",$F$3,"|",R$5,"|",$E$61,"|",$G$61,"|",$H$3,"|",R$7,"|",$D70,"|",R$6,"|",$J$3),'DATA MART_'!$C$2:$R$985098,16,0) ->  | S70: =VLOOKUP(CONCATENATE($F$2,"|",$F$3,"|",S$5,"|",$E$61,"|",$G$61,"|",$H$3,"|",S$7,"|",$D70,"|",S$6,"|",$J$3),'DATA MART_'!$C$2:$R$985098,16,0) ->  | U70: =VLOOKUP(CONCATENATE($F$2,"|",$F$3,"|",U$5,"|",$E$61,"|",$G$61,"|",$H$3,"|",U$7,"|",$D70,"|",U$6,"|",$J$3),'DATA MART_'!$C$2:$R$985098,16,0) ->  | W70: =VLOOKUP(CONCATENATE($F$2,"|",$F$3,"|",W$5,"|",$E$61,"|",$G$61,"|",$H$3,"|",W$7,"|",$D70,"|",W$6,"|",$J$3),'DATA MART_'!$C$2:$R$985098,16,0) ->  | Y70: =VLOOKUP(CONCATENATE($F$2,"|",$F$3,"|",Y$5,"|",$E$61,"|",$G$61,"|",$H$3,"|",Y$7,"|",$D70,"|",Y$6,"|",$J$3),'DATA MART_'!$C$2:$R$985098,16,0) ->  | Z70: 100300
D71: =VLOOKUP(TRIM(F71),'DATA MART_'!$AD$3:$AF$25,3,0) -> 4 | F71: Retail | H71: =VLOOKUP(CONCATENATE($F$2,"|",$F$3,"|",H$5,"|",$E$61,"|",$G$61,"|",$H$3,"|",H$7,"|",$D71,"|",H$6,"|",$J$3),'DATA MART_'!$C$2:$R$985098,16,0) ->  | I71: =VLOOKUP(CONCATENATE($F$2,"|",$F$3,"|",I$5,"|",$E$61,"|",$G$61,"|",$H$3,"|",I$7,"|",$D71,"|",I$6,"|",$J$3),'DATA MART_'!$C$2:$R$985098,16,0) ->  | J71: =VLOOKUP(CONCATENATE($F$2,"|",$F$3,"|",J$5,"|",$E$61,"|",$G$61,"|",$H$3,"|",J$7,"|",$D71,"|",J$6,"|",$J$3),'DATA MART_'!$C$2:$R$985098,16,0) ->  | K71: =VLOOKUP(CONCATENATE($F$2,"|",$F$3,"|",K$5,"|",$E$61,"|",$G$61,"|",$H$3,"|",K$7,"|",$D71,"|",K$6,"|",$J$3),'DATA MART_'!$C$2:$R$985098,16,0) ->  | L71: =VLOOKUP(CONCATENATE($F$2,"|",$F$3,"|",L$5,"|",$E$61,"|",$G$61,"|",$H$3,"|",L$7,"|",$D71,"|",L$6,"|",$J$3),'DATA MART_'!$C$2:$R$985098,16,0) ->  | M71: =VLOOKUP(CONCATENATE($F$2,"|",$F$3,"|",M$5,"|",$E$61,"|",$G$61,"|",$H$3,"|",M$7,"|",$D71,"|",M$6,"|",$J$3),'DATA MART_'!$C$2:$R$985098,16,0) ->  | N71: =VLOOKUP(CONCATENATE($F$2,"|",$F$3,"|",N$5,"|",$E$61,"|",$G$61,"|",$H$3,"|",N$7,"|",$D71,"|",N$6,"|",$J$3),'DATA MART_'!$C$2:$R$985098,16,0) ->  | O71: =VLOOKUP(CONCATENATE($F$2,"|",$F$3,"|",O$5,"|",$E$61,"|",$G$61,"|",$H$3,"|",O$7,"|",$D71,"|",O$6,"|",$J$3),'DATA MART_'!$C$2:$R$985098,16,0) ->  | P71: =VLOOKUP(CONCATENATE($F$2,"|",$F$3,"|",P$5,"|",$E$61,"|",$G$61,"|",$H$3,"|",P$7,"|",$D71,"|",P$6,"|",$J$3),'DATA MART_'!$C$2:$R$985098,16,0) ->  | Q71: =VLOOKUP(CONCATENATE($F$2,"|",$F$3,"|",Q$5,"|",$E$61,"|",$G$61,"|",$H$3,"|",Q$7,"|",$D71,"|",Q$6,"|",$J$3),'DATA MART_'!$C$2:$R$985098,16,0) ->  | R71: =VLOOKUP(CONCATENATE($F$2,"|",$F$3,"|",R$5,"|",$E$61,"|",$G$61,"|",$H$3,"|",R$7,"|",$D71,"|",R$6,"|",$J$3),'DATA MART_'!$C$2:$R$985098,16,0) ->  | S71: =VLOOKUP(CONCATENATE($F$2,"|",$F$3,"|",S$5,"|",$E$61,"|",$G$61,"|",$H$3,"|",S$7,"|",$D71,"|",S$6,"|",$J$3),'DATA MART_'!$C$2:$R$985098,16,0) ->  | U71: =VLOOKUP(CONCATENATE($F$2,"|",$F$3,"|",U$5,"|",$E$61,"|",$G$61,"|",$H$3,"|",U$7,"|",$D71,"|",U$6,"|",$J$3),'DATA MART_'!$C$2:$R$985098,16,0) ->  | W71: =VLOOKUP(CONCATENATE($F$2,"|",$F$3,"|",W$5,"|",$E$61,"|",$G$61,"|",$H$3,"|",W$7,"|",$D71,"|",W$6,"|",$J$3),'DATA MART_'!$C$2:$R$985098,16,0) ->  | Y71: =VLOOKUP(CONCATENATE($F$2,"|",$F$3,"|",Y$5,"|",$E$61,"|",$G$61,"|",$H$3,"|",Y$7,"|",$D71,"|",Y$6,"|",$J$3),'DATA MART_'!$C$2:$R$985098,16,0) ->  | Z71: 100301
D72: =VLOOKUP(TRIM(F72),'DATA MART_'!$AD$3:$AF$25,3,0) -> 15 | F72: Retail - Secured on real estate property | G72: =VLOOKUP(CONCATENATE($F$2,"|",$F$3,"|",G$5,"|",$E$61,"|",$G$61,"|",$H$3,"|",G$7,"|",$D72,"|",G$6,"|",$J$3),'DATA MART_'!$C$2:$R$985098,16,0) ->  | H72: =VLOOKUP(CONCATENATE($F$2,"|",$F$3,"|",H$5,"|",$E$61,"|",$G$61,"|",$H$3,"|",H$7,"|",$D72,"|",H$6,"|",$J$3),'DATA MART_'!$C$2:$R$985098,16,0) ->  | I72: =VLOOKUP(CONCATENATE($F$2,"|",$F$3,"|",I$5,"|",$E$61,"|",$G$61,"|",$H$3,"|",I$7,"|",$D72,"|",I$6,"|",$J$3),'DATA MART_'!$C$2:$R$985098,16,0) ->  | J72: =VLOOKUP(CONCATENATE($F$2,"|",$F$3,"|",J$5,"|",$E$61,"|",$G$61,"|",$H$3,"|",J$7,"|",$D72,"|",J$6,"|",$J$3),'DATA MART_'!$C$2:$R$985098,16,0) ->  | K72: =VLOOKUP(CONCATENATE($F$2,"|",$F$3,"|",K$5,"|",$E$61,"|",$G$61,"|",$H$3,"|",K$7,"|",$D72,"|",K$6,"|",$J$3),'DATA MART_'!$C$2:$R$985098,16,0) ->  | L72: =VLOOKUP(CONCATENATE($F$2,"|",$F$3,"|",L$5,"|",$E$61,"|",$G$61,"|",$H$3,"|",L$7,"|",$D72,"|",L$6,"|",$J$3),'DATA MART_'!$C$2:$R$985098,16,0) ->  | M72: =VLOOKUP(CONCATENATE($F$2,"|",$F$3,"|",M$5,"|",$E$61,"|",$G$61,"|",$H$3,"|",M$7,"|",$D72,"|",M$6,"|",$J$3),'DATA MART_'!$C$2:$R$985098,16,0) ->  | N72: =VLOOKUP(CONCATENATE($F$2,"|",$F$3,"|",N$5,"|",$E$61,"|",$G$61,"|",$H$3,"|",N$7,"|",$D72,"|",N$6,"|",$J$3),'DATA MART_'!$C$2:$R$985098,16,0) ->  | O72: =VLOOKUP(CONCATENATE($F$2,"|",$F$3,"|",O$5,"|",$E$61,"|",$G$61,"|",$H$3,"|",O$7,"|",$D72,"|",O$6,"|",$J$3),'DATA MART_'!$C$2:$R$985098,16,0) ->  | P72: =VLOOKUP(CONCATENATE($F$2,"|",$F$3,"|",P$5,"|",$E$61,"|",$G$61,"|",$H$3,"|",P$7,"|",$D72,"|",P$6,"|",$J$3),'DATA MART_'!$C$2:$R$985098,16,0) ->  | Q72: =VLOOKUP(CONCATENATE($F$2,"|",$F$3,"|",Q$5,"|",$E$61,"|",$G$61,"|",$H$3,"|",Q$7,"|",$D72,"|",Q$6,"|",$J$3),'DATA MART_'!$C$2:$R$985098,16,0) ->  | R72: =VLOOKUP(CONCATENATE($F$2,"|",$F$3,"|",R$5,"|",$E$61,"|",$G$61,"|",$H$3,"|",R$7,"|",$D72,"|",R$6,"|",$J$3),'DATA MART_'!$C$2:$R$985098,16,0) ->  | S72: =VLOOKUP(CONCATENATE($F$2,"|",$F$3,"|",S$5,"|",$E$61,"|",$G$61,"|",$H$3,"|",S$7,"|",$D72,"|",S$6,"|",$J$3),'DATA MART_'!$C$2:$R$985098,16,0) ->  | U72: =VLOOKUP(CONCATENATE($F$2,"|",$F$3,"|",U$5,"|",$E$61,"|",$G$61,"|",$H$3,"|",U$7,"|",$D72,"|",U$6,"|",$J$3),'DATA MART_'!$C$2:$R$985098,16,0) ->  | W72: =VLOOKUP(CONCATENATE($F$2,"|",$F$3,"|",W$5,"|",$E$61,"|",$G$61,"|",$H$3,"|",W$7,"|",$D72,"|",W$6,"|",$J$3),'DATA MART_'!$C$2:$R$985098,16,0) ->  | Y72: =VLOOKUP(CONCATENATE($F$2,"|",$F$3,"|",Y$5,"|",$E$61,"|",$G$61,"|",$H$3,"|",Y$7,"|",$D72,"|",Y$6,"|",$J$3),'DATA MART_'!$C$2:$R$985098,16,0) ->  | Z72: 100400
D73: =VLOOKUP(TRIM(F73),'DATA MART_'!$AD$3:$AF$25,3,0) -> 16 | F73: Retail - Secured on real estate property - Of Which: SME | G73: =VLOOKUP(CONCATENATE($F$2,"|",$F$3,"|",G$5,"|",$E$61,"|",$G$61,"|",$H$3,"|",G$7,"|",$D73,"|",G$6,"|",$J$3),'DATA MART_'!$C$2:$R$985098,16,0) ->  | H73: =VLOOKUP(CONCATENATE($F$2,"|",$F$3,"|",H$5,"|",$E$61,"|",$G$61,"|",$H$3,"|",H$7,"|",$D73,"|",H$6,"|",$J$3),'DATA MART_'!$C$2:$R$985098,16,0) ->  | I73: =VLOOKUP(CONCATENATE($F$2,"|",$F$3,"|",I$5,"|",$E$61,"|",$G$61,"|",$H$3,"|",I$7,"|",$D73,"|",I$6,"|",$J$3),'DATA MART_'!$C$2:$R$985098,16,0) ->  | J73: =VLOOKUP(CONCATENATE($F$2,"|",$F$3,"|",J$5,"|",$E$61,"|",$G$61,"|",$H$3,"|",J$7,"|",$D73,"|",J$6,"|",$J$3),'DATA MART_'!$C$2:$R$985098,16,0) ->  | K73: =VLOOKUP(CONCATENATE($F$2,"|",$F$3,"|",K$5,"|",$E$61,"|",$G$61,"|",$H$3,"|",K$7,"|",$D73,"|",K$6,"|",$J$3),'DATA MART_'!$C$2:$R$985098,16,0) ->  | L73: =VLOOKUP(CONCATENATE($F$2,"|",$F$3,"|",L$5,"|",$E$61,"|",$G$61,"|",$H$3,"|",L$7,"|",$D73,"|",L$6,"|",$J$3),'DATA MART_'!$C$2:$R$985098,16,0) ->  | M73: =VLOOKUP(CONCATENATE($F$2,"|",$F$3,"|",M$5,"|",$E$61,"|",$G$61,"|",$H$3,"|",M$7,"|",$D73,"|",M$6,"|",$J$3),'DATA MART_'!$C$2:$R$985098,16,0) ->  | N73: =VLOOKUP(CONCATENATE($F$2,"|",$F$3,"|",N$5,"|",$E$61,"|",$G$61,"|",$H$3,"|",N$7,"|",$D73,"|",N$6,"|",$J$3),'DATA MART_'!$C$2:$R$985098,16,0) ->  | O73: =VLOOKUP(CONCATENATE($F$2,"|",$F$3,"|",O$5,"|",$E$61,"|",$G$61,"|",$H$3,"|",O$7,"|",$D73,"|",O$6,"|",$J$3),'DATA MART_'!$C$2:$R$985098,16,0) ->  | P73: =VLOOKUP(CONCATENATE($F$2,"|",$F$3,"|",P$5,"|",$E$61,"|",$G$61,"|",$H$3,"|",P$7,"|",$D73,"|",P$6,"|",$J$3),'DATA MART_'!$C$2:$R$985098,16,0) ->  | Q73: =VLOOKUP(CONCATENATE($F$2,"|",$F$3,"|",Q$5,"|",$E$61,"|",$G$61,"|",$H$3,"|",Q$7,"|",$D73,"|",Q$6,"|",$J$3),'DATA MART_'!$C$2:$R$985098,16,0) ->  | R73: =VLOOKUP(CONCATENATE($F$2,"|",$F$3,"|",R$5,"|",$E$61,"|",$G$61,"|",$H$3,"|",R$7,"|",$D73,"|",R$6,"|",$J$3),'DATA MART_'!$C$2:$R$985098,16,0) ->  | S73: =VLOOKUP(CONCATENATE($F$2,"|",$F$3,"|",S$5,"|",$E$61,"|",$G$61,"|",$H$3,"|",S$7,"|",$D73,"|",S$6,"|",$J$3),'DATA MART_'!$C$2:$R$985098,16,0) ->  | U73: =VLOOKUP(CONCATENATE($F$2,"|",$F$3,"|",U$5,"|",$E$61,"|",$G$61,"|",$H$3,"|",U$7,"|",$D73,"|",U$6,"|",$J$3),'DATA MART_'!$C$2:$R$985098,16,0) ->  | W73: =VLOOKUP(CONCATENATE($F$2,"|",$F$3,"|",W$5,"|",$E$61,"|",$G$61,"|",$H$3,"|",W$7,"|",$D73,"|",W$6,"|",$J$3),'DATA MART_'!$C$2:$R$985098,16,0) ->  | Y73: =VLOOKUP(CONCATENATE($F$2,"|",$F$3,"|",Y$5,"|",$E$61,"|",$G$61,"|",$H$3,"|",Y$7,"|",$D73,"|",Y$6,"|",$J$3),'DATA MART_'!$C$2:$R$985098,16,0) -> 
D74: =VLOOKUP(TRIM(F74),'DATA MART_'!$AD$3:$AF$25,3,0) -> 17 | F74: Retail - Secured on real estate property - Of Which: non-SME | G74: =VLOOKUP(CONCATENATE($F$2,"|",$F$3,"|",G$5,"|",$E$61,"|",$G$61,"|",$H$3,"|",G$7,"|",$D74,"|",G$6,"|",$J$3),'DATA MART_'!$C$2:$R$985098,16,0) ->  | H74: =VLOOKUP(CONCATENATE($F$2,"|",$F$3,"|",H$5,"|",$E$61,"|",$G$61,"|",$H$3,"|",H$7,"|",$D74,"|",H$6,"|",$J$3),'DATA MART_'!$C$2:$R$985098,16,0) ->  | I74: =VLOOKUP(CONCATENATE($F$2,"|",$F$3,"|",I$5,"|",$E$61,"|",$G$61,"|",$H$3,"|",I$7,"|",$D74,"|",I$6,"|",$J$3),'DATA MART_'!$C$2:$R$985098,16,0) ->  | J74: =VLOOKUP(CONCATENATE($F$2,"|",$F$3,"|",J$5,"|",$E$61,"|",$G$61,"|",$H$3,"|",J$7,"|",$D74,"|",J$6,"|",$J$3),'DATA MART_'!$C$2:$R$985098,16,0) ->  | K74: =VLOOKUP(CONCATENATE($F$2,"|",$F$3,"|",K$5,"|",$E$61,"|",$G$61,"|",$H$3,"|",K$7,"|",$D74,"|",K$6,"|",$J$3),'DATA MART_'!$C$2:$R$985098,16,0) ->  | L74: =VLOOKUP(CONCATENATE($F$2,"|",$F$3,"|",L$5,"|",$E$61,"|",$G$61,"|",$H$3,"|",L$7,"|",$D74,"|",L$6,"|",$J$3),'DATA MART_'!$C$2:$R$985098,16,0) ->  | M74: =VLOOKUP(CONCATENATE($F$2,"|",$F$3,"|",M$5,"|",$E$61,"|",$G$61,"|",$H$3,"|",M$7,"|",$D74,"|",M$6,"|",$J$3),'DATA MART_'!$C$2:$R$985098,16,0) ->  | N74: =VLOOKUP(CONCATENATE($F$2,"|",$F$3,"|",N$5,"|",$E$61,"|",$G$61,"|",$H$3,"|",N$7,"|",$D74,"|",N$6,"|",$J$3),'DATA MART_'!$C$2:$R$985098,16,0) ->  | O74: =VLOOKUP(CONCATENATE($F$2,"|",$F$3,"|",O$5,"|",$E$61,"|",$G$61,"|",$H$3,"|",O$7,"|",$D74,"|",O$6,"|",$J$3),'DATA MART_'!$C$2:$R$985098,16,0) ->  | P74: =VLOOKUP(CONCATENATE($F$2,"|",$F$3,"|",P$5,"|",$E$61,"|",$G$61,"|",$H$3,"|",P$7,"|",$D74,"|",P$6,"|",$J$3),'DATA MART_'!$C$2:$R$985098,16,0) ->  | Q74: =VLOOKUP(CONCATENATE($F$2,"|",$F$3,"|",Q$5,"|",$E$61,"|",$G$61,"|",$H$3,"|",Q$7,"|",$D74,"|",Q$6,"|",$J$3),'DATA MART_'!$C$2:$R$985098,16,0) ->  | R74: =VLOOKUP(CONCATENATE($F$2,"|",$F$3,"|",R$5,"|",$E$61,"|",$G$61,"|",$H$3,"|",R$7,"|",$D74,"|",R$6,"|",$J$3),'DATA MART_'!$C$2:$R$985098,16,0) ->  | S74: =VLOOKUP(CONCATENATE($F$2,"|",$F$3,"|",S$5,"|",$E$61,"|",$G$61,"|",$H$3,"|",S$7,"|",$D74,"|",S$6,"|",$J$3),'DATA MART_'!$C$2:$R$985098,16,0) ->  | U74: =VLOOKUP(CONCATENATE($F$2,"|",$F$3,"|",U$5,"|",$E$61,"|",$G$61,"|",$H$3,"|",U$7,"|",$D74,"|",U$6,"|",$J$3),'DATA MART_'!$C$2:$R$985098,16,0) ->  | W74: =VLOOKUP(CONCATENATE($F$2,"|",$F$3,"|",W$5,"|",$E$61,"|",$G$61,"|",$H$3,"|",W$7,"|",$D74,"|",W$6,"|",$J$3),'DATA MART_'!$C$2:$R$985098,16,0) ->  | Y74: =VLOOKUP(CONCATENATE($F$2,"|",$F$3,"|",Y$5,"|",$E$61,"|",$G$61,"|",$H$3,"|",Y$7,"|",$D74,"|",Y$6,"|",$J$3),'DATA MART_'!$C$2:$R$985098,16,0) ->  | Z74: 100500
D75: =VLOOKUP(TRIM(F75),'DATA MART_'!$AD$3:$AF$25,3,0) -> 18 | F75: Retail - Qualifying Revolving | H75: =VLOOKUP(CONCATENATE($F$2,"|",$F$3,"|",H$5,"|",$E$61,"|",$G$61,"|",$H$3,"|",H$7,"|",$D75,"|",H$6,"|",$J$3),'DATA MART_'!$C$2:$R$985098,16,0) ->  | I75: =VLOOKUP(CONCATENATE($F$2,"|",$F$3,"|",I$5,"|",$E$61,"|",$G$61,"|",$H$3,"|",I$7,"|",$D75,"|",I$6,"|",$J$3),'DATA MART_'!$C$2:$R$985098,16,0) ->  | J75: =VLOOKUP(CONCATENATE($F$2,"|",$F$3,"|",J$5,"|",$E$61,"|",$G$61,"|",$H$3,"|",J$7,"|",$D75,"|",J$6,"|",$J$3),'DATA MART_'!$C$2:$R$985098,16,0) ->  | K75: =VLOOKUP(CONCATENATE($F$2,"|",$F$3,"|",K$5,"|",$E$61,"|",$G$61,"|",$H$3,"|",K$7,"|",$D75,"|",K$6,"|",$J$3),'DATA MART_'!$C$2:$R$985098,16,0) ->  | L75: =VLOOKUP(CONCATENATE($F$2,"|",$F$3,"|",L$5,"|",$E$61,"|",$G$61,"|",$H$3,"|",L$7,"|",$D75,"|",L$6,"|",$J$3),'DATA MART_'!$C$2:$R$985098,16,0) ->  | M75: =VLOOKUP(CONCATENATE($F$2,"|",$F$3,"|",M$5,"|",$E$61,"|",$G$61,"|",$H$3,"|",M$7,"|",$D75,"|",M$6,"|",$J$3),'DATA MART_'!$C$2:$R$985098,16,0) ->  | N75: =VLOOKUP(CONCATENATE($F$2,"|",$F$3,"|",N$5,"|",$E$61,"|",$G$61,"|",$H$3,"|",N$7,"|",$D75,"|",N$6,"|",$J$3),'DATA MART_'!$C$2:$R$985098,16,0) ->  | O75: =VLOOKUP(CONCATENATE($F$2,"|",$F$3,"|",O$5,"|",$E$61,"|",$G$61,"|",$H$3,"|",O$7,"|",$D75,"|",O$6,"|",$J$3),'DATA MART_'!$C$2:$R$985098,16,0) ->  | P75: =VLOOKUP(CONCATENATE($F$2,"|",$F$3,"|",P$5,"|",$E$61,"|",$G$61,"|",$H$3,"|",P$7,"|",$D75,"|",P$6,"|",$J$3),'DATA MART_'!$C$2:$R$985098,16,0) ->  | Q75: =VLOOKUP(CONCATENATE($F$2,"|",$F$3,"|",Q$5,"|",$E$61,"|",$G$61,"|",$H$3,"|",Q$7,"|",$D75,"|",Q$6,"|",$J$3),'DATA MART_'!$C$2:$R$985098,16,0) ->  | R75: =VLOOKUP(CONCATENATE($F$2,"|",$F$3,"|",R$5,"|",$E$61,"|",$G$61,"|",$H$3,"|",R$7,"|",$D75,"|",R$6,"|",$J$3),'DATA MART_'!$C$2:$R$985098,16,0) ->  | S75: =VLOOKUP(CONCATENATE($F$2,"|",$F$3,"|",S$5,"|",$E$61,"|",$G$61,"|",$H$3,"|",S$7,"|",$D75,"|",S$6,"|",$J$3),'DATA MART_'!$C$2:$R$985098,16,0) ->  | U75: =VLOOKUP(CONCATENATE($F$2,"|",$F$3,"|",U$5,"|",$E$61,"|",$G$61,"|",$H$3,"|",U$7,"|",$D75,"|",U$6,"|",$J$3),'DATA MART_'!$C$2:$R$985098,16,0) ->  | W75: =VLOOKUP(CONCATENATE($F$2,"|",$F$3,"|",W$5,"|",$E$61,"|",$G$61,"|",$H$3,"|",W$7,"|",$D75,"|",W$6,"|",$J$3),'DATA MART_'!$C$2:$R$985098,16,0) ->  | Y75: =VLOOKUP(CONCATENATE($F$2,"|",$F$3,"|",Y$5,"|",$E$61,"|",$G$61,"|",$H$3,"|",Y$7,"|",$D75,"|",Y$6,"|",$J$3),'DATA MART_'!$C$2:$R$985098,16,0) ->  | Z75: 100600
D76: =VLOOKUP(TRIM(F76),'DATA MART_'!$AD$3:$AF$25,3,0) -> 19 | F76: Retail - Other Retail | H76: =VLOOKUP(CONCATENATE($F$2,"|",$F$3,"|",H$5,"|",$E$61,"|",$G$61,"|",$H$3,"|",H$7,"|",$D76,"|",H$6,"|",$J$3),'DATA MART_'!$C$2:$R$985098,16,0) ->  | I76: =VLOOKUP(CONCATENATE($F$2,"|",$F$3,"|",I$5,"|",$E$61,"|",$G$61,"|",$H$3,"|",I$7,"|",$D76,"|",I$6,"|",$J$3),'DATA MART_'!$C$2:$R$985098,16,0) ->  | J76: =VLOOKUP(CONCATENATE($F$2,"|",$F$3,"|",J$5,"|",$E$61,"|",$G$61,"|",$H$3,"|",J$7,"|",$D76,"|",J$6,"|",$J$3),'DATA MART_'!$C$2:$R$985098,16,0) ->  | K76: =VLOOKUP(CONCATENATE($F$2,"|",$F$3,"|",K$5,"|",$E$61,"|",$G$61,"|",$H$3,"|",K$7,"|",$D76,"|",K$6,"|",$J$3),'DATA MART_'!$C$2:$R$985098,16,0) ->  | L76: =VLOOKUP(CONCATENATE($F$2,"|",$F$3,"|",L$5,"|",$E$61,"|",$G$61,"|",$H$3,"|",L$7,"|",$D76,"|",L$6,"|",$J$3),'DATA MART_'!$C$2:$R$985098,16,0) ->  | M76: =VLOOKUP(CONCATENATE($F$2,"|",$F$3,"|",M$5,"|",$E$61,"|",$G$61,"|",$H$3,"|",M$7,"|",$D76,"|",M$6,"|",$J$3),'DATA MART_'!$C$2:$R$985098,16,0) ->  | N76: =VLOOKUP(CONCATENATE($F$2,"|",$F$3,"|",N$5,"|",$E$61,"|",$G$61,"|",$H$3,"|",N$7,"|",$D76,"|",N$6,"|",$J$3),'DATA MART_'!$C$2:$R$985098,16,0) ->  | O76: =VLOOKUP(CONCATENATE($F$2,"|",$F$3,"|",O$5,"|",$E$61,"|",$G$61,"|",$H$3,"|",O$7,"|",$D76,"|",O$6,"|",$J$3),'DATA MART_'!$C$2:$R$985098,16,0) ->  | P76: =VLOOKUP(CONCATENATE($F$2,"|",$F$3,"|",P$5,"|",$E$61,"|",$G$61,"|",$H$3,"|",P$7,"|",$D76,"|",P$6,"|",$J$3),'DATA MART_'!$C$2:$R$985098,16,0) ->  | Q76: =VLOOKUP(CONCATENATE($F$2,"|",$F$3,"|",Q$5,"|",$E$61,"|",$G$61,"|",$H$3,"|",Q$7,"|",$D76,"|",Q$6,"|",$J$3),'DATA MART_'!$C$2:$R$985098,16,0) ->  | R76: =VLOOKUP(CONCATENATE($F$2,"|",$F$3,"|",R$5,"|",$E$61,"|",$G$61,"|",$H$3,"|",R$7,"|",$D76,"|",R$6,"|",$J$3),'DATA MART_'!$C$2:$R$985098,16,0) ->  | S76: =VLOOKUP(CONCATENATE($F$2,"|",$F$3,"|",S$5,"|",$E$61,"|",$G$61,"|",$H$3,"|",S$7,"|",$D76,"|",S$6,"|",$J$3),'DATA MART_'!$C$2:$R$985098,16,0) ->  | U76: =VLOOKUP(CONCATENATE($F$2,"|",$F$3,"|",U$5,"|",$E$61,"|",$G$61,"|",$H$3,"|",U$7,"|",$D76,"|",U$6,"|",$J$3),'DATA MART_'!$C$2:$R$985098,16,0) ->  | W76: =VLOOKUP(CONCATENATE($F$2,"|",$F$3,"|",W$5,"|",$E$61,"|",$G$61,"|",$H$3,"|",W$7,"|",$D76,"|",W$6,"|",$J$3),'DATA MART_'!$C$2:$R$985098,16,0) ->  | Y76: =VLOOKUP(CONCATENATE($F$2,"|",$F$3,"|",Y$5,"|",$E$61,"|",$G$61,"|",$H$3,"|",Y$7,"|",$D76,"|",Y$6,"|",$J$3),'DATA MART_'!$C$2:$R$985098,16,0) ->  | Z76: 100700
D77: =VLOOKUP(TRIM(F77),'DATA MART_'!$AD$3:$AF$25,3,0) -> 20 | F77: Retail - Other Retail - Of Which: SME | H77: =VLOOKUP(CONCATENATE($F$2,"|",$F$3,"|",H$5,"|",$E$61,"|",$G$61,"|",$H$3,"|",H$7,"|",$D77,"|",H$6,"|",$J$3),'DATA MART_'!$C$2:$R$985098,16,0) ->  | I77: =VLOOKUP(CONCATENATE($F$2,"|",$F$3,"|",I$5,"|",$E$61,"|",$G$61,"|",$H$3,"|",I$7,"|",$D77,"|",I$6,"|",$J$3),'DATA MART_'!$C$2:$R$985098,16,0) ->  | J77: =VLOOKUP(CONCATENATE($F$2,"|",$F$3,"|",J$5,"|",$E$61,"|",$G$61,"|",$H$3,"|",J$7,"|",$D77,"|",J$6,"|",$J$3),'DATA MART_'!$C$2:$R$985098,16,0) ->  | K77: =VLOOKUP(CONCATENATE($F$2,"|",$F$3,"|",K$5,"|",$E$61,"|",$G$61,"|",$H$3,"|",K$7,"|",$D77,"|",K$6,"|",$J$3),'DATA MART_'!$C$2:$R$985098,16,0) ->  | L77: =VLOOKUP(CONCATENATE($F$2,"|",$F$3,"|",L$5,"|",$E$61,"|",$G$61,"|",$H$3,"|",L$7,"|",$D77,"|",L$6,"|",$J$3),'DATA MART_'!$C$2:$R$985098,16,0) ->  | M77: =VLOOKUP(CONCATENATE($F$2,"|",$F$3,"|",M$5,"|",$E$61,"|",$G$61,"|",$H$3,"|",M$7,"|",$D77,"|",M$6,"|",$J$3),'DATA MART_'!$C$2:$R$985098,16,0) ->  | N77: =VLOOKUP(CONCATENATE($F$2,"|",$F$3,"|",N$5,"|",$E$61,"|",$G$61,"|",$H$3,"|",N$7,"|",$D77,"|",N$6,"|",$J$3),'DATA MART_'!$C$2:$R$985098,16,0) ->  | O77: =VLOOKUP(CONCATENATE($F$2,"|",$F$3,"|",O$5,"|",$E$61,"|",$G$61,"|",$H$3,"|",O$7,"|",$D77,"|",O$6,"|",$J$3),'DATA MART_'!$C$2:$R$985098,16,0) ->  | P77: =VLOOKUP(CONCATENATE($F$2,"|",$F$3,"|",P$5,"|",$E$61,"|",$G$61,"|",$H$3,"|",P$7,"|",$D77,"|",P$6,"|",$J$3),'DATA MART_'!$C$2:$R$985098,16,0) ->  | Q77: =VLOOKUP(CONCATENATE($F$2,"|",$F$3,"|",Q$5,"|",$E$61,"|",$G$61,"|",$H$3,"|",Q$7,"|",$D77,"|",Q$6,"|",$J$3),'DATA MART_'!$C$2:$R$985098,16,0) ->  | R77: =VLOOKUP(CONCATENATE($F$2,"|",$F$3,"|",R$5,"|",$E$61,"|",$G$61,"|",$H$3,"|",R$7,"|",$D77,"|",R$6,"|",$J$3),'DATA MART_'!$C$2:$R$985098,16,0) ->  | S77: =VLOOKUP(CONCATENATE($F$2,"|",$F$3,"|",S$5,"|",$E$61,"|",$G$61,"|",$H$3,"|",S$7,"|",$D77,"|",S$6,"|",$J$3),'DATA MART_'!$C$2:$R$985098,16,0) ->  | U77: =VLOOKUP(CONCATENATE($F$2,"|",$F$3,"|",U$5,"|",$E$61,"|",$G$61,"|",$H$3,"|",U$7,"|",$D77,"|",U$6,"|",$J$3),'DATA MART_'!$C$2:$R$985098,16,0) ->  | W77: =VLOOKUP(CONCATENATE($F$2,"|",$F$3,"|",W$5,"|",$E$61,"|",$G$61,"|",$H$3,"|",W$7,"|",$D77,"|",W$6,"|",$J$3),'DATA MART_'!$C$2:$R$985098,16,0) ->  | Y77: =VLOOKUP(CONCATENATE($F$2,"|",$F$3,"|",Y$5,"|",$E$61,"|",$G$61,"|",$H$3,"|",Y$7,"|",$D77,"|",Y$6,"|",$J$3),'DATA MART_'!$C$2:$R$985098,16,0) ->  | Z77: 100800
D78: =VLOOKUP(TRIM(F78),'DATA MART_'!$AD$3:$AF$25,3,0) -> 21 | F78: Retail - Other Retail - Of Which: non-SME | H78: =VLOOKUP(CONCATENATE($F$2,"|",$F$3,"|",H$5,"|",$E$61,"|",$G$61,"|",$H$3,"|",H$7,"|",$D78,"|",H$6,"|",$J$3),'DATA MART_'!$C$2:$R$985098,16,0) ->  | I78: =VLOOKUP(CONCATENATE($F$2,"|",$F$3,"|",I$5,"|",$E$61,"|",$G$61,"|",$H$3,"|",I$7,"|",$D78,"|",I$6,"|",$J$3),'DATA MART_'!$C$2:$R$985098,16,0) ->  | J78: =VLOOKUP(CONCATENATE($F$2,"|",$F$3,"|",J$5,"|",$E$61,"|",$G$61,"|",$H$3,"|",J$7,"|",$D78,"|",J$6,"|",$J$3),'DATA MART_'!$C$2:$R$985098,16,0) ->  | K78: =VLOOKUP(CONCATENATE($F$2,"|",$F$3,"|",K$5,"|",$E$61,"|",$G$61,"|",$H$3,"|",K$7,"|",$D78,"|",K$6,"|",$J$3),'DATA MART_'!$C$2:$R$985098,16,0) ->  | L78: =VLOOKUP(CONCATENATE($F$2,"|",$F$3,"|",L$5,"|",$E$61,"|",$G$61,"|",$H$3,"|",L$7,"|",$D78,"|",L$6,"|",$J$3),'DATA MART_'!$C$2:$R$985098,16,0) ->  | M78: =VLOOKUP(CONCATENATE($F$2,"|",$F$3,"|",M$5,"|",$E$61,"|",$G$61,"|",$H$3,"|",M$7,"|",$D78,"|",M$6,"|",$J$3),'DATA MART_'!$C$2:$R$985098,16,0) ->  | N78: =VLOOKUP(CONCATENATE($F$2,"|",$F$3,"|",N$5,"|",$E$61,"|",$G$61,"|",$H$3,"|",N$7,"|",$D78,"|",N$6,"|",$J$3),'DATA MART_'!$C$2:$R$985098,16,0) ->  | O78: =VLOOKUP(CONCATENATE($F$2,"|",$F$3,"|",O$5,"|",$E$61,"|",$G$61,"|",$H$3,"|",O$7,"|",$D78,"|",O$6,"|",$J$3),'DATA MART_'!$C$2:$R$985098,16,0) ->  | P78: =VLOOKUP(CONCATENATE($F$2,"|",$F$3,"|",P$5,"|",$E$61,"|",$G$61,"|",$H$3,"|",P$7,"|",$D78,"|",P$6,"|",$J$3),'DATA MART_'!$C$2:$R$985098,16,0) ->  | Q78: =VLOOKUP(CONCATENATE($F$2,"|",$F$3,"|",Q$5,"|",$E$61,"|",$G$61,"|",$H$3,"|",Q$7,"|",$D78,"|",Q$6,"|",$J$3),'DATA MART_'!$C$2:$R$985098,16,0) ->  | R78: =VLOOKUP(CONCATENATE($F$2,"|",$F$3,"|",R$5,"|",$E$61,"|",$G$61,"|",$H$3,"|",R$7,"|",$D78,"|",R$6,"|",$J$3),'DATA MART_'!$C$2:$R$985098,16,0) ->  | S78: =VLOOKUP(CONCATENATE($F$2,"|",$F$3,"|",S$5,"|",$E$61,"|",$G$61,"|",$H$3,"|",S$7,"|",$D78,"|",S$6,"|",$J$3),'DATA MART_'!$C$2:$R$985098,16,0) ->  | U78: =VLOOKUP(CONCATENATE($F$2,"|",$F$3,"|",U$5,"|",$E$61,"|",$G$61,"|",$H$3,"|",U$7,"|",$D78,"|",U$6,"|",$J$3),'DATA MART_'!$C$2:$R$985098,16,0) ->  | W78: =VLOOKUP(CONCATENATE($F$2,"|",$F$3,"|",W$5,"|",$E$61,"|",$G$61,"|",$H$3,"|",W$7,"|",$D78,"|",W$6,"|",$J$3),'DATA MART_'!$C$2:$R$985098,16,0) ->  | Y78: =VLOOKUP(CONCATENATE($F$2,"|",$F$3,"|",Y$5,"|",$E$61,"|",$G$61,"|",$H$3,"|",Y$7,"|",$D78,"|",Y$6,"|",$J$3),'DATA MART_'!$C$2:$R$985098,16,0) ->  | Z78: 100900
D79: =VLOOKUP(TRIM(F79),'DATA MART_'!$AD$3:$AF$25,3,0) -> 9 | F79: Equity | H79: =VLOOKUP(CONCATENATE($F$2,"|",$F$3,"|",H$5,"|",$E$61,"|",$G$61,"|",$H$3,"|",H$7,"|",$D79,"|",H$6,"|",$J$3),'DATA MART_'!$C$2:$R$985098,16,0) ->  | I79: =VLOOKUP(CONCATENATE($F$2,"|",$F$3,"|",I$5,"|",$E$61,"|",$G$61,"|",$H$3,"|",I$7,"|",$D79,"|",I$6,"|",$J$3),'DATA MART_'!$C$2:$R$985098,16,0) ->  | J79: =VLOOKUP(CONCATENATE($F$2,"|",$F$3,"|",J$5,"|",$E$61,"|",$G$61,"|",$H$3,"|",J$7,"|",$D79,"|",J$6,"|",$J$3),'DATA MART_'!$C$2:$R$985098,16,0) ->  | K79: =VLOOKUP(CONCATENATE($F$2,"|",$F$3,"|",K$5,"|",$E$61,"|",$G$61,"|",$H$3,"|",K$7,"|",$D79,"|",K$6,"|",$J$3),'DATA MART_'!$C$2:$R$985098,16,0) ->  | L79: =VLOOKUP(CONCATENATE($F$2,"|",$F$3,"|",L$5,"|",$E$61,"|",$G$61,"|",$H$3,"|",L$7,"|",$D79,"|",L$6,"|",$J$3),'DATA MART_'!$C$2:$R$985098,16,0) ->  | M79: =VLOOKUP(CONCATENATE($F$2,"|",$F$3,"|",M$5,"|",$E$61,"|",$G$61,"|",$H$3,"|",M$7,"|",$D79,"|",M$6,"|",$J$3),'DATA MART_'!$C$2:$R$985098,16,0) ->  | N79: =VLOOKUP(CONCATENATE($F$2,"|",$F$3,"|",N$5,"|",$E$61,"|",$G$61,"|",$H$3,"|",N$7,"|",$D79,"|",N$6,"|",$J$3),'DATA MART_'!$C$2:$R$985098,16,0) ->  | O79: =VLOOKUP(CONCATENATE($F$2,"|",$F$3,"|",O$5,"|",$E$61,"|",$G$61,"|",$H$3,"|",O$7,"|",$D79,"|",O$6,"|",$J$3),'DATA MART_'!$C$2:$R$985098,16,0) ->  | P79: =VLOOKUP(CONCATENATE($F$2,"|",$F$3,"|",P$5,"|",$E$61,"|",$G$61,"|",$H$3,"|",P$7,"|",$D79,"|",P$6,"|",$J$3),'DATA MART_'!$C$2:$R$985098,16,0) ->  | Q79: =VLOOKUP(CONCATENATE($F$2,"|",$F$3,"|",Q$5,"|",$E$61,"|",$G$61,"|",$H$3,"|",Q$7,"|",$D79,"|",Q$6,"|",$J$3),'DATA MART_'!$C$2:$R$985098,16,0) ->  | R79: =VLOOKUP(CONCATENATE($F$2,"|",$F$3,"|",R$5,"|",$E$61,"|",$G$61,"|",$H$3,"|",R$7,"|",$D79,"|",R$6,"|",$J$3),'DATA MART_'!$C$2:$R$985098,16,0) ->  | S79: =VLOOKUP(CONCATENATE($F$2,"|",$F$3,"|",S$5,"|",$E$61,"|",$G$61,"|",$H$3,"|",S$7,"|",$D79,"|",S$6,"|",$J$3),'DATA MART_'!$C$2:$R$985098,16,0) ->  | U79: =VLOOKUP(CONCATENATE($F$2,"|",$F$3,"|",U$5,"|",$E$61,"|",$G$61,"|",$H$3,"|",U$7,"|",$D79,"|",U$6,"|",$J$3),'DATA MART_'!$C$2:$R$985098,16,0) ->  | W79: =VLOOKUP(CONCATENATE($F$2,"|",$F$3,"|",W$5,"|",$E$61,"|",$G$61,"|",$H$3,"|",W$7,"|",$D79,"|",W$6,"|",$J$3),'DATA MART_'!$C$2:$R$985098,16,0) ->  | Y79: =VLOOKUP(CONCATENATE($F$2,"|",$F$3,"|",Y$5,"|",$E$61,"|",$G$61,"|",$H$3,"|",Y$7,"|",$D79,"|",Y$6,"|",$J$3),'DATA MART_'!$C$2:$R$985098,16,0) ->  | Z79: 101001 | AD79: The template has been pre-filled in with the figures published on the EBA web site. Please, double check them and, should it be needed, change them.
D80: =VLOOKUP(TRIM(F80),'DATA MART_'!$AD$3:$AF$25,3,0) -> 10 | F80: Securitisation | H80: =VLOOKUP(CONCATENATE($F$2,"|",$F$3,"|",H$5,"|",$E$61,"|",$G$61,"|",$H$3,"|",H$7,"|",$D80,"|",H$6,"|",$J$3),'DATA MART_'!$C$2:$R$985098,16,0) ->  | I80: =VLOOKUP(CONCATENATE($F$2,"|",$F$3,"|",I$5,"|",$E$61,"|",$G$61,"|",$H$3,"|",I$7,"|",$D80,"|",I$6,"|",$J$3),'DATA MART_'!$C$2:$R$985098,16,0) ->  | J80: =VLOOKUP(CONCATENATE($F$2,"|",$F$3,"|",J$5,"|",$E$61,"|",$G$61,"|",$H$3,"|",J$7,"|",$D80,"|",J$6,"|",$J$3),'DATA MART_'!$C$2:$R$985098,16,0) ->  | K80: =VLOOKUP(CONCATENATE($F$2,"|",$F$3,"|",K$5,"|",$E$61,"|",$G$61,"|",$H$3,"|",K$7,"|",$D80,"|",K$6,"|",$J$3),'DATA MART_'!$C$2:$R$985098,16,0) ->  | L80: =VLOOKUP(CONCATENATE($F$2,"|",$F$3,"|",L$5,"|",$E$61,"|",$G$61,"|",$H$3,"|",L$7,"|",$D80,"|",L$6,"|",$J$3),'DATA MART_'!$C$2:$R$985098,16,0) ->  | M80: =VLOOKUP(CONCATENATE($F$2,"|",$F$3,"|",M$5,"|",$E$61,"|",$G$61,"|",$H$3,"|",M$7,"|",$D80,"|",M$6,"|",$J$3),'DATA MART_'!$C$2:$R$985098,16,0) ->  | N80: =VLOOKUP(CONCATENATE($F$2,"|",$F$3,"|",N$5,"|",$E$61,"|",$G$61,"|",$H$3,"|",N$7,"|",$D80,"|",N$6,"|",$J$3),'DATA MART_'!$C$2:$R$985098,16,0) ->  | O80: =VLOOKUP(CONCATENATE($F$2,"|",$F$3,"|",O$5,"|",$E$61,"|",$G$61,"|",$H$3,"|",O$7,"|",$D80,"|",O$6,"|",$J$3),'DATA MART_'!$C$2:$R$985098,16,0) ->  | P80: =VLOOKUP(CONCATENATE($F$2,"|",$F$3,"|",P$5,"|",$E$61,"|",$G$61,"|",$H$3,"|",P$7,"|",$D80,"|",P$6,"|",$J$3),'DATA MART_'!$C$2:$R$985098,16,0) ->  | Q80: =VLOOKUP(CONCATENATE($F$2,"|",$F$3,"|",Q$5,"|",$E$61,"|",$G$61,"|",$H$3,"|",Q$7,"|",$D80,"|",Q$6,"|",$J$3),'DATA MART_'!$C$2:$R$985098,16,0) ->  | R80: =VLOOKUP(CONCATENATE($F$2,"|",$F$3,"|",R$5,"|",$E$61,"|",$G$61,"|",$H$3,"|",R$7,"|",$D80,"|",R$6,"|",$J$3),'DATA MART_'!$C$2:$R$985098,16,0) ->  | S80: =VLOOKUP(CONCATENATE($F$2,"|",$F$3,"|",S$5,"|",$E$61,"|",$G$61,"|",$H$3,"|",S$7,"|",$D80,"|",S$6,"|",$J$3),'DATA MART_'!$C$2:$R$985098,16,0) ->  | U80: =VLOOKUP(CONCATENATE($F$2,"|",$F$3,"|",U$5,"|",$E$61,"|",$G$61,"|",$H$3,"|",U$7,"|",$D80,"|",U$6,"|",$J$3),'DATA MART_'!$C$2:$R$985098,16,0) ->  | W80: =VLOOKUP(CONCATENATE($F$2,"|",$F$3,"|",W$5,"|",$E$61,"|",$G$61,"|",$H$3,"|",W$7,"|",$D80,"|",W$6,"|",$J$3),'DATA MART_'!$C$2:$R$985098,16,0) ->  | Y80: =VLOOKUP(CONCATENATE($F$2,"|",$F$3,"|",Y$5,"|",$E$61,"|",$G$61,"|",$H$3,"|",Y$7,"|",$D80,"|",Y$6,"|",$J$3),'DATA MART_'!$C$2:$R$985098,16,0) ->  | Z80: 101002 | AD80: The template has been pre-filled in with the figures published on the EBA web site. Please, double check them and, should it be needed, change them.
D81: =VLOOKUP(TRIM(F81),'DATA MART_'!$AD$3:$AF$25,3,0) -> 11 | F81: Other non-credit obligation assets | H81: =VLOOKUP(CONCATENATE($F$2,"|",$F$3,"|",H$5,"|",$E$61,"|",$G$61,"|",$H$3,"|",H$7,"|",$D81,"|",H$6,"|",$J$3),'DATA MART_'!$C$2:$R$985098,16,0) ->  | I81: =VLOOKUP(CONCATENATE($F$2,"|",$F$3,"|",I$5,"|",$E$61,"|",$G$61,"|",$H$3,"|",I$7,"|",$D81,"|",I$6,"|",$J$3),'DATA MART_'!$C$2:$R$985098,16,0) ->  | J81: =VLOOKUP(CONCATENATE($F$2,"|",$F$3,"|",J$5,"|",$E$61,"|",$G$61,"|",$H$3,"|",J$7,"|",$D81,"|",J$6,"|",$J$3),'DATA MART_'!$C$2:$R$985098,16,0) ->  | K81: =VLOOKUP(CONCATENATE($F$2,"|",$F$3,"|",K$5,"|",$E$61,"|",$G$61,"|",$H$3,"|",K$7,"|",$D81,"|",K$6,"|",$J$3),'DATA MART_'!$C$2:$R$985098,16,0) ->  | L81: =VLOOKUP(CONCATENATE($F$2,"|",$F$3,"|",L$5,"|",$E$61,"|",$G$61,"|",$H$3,"|",L$7,"|",$D81,"|",L$6,"|",$J$3),'DATA MART_'!$C$2:$R$985098,16,0) ->  | M81: =VLOOKUP(CONCATENATE($F$2,"|",$F$3,"|",M$5,"|",$E$61,"|",$G$61,"|",$H$3,"|",M$7,"|",$D81,"|",M$6,"|",$J$3),'DATA MART_'!$C$2:$R$985098,16,0) ->  | N81: =VLOOKUP(CONCATENATE($F$2,"|",$F$3,"|",N$5,"|",$E$61,"|",$G$61,"|",$H$3,"|",N$7,"|",$D81,"|",N$6,"|",$J$3),'DATA MART_'!$C$2:$R$985098,16,0) ->  | O81: =VLOOKUP(CONCATENATE($F$2,"|",$F$3,"|",O$5,"|",$E$61,"|",$G$61,"|",$H$3,"|",O$7,"|",$D81,"|",O$6,"|",$J$3),'DATA MART_'!$C$2:$R$985098,16,0) ->  | P81: =VLOOKUP(CONCATENATE($F$2,"|",$F$3,"|",P$5,"|",$E$61,"|",$G$61,"|",$H$3,"|",P$7,"|",$D81,"|",P$6,"|",$J$3),'DATA MART_'!$C$2:$R$985098,16,0) ->  | Q81: =VLOOKUP(CONCATENATE($F$2,"|",$F$3,"|",Q$5,"|",$E$61,"|",$G$61,"|",$H$3,"|",Q$7,"|",$D81,"|",Q$6,"|",$J$3),'DATA MART_'!$C$2:$R$985098,16,0) ->  | R81: =VLOOKUP(CONCATENATE($F$2,"|",$F$3,"|",R$5,"|",$E$61,"|",$G$61,"|",$H$3,"|",R$7,"|",$D81,"|",R$6,"|",$J$3),'DATA MART_'!$C$2:$R$985098,16,0) ->  | S81: =VLOOKUP(CONCATENATE($F$2,"|",$F$3,"|",S$5,"|",$E$61,"|",$G$61,"|",$H$3,"|",S$7,"|",$D81,"|",S$6,"|",$J$3),'DATA MART_'!$C$2:$R$985098,16,0) ->  | U81: =VLOOKUP(CONCATENATE($F$2,"|",$F$3,"|",U$5,"|",$E$61,"|",$G$61,"|",$H$3,"|",U$7,"|",$D81,"|",U$6,"|",$J$3),'DATA MART_'!$C$2:$R$985098,16,0) ->  | W81: =VLOOKUP(CONCATENATE($F$2,"|",$F$3,"|",W$5,"|",$E$61,"|",$G$61,"|",$H$3,"|",W$7,"|",$D81,"|",W$6,"|",$J$3),'DATA MART_'!$C$2:$R$985098,16,0) ->  | Y81: =VLOOKUP(CONCATENATE($F$2,"|",$F$3,"|",Y$5,"|",$E$61,"|",$G$61,"|",$H$3,"|",Y$7,"|",$D81,"|",Y$6,"|",$J$3),'DATA MART_'!$C$2:$R$985098,16,0) ->  | Z81: 101000
D82: =VLOOKUP(TRIM(F82),'DATA MART_'!$AD$3:$AF$25,3,0) -> 0 | F82: TOTAL | H82: =VLOOKUP(CONCATENATE($F$2,"|",$F$3,"|",H$5,"|",$E$61,"|",$G$61,"|",$H$3,"|",H$7,"|",$D82,"|",H$6,"|",$J$3),'DATA MART_'!$C$2:$R$985098,16,0) ->  | I82: =VLOOKUP(CONCATENATE($F$2,"|",$F$3,"|",I$5,"|",$E$61,"|",$G$61,"|",$H$3,"|",I$7,"|",$D82,"|",I$6,"|",$J$3),'DATA MART_'!$C$2:$R$985098,16,0) ->  | J82: =VLOOKUP(CONCATENATE($F$2,"|",$F$3,"|",J$5,"|",$E$61,"|",$G$61,"|",$H$3,"|",J$7,"|",$D82,"|",J$6,"|",$J$3),'DATA MART_'!$C$2:$R$985098,16,0) ->  | K82: =VLOOKUP(CONCATENATE($F$2,"|",$F$3,"|",K$5,"|",$E$61,"|",$G$61,"|",$H$3,"|",K$7,"|",$D82,"|",K$6,"|",$J$3),'DATA MART_'!$C$2:$R$985098,16,0) ->  | L82: =VLOOKUP(CONCATENATE($F$2,"|",$F$3,"|",L$5,"|",$E$61,"|",$G$61,"|",$H$3,"|",L$7,"|",$D82,"|",L$6,"|",$J$3),'DATA MART_'!$C$2:$R$985098,16,0) ->  | M82: =VLOOKUP(CONCATENATE($F$2,"|",$F$3,"|",M$5,"|",$E$61,"|",$G$61,"|",$H$3,"|",M$7,"|",$D82,"|",M$6,"|",$J$3),'DATA MART_'!$C$2:$R$985098,16,0) ->  | N82: =VLOOKUP(CONCATENATE($F$2,"|",$F$3,"|",N$5,"|",$E$61,"|",$G$61,"|",$H$3,"|",N$7,"|",$D82,"|",N$6,"|",$J$3),'DATA MART_'!$C$2:$R$985098,16,0) ->  | O82: =VLOOKUP(CONCATENATE($F$2,"|",$F$3,"|",O$5,"|",$E$61,"|",$G$61,"|",$H$3,"|",O$7,"|",$D82,"|",O$6,"|",$J$3),'DATA MART_'!$C$2:$R$985098,16,0) ->  | P82: =VLOOKUP(CONCATENATE($F$2,"|",$F$3,"|",P$5,"|",$E$61,"|",$G$61,"|",$H$3,"|",P$7,"|",$D82,"|",P$6,"|",$J$3),'DATA MART_'!$C$2:$R$985098,16,0) ->  | Q82: =VLOOKUP(CONCATENATE($F$2,"|",$F$3,"|",Q$5,"|",$E$61,"|",$G$61,"|",$H$3,"|",Q$7,"|",$D82,"|",Q$6,"|",$J$3),'DATA MART_'!$C$2:$R$985098,16,0) ->  | R82: =VLOOKUP(CONCATENATE($F$2,"|",$F$3,"|",R$5,"|",$E$61,"|",$G$61,"|",$H$3,"|",R$7,"|",$D82,"|",R$6,"|",$J$3),'DATA MART_'!$C$2:$R$985098,16,0) ->  | S82: =VLOOKUP(CONCATENATE($F$2,"|",$F$3,"|",S$5,"|",$E$61,"|",$G$61,"|",$H$3,"|",S$7,"|",$D82,"|",S$6,"|",$J$3),'DATA MART_'!$C$2:$R$985098,16,0) ->  | T82: =VLOOKUP(CONCATENATE($F$2,"|",$F$3,"|",T$5,"|",$E$61,"|",$G$61,"|",$H$3,"|",T$7,"|",$D82,"|",T$6,"|",$J$3),'DATA MART_'!$C$2:$R$985098,16,0) ->  | U82: =VLOOKUP(CONCATENATE($F$2,"|",$F$3,"|",U$5,"|",$E$61,"|",$G$61,"|",$H$3,"|",U$7,"|",$D82,"|",U$6,"|",$J$3),'DATA MART_'!$C$2:$R$985098,16,0) ->  | V82: =VLOOKUP(CONCATENATE($F$2,"|",$F$3,"|",V$5,"|",$E$61,"|",$G$61,"|",$H$3,"|",V$7,"|",$D82,"|",V$6,"|",$J$3),'DATA MART_'!$C$2:$R$985098,16,0) ->  | W82: =VLOOKUP(CONCATENATE($F$2,"|",$F$3,"|",W$5,"|",$E$61,"|",$G$61,"|",$H$3,"|",W$7,"|",$D82,"|",W$6,"|",$J$3),'DATA MART_'!$C$2:$R$985098,16,0) ->  | X82: =VLOOKUP(CONCATENATE($F$2,"|",$F$3,"|",X$5,"|",$E$61,"|",$G$61,"|",$H$3,"|",X$7,"|",$D82,"|",X$6,"|",$J$3),'DATA MART_'!$C$2:$R$985098,16,0) ->  | Y82: =VLOOKUP(CONCATENATE($F$2,"|",$F$3,"|",Y$5,"|",$E$61,"|",$G$61,"|",$H$3,"|",Y$7,"|",$D82,"|",Y$6,"|",$J$3),'DATA MART_'!$C$2:$R$985098,16,0) -> 
D83: =VLOOKUP(TRIM(F83),'DATA MART_'!$AD$3:$AF$25,3,0) -> 22 | F83: Securitisation and re-securitisations positions deducted from capital * | H83: =VLOOKUP(CONCATENATE($F$2,"|",$F$3,"|",H$5,"|",$E$61,"|",$G$61,"|",$H$3,"|",H$7,"|",$D83,"|",H$6,"|",$J$3),'DATA MART_'!$C$2:$R$985098,16,0) ->  | I83: =VLOOKUP(CONCATENATE($F$2,"|",$F$3,"|",I$5,"|",$E$61,"|",$G$61,"|",$H$3,"|",I$7,"|",$D83,"|",I$6,"|",$J$3),'DATA MART_'!$C$2:$R$985098,16,0) ->  | J83: =VLOOKUP(CONCATENATE($F$2,"|",$F$3,"|",J$5,"|",$E$61,"|",$G$61,"|",$H$3,"|",J$7,"|",$D83,"|",J$6,"|",$J$3),'DATA MART_'!$C$2:$R$985098,16,0) ->  | K83: =VLOOKUP(CONCATENATE($F$2,"|",$F$3,"|",K$5,"|",$E$61,"|",$G$61,"|",$H$3,"|",K$7,"|",$D83,"|",K$6,"|",$J$3),'DATA MART_'!$C$2:$R$985098,16,0) ->  | L83: =VLOOKUP(CONCATENATE($F$2,"|",$F$3,"|",L$5,"|",$E$61,"|",$G$61,"|",$H$3,"|",L$7,"|",$D83,"|",L$6,"|",$J$3),'DATA MART_'!$C$2:$R$985098,16,0) ->  | M83: =VLOOKUP(CONCATENATE($F$2,"|",$F$3,"|",M$5,"|",$E$61,"|",$G$61,"|",$H$3,"|",M$7,"|",$D83,"|",M$6,"|",$J$3),'DATA MART_'!$C$2:$R$985098,16,0) ->  | N83: =VLOOKUP(CONCATENATE($F$2,"|",$F$3,"|",N$5,"|",$E$61,"|",$G$61,"|",$H$3,"|",N$7,"|",$D83,"|",N$6,"|",$J$3),'DATA MART_'!$C$2:$R$985098,16,0) ->  | O83: =VLOOKUP(CONCATENATE($F$2,"|",$F$3,"|",O$5,"|",$E$61,"|",$G$61,"|",$H$3,"|",O$7,"|",$D83,"|",O$6,"|",$J$3),'DATA MART_'!$C$2:$R$985098,16,0) ->  | P83: =VLOOKUP(CONCATENATE($F$2,"|",$F$3,"|",P$5,"|",$E$61,"|",$G$61,"|",$H$3,"|",P$7,"|",$D83,"|",P$6,"|",$J$3),'DATA MART_'!$C$2:$R$985098,16,0) ->  | Q83: =VLOOKUP(CONCATENATE($F$2,"|",$F$3,"|",Q$5,"|",$E$61,"|",$G$61,"|",$H$3,"|",Q$7,"|",$D83,"|",Q$6,"|",$J$3),'DATA MART_'!$C$2:$R$985098,16,0) ->  | R83: =VLOOKUP(CONCATENATE($F$2,"|",$F$3,"|",R$5,"|",$E$61,"|",$G$61,"|",$H$3,"|",R$7,"|",$D83,"|",R$6,"|",$J$3),'DATA MART_'!$C$2:$R$985098,16,0) ->  | S83: =VLOOKUP(CONCATENATE($F$2,"|",$F$3,"|",S$5,"|",$E$61,"|",$G$61,"|",$H$3,"|",S$7,"|",$D83,"|",S$6,"|",$J$3),'DATA MART_'!$C$2:$R$985098,16,0) ->  | U83: =VLOOKUP(CONCATENATE($F$2,"|",$F$3,"|",U$5,"|",$E$61,"|",$G$61,"|",$H$3,"|",U$7,"|",$D83,"|",U$6,"|",$J$3),'DATA MART_'!$C$2:$R$985098,16,0) ->  | W83: =VLOOKUP(CONCATENATE($F$2,"|",$F$3,"|",W$5,"|",$E$61,"|",$G$61,"|",$H$3,"|",W$7,"|",$D83,"|",W$6,"|",$J$3),'DATA MART_'!$C$2:$R$985098,16,0) ->  | Y83: =VLOOKUP(CONCATENATE($F$2,"|",$F$3,"|",Y$5,"|",$E$61,"|",$G$61,"|",$H$3,"|",Y$7,"|",$D83,"|",Y$6,"|",$J$3),'DATA MART_'!$C$2:$R$985098,16,0) -> 
E84: Notes and definitions
E85: 1) Breakdown by country of counterparty according to the minimum of: i) 90% of total EAD ii) top 10 countries in terms of exposure
E86: * Refers to the part of Securitization exposure that is deducted from capital and is not included in RWA
E87: ** As explained in the Guidelines
E88: =VLOOKUP(CONCATENATE($F$2,"|",$F$3,"|",H$5,"|",$G88,"|",$H$3,"|",H$7,"|",$D93,"|",$H$6,"|",$J$3),'DATA MART_'!$D$2:$R$1033646,8,0) ->  | G88: 3
E90: Counterparty Country (1) | G90: LTV % ** (as of 31/12/2012) | H90: Exposure values (as of 31/12/2012) ** | N90: RWA (as of 31/12/2012) ** | T90: Value adjustments and provisions (as of 31/12/2012) **
H91: F-IRB | J91: A-IRB | L91: STA | N91: F-IRB | P91: A-IRB | R91: STA | T91: F-IRB | V91: A-IRB | X91: STA
H92: Non-defaulted | I92: Defaulted | J92: Non-defaulted | K92: Defaulted | L92: Non-defaulted | M92: Defaulted | N92: Non-defaulted | O92: Defaulted | P92: Non-defaulted | Q92: Defaulted | R92: Non-defaulted | S92: Defaulted | T92: Non-defaulted | U92: Defaulted | V92: Non-defaulted | W92: Defaulted | X92: Non-defaulted | Y92: Defaulted
D93: =VLOOKUP(TRIM(F93),'DATA MART_'!$AD$3:$AF$25,3,0) -> 1 | E93: =VLOOKUP('2. Credit Risk Dec12_'!E88,'DATA MART_'!$AO$4:$AP$242,2,0) ->  | F93: Central banks and central governments | H93: =VLOOKUP(CONCATENATE($F$2,"|",$F$3,"|",H$5,"|",$E$88,"|",$G$88,"|",$H$3,"|",H$7,"|",$D93,"|",H$6,"|",$J$3),'DATA MART_'!$C$2:$R$985098,16,0) ->  | I93: =VLOOKUP(CONCATENATE($F$2,"|",$F$3,"|",I$5,"|",$E$88,"|",$G$88,"|",$H$3,"|",I$7,"|",$D93,"|",I$6,"|",$J$3),'DATA MART_'!$C$2:$R$985098,16,0) ->  | J93: =VLOOKUP(CONCATENATE($F$2,"|",$F$3,"|",J$5,"|",$E$88,"|",$G$88,"|",$H$3,"|",J$7,"|",$D93,"|",J$6,"|",$J$3),'DATA MART_'!$C$2:$R$985098,16,0) ->  | K93: =VLOOKUP(CONCATENATE($F$2,"|",$F$3,"|",K$5,"|",$E$88,"|",$G$88,"|",$H$3,"|",K$7,"|",$D93,"|",K$6,"|",$J$3),'DATA MART_'!$C$2:$R$985098,16,0) ->  | L93: =VLOOKUP(CONCATENATE($F$2,"|",$F$3,"|",L$5,"|",$E$88,"|",$G$88,"|",$H$3,"|",L$7,"|",$D93,"|",L$6,"|",$J$3),'DATA MART_'!$C$2:$R$985098,16,0) ->  | M93: =VLOOKUP(CONCATENATE($F$2,"|",$F$3,"|",M$5,"|",$E$88,"|",$G$88,"|",$H$3,"|",M$7,"|",$D93,"|",M$6,"|",$J$3),'DATA MART_'!$C$2:$R$985098,16,0) ->  | N93: =VLOOKUP(CONCATENATE($F$2,"|",$F$3,"|",N$5,"|",$E$88,"|",$G$88,"|",$H$3,"|",N$7,"|",$D93,"|",N$6,"|",$J$3),'DATA MART_'!$C$2:$R$985098,16,0) ->  | O93: =VLOOKUP(CONCATENATE($F$2,"|",$F$3,"|",O$5,"|",$E$88,"|",$G$88,"|",$H$3,"|",O$7,"|",$D93,"|",O$6,"|",$J$3),'DATA MART_'!$C$2:$R$985098,16,0) ->  | P93: =VLOOKUP(CONCATENATE($F$2,"|",$F$3,"|",P$5,"|",$E$88,"|",$G$88,"|",$H$3,"|",P$7,"|",$D93,"|",P$6,"|",$J$3),'DATA MART_'!$C$2:$R$985098,16,0) ->  | Q93: =VLOOKUP(CONCATENATE($F$2,"|",$F$3,"|",Q$5,"|",$E$88,"|",$G$88,"|",$H$3,"|",Q$7,"|",$D93,"|",Q$6,"|",$J$3),'DATA MART_'!$C$2:$R$985098,16,0) ->  | R93: =VLOOKUP(CONCATENATE($F$2,"|",$F$3,"|",R$5,"|",$E$88,"|",$G$88,"|",$H$3,"|",R$7,"|",$D93,"|",R$6,"|",$J$3),'DATA MART_'!$C$2:$R$985098,16,0) ->  | S93: =VLOOKUP(CONCATENATE($F$2,"|",$F$3,"|",S$5,"|",$E$88,"|",$G$88,"|",$H$3,"|",S$7,"|",$D93,"|",S$6,"|",$J$3),'DATA MART_'!$C$2:$R$985098,16,0) ->  | U93: =VLOOKUP(CONCATENATE($F$2,"|",$F$3,"|",U$5,"|",$E$88,"|",$G$88,"|",$H$3,"|",U$7,"|",$D93,"|",U$6,"|",$J$3),'DATA MART_'!$C$2:$R$985098,16,0) ->  | W93: =VLOOKUP(CONCATENATE($F$2,"|",$F$3,"|",W$5,"|",$E$88,"|",$G$88,"|",$H$3,"|",W$7,"|",$D93,"|",W$6,"|",$J$3),'DATA MART_'!$C$2:$R$985098,16,0) ->  | Y93: =VLOOKUP(CONCATENATE($F$2,"|",$F$3,"|",Y$5,"|",$E$88,"|",$G$88,"|",$H$3,"|",Y$7,"|",$D93,"|",Y$6,"|",$J$3),'DATA MART_'!$C$2:$R$985098,16,0) ->  | Z93: 100100
D94: =VLOOKUP(TRIM(F94),'DATA MART_'!$AD$3:$AF$25,3,0) -> 2 | F94: Institutions | H94: =VLOOKUP(CONCATENATE($F$2,"|",$F$3,"|",H$5,"|",$E$88,"|",$G$88,"|",$H$3,"|",H$7,"|",$D94,"|",H$6,"|",$J$3),'DATA MART_'!$C$2:$R$985098,16,0) ->  | I94: =VLOOKUP(CONCATENATE($F$2,"|",$F$3,"|",I$5,"|",$E$88,"|",$G$88,"|",$H$3,"|",I$7,"|",$D94,"|",I$6,"|",$J$3),'DATA MART_'!$C$2:$R$985098,16,0) ->  | J94: =VLOOKUP(CONCATENATE($F$2,"|",$F$3,"|",J$5,"|",$E$88,"|",$G$88,"|",$H$3,"|",J$7,"|",$D94,"|",J$6,"|",$J$3),'DATA MART_'!$C$2:$R$985098,16,0) ->  | K94: =VLOOKUP(CONCATENATE($F$2,"|",$F$3,"|",K$5,"|",$E$88,"|",$G$88,"|",$H$3,"|",K$7,"|",$D94,"|",K$6,"|",$J$3),'DATA MART_'!$C$2:$R$985098,16,0) ->  | L94: =VLOOKUP(CONCATENATE($F$2,"|",$F$3,"|",L$5,"|",$E$88,"|",$G$88,"|",$H$3,"|",L$7,"|",$D94,"|",L$6,"|",$J$3),'DATA MART_'!$C$2:$R$985098,16,0) ->  | M94: =VLOOKUP(CONCATENATE($F$2,"|",$F$3,"|",M$5,"|",$E$88,"|",$G$88,"|",$H$3,"|",M$7,"|",$D94,"|",M$6,"|",$J$3),'DATA MART_'!$C$2:$R$985098,16,0) ->  | N94: =VLOOKUP(CONCATENATE($F$2,"|",$F$3,"|",N$5,"|",$E$88,"|",$G$88,"|",$H$3,"|",N$7,"|",$D94,"|",N$6,"|",$J$3),'DATA MART_'!$C$2:$R$985098,16,0) ->  | O94: =VLOOKUP(CONCATENATE($F$2,"|",$F$3,"|",O$5,"|",$E$88,"|",$G$88,"|",$H$3,"|",O$7,"|",$D94,"|",O$6,"|",$J$3),'DATA MART_'!$C$2:$R$985098,16,0) ->  | P94: =VLOOKUP(CONCATENATE($F$2,"|",$F$3,"|",P$5,"|",$E$88,"|",$G$88,"|",$H$3,"|",P$7,"|",$D94,"|",P$6,"|",$J$3),'DATA MART_'!$C$2:$R$985098,16,0) ->  | Q94: =VLOOKUP(CONCATENATE($F$2,"|",$F$3,"|",Q$5,"|",$E$88,"|",$G$88,"|",$H$3,"|",Q$7,"|",$D94,"|",Q$6,"|",$J$3),'DATA MART_'!$C$2:$R$985098,16,0) ->  | R94: =VLOOKUP(CONCATENATE($F$2,"|",$F$3,"|",R$5,"|",$E$88,"|",$G$88,"|",$H$3,"|",R$7,"|",$D94,"|",R$6,"|",$J$3),'DATA MART_'!$C$2:$R$985098,16,0) ->  | S94: =VLOOKUP(CONCATENATE($F$2,"|",$F$3,"|",S$5,"|",$E$88,"|",$G$88,"|",$H$3,"|",S$7,"|",$D94,"|",S$6,"|",$J$3),'DATA MART_'!$C$2:$R$985098,16,0) ->  | U94: =VLOOKUP(CONCATENATE($F$2,"|",$F$3,"|",U$5,"|",$E$88,"|",$G$88,"|",$H$3,"|",U$7,"|",$D94,"|",U$6,"|",$J$3),'DATA MART_'!$C$2:$R$985098,16,0) ->  | W94: =VLOOKUP(CONCATENATE($F$2,"|",$F$3,"|",W$5,"|",$E$88,"|",$G$88,"|",$H$3,"|",W$7,"|",$D94,"|",W$6,"|",$J$3),'DATA MART_'!$C$2:$R$985098,16,0) ->  | Y94: =VLOOKUP(CONCATENATE($F$2,"|",$F$3,"|",Y$5,"|",$E$88,"|",$G$88,"|",$H$3,"|",Y$7,"|",$D94,"|",Y$6,"|",$J$3),'DATA MART_'!$C$2:$R$985098,16,0) ->  | Z94: 100103
D95: =VLOOKUP(TRIM(F95),'DATA MART_'!$AD$3:$AF$25,3,0) -> 3 | F95: Corporates | H95: =VLOOKUP(CONCATENATE($F$2,"|",$F$3,"|",H$5,"|",$E$88,"|",$G$88,"|",$H$3,"|",H$7,"|",$D95,"|",H$6,"|",$J$3),'DATA MART_'!$C$2:$R$985098,16,0) ->  | I95: =VLOOKUP(CONCATENATE($F$2,"|",$F$3,"|",I$5,"|",$E$88,"|",$G$88,"|",$H$3,"|",I$7,"|",$D95,"|",I$6,"|",$J$3),'DATA MART_'!$C$2:$R$985098,16,0) ->  | J95: =VLOOKUP(CONCATENATE($F$2,"|",$F$3,"|",J$5,"|",$E$88,"|",$G$88,"|",$H$3,"|",J$7,"|",$D95,"|",J$6,"|",$J$3),'DATA MART_'!$C$2:$R$985098,16,0) ->  | K95: =VLOOKUP(CONCATENATE($F$2,"|",$F$3,"|",K$5,"|",$E$88,"|",$G$88,"|",$H$3,"|",K$7,"|",$D95,"|",K$6,"|",$J$3),'DATA MART_'!$C$2:$R$985098,16,0) ->  | L95: =VLOOKUP(CONCATENATE($F$2,"|",$F$3,"|",L$5,"|",$E$88,"|",$G$88,"|",$H$3,"|",L$7,"|",$D95,"|",L$6,"|",$J$3),'DATA MART_'!$C$2:$R$985098,16,0) ->  | M95: =VLOOKUP(CONCATENATE($F$2,"|",$F$3,"|",M$5,"|",$E$88,"|",$G$88,"|",$H$3,"|",M$7,"|",$D95,"|",M$6,"|",$J$3),'DATA MART_'!$C$2:$R$985098,16,0) ->  | N95: =VLOOKUP(CONCATENATE($F$2,"|",$F$3,"|",N$5,"|",$E$88,"|",$G$88,"|",$H$3,"|",N$7,"|",$D95,"|",N$6,"|",$J$3),'DATA MART_'!$C$2:$R$985098,16,0) ->  | O95: =VLOOKUP(CONCATENATE($F$2,"|",$F$3,"|",O$5,"|",$E$88,"|",$G$88,"|",$H$3,"|",O$7,"|",$D95,"|",O$6,"|",$J$3),'DATA MART_'!$C$2:$R$985098,16,0) ->  | P95: =VLOOKUP(CONCATENATE($F$2,"|",$F$3,"|",P$5,"|",$E$88,"|",$G$88,"|",$H$3,"|",P$7,"|",$D95,"|",P$6,"|",$J$3),'DATA MART_'!$C$2:$R$985098,16,0) ->  | Q95: =VLOOKUP(CONCATENATE($F$2,"|",$F$3,"|",Q$5,"|",$E$88,"|",$G$88,"|",$H$3,"|",Q$7,"|",$D95,"|",Q$6,"|",$J$3),'DATA MART_'!$C$2:$R$985098,16,0) ->  | R95: =VLOOKUP(CONCATENATE($F$2,"|",$F$3,"|",R$5,"|",$E$88,"|",$G$88,"|",$H$3,"|",R$7,"|",$D95,"|",R$6,"|",$J$3),'DATA MART_'!$C$2:$R$985098,16,0) ->  | S95: =VLOOKUP(CONCATENATE($F$2,"|",$F$3,"|",S$5,"|",$E$88,"|",$G$88,"|",$H$3,"|",S$7,"|",$D95,"|",S$6,"|",$J$3),'DATA MART_'!$C$2:$R$985098,16,0) ->  | U95: =VLOOKUP(CONCATENATE($F$2,"|",$F$3,"|",U$5,"|",$E$88,"|",$G$88,"|",$H$3,"|",U$7,"|",$D95,"|",U$6,"|",$J$3),'DATA MART_'!$C$2:$R$985098,16,0) ->  | W95: =VLOOKUP(CONCATENATE($F$2,"|",$F$3,"|",W$5,"|",$E$88,"|",$G$88,"|",$H$3,"|",W$7,"|",$D95,"|",W$6,"|",$J$3),'DATA MART_'!$C$2:$R$985098,16,0) ->  | Y95: =VLOOKUP(CONCATENATE($F$2,"|",$F$3,"|",Y$5,"|",$E$88,"|",$G$88,"|",$H$3,"|",Y$7,"|",$D95,"|",Y$6,"|",$J$3),'DATA MART_'!$C$2:$R$985098,16,0) ->  | Z95: 100200
D96: =VLOOKUP(TRIM(F96),'DATA MART_'!$AD$3:$AF$25,3,0) -> 12 | F96: Corporates - Of Which: Specialised Lending | H96: =VLOOKUP(CONCATENATE($F$2,"|",$F$3,"|",H$5,"|",$E$88,"|",$G$88,"|",$H$3,"|",H$7,"|",$D96,"|",H$6,"|",$J$3),'DATA MART_'!$C$2:$R$985098,16,0) ->  | I96: =VLOOKUP(CONCATENATE($F$2,"|",$F$3,"|",I$5,"|",$E$88,"|",$G$88,"|",$H$3,"|",I$7,"|",$D96,"|",I$6,"|",$J$3),'DATA MART_'!$C$2:$R$985098,16,0) ->  | J96: =VLOOKUP(CONCATENATE($F$2,"|",$F$3,"|",J$5,"|",$E$88,"|",$G$88,"|",$H$3,"|",J$7,"|",$D96,"|",J$6,"|",$J$3),'DATA MART_'!$C$2:$R$985098,16,0) ->  | K96: =VLOOKUP(CONCATENATE($F$2,"|",$F$3,"|",K$5,"|",$E$88,"|",$G$88,"|",$H$3,"|",K$7,"|",$D96,"|",K$6,"|",$J$3),'DATA MART_'!$C$2:$R$985098,16,0) ->  | L96: =VLOOKUP(CONCATENATE($F$2,"|",$F$3,"|",L$5,"|",$E$88,"|",$G$88,"|",$H$3,"|",L$7,"|",$D96,"|",L$6,"|",$J$3),'DATA MART_'!$C$2:$R$985098,16,0) ->  | M96: =VLOOKUP(CONCATENATE($F$2,"|",$F$3,"|",M$5,"|",$E$88,"|",$G$88,"|",$H$3,"|",M$7,"|",$D96,"|",M$6,"|",$J$3),'DATA MART_'!$C$2:$R$985098,16,0) ->  | N96: =VLOOKUP(CONCATENATE($F$2,"|",$F$3,"|",N$5,"|",$E$88,"|",$G$88,"|",$H$3,"|",N$7,"|",$D96,"|",N$6,"|",$J$3),'DATA MART_'!$C$2:$R$985098,16,0) ->  | O96: =VLOOKUP(CONCATENATE($F$2,"|",$F$3,"|",O$5,"|",$E$88,"|",$G$88,"|",$H$3,"|",O$7,"|",$D96,"|",O$6,"|",$J$3),'DATA MART_'!$C$2:$R$985098,16,0) ->  | P96: =VLOOKUP(CONCATENATE($F$2,"|",$F$3,"|",P$5,"|",$E$88,"|",$G$88,"|",$H$3,"|",P$7,"|",$D96,"|",P$6,"|",$J$3),'DATA MART_'!$C$2:$R$985098,16,0) ->  | Q96: =VLOOKUP(CONCATENATE($F$2,"|",$F$3,"|",Q$5,"|",$E$88,"|",$G$88,"|",$H$3,"|",Q$7,"|",$D96,"|",Q$6,"|",$J$3),'DATA MART_'!$C$2:$R$985098,16,0) ->  | R96: =VLOOKUP(CONCATENATE($F$2,"|",$F$3,"|",R$5,"|",$E$88,"|",$G$88,"|",$H$3,"|",R$7,"|",$D96,"|",R$6,"|",$J$3),'DATA MART_'!$C$2:$R$985098,16,0) ->  | S96: =VLOOKUP(CONCATENATE($F$2,"|",$F$3,"|",S$5,"|",$E$88,"|",$G$88,"|",$H$3,"|",S$7,"|",$D96,"|",S$6,"|",$J$3),'DATA MART_'!$C$2:$R$985098,16,0) ->  | U96: =VLOOKUP(CONCATENATE($F$2,"|",$F$3,"|",U$5,"|",$E$88,"|",$G$88,"|",$H$3,"|",U$7,"|",$D96,"|",U$6,"|",$J$3),'DATA MART_'!$C$2:$R$985098,16,0) ->  | W96: =VLOOKUP(CONCATENATE($F$2,"|",$F$3,"|",W$5,"|",$E$88,"|",$G$88,"|",$H$3,"|",W$7,"|",$D96,"|",W$6,"|",$J$3),'DATA MART_'!$C$2:$R$985098,16,0) ->  | Y96: =VLOOKUP(CONCATENATE($F$2,"|",$F$3,"|",Y$5,"|",$E$88,"|",$G$88,"|",$H$3,"|",Y$7,"|",$D96,"|",Y$6,"|",$J$3),'DATA MART_'!$C$2:$R$985098,16,0) ->  | Z96: 100203
D97: =VLOOKUP(TRIM(F97),'DATA MART_'!$AD$3:$AF$25,3,0) -> 13 | F97: Corporates - Of Which: SME | H97: =VLOOKUP(CONCATENATE($F$2,"|",$F$3,"|",H$5,"|",$E$88,"|",$G$88,"|",$H$3,"|",H$7,"|",$D97,"|",H$6,"|",$J$3),'DATA MART_'!$C$2:$R$985098,16,0) ->  | I97: =VLOOKUP(CONCATENATE($F$2,"|",$F$3,"|",I$5,"|",$E$88,"|",$G$88,"|",$H$3,"|",I$7,"|",$D97,"|",I$6,"|",$J$3),'DATA MART_'!$C$2:$R$985098,16,0) ->  | J97: =VLOOKUP(CONCATENATE($F$2,"|",$F$3,"|",J$5,"|",$E$88,"|",$G$88,"|",$H$3,"|",J$7,"|",$D97,"|",J$6,"|",$J$3),'DATA MART_'!$C$2:$R$985098,16,0) ->  | K97: =VLOOKUP(CONCATENATE($F$2,"|",$F$3,"|",K$5,"|",$E$88,"|",$G$88,"|",$H$3,"|",K$7,"|",$D97,"|",K$6,"|",$J$3),'DATA MART_'!$C$2:$R$985098,16,0) ->  | L97: =VLOOKUP(CONCATENATE($F$2,"|",$F$3,"|",L$5,"|",$E$88,"|",$G$88,"|",$H$3,"|",L$7,"|",$D97,"|",L$6,"|",$J$3),'DATA MART_'!$C$2:$R$985098,16,0) ->  | M97: =VLOOKUP(CONCATENATE($F$2,"|",$F$3,"|",M$5,"|",$E$88,"|",$G$88,"|",$H$3,"|",M$7,"|",$D97,"|",M$6,"|",$J$3),'DATA MART_'!$C$2:$R$985098,16,0) ->  | N97: =VLOOKUP(CONCATENATE($F$2,"|",$F$3,"|",N$5,"|",$E$88,"|",$G$88,"|",$H$3,"|",N$7,"|",$D97,"|",N$6,"|",$J$3),'DATA MART_'!$C$2:$R$985098,16,0) ->  | O97: =VLOOKUP(CONCATENATE($F$2,"|",$F$3,"|",O$5,"|",$E$88,"|",$G$88,"|",$H$3,"|",O$7,"|",$D97,"|",O$6,"|",$J$3),'DATA MART_'!$C$2:$R$985098,16,0) ->  | P97: =VLOOKUP(CONCATENATE($F$2,"|",$F$3,"|",P$5,"|",$E$88,"|",$G$88,"|",$H$3,"|",P$7,"|",$D97,"|",P$6,"|",$J$3),'DATA MART_'!$C$2:$R$985098,16,0) ->  | Q97: =VLOOKUP(CONCATENATE($F$2,"|",$F$3,"|",Q$5,"|",$E$88,"|",$G$88,"|",$H$3,"|",Q$7,"|",$D97,"|",Q$6,"|",$J$3),'DATA MART_'!$C$2:$R$985098,16,0) ->  | R97: =VLOOKUP(CONCATENATE($F$2,"|",$F$3,"|",R$5,"|",$E$88,"|",$G$88,"|",$H$3,"|",R$7,"|",$D97,"|",R$6,"|",$J$3),'DATA MART_'!$C$2:$R$985098,16,0) ->  | S97: =VLOOKUP(CONCATENATE($F$2,"|",$F$3,"|",S$5,"|",$E$88,"|",$G$88,"|",$H$3,"|",S$7,"|",$D97,"|",S$6,"|",$J$3),'DATA MART_'!$C$2:$R$985098,16,0) ->  | U97: =VLOOKUP(CONCATENATE($F$2,"|",$F$3,"|",U$5,"|",$E$88,"|",$G$88,"|",$H$3,"|",U$7,"|",$D97,"|",U$6,"|",$J$3),'DATA MART_'!$C$2:$R$985098,16,0) ->  | W97: =VLOOKUP(CONCATENATE($F$2,"|",$F$3,"|",W$5,"|",$E$88,"|",$G$88,"|",$H$3,"|",W$7,"|",$D97,"|",W$6,"|",$J$3),'DATA MART_'!$C$2:$R$985098,16,0) ->  | Y97: =VLOOKUP(CONCATENATE($F$2,"|",$F$3,"|",Y$5,"|",$E$88,"|",$G$88,"|",$H$3,"|",Y$7,"|",$D97,"|",Y$6,"|",$J$3),'DATA MART_'!$C$2:$R$985098,16,0) ->  | Z97: 100300
D98: =VLOOKUP(TRIM(F98),'DATA MART_'!$AD$3:$AF$25,3,0) -> 4 | F98: Retail | H98: =VLOOKUP(CONCATENATE($F$2,"|",$F$3,"|",H$5,"|",$E$88,"|",$G$88,"|",$H$3,"|",H$7,"|",$D98,"|",H$6,"|",$J$3),'DATA MART_'!$C$2:$R$985098,16,0) ->  | I98: =VLOOKUP(CONCATENATE($F$2,"|",$F$3,"|",I$5,"|",$E$88,"|",$G$88,"|",$H$3,"|",I$7,"|",$D98,"|",I$6,"|",$J$3),'DATA MART_'!$C$2:$R$985098,16,0) ->  | J98: =VLOOKUP(CONCATENATE($F$2,"|",$F$3,"|",J$5,"|",$E$88,"|",$G$88,"|",$H$3,"|",J$7,"|",$D98,"|",J$6,"|",$J$3),'DATA MART_'!$C$2:$R$985098,16,0) ->  | K98: =VLOOKUP(CONCATENATE($F$2,"|",$F$3,"|",K$5,"|",$E$88,"|",$G$88,"|",$H$3,"|",K$7,"|",$D98,"|",K$6,"|",$J$3),'DATA MART_'!$C$2:$R$985098,16,0) ->  | L98: =VLOOKUP(CONCATENATE($F$2,"|",$F$3,"|",L$5,"|",$E$88,"|",$G$88,"|",$H$3,"|",L$7,"|",$D98,"|",L$6,"|",$J$3),'DATA MART_'!$C$2:$R$985098,16,0) ->  | M98: =VLOOKUP(CONCATENATE($F$2,"|",$F$3,"|",M$5,"|",$E$88,"|",$G$88,"|",$H$3,"|",M$7,"|",$D98,"|",M$6,"|",$J$3),'DATA MART_'!$C$2:$R$985098,16,0) ->  | N98: =VLOOKUP(CONCATENATE($F$2,"|",$F$3,"|",N$5,"|",$E$88,"|",$G$88,"|",$H$3,"|",N$7,"|",$D98,"|",N$6,"|",$J$3),'DATA MART_'!$C$2:$R$985098,16,0) ->  | O98: =VLOOKUP(CONCATENATE($F$2,"|",$F$3,"|",O$5,"|",$E$88,"|",$G$88,"|",$H$3,"|",O$7,"|",$D98,"|",O$6,"|",$J$3),'DATA MART_'!$C$2:$R$985098,16,0) ->  | P98: =VLOOKUP(CONCATENATE($F$2,"|",$F$3,"|",P$5,"|",$E$88,"|",$G$88,"|",$H$3,"|",P$7,"|",$D98,"|",P$6,"|",$J$3),'DATA MART_'!$C$2:$R$985098,16,0) ->  | Q98: =VLOOKUP(CONCATENATE($F$2,"|",$F$3,"|",Q$5,"|",$E$88,"|",$G$88,"|",$H$3,"|",Q$7,"|",$D98,"|",Q$6,"|",$J$3),'DATA MART_'!$C$2:$R$985098,16,0) ->  | R98: =VLOOKUP(CONCATENATE($F$2,"|",$F$3,"|",R$5,"|",$E$88,"|",$G$88,"|",$H$3,"|",R$7,"|",$D98,"|",R$6,"|",$J$3),'DATA MART_'!$C$2:$R$985098,16,0) ->  | S98: =VLOOKUP(CONCATENATE($F$2,"|",$F$3,"|",S$5,"|",$E$88,"|",$G$88,"|",$H$3,"|",S$7,"|",$D98,"|",S$6,"|",$J$3),'DATA MART_'!$C$2:$R$985098,16,0) ->  | U98: =VLOOKUP(CONCATENATE($F$2,"|",$F$3,"|",U$5,"|",$E$88,"|",$G$88,"|",$H$3,"|",U$7,"|",$D98,"|",U$6,"|",$J$3),'DATA MART_'!$C$2:$R$985098,16,0) ->  | W98: =VLOOKUP(CONCATENATE($F$2,"|",$F$3,"|",W$5,"|",$E$88,"|",$G$88,"|",$H$3,"|",W$7,"|",$D98,"|",W$6,"|",$J$3),'DATA MART_'!$C$2:$R$985098,16,0) ->  | Y98: =VLOOKUP(CONCATENATE($F$2,"|",$F$3,"|",Y$5,"|",$E$88,"|",$G$88,"|",$H$3,"|",Y$7,"|",$D98,"|",Y$6,"|",$J$3),'DATA MART_'!$C$2:$R$985098,16,0) ->  | Z98: 100301
D99: =VLOOKUP(TRIM(F99),'DATA MART_'!$AD$3:$AF$25,3,0) -> 15 | F99: Retail - Secured on real estate property | G99: =VLOOKUP(CONCATENATE($F$2,"|",$F$3,"|",G$5,"|",$E$88,"|",$G$88,"|",$H$3,"|",G$7,"|",$D99,"|",G$6,"|",$J$3),'DATA MART_'!$C$2:$R$985098,16,0) ->  | H99: =VLOOKUP(CONCATENATE($F$2,"|",$F$3,"|",H$5,"|",$E$88,"|",$G$88,"|",$H$3,"|",H$7,"|",$D99,"|",H$6,"|",$J$3),'DATA MART_'!$C$2:$R$985098,16,0) ->  | I99: =VLOOKUP(CONCATENATE($F$2,"|",$F$3,"|",I$5,"|",$E$88,"|",$G$88,"|",$H$3,"|",I$7,"|",$D99,"|",I$6,"|",$J$3),'DATA MART_'!$C$2:$R$985098,16,0) ->  | J99: =VLOOKUP(CONCATENATE($F$2,"|",$F$3,"|",J$5,"|",$E$88,"|",$G$88,"|",$H$3,"|",J$7,"|",$D99,"|",J$6,"|",$J$3),'DATA MART_'!$C$2:$R$985098,16,0) ->  | K99: =VLOOKUP(CONCATENATE($F$2,"|",$F$3,"|",K$5,"|",$E$88,"|",$G$88,"|",$H$3,"|",K$7,"|",$D99,"|",K$6,"|",$J$3),'DATA MART_'!$C$2:$R$985098,16,0) ->  | L99: =VLOOKUP(CONCATENATE($F$2,"|",$F$3,"|",L$5,"|",$E$88,"|",$G$88,"|",$H$3,"|",L$7,"|",$D99,"|",L$6,"|",$J$3),'DATA MART_'!$C$2:$R$985098,16,0) ->  | M99: =VLOOKUP(CONCATENATE($F$2,"|",$F$3,"|",M$5,"|",$E$88,"|",$G$88,"|",$H$3,"|",M$7,"|",$D99,"|",M$6,"|",$J$3),'DATA MART_'!$C$2:$R$985098,16,0) ->  | N99: =VLOOKUP(CONCATENATE($F$2,"|",$F$3,"|",N$5,"|",$E$88,"|",$G$88,"|",$H$3,"|",N$7,"|",$D99,"|",N$6,"|",$J$3),'DATA MART_'!$C$2:$R$985098,16,0) ->  | O99: =VLOOKUP(CONCATENATE($F$2,"|",$F$3,"|",O$5,"|",$E$88,"|",$G$88,"|",$H$3,"|",O$7,"|",$D99,"|",O$6,"|",$J$3),'DATA MART_'!$C$2:$R$985098,16,0) ->  | P99: =VLOOKUP(CONCATENATE($F$2,"|",$F$3,"|",P$5,"|",$E$88,"|",$G$88,"|",$H$3,"|",P$7,"|",$D99,"|",P$6,"|",$J$3),'DATA MART_'!$C$2:$R$985098,16,0) ->  | Q99: =VLOOKUP(CONCATENATE($F$2,"|",$F$3,"|",Q$5,"|",$E$88,"|",$G$88,"|",$H$3,"|",Q$7,"|",$D99,"|",Q$6,"|",$J$3),'DATA MART_'!$C$2:$R$985098,16,0) ->  | R99: =VLOOKUP(CONCATENATE($F$2,"|",$F$3,"|",R$5,"|",$E$88,"|",$G$88,"|",$H$3,"|",R$7,"|",$D99,"|",R$6,"|",$J$3),'DATA MART_'!$C$2:$R$985098,16,0) ->  | S99: =VLOOKUP(CONCATENATE($F$2,"|",$F$3,"|",S$5,"|",$E$88,"|",$G$88,"|",$H$3,"|",S$7,"|",$D99,"|",S$6,"|",$J$3),'DATA MART_'!$C$2:$R$985098,16,0) ->  | U99: =VLOOKUP(CONCATENATE($F$2,"|",$F$3,"|",U$5,"|",$E$88,"|",$G$88,"|",$H$3,"|",U$7,"|",$D99,"|",U$6,"|",$J$3),'DATA MART_'!$C$2:$R$985098,16,0) ->  | W99: =VLOOKUP(CONCATENATE($F$2,"|",$F$3,"|",W$5,"|",$E$88,"|",$G$88,"|",$H$3,"|",W$7,"|",$D99,"|",W$6,"|",$J$3),'DATA MART_'!$C$2:$R$985098,16,0) ->  | Y99: =VLOOKUP(CONCATENATE($F$2,"|",$F$3,"|",Y$5,"|",$E$88,"|",$G$88,"|",$H$3,"|",Y$7,"|",$D99,"|",Y$6,"|",$J$3),'DATA MART_'!$C$2:$R$985098,16,0) ->  | Z99: 100400
D100: =VLOOKUP(TRIM(F100),'DATA MART_'!$AD$3:$AF$25,3,0) -> 16 | F100: Retail - Secured on real estate property - Of Which: SME | G100: =VLOOKUP(CONCATENATE($F$2,"|",$F$3,"|",G$5,"|",$E$88,"|",$G$88,"|",$H$3,"|",G$7,"|",$D100,"|",G$6,"|",$J$3),'DATA MART_'!$C$2:$R$985098,16,0) ->  | H100: =VLOOKUP(CONCATENATE($F$2,"|",$F$3,"|",H$5,"|",$E$88,"|",$G$88,"|",$H$3,"|",H$7,"|",$D100,"|",H$6,"|",$J$3),'DATA MART_'!$C$2:$R$985098,16,0) ->  | I100: =VLOOKUP(CONCATENATE($F$2,"|",$F$3,"|",I$5,"|",$E$88,"|",$G$88,"|",$H$3,"|",I$7,"|",$D100,"|",I$6,"|",$J$3),'DATA MART_'!$C$2:$R$985098,16,0) ->  | J100: =VLOOKUP(CONCATENATE($F$2,"|",$F$3,"|",J$5,"|",$E$88,"|",$G$88,"|",$H$3,"|",J$7,"|",$D100,"|",J$6,"|",$J$3),'DATA MART_'!$C$2:$R$985098,16,0) ->  | K100: =VLOOKUP(CONCATENATE($F$2,"|",$F$3,"|",K$5,"|",$E$88,"|",$G$88,"|",$H$3,"|",K$7,"|",$D100,"|",K$6,"|",$J$3),'DATA MART_'!$C$2:$R$985098,16,0) ->  | L100: =VLOOKUP(CONCATENATE($F$2,"|",$F$3,"|",L$5,"|",$E$88,"|",$G$88,"|",$H$3,"|",L$7,"|",$D100,"|",L$6,"|",$J$3),'DATA MART_'!$C$2:$R$985098,16,0) ->  | M100: =VLOOKUP(CONCATENATE($F$2,"|",$F$3,"|",M$5,"|",$E$88,"|",$G$88,"|",$H$3,"|",M$7,"|",$D100,"|",M$6,"|",$J$3),'DATA MART_'!$C$2:$R$985098,16,0) ->  | N100: =VLOOKUP(CONCATENATE($F$2,"|",$F$3,"|",N$5,"|",$E$88,"|",$G$88,"|",$H$3,"|",N$7,"|",$D100,"|",N$6,"|",$J$3),'DATA MART_'!$C$2:$R$985098,16,0) ->  | O100: =VLOOKUP(CONCATENATE($F$2,"|",$F$3,"|",O$5,"|",$E$88,"|",$G$88,"|",$H$3,"|",O$7,"|",$D100,"|",O$6,"|",$J$3),'DATA MART_'!$C$2:$R$985098,16,0) ->  | P100: =VLOOKUP(CONCATENATE($F$2,"|",$F$3,"|",P$5,"|",$E$88,"|",$G$88,"|",$H$3,"|",P$7,"|",$D100,"|",P$6,"|",$J$3),'DATA MART_'!$C$2:$R$985098,16,0) ->  | Q100: =VLOOKUP(CONCATENATE($F$2,"|",$F$3,"|",Q$5,"|",$E$88,"|",$G$88,"|",$H$3,"|",Q$7,"|",$D100,"|",Q$6,"|",$J$3),'DATA MART_'!$C$2:$R$985098,16,0) ->  | R100: =VLOOKUP(CONCATENATE($F$2,"|",$F$3,"|",R$5,"|",$E$88,"|",$G$88,"|",$H$3,"|",R$7,"|",$D100,"|",R$6,"|",$J$3),'DATA MART_'!$C$2:$R$985098,16,0) ->  | S100: =VLOOKUP(CONCATENATE($F$2,"|",$F$3,"|",S$5,"|",$E$88,"|",$G$88,"|",$H$3,"|",S$7,"|",$D100,"|",S$6,"|",$J$3),'DATA MART_'!$C$2:$R$985098,16,0) ->  | U100: =VLOOKUP(CONCATENATE($F$2,"|",$F$3,"|",U$5,"|",$E$88,"|",$G$88,"|",$H$3,"|",U$7,"|",$D100,"|",U$6,"|",$J$3),'DATA MART_'!$C$2:$R$985098,16,0) ->  | W100: =VLOOKUP(CONCATENATE($F$2,"|",$F$3,"|",W$5,"|",$E$88,"|",$G$88,"|",$H$3,"|",W$7,"|",$D100,"|",W$6,"|",$J$3),'DATA MART_'!$C$2:$R$985098,16,0) ->  | Y100: =VLOOKUP(CONCATENATE($F$2,"|",$F$3,"|",Y$5,"|",$E$88,"|",$G$88,"|",$H$3,"|",Y$7,"|",$D100,"|",Y$6,"|",$J$3),'DATA MART_'!$C$2:$R$985098,16,0) -> 
